Workbook

Sheet Info
F2: =VLOOKUP("txt_0000",tbl_i18n[],Lang_Ind,FALSE) -> Spielsysteme für Turniere
F5: =VLOOKUP("txt_0100",tbl_i18n[],Lang_Ind,FALSE) -> Grundsätzliche Informationen
G8: =VLOOKUP("txt_0901",tbl_i18n[],Lang_Ind,FALSE) -> Wichtig für alle Nutzer, die zu faul zum Lesen sind (wie ich):
G9: =VLOOKUP("txt_0902",tbl_i18n[],Lang_Ind,FALSE) -> Insbesondere bei Problemen rate ich dringend, erst einmal die Kapitel „1.3 Kompatibilität“ und „1.4 Makros (VBA) und Sicherheitsabfragen“ zu lesen.
F12: 1 | G12: =VLOOKUP("txt_1000",tbl_i18n[],Lang_Ind,FALSE) -> Einleitung
F14: 1.1 | G14: =VLOOKUP("txt_1100",tbl_i18n[],Lang_Ind,FALSE) -> Vorwort
G15: =VLOOKUP("txt_1101",tbl_i18n[],Lang_Ind,FALSE) -> Diese Datei spiegelt mein Wissen und meine Erfahrungen wider, die ich während der langjährigen Organisation der DMMs und vielen Besuchen bei anderen Turnieren gesammelt habe.
G16: =VLOOKUP("txt_1102",tbl_i18n[],Lang_Ind,FALSE) -> Das Ziel dieser Datei ist es, Menschen zu unterstützen, die Spiele oder Turniere organisieren möchten.
G17: =VLOOKUP("txt_1103",tbl_i18n[],Lang_Ind,FALSE) -> Der Schwerpunkt liegt dabei klar auf dem Spielplan.
G18: =VLOOKUP("txt_1104",tbl_i18n[],Lang_Ind,FALSE) -> Diese Datei ist kein Turnierplaner, sie stellt nur die optimale Team-Paarungen für Gruppen- und K.O.-Runden dar.
G19: =VLOOKUP("txt_1105",tbl_i18n[],Lang_Ind,FALSE) -> Eine Turnierplanung (speziell für Mölkky) basiert im Wesentlichen auf 3 Kriterien:
G20: ▪ | H20: =VLOOKUP("txt_1106a",tbl_i18n[],Lang_Ind,FALSE) -> Anzahl der Teams
G21: ▪ | H21: =VLOOKUP("txt_1106b",tbl_i18n[],Lang_Ind,FALSE) -> Anzahl der zur Verfügung stehenden Spielfelder
G22: ▪ | H22: =VLOOKUP("txt_1106c",tbl_i18n[],Lang_Ind,FALSE) -> der zur Verfügung stehende Zeitrahmen
G23: =VLOOKUP("txt_1107",tbl_i18n[],Lang_Ind,FALSE) -> Hieraus ergeben sich dann die Möglichkeiten für mögliche Gruppengrößen (und die Anzahl der Runden) und/oder Anzahl der K.O.-Runden.
G25: =VLOOKUP("txt_1108",tbl_i18n[],Lang_Ind,FALSE) -> Falls Euch Fehler auffallen oder Verbesserungen und Erweiterungen einfallen, teilt mir diese bitte einfach per E-Mail mit:
G26: walter_aust@t-online.de
G27: =VLOOKUP("txt_1109",tbl_i18n[],Lang_Ind,FALSE) -> Das gilt auch, wenn Ihr Probleme beim Einfügen einer weiteren Sprache habt.
F30: 1.2 | G30: =VLOOKUP("txt_1200",tbl_i18n[],Lang_Ind,FALSE) -> Benutzung
G31: =VLOOKUP("txt_1201",tbl_i18n[],Lang_Ind,FALSE) -> Alle Arbeitsblätter sind ohne Passwort geschützt, um ein unabsichtliches Ändern zu vermeiden.
G32: =VLOOKUP("txt_1202",tbl_i18n[],Lang_Ind,FALSE) -> Im Prinzip sollten alle Dropdown- und Checkbox-Steuerelemente (Kombinationsfelder und Kontrollkästchen) funktionsfähig sein (siehe auch Kapitel „1.3 Kompatibilität“).
G33: =VLOOKUP("txt_1203",tbl_i18n[],Lang_Ind,FALSE) -> Darüber hinaus können die folgenden formatierten Zellen entweder durch manuelle Eingaben oder durch teilweise vorhandene Spinbuttons (Drehfelder) verändert werden.
G35: 2 | I35: =VLOOKUP("txt_1204a",tbl_i18n[],Lang_Ind,FALSE) -> Anzahl der Teams (Round-Robin) ODER Spielergebnisse in den KO-Runden
G37: 2 | I37: =VLOOKUP("txt_1204b",tbl_i18n[],Lang_Ind,FALSE) -> Hervorheben eines Teams (Round-Robin, Multi-Teams)
G39: 2 | I39: =VLOOKUP("txt_1204c",tbl_i18n[],Lang_Ind,FALSE) -> Hervorheben eines zweiten Teams (Round-Robin, Multi-Teams)
G41: =VLOOKUP("txt_1205",tbl_i18n[],Lang_Ind,FALSE) -> Alle anderen Zellen sind Festwerte oder werden berechnet.
F44: 1.3 | G44: =VLOOKUP("txt_1300",tbl_i18n[],Lang_Ind,FALSE) -> Kompatibilität
G45: =VLOOKUP("txt_1301",tbl_i18n[],Lang_Ind,FALSE) -> Diese Datei wurde mit Microsoft® Excel® 2016 mit Microsoft® Windows 10 als Betriebssystem erstellt.
G46: =VLOOKUP("txt_1302",tbl_i18n[],Lang_Ind,FALSE) -> Theoretisch sollte die Datei auch mit dem Betriebssystem „macOS“ kompatibel sein.
G47: =VLOOKUP("txt_1303",tbl_i18n[],Lang_Ind,FALSE) -> Leider ist eine Kompatibilität zwischen den unterschiedlichen Anbietern von Office-Paketen nur eingeschränkt vorhanden.
G48: =VLOOKUP("txt_1304",tbl_i18n[],Lang_Ind,FALSE) -> Bei Makros (VBA) ist aber eine Kompatibilität de facto nicht vorhanden.
G49: =VLOOKUP("txt_1305",tbl_i18n[],Lang_Ind,FALSE) -> Bei den Blättern für „Round-Robin“ und „Multi-Teams“ konnten Makros noch durch einige Tricks vermieden werden.
G50: =VLOOKUP("txt_1306",tbl_i18n[],Lang_Ind,FALSE) -> Bei den KO-Runden und beim Erzeugen externe Tabellen sind sie leider unumgänglich.
G51: =VLOOKUP("txt_1307",tbl_i18n[],Lang_Ind,FALSE) -> Weiterhin wurde aus Kompatibilitätsgründen auf ActiveX-Steuerelemente verzichtet, auch wenn sie manchmal komfortabler wären.
F54: 1.4 | G54: =VLOOKUP("txt_1400",tbl_i18n[],Lang_Ind,FALSE) -> Makros (VBA) und Sicherheitsabfragen
G55: =VLOOKUP("txt_1401",tbl_i18n[],Lang_Ind,FALSE) -> Bei den für Makros generell empfohlenen Sicherheitseinstellungen sollte eine Warnmeldung (siehe unten) erscheinen.
G56: =VLOOKUP("txt_1402",tbl_i18n[],Lang_Ind,FALSE) -> Wie diese Meldung bei Nicht-Microsoft-Produkten aussieht, ist mir nicht bekannt.
G58: =VLOOKUP("txt_1404",tbl_i18n[],Lang_Ind,FALSE) -> Wenn Sie eine Datei öffnen, die Makros enthält, wird die gelbe Statusleiste mit einem Schildsymbol und der Schaltfläche Inhalt aktivieren angezeigt. Wenn Sie wissen, dass die Makros aus einer zuverlässigen Quelle stammen, befolgen Sie die nachstehenden Anweisungen:
G59: =VLOOKUP("txt_1405",tbl_i18n[],Lang_Ind,FALSE) -> Klicken Sie auf der Statusleiste auf „Inhalt aktivieren“.
A61: =VLOOKUP("txt_1407",tbl_i18n[],Lang_Ind,FALSE) -> Inhalt aktivieren | I61: =VLOOKUP("txt_1406",tbl_i18n[],Lang_Ind,FALSE) -> SICHERHEITSWARNUNG Makros wurde deaktiviert.
F64: 2 | G64: =VLOOKUP("txt_2000",tbl_i18n[],Lang_Ind,FALSE) -> Blätter in dieser Arbeitsmappe
A66: =CELL("filename",$A$1) -> E:\Tournament_Database\Tournament_Systems\[Systems_of_Tournament-Rounds__V01.00.xlsm]Info | B66: =MID(A66,FIND("]",A66)+1,255) -> Info | F66: 2.1 | G66: =B66 -> Info
G67: =VLOOKUP("txt_2101",tbl_i18n[],Lang_Ind,FALSE) -> dieses Blatt
A69: =CELL("filename",'Round-Robin'!A1) -> E:\Tournament_Database\Tournament_Systems\[Systems_of_Tournament-Rounds__V01.00.xlsm]Round-Robin | B69: =MID(A69,FIND("]",A69)+1,255) -> Round-Robin | F69: 2.2 | G69: =HYPERLINK("#'"&B69&"'!V4",B69) -> Round-Robin
G70: =CHAR(34)&VLOOKUP("txt_2201",tbl_i18n[],Lang_Ind,FALSE)&CHAR(34) -> "Gruppenphase: Darstellung des Round-Robin-Systems"
G71: =VLOOKUP("txt_2202",tbl_i18n[],Lang_Ind,FALSE) -> Die Tabelle zeigt ein reines Round-Robin-System (jeder gegen jeden).
G72: =VLOOKUP("txt_2204",tbl_i18n[],Lang_Ind,FALSE) -> Ein perfekter Spielplan hätte folgende Eigenschaften:
G73: ▪ | H73: =VLOOKUP("txt_2259",tbl_i18n[],Lang_Ind,FALSE) -> Jedes Team spielt genau einmal gegen ein anderes.
G74: ▪ | H74: =VLOOKUP("txt_2263",tbl_i18n[],Lang_Ind,FALSE) -> Kein Team spielt zwei Spiele hintereinander auf demselben Spielfeld.
G75: ▪ | H75: =VLOOKUP("txt_2271",tbl_i18n[],Lang_Ind,FALSE) -> Jedes Team zweimal auf jedem Spielfeld.
G76: ▪ | H76: =VLOOKUP("txt_2266",tbl_i18n[],Lang_Ind,FALSE) -> Jedes Team beginnt genau einmal den ersten Satz auf jedem Spielfeld.
G77: =VLOOKUP("txt_2205",tbl_i18n[],Lang_Ind,FALSE) -> In der Realität ist dies nicht immer möglich, siehe auch „Eigenschaften“ neben dem Spielplan.
G78: =VLOOKUP("txt_2206",tbl_i18n[],Lang_Ind,FALSE) -> Um die Teampaarungen zu überprüfen, können folgende Kriterien ausgewählt werden:
G79: ▪ | H79: =VLOOKUP("txt_2207a",tbl_i18n[],Lang_Ind,FALSE) -> Anzahl der Teams (zwischen 2 und 26)
G80: ▪ | H80: =VLOOKUP("txt_2207b",tbl_i18n[],Lang_Ind,FALSE) -> Anzahl der Spielfelder (bis jetzt nur bei 10 Teams möglich)
G81: ▪ | H81: =VLOOKUP("txt_2207c",tbl_i18n[],Lang_Ind,FALSE) -> zwei unterschiedlich farbig markierte Teams
G83: =VLOOKUP("calc_1000",tbl_i18n[],Lang_Ind,FALSE) -> Berechnung der benötigten Spielfelder, Runden, Spiele und Sätze
H84: =VLOOKUP("calc_1001",tbl_i18n[],Lang_Ind,FALSE) -> (wenn alle gleichwertigen Runden gleichzeitig stattfinden)
I86: =VLOOKUP("calc_1011a",tbl_i18n[],Lang_Ind,FALSE)& " (2…26)" -> n = Anzahl der Teams je Gruppe (2…26) | J86: 8
I87: =VLOOKUP("calc_1012",tbl_i18n[],Lang_Ind,FALSE) -> r = Anzahl der Runden | J87: =J86-ISEVEN(J86) -> 7 | L87: =VLOOKUP("calc_1222a",tbl_i18n[],Lang_Ind,FALSE)&" "&VLOOKUP("calc_1222b",tbl_i18n[],Lang_Ind,FALSE) -> = n (wenn n ungerade) = n-1 (wenn n gerade)
I88: =VLOOKUP("calc_1013",tbl_i18n[],Lang_Ind,FALSE) -> f = Anzahl der Felder | J88: =ROUNDUP(J86/2,0) -> 4 | L88: =VLOOKUP("calc_1223",tbl_i18n[],Lang_Ind,FALSE) -> = aufrunden ( n / 2 )
I89: =VLOOKUP("calc_1014",tbl_i18n[],Lang_Ind,FALSE) -> g = Anzahl der Spiele | J89: =J86/2*(J86-1) -> 28 | L89: =VLOOKUP("calc_1224",tbl_i18n[],Lang_Ind,FALSE) -> = ( n / 2 ) × ( n -1 )
I90: =VLOOKUP("calc_1015",tbl_i18n[],Lang_Ind,FALSE) -> s = Anzahl der Sätze | L90: =VLOOKUP("calc_1225",tbl_i18n[],Lang_Ind,FALSE) -> = Festlegung durch den Veranstalter
A93: =CELL("filename",'Multi-Teams'!D1) -> E:\Tournament_Database\Tournament_Systems\[Systems_of_Tournament-Rounds__V01.00.xlsm]Multi-Teams | B93: =MID(A93,FIND("]",A93)+1,255) -> Multi-Teams | F93: 2.3 | G93: =HYPERLINK("#'"&B93&"'!D2",B93) -> Multi-Teams
G94: =CHAR(34)&VLOOKUP("txt_2301",tbl_i18n[],Lang_Ind,FALSE)&CHAR(34) -> "Gruppenphase: Darstellung des Multi-Team-Spielsystems (Reihenfolge der Teams)"
G95: =VLOOKUP("txt_2302",tbl_i18n[],Lang_Ind,FALSE) -> Die Tabelle zeigt 4 Spiele mit je 3 bis 6 Teams in einem Spiel und wie sich die Wurfreihenfolge ändert.
G96: =VLOOKUP("txt_2304",tbl_i18n[],Lang_Ind,FALSE) -> Ein perfekter Spielplan hätte folgende Eigenschaften:
G97: ▪ | H97: =VLOOKUP("txt_2358",tbl_i18n[],Lang_Ind,FALSE) -> Es gibt so viele Sätze wie es Teams in einem Spiel gibt.
G98: ▪ | H98: =VLOOKUP("txt_2359",tbl_i18n[],Lang_Ind,FALSE) -> Jedes Team beginnt genau einmal einen Satz.
G99: ▪ | H99: =VLOOKUP("txt_2361",tbl_i18n[],Lang_Ind,FALSE) -> Zwei Teams, die in der Wurfreihenfolge aufeinander folgen, spielen genau einmal hintereinander.
G100: =VLOOKUP("txt_2305",tbl_i18n[],Lang_Ind,FALSE) -> In der Realität ist dies nicht immer möglich, siehe auch „Eigenschaften“ neben dem Spielplan.
G101: =VLOOKUP("txt_2306",tbl_i18n[],Lang_Ind,FALSE) -> Um aufeinanderfolgende Teams zu überprüfen, können folgende Kriterien ausgewählt werden:
G102: ▪ | H102: =VLOOKUP("txt_2307c",tbl_i18n[],Lang_Ind,FALSE) -> zwei unterschiedlich farbig markierte Teams
G104: =G83 -> Berechnung der benötigten Spielfelder, Runden, Spiele und Sätze
H105: =H84 -> (wenn alle gleichwertigen Runden gleichzeitig stattfinden)
I107: =VLOOKUP("calc_1011a",tbl_i18n[],Lang_Ind,FALSE)& " (2…6)" -> n = Anzahl der Teams je Gruppe (2…6) | J107: 4
I108: =I87 -> r = Anzahl der Runden | J108: 1 | L108: =VLOOKUP("calc_1232",tbl_i18n[],Lang_Ind,FALSE) -> = 1 (immer)
I109: =I88 -> f = Anzahl der Felder | J109: 1 | L109: =VLOOKUP("calc_1233",tbl_i18n[],Lang_Ind,FALSE) -> = 1 (immer)
I110: =I89 -> g = Anzahl der Spiele | J110: 1 | L110: =VLOOKUP("calc_1234",tbl_i18n[],Lang_Ind,FALSE) -> = Festlegung durch den Veranstalter
I111: =I90 -> s = Anzahl der Sätze | J111: =J107 -> 4 | L111: =VLOOKUP("calc_1235",tbl_i18n[],Lang_Ind,FALSE) -> = n
A114: =CELL("filename",'KO-Single'!$B$1) -> E:\Tournament_Database\Tournament_Systems\[Systems_of_Tournament-Rounds__V01.00.xlsm]KO-Single | B114: =MID(A114,FIND("]",A114)+1,255) -> KO-Single | F114: 2.4 | G114: =HYPERLINK("#'"&B114&"'!M2",B114) -> KO-Single
G115: =CHAR(34)&VLOOKUP("txt_2401",tbl_i18n[],Lang_Ind,FALSE)&CHAR(34) -> "Finalrunden: Darstellung eines einfachen K.O-Systems (Ausscheidungsrunden)"
G116: =VLOOKUP("txt_2402",tbl_i18n[],Lang_Ind,FALSE) -> Klassische Turnierform, bei der der Verlierer eines Spiels aus dem Turnier ausscheidet.
G117: =VLOOKUP("txt_2403",tbl_i18n[],Lang_Ind,FALSE) -> Die gewählte Systematik der Spielnummern und wer gegen wen spielt ist weit verbreitet und relativ einfach.
D118: =IF(Lang_Ind<>3," ","") ->  | G118: =VLOOKUP("txt_2404",tbl_i18n[],Lang_Ind,FALSE) -> Allerdings wurde hier beim Setzen der Vorrundengruppen abgewichen, um folgende Bedingungen einzuhalten:
G119: =VLOOKUP("txt_2405",tbl_i18n[],Lang_Ind,FALSE) -> (Reihenfolge = absteigende Priorität)
G120: ▪ | H120: =VLOOKUP("txt_2406a",tbl_i18n[],Lang_Ind,FALSE) -> Wenn die besten Teams jeder Vorrundengruppe jedes Spiel gewinnen, sollten sie so spät wie möglich gegeneinander spielen.
G121: ▪ | H121: =VLOOKUP("txt_2406b",tbl_i18n[],Lang_Ind,FALSE) -> Wenn zwei Teams einer Vorrundengruppe jedes Spiel gewinnen, sollten sie so spät wie möglich gegeneinander spielen.
G122: ▪ | H122: =VLOOKUP("txt_2406c",tbl_i18n[],Lang_Ind,FALSE) -> Bei Auslosung der Vorrundengruppen sollten die Gruppenkombinationen in der ersten K.O.-Runde möglichst gemischt werden. Beispiel: 4 Gruppen á 4 Teams, Gruppe A spielt nicht nur gegen eine Gruppe.
G124: =G83 -> Berechnung der benötigten Spielfelder, Runden, Spiele und Sätze
H125: =H84 -> (wenn alle gleichwertigen Runden gleichzeitig stattfinden)
I127: =VLOOKUP("calc_1011",tbl_i18n[],Lang_Ind,FALSE)& " (4, 8 ,16, 32, 64, 128)" -> n = Anzahl der Teams (4, 8 ,16, 32, 64, 128) | J127: 16
I128: =I87 -> r = Anzahl der Runden | J128: =LOG(J127,2) -> 4 | L128: =VLOOKUP("calc_1242",tbl_i18n[],Lang_Ind,FALSE) -> = log₂ ( n )
I129: =I88 -> f = Anzahl der Felder | J129: =J127/2 -> 8 | L129: =VLOOKUP("calc_1243",tbl_i18n[],Lang_Ind,FALSE) -> = n / 2
I130: =I89 -> g = Anzahl der Spiele | J130: =J127 -> 16 | L130: =VLOOKUP("calc_1244",tbl_i18n[],Lang_Ind,FALSE) -> = n (mit Spiel um den dritten Platz)
I131: =I90 -> s = Anzahl der Sätze | L131: =VLOOKUP("calc_1245",tbl_i18n[],Lang_Ind,FALSE) -> = Festlegung durch den Veranstalter
A134: =CELL("filename",'KO-Full'!$B$1) -> E:\Tournament_Database\Tournament_Systems\[Systems_of_Tournament-Rounds__V01.00.xlsm]KO-Full | B134: =MID(A134,FIND("]",A134)+1,255) -> KO-Full | F134: 2.5 | G134: =HYPERLINK("#'"&B134&"'!M2",B134) -> KO-Full
G135: =CHAR(34)&VLOOKUP("txt_2501",tbl_i18n[],Lang_Ind,FALSE)&CHAR(34) -> "Finalrunden: Darstellung eines vollständiges KO-Systems (mit Ausspielung aller Plätze)"
G136: =VLOOKUP("txt_2502",tbl_i18n[],Lang_Ind,FALSE) -> Das Grundprinzip und die Anforderungen entsprechen dem einfachen K.O.-System.
G137: =VLOOKUP("txt_2503",tbl_i18n[],Lang_Ind,FALSE) -> Alle Teams spielen die gleiche Anzahl von Spielen.
G138: =VLOOKUP("txt_2504",tbl_i18n[],Lang_Ind,FALSE) -> Der Gewinner eines Spiels spielt mit den anderen Gewinnern der gleichen Runde um die obere Hälfte der Plätze, die Verlierer spielen die unteren Plätze aus.
G139: =VLOOKUP("txt_2505",tbl_i18n[],Lang_Ind,FALSE) -> Es werden nicht mehr Spielfelder und Zeit als bei dem einfachen K.O.-System benötigt.
G141: =G83 -> Berechnung der benötigten Spielfelder, Runden, Spiele und Sätze
H142: =H84 -> (wenn alle gleichwertigen Runden gleichzeitig stattfinden)
I144: =VLOOKUP("calc_1011",tbl_i18n[],Lang_Ind,FALSE)& " (4, 8 ,16, 32, 64, 128)" -> n = Anzahl der Teams (4, 8 ,16, 32, 64, 128) | J144: 16
I145: =I87 -> r = Anzahl der Runden | J145: =LOG(J144,2) -> 4 | L145: =VLOOKUP("calc_1252",tbl_i18n[],Lang_Ind,FALSE) -> = log₂ ( n )
I146: =I88 -> f = Anzahl der Felder | J146: =J144/2 -> 8 | L146: =VLOOKUP("calc_1253",tbl_i18n[],Lang_Ind,FALSE) -> = n / 2
I147: =I89 -> g = Anzahl der Spiele | J147: =J144/2*LOG(J144,2) -> 32 | L147: =VLOOKUP("calc_1254",tbl_i18n[],Lang_Ind,FALSE) -> = (n / 2 ) × log₂ ( n ) = r × f
I148: =I90 -> s = Anzahl der Sätze | L148: =VLOOKUP("calc_1255",tbl_i18n[],Lang_Ind,FALSE) -> = Festlegung durch den Veranstalter
A151: =CELL("filename",'KO-Consolation'!M1) -> E:\Tournament_Database\Tournament_Systems\[Systems_of_Tournament-Rounds__V01.00.xlsm]KO-Consolation | B151: =MID(A151,FIND("]",A151)+1,255) -> KO-Consolation | F151: 2.6 | G151: =HYPERLINK("#'"&B151&"'!M2",B151) -> KO-Consolation
G152: =CHAR(34)&VLOOKUP("txt_2601",tbl_i18n[],Lang_Ind,FALSE)&CHAR(34) -> "Finalrunden: Darstellung eines einfachen K.O-Systems (Ausscheidungsrunden) mit einer Trostrunde"
G153: =VLOOKUP("txt_2602",tbl_i18n[],Lang_Ind,FALSE) -> Das Grundprinzip und die Anforderungen entsprechen dem einfachen K.O.-System.
G154: =VLOOKUP("txt_2603",tbl_i18n[],Lang_Ind,FALSE) -> Mit einer Ausnahme: die Verlierer der ersten Runde spielen in einem einfachen K.O.-System weiter um die mittleren Plätze.
G156: =VLOOKUP("txt_2611",tbl_i18n[],Lang_Ind,FALSE) -> Beispiel: 64 Teams, mittlerer Platz = 33
H157: =VLOOKUP("txt_2612",tbl_i18n[],Lang_Ind,FALSE) -> Die Verlierer der ersten Runde (1/32-Finale) spielen weiter mit einem einfachen K.O.-System um die Plätze 33 bis 36 (entspricht 1. bis 4 Platz der Trostrunde).
G159: =VLOOKUP("txt_2620",tbl_i18n[],Lang_Ind,FALSE) -> Hinweis zum Tabellenblatt:
H161: =VLOOKUP("txt_2621",tbl_i18n[],Lang_Ind,FALSE) -> Oberhalb dieser Linie finden die Spiele um den ersten Platz statt.
H162: =VLOOKUP("txt_2622",tbl_i18n[],Lang_Ind,FALSE) -> Unterhalb dieser Linie finden die Spiele der Trostrunde statt.
G164: =G83 -> Berechnung der benötigten Spielfelder, Runden, Spiele und Sätze
H165: =H84 -> (wenn alle gleichwertigen Runden gleichzeitig stattfinden)
I167: =VLOOKUP("calc_1011",tbl_i18n[],Lang_Ind,FALSE)& " (8 ,16, 32, 64, 128)" -> n = Anzahl der Teams (8 ,16, 32, 64, 128) | J167: 16
I168: =I87 -> r = Anzahl der Runden | J168: =LOG(J167,2) -> 4 | L168: =VLOOKUP("calc_1262",tbl_i18n[],Lang_Ind,FALSE) -> = log₂ ( n )
I169: =I88 -> f = Anzahl der Felder | J169: =J167/2 -> 8 | L169: =VLOOKUP("calc_1263",tbl_i18n[],Lang_Ind,FALSE) -> = n / 2
I170: =I89 -> g = Anzahl der Spiele | J170: =1.5*J167 -> 24 | L170: =VLOOKUP("calc_1264",tbl_i18n[],Lang_Ind,FALSE) -> = 1,5 × n
I171: =I90 -> s = Anzahl der Sätze | L171: =VLOOKUP("calc_1265",tbl_i18n[],Lang_Ind,FALSE) -> = Festlegung durch den Veranstalter
A174: =CELL("filename",'KO-Double'!M1) -> E:\Tournament_Database\Tournament_Systems\[Systems_of_Tournament-Rounds__V01.00.xlsm]KO-Double | B174: =MID(A174,FIND("]",A174)+1,255) -> KO-Double | F174: 2.7 | G174: =HYPERLINK("#'"&B174&"'!M2",B174) -> KO-Double
G175: =CHAR(34)&VLOOKUP("txt_2701",tbl_i18n[],Lang_Ind,FALSE)&CHAR(34) -> "Finalrunden: Darstellung eines Doppel-KO-Systems"
G176: =VLOOKUP("txt_2702",tbl_i18n[],Lang_Ind,FALSE) -> Ein Doppel-KO-System ist eine Turnierform, bei dem ein Teilnehmer erst nach zwei verlorenen Spielen nicht mehr für den Gewinn der Turniermeisterschaft in Frage kommt.
G177: =VLOOKUP("txt_2703",tbl_i18n[],Lang_Ind,FALSE) -> Es erfordert die gleiche Anzahl von Feldern wie das einfache oder vollständige K.O.-System; hat aber mindestens doppelt so viele Runden.
G178: =VLOOKUP("txt_2729",tbl_i18n[],Lang_Ind,FALSE) -> Im Gegensatz zur üblichen Darstellung (siehe untere Grafik) habe ich hier eine andere Darstellung des Doppel-KO-Systems gewählt, die meines Erachtens die Systematik besser verdeutlicht.
G187: =VLOOKUP("txt_2720",tbl_i18n[],Lang_Ind,FALSE) -> Hinweis zum Tabellenblatt:
H189: =VLOOKUP("txt_2721",tbl_i18n[],Lang_Ind,FALSE) -> Oberhalb dieser Linie finden die Spiele um den ersten Platz statt.
H190: =VLOOKUP("txt_2722",tbl_i18n[],Lang_Ind,FALSE) -> Jedes Team, dass unter dieser Linie fällt (weil es ein Spiel verloren hat), kann noch am Finalspiel teilnehmen, wenn es alle folgenden Spiele gewinnt.
G192: =G83 -> Berechnung der benötigten Spielfelder, Runden, Spiele und Sätze
H193: =H84 -> (wenn alle gleichwertigen Runden gleichzeitig stattfinden)
I195: =VLOOKUP("calc_1011",tbl_i18n[],Lang_Ind,FALSE)& " (8 ,16, 32, 64)" -> n = Anzahl der Teams (8 ,16, 32, 64) | J195: 16
I196: =I87 -> r = Anzahl der Runden | J196: =2* LOG(J195,2) -> 8 | L196: =VLOOKUP("calc_1272",tbl_i18n[],Lang_Ind,FALSE) -> = 2 × log₂ ( n ) + x
I197: =I88 -> f = Anzahl der Felder | J197: =J195/2 -> 8 | L197: =VLOOKUP("calc_1273",tbl_i18n[],Lang_Ind,FALSE) -> = n / 2
I198: =I89 -> g = Anzahl der Spiele | J198: =2*(J195-1) -> 30 | L198: =VLOOKUP("calc_1274",tbl_i18n[],Lang_Ind,FALSE) -> = 2 × ( n - 1 )
I199: =I90 -> s = Anzahl der Sätze | L199: =VLOOKUP("calc_1275",tbl_i18n[],Lang_Ind,FALSE) -> = Festlegung durch den Veranstalter
I201: =VLOOKUP("txt_2711",tbl_i18n[],Lang_Ind,FALSE) -> x ist abhängig vom Spielverlauf des Verlierers des Finalspiels (Spiel um den ersten Platz)
I202: =VLOOKUP("txt_2712",tbl_i18n[],Lang_Ind,FALSE) -> x = 0; wenn der Verlierer vor dem Finalspiel in der KO-Runde schon ein Spiel verloren hatte (Doppel-KO)
I203: =VLOOKUP("txt_2713",tbl_i18n[],Lang_Ind,FALSE) -> x = 1; wenn der Verlierer vor dem Finalspiel in der KO-Runde kein Spiel verloren hatte gibt es ein zweites Finalspiel
F206: 2.8 | G206: Info Swiss-system
G207: =CHAR(34)&VLOOKUP("txt_2801",tbl_i18n[],Lang_Ind,FALSE)&CHAR(34) -> "Darstellung des Schweizer System"
G208: =VLOOKUP("txt_2802",tbl_i18n[],Lang_Ind,FALSE) -> Das Schweizer System lässt sich am besten als Sonderform des Rundenturniers (Round-Robin-Systems) beschreiben.
G209: =VLOOKUP("txt_2803",tbl_i18n[],Lang_Ind,FALSE) -> Die erste Runde wird gesetzt oder gelost; nach jeder Runde wird der Zwischenstand bestimmt, und in den folgenden Runden spielt stets der Führende gegen den Zweitplatzierten, der dritte gegen den vierten und so weiter.
G211: =VLOOKUP("txt_2899",tbl_i18n[],Lang_Ind,FALSE) -> Aufgrund der Systematik und Komplexität dieser Turnierform ist diese hier noch nicht implementiert.
F214: 3 | G214: =VLOOKUP("txt_3000",tbl_i18n[],Lang_Ind,FALSE) -> Basistabellen
A216: =CELL("filename",'Table Round-Robin'!$A$1) -> E:\Tournament_Database\Tournament_Systems\[Systems_of_Tournament-Rounds__V01.00.xlsm]Table Round-Robin | B216: =MID(A216,FIND("]",A216)+1,255) -> Table Round-Robin | F216: 3.1 | G216: =HYPERLINK("#'"&B216&"'!A1",B216) -> Table Round-Robin
G217: =VLOOKUP("txt_3101",tbl_i18n[],Lang_Ind,FALSE) -> Das Blatt enthält 2 Tabellen, die aus technischen Gründen nur in englischer Sprache verfügbar sind.
G218: ▪ | H218: ="'tbl_RR_Data': "&'Table Round-Robin'!$B$5 -> 'tbl_RR_Data': Table of team pairings depending on the number of teams and playing fields
G219: ▪ | H219: ="'tbl_RR_Info': "&'Table Round-Robin'!$K$5 -> 'tbl_RR_Info': Table of notes depending on the number of teams and playing fields
G220: =VLOOKUP("txt_3102",tbl_i18n[],Lang_Ind,FALSE) &" '" & G69&"'" -> Beide Tabellen werden für folgendes Blatt verwendet: 'Round-Robin'
A222: =CELL("filename",'Table Multi-Teams'!$A$1) -> E:\Tournament_Database\Tournament_Systems\[Systems_of_Tournament-Rounds__V01.00.xlsm]Table Multi-Teams | B222: =MID(A222,FIND("]",A222)+1,255) -> Table Multi-Teams | F222: 3.2 | G222: =HYPERLINK("#'"&B222&"'!A1",B222) -> Table Multi-Teams
G223: =VLOOKUP("txt_3201",tbl_i18n[],Lang_Ind,FALSE) -> Das Blatt enthält 1 Tabelle, die aus technischen Gründen nur in englischer Sprache verfügbar ist.
G224: ▪ | H224: ="'tbl_MT_Data': "&'Table Multi-Teams'!$B$5 -> 'tbl_MT_Data': Table of team orders per set depending on the number of teams
G225: ▪ | H225: ="'tbl_MT_Info': "&'Table Multi-Teams'!$O$5 -> 'tbl_MT_Info': Table of notes depending on the number of teams
G226: =VLOOKUP("txt_3202",tbl_i18n[],Lang_Ind,FALSE) &" '" & G93&"'" -> Diese wird für folgendes Blatt verwendet: 'Multi-Teams'
A228: =CELL("filename",'Table KO-Rounds'!$A$1) -> E:\Tournament_Database\Tournament_Systems\[Systems_of_Tournament-Rounds__V01.00.xlsm]Table KO-Rounds | B228: =MID(A228,FIND("]",A228)+1,255) -> Table KO-Rounds | F228: 3.3 | G228: =HYPERLINK("#'"&B228&"'!A1",B228) -> Table KO-Rounds
G229: =VLOOKUP("txt_3301",tbl_i18n[],Lang_Ind,FALSE) -> Das Blatt enthält 1 Tabelle, die aus technischen Gründen nur in englischer Sprache verfügbar ist.
G230: ▪ | H230: ="'tbl_KO_Data': "&'Table KO-Rounds'!B5 -> 'tbl_KO_Data': Table of team pairings (with predessor game or group rank) for KO-rounds
G231: =VLOOKUP("txt_3302",tbl_i18n[],Lang_Ind,FALSE) -> Diese wird für alle "Info KO-…" Blätter verwendet.
A233: =CELL("filename",Localisation!$A$1) -> E:\Tournament_Database\Tournament_Systems\[Systems_of_Tournament-Rounds__V01.00.xlsm]Localisation | B233: =MID(A233,FIND("]",A233)+1,255) -> Localisation | F233: 3.9 | G233: =HYPERLINK("#'"&B233&"'!A1",B233) -> Localisation
G234: =VLOOKUP("txt_3901",tbl_i18n[],Lang_Ind,FALSE) -> Das Blatt enthält alle sprachabhängigen Texte.
G235: =VLOOKUP("txt_3902",tbl_i18n[],Lang_Ind,FALSE) -> Für eine neue Sprache muss einfach in der obersten Zeile der Name der Sprache in die nächste freie Spalte eingetragen werden. Das ist alles (außer den fehlenden Übersetzungen).
G236: =VLOOKUP("txt_3903",tbl_i18n[],Lang_Ind,FALSE) -> Es empfiehlt sich, die komplette Spalte einer vollständig ausgefüllten Sprache für die neue Sprache zu kopieren, so dass bei fehlenden Übersetzungen keine Lücken entstehen.
F239: 4 | G239: =VLOOKUP("txt_4000",tbl_i18n[],Lang_Ind,FALSE) -> Überarbeitungen
F246: 5 | G246: =VLOOKUP("txt_5000",tbl_i18n[],Lang_Ind,FALSE) -> Über den Autor
G247: =VLOOKUP("txt_5001",tbl_i18n[],Lang_Ind,FALSE) -> Ich nutze Excel seit 1988 (damals auf einem Macintosh) und das Programm ist definitiv schon vor langer Zeit zu einem Hobby von mir geworden. Außerdem nutze ich die zugehörige Programmiersprache VBA seit Anbeginn ausgiebig.
G248: =VLOOKUP("txt_5002",tbl_i18n[],Lang_Ind,FALSE) -> Kontakt:
G249: * | I249: walter_aust@t-online.de

Sheet Round-Robin
Y1: 1 | Z1: 2 | AA1: 3 | AB1: 4 | AC1: 5 | AD1: 6 | AE1: 7 | AF1: 8 | AG1: 9 | AH1: 10 | AI1: 11 | AJ1: 12 | AK1: 13 | AL1: 14 | AM1: 15 | AN1: 16 | AO1: 17 | AP1: 18 | AQ1: 19 | AR1: 20 | AS1: 21 | AT1: 22 | AU1: 23 | AV1: 24 | AW1: 25 | AX1: 26 | AY1: 27 | AZ1: 28 | BA1: 29 | BB1: 30
X4: =VLOOKUP("txt_0000",tbl_i18n[],Lang_Ind,FALSE) -> Spielsysteme für Turniere | BW4: created by: Walter Aust
V6: ç
X7: =VLOOKUP("txt_2201",tbl_i18n[],Lang_Ind,FALSE) -> Gruppenphase: Darstellung des Round-Robin-Systems
C8: 1
A9: RR_CourtsCnt | C9: =INDEX(T12:T13,C8) -> 4 | X9: =VLOOKUP("txt_2251",tbl_i18n[],Lang_Ind,FALSE) -> Anzahl der Teams: | AC9: 8 | AI9: =VLOOKUP("txt_2254",tbl_i18n[],Lang_Ind,FALSE) -> Anzahl der Runden: | AP9: =INDEX(tbl_RR_Data[Round],S15) -> 7 | AW9: =VLOOKUP("txt_2253",tbl_i18n[],Lang_Ind,FALSE) -> Hervorheben von Team: | BD9: 1
X11: =VLOOKUP("txt_2252",tbl_i18n[],Lang_Ind,FALSE) -> Anzahl der Spielfelder: | AC11: =RR_CourtsCnt -> 4 | BD11: 2
C12: =1000000*RR_TeamsCnt -> 8000000 | E12: auxilary table to spare calculations | S12: =MATCH(C13,tbl_RR_Data[ID],1) -> 85 | T12: =INDEX(tbl_RR_Data[Sum Fields],S12) -> 4
C13: =1000000*(RR_TeamsCnt+1) -> 9000000 | S13: =MATCH(C12,tbl_RR_Data[ID],1)+1 -> 58 | T13: =INDEX(tbl_RR_Data[Sum Fields],S13) -> 4
C14: =C12+10000*(RR_CourtsCnt) -> 8040000 | E14: 1 | F14: 2 | G14: 3 | H14: 4 | I14: 5 | J14: 6 | K14: 7 | L14: 8 | M14: 9 | N14: 10 | O14: 11 | P14: 12 | Q14: 13 | S14: =MATCH(C14,tbl_RR_Info[ID],0) -> 7 | X14: =VLOOKUP("txt_2255",tbl_i18n[],Lang_Ind,FALSE) -> Runde | Y14: =VLOOKUP("txt_2256",tbl_i18n[],Lang_Ind,FALSE) -> Spielfeld | BR14: =VLOOKUP("txt_2257",tbl_i18n[],Lang_Ind,FALSE) -> Pause | BW14: =VLOOKUP("txt_2258",tbl_i18n[],Lang_Ind,FALSE) -> Eigenschaften dieses Turnierdesigns:
E15: 1 | F15: =(RR_CourtsCnt>=F14)*F14 -> 2 | G15: 3 | H15: 4 | I15: 0 | J15: 0 | K15: 0 | L15: 0 | M15: 0 | N15: 0 | O15: 0 | P15: 0 | Q15: 0 | S15: =MATCH(C14+9999,tbl_RR_Data[ID],1) -> 85 | T15: =VLOOKUP("Num_"&RR_CourtsCnt-ISEVEN(RR_TeamsCnt),tbl_i18n[],Lang_Ind,FALSE) -> drei | Y15: =E15 -> 1 | AB15: =F15 -> 2 | AE15: =G15 -> 3 | AH15: =H15 -> 4 | AK15: =I15 -> 0 | AN15: =J15 -> 0 | AQ15: =K15 -> 0 | AT15: =L15 -> 0 | AW15: =M15 -> 0 | AZ15: =N15 -> 0 | BC15: =O15 -> 0 | BF15: =P15 -> 0 | BI15: =Q15 -> 0
A16: 1 | B16: 1 | C16: =IF(B16,MATCH($C$14+100*B16,tbl_RR_Data[ID],1),0) -> 57 | E16: =$B16*E$15 -> 1 | F16: 2 | G16: 3 | H16: 4 | I16: 0 | J16: 0 | K16: 0 | L16: 0 | M16: 0 | N16: 0 | O16: 0 | P16: 0 | Q16: 0 | T16: =VLOOKUP("Num_"&RR_CourtsCnt&"x",tbl_i18n[],Lang_Ind,FALSE) -> viermal | X16: =B16 -> 1 | Y16: =IF(E16,INDEX(tbl_RR_Data[Team 1],$C16+Y$15),"") -> 5 | Z16: =IF(E16,"–","") -> – | AA16: =IF(E16,INDEX(tbl_RR_Data[Team 2],$C16+Y$15),"") -> 4 | AB16: =IF(F16,INDEX(tbl_RR_Data[Team 1],$C16+AB$15),"") -> 7 | AC16: =IF(F16,"–","") -> – | AD16: =IF(F16,INDEX(tbl_RR_Data[Team 2],$C16+AB$15),"") -> 2 | AE16: =IF(G16,INDEX(tbl_RR_Data[Team 1],$C16+AE$15),"") -> 8 | AF16: =IF(G16,"–","") -> – | AG16: =IF(G16,INDEX(tbl_RR_Data[Team 2],$C16+AE$15),"") -> 3 | AH16: =IF(H16,INDEX(tbl_RR_Data[Team 1],$C16+AH$15),"") -> 1 | AI16: =IF(H16,"–","") -> – | AJ16: =IF(H16,INDEX(tbl_RR_Data[Team 2],$C16+AH$15),"") -> 6 | AK16: =IF(I16,INDEX(tbl_RR_Data[Team 1],$C16+AK$15),"") ->  | AL16: =IF(I16,"–","") ->  | AM16: =IF(I16,INDEX(tbl_RR_Data[Team 2],$C16+AK$15),"") ->  | AN16: =IF(J16,INDEX(tbl_RR_Data[Team 1],$C16+AN$15),"") ->  | AO16: =IF(J16,"–","") ->  | AP16: =IF(J16,INDEX(tbl_RR_Data[Team 2],$C16+AN$15),"") ->  | AQ16: =IF(K16,INDEX(tbl_RR_Data[Team 1],$C16+AQ$15),"") ->  | AR16: =IF(K16,"–","") ->  | AS16: =IF(K16,INDEX(tbl_RR_Data[Team 2],$C16+AQ$15),"") ->  | AT16: =IF(L16,INDEX(tbl_RR_Data[Team 1],$C16+AT$15),"") ->  | AU16: =IF(L16,"–","") ->  | AV16: =IF(L16,INDEX(tbl_RR_Data[Team 2],$C16+AT$15),"") ->  | AW16: =IF(M16,INDEX(tbl_RR_Data[Team 1],$C16+AW$15),"") ->  | AX16: =IF(M16,"–","") ->  | AY16: =IF(M16,INDEX(tbl_RR_Data[Team 2],$C16+AW$15),"") ->  | AZ16: =IF(N16,INDEX(tbl_RR_Data[Team 1],$C16+AZ$15),"") ->  | BA16: =IF(N16,"–","") ->  | BB16: =IF(N16,INDEX(tbl_RR_Data[Team 2],$C16+AZ$15),"") ->  | BC16: =IF(O16,INDEX(tbl_RR_Data[Team 1],$C16+BC$15),"") ->  | BD16: =IF(O16,"–","") ->  | BE16: =IF(O16,INDEX(tbl_RR_Data[Team 2],$C16+BC$15),"") ->  | BF16: =IF(P16,INDEX(tbl_RR_Data[Team 1],$C16+BF$15),"") ->  | BG16: =IF(P16,"–","") ->  | BH16: =IF(P16,INDEX(tbl_RR_Data[Team 2],$C16+BF$15),"") ->  | BI16: =IF(Q16,INDEX(tbl_RR_Data[Team 1],$C16+BI$15),"") ->  | BJ16: =IF(Q16,"–","") ->  | BK16: =IF(Q16,INDEX(tbl_RR_Data[Team 2],$C16+BI$15),"") ->  | BM16: =SMALL(IF(COUNTIF($Y16:$BK16,$Y$1:$BB$1),999,$Y$1:$BB$1),$Y$1:$BB$1) -> 9 | BN16: 10 | BO16: 11 | BP16: =RR_TeamsCnt-COUNT(Y16:BK16) -> 0 | BQ16: =AND(X16,BP16>0,BP16<4) -> FALSE | BR16: =IF(AND($BQ16,BM16<=RR_TeamsCnt),BM16,"") ->  | BS16: =IF(AND($BQ16,BN16<=RR_TeamsCnt),BN16,"") ->  | BT16: =IF(AND($BQ16,BO16<=RR_TeamsCnt),BO16,"") -> 
A17: 2 | B17: =(RR_RoundsCnt>=A17)*A17 -> 2 | C17: =IF(B17,MATCH($C$14+100*B17,tbl_RR_Data[ID],1),0) -> 61 | E17: 2 | F17: 4 | G17: 6 | H17: 8 | I17: 0 | J17: 0 | K17: 0 | L17: 0 | M17: 0 | N17: 0 | O17: 0 | P17: 0 | Q17: 0 | S17: =INDEX(tbl_RR_Info[Text 1],$S$14) -> txt_2259 | T17: =IF(S17<>0,VLOOKUP(S17,tbl_i18n[],Lang_Ind,FALSE)&CHAR(10)&CHAR(10),"") -> Jedes Team spielt genau einmal gegen ein anderes. | X17: =B17 -> 2 | Y17: =IF(E17,INDEX(tbl_RR_Data[Team 1],$C17+Y$15),"") -> 6 | Z17: =IF(E17,"–","") -> – | AA17: =IF(E17,INDEX(tbl_RR_Data[Team 2],$C17+Y$15),"") -> 3 | AB17: =IF(F17,INDEX(tbl_RR_Data[Team 1],$C17+AB$15),"") -> 8 | AC17: =IF(F17,"–","") -> – | AD17: =IF(F17,INDEX(tbl_RR_Data[Team 2],$C17+AB$15),"") -> 1 | AE17: =IF(G17,INDEX(tbl_RR_Data[Team 1],$C17+AE$15),"") -> 5 | AF17: =IF(G17,"–","") -> – | AG17: =IF(G17,INDEX(tbl_RR_Data[Team 2],$C17+AE$15),"") -> 2 | AH17: =IF(H17,INDEX(tbl_RR_Data[Team 1],$C17+AH$15),"") -> 4 | AI17: =IF(H17,"–","") -> – | AJ17: =IF(H17,INDEX(tbl_RR_Data[Team 2],$C17+AH$15),"") -> 7 | AK17: =IF(I17,INDEX(tbl_RR_Data[Team 1],$C17+AK$15),"") ->  | AL17: =IF(I17,"–","") ->  | AM17: =IF(I17,INDEX(tbl_RR_Data[Team 2],$C17+AK$15),"") ->  | AN17: =IF(J17,INDEX(tbl_RR_Data[Team 1],$C17+AN$15),"") ->  | AO17: =IF(J17,"–","") ->  | AP17: =IF(J17,INDEX(tbl_RR_Data[Team 2],$C17+AN$15),"") ->  | AQ17: =IF(K17,INDEX(tbl_RR_Data[Team 1],$C17+AQ$15),"") ->  | AR17: =IF(K17,"–","") ->  | AS17: =IF(K17,INDEX(tbl_RR_Data[Team 2],$C17+AQ$15),"") ->  | AT17: =IF(L17,INDEX(tbl_RR_Data[Team 1],$C17+AT$15),"") ->  | AU17: =IF(L17,"–","") ->  | AV17: =IF(L17,INDEX(tbl_RR_Data[Team 2],$C17+AT$15),"") ->  | AW17: =IF(M17,INDEX(tbl_RR_Data[Team 1],$C17+AW$15),"") ->  | AX17: =IF(M17,"–","") ->  | AY17: =IF(M17,INDEX(tbl_RR_Data[Team 2],$C17+AW$15),"") ->  | AZ17: =IF(N17,INDEX(tbl_RR_Data[Team 1],$C17+AZ$15),"") ->  | BA17: =IF(N17,"–","") ->  | BB17: =IF(N17,INDEX(tbl_RR_Data[Team 2],$C17+AZ$15),"") ->  | BC17: =IF(O17,INDEX(tbl_RR_Data[Team 1],$C17+BC$15),"") ->  | BD17: =IF(O17,"–","") ->  | BE17: =IF(O17,INDEX(tbl_RR_Data[Team 2],$C17+BC$15),"") ->  | BF17: =IF(P17,INDEX(tbl_RR_Data[Team 1],$C17+BF$15),"") ->  | BG17: =IF(P17,"–","") ->  | BH17: =IF(P17,INDEX(tbl_RR_Data[Team 2],$C17+BF$15),"") ->  | BI17: =IF(Q17,INDEX(tbl_RR_Data[Team 1],$C17+BI$15),"") ->  | BJ17: =IF(Q17,"–","") ->  | BK17: =IF(Q17,INDEX(tbl_RR_Data[Team 2],$C17+BI$15),"") ->  | BM17: =SMALL(IF(COUNTIF($Y17:$BK17,$Y$1:$BB$1),999,$Y$1:$BB$1),$Y$1:$BB$1) -> 9 | BN17: 10 | BO17: 11 | BP17: 0 | BQ17: =AND(X17,BP17>0,BP17<4) -> FALSE | BW17: =T17&T18&T19&T21 -> Jedes Team spielt genau einmal gegen ein anderes. Kein Team spielt zwei Spiele hintereinander auf demselben Spielfeld. Jedes Team beginnt höchstens einmal den ersten Satz auf einem Spielfeld. Daher spielt jedes Team je zweimal auf drei Spielfeldern und einmal auf einem Spielfeld, und jedes Team beginnt drei- oder viermal den ersten Satz.
A18: 3 | B18: 3 | C18: =IF(B18,MATCH($C$14+100*B18,tbl_RR_Data[ID],1),0) -> 65 | E18: 3 | F18: 6 | G18: 9 | H18: 12 | I18: 0 | J18: 0 | K18: 0 | L18: 0 | M18: 0 | N18: 0 | O18: 0 | P18: 0 | Q18: 0 | S18: =INDEX(tbl_RR_Info[Text 2],$S$14) -> txt_2263 | T18: =IF(S18<>0,VLOOKUP(S18,tbl_i18n[],Lang_Ind,FALSE)&CHAR(10)&CHAR(10),"") -> Kein Team spielt zwei Spiele hintereinander auf demselben Spielfeld. | X18: 3 | Y18: =IF(E18,INDEX(tbl_RR_Data[Team 1],$C18+Y$15),"") -> 2 | Z18: – | AA18: =IF(E18,INDEX(tbl_RR_Data[Team 2],$C18+Y$15),"") -> 8 | AB18: =IF(F18,INDEX(tbl_RR_Data[Team 1],$C18+AB$15),"") -> 4 | AC18: – | AD18: =IF(F18,INDEX(tbl_RR_Data[Team 2],$C18+AB$15),"") -> 6 | AE18: =IF(G18,INDEX(tbl_RR_Data[Team 1],$C18+AE$15),"") -> 1 | AF18: – | AG18: =IF(G18,INDEX(tbl_RR_Data[Team 2],$C18+AE$15),"") -> 7 | AH18: =IF(H18,INDEX(tbl_RR_Data[Team 1],$C18+AH$15),"") -> 5 | AI18: – | AJ18: =IF(H18,INDEX(tbl_RR_Data[Team 2],$C18+AH$15),"") -> 3 | AK18: =IF(I18,INDEX(tbl_RR_Data[Team 1],$C18+AK$15),"") ->  | AM18: =IF(I18,INDEX(tbl_RR_Data[Team 2],$C18+AK$15),"") ->  | AN18: =IF(J18,INDEX(tbl_RR_Data[Team 1],$C18+AN$15),"") ->  | AP18: =IF(J18,INDEX(tbl_RR_Data[Team 2],$C18+AN$15),"") ->  | AQ18: =IF(K18,INDEX(tbl_RR_Data[Team 1],$C18+AQ$15),"") ->  | AS18: =IF(K18,INDEX(tbl_RR_Data[Team 2],$C18+AQ$15),"") ->  | AT18: =IF(L18,INDEX(tbl_RR_Data[Team 1],$C18+AT$15),"") ->  | AV18: =IF(L18,INDEX(tbl_RR_Data[Team 2],$C18+AT$15),"") ->  | AW18: =IF(M18,INDEX(tbl_RR_Data[Team 1],$C18+AW$15),"") ->  | AY18: =IF(M18,INDEX(tbl_RR_Data[Team 2],$C18+AW$15),"") ->  | AZ18: =IF(N18,INDEX(tbl_RR_Data[Team 1],$C18+AZ$15),"") ->  | BB18: =IF(N18,INDEX(tbl_RR_Data[Team 2],$C18+AZ$15),"") ->  | BC18: =IF(O18,INDEX(tbl_RR_Data[Team 1],$C18+BC$15),"") ->  | BE18: =IF(O18,INDEX(tbl_RR_Data[Team 2],$C18+BC$15),"") ->  | BF18: =IF(P18,INDEX(tbl_RR_Data[Team 1],$C18+BF$15),"") ->  | BH18: =IF(P18,INDEX(tbl_RR_Data[Team 2],$C18+BF$15),"") ->  | BI18: =IF(Q18,INDEX(tbl_RR_Data[Team 1],$C18+BI$15),"") ->  | BK18: =IF(Q18,INDEX(tbl_RR_Data[Team 2],$C18+BI$15),"") ->  | BM18: =SMALL(IF(COUNTIF($Y18:$BK18,$Y$1:$BB$1),999,$Y$1:$BB$1),$Y$1:$BB$1) -> 9 | BN18: 10 | BO18: 11 | BP18: 0 | BQ18: FALSE
A19: 4 | B19: 4 | C19: =IF(B19,MATCH($C$14+100*B19,tbl_RR_Data[ID],1),0) -> 69 | E19: 4 | F19: 8 | G19: 12 | H19: 16 | I19: 0 | J19: 0 | K19: 0 | L19: 0 | M19: 0 | N19: 0 | O19: 0 | P19: 0 | Q19: 0 | S19: =INDEX(tbl_RR_Info[Text 3],$S$14) -> txt_2269 | T19: =IF(S19<>0,VLOOKUP(S19,tbl_i18n[],Lang_Ind,FALSE)&CHAR(10)&CHAR(10),"") -> Jedes Team beginnt höchstens einmal den ersten Satz auf einem Spielfeld. | X19: 4 | Y19: =IF(E19,INDEX(tbl_RR_Data[Team 1],$C19+Y$15),"") -> 3 | Z19: – | AA19: =IF(E19,INDEX(tbl_RR_Data[Team 2],$C19+Y$15),"") -> 7 | AB19: =IF(F19,INDEX(tbl_RR_Data[Team 1],$C19+AB$15),"") -> 1 | AC19: – | AD19: =IF(F19,INDEX(tbl_RR_Data[Team 2],$C19+AB$15),"") -> 5 | AE19: =IF(G19,INDEX(tbl_RR_Data[Team 1],$C19+AE$15),"") -> 4 | AF19: – | AG19: =IF(G19,INDEX(tbl_RR_Data[Team 2],$C19+AE$15),"") -> 8 | AH19: =IF(H19,INDEX(tbl_RR_Data[Team 1],$C19+AH$15),"") -> 6 | AI19: – | AJ19: =IF(H19,INDEX(tbl_RR_Data[Team 2],$C19+AH$15),"") -> 2 | AK19: =IF(I19,INDEX(tbl_RR_Data[Team 1],$C19+AK$15),"") ->  | AM19: =IF(I19,INDEX(tbl_RR_Data[Team 2],$C19+AK$15),"") ->  | AN19: =IF(J19,INDEX(tbl_RR_Data[Team 1],$C19+AN$15),"") ->  | AP19: =IF(J19,INDEX(tbl_RR_Data[Team 2],$C19+AN$15),"") ->  | AQ19: =IF(K19,INDEX(tbl_RR_Data[Team 1],$C19+AQ$15),"") ->  | AS19: =IF(K19,INDEX(tbl_RR_Data[Team 2],$C19+AQ$15),"") ->  | AT19: =IF(L19,INDEX(tbl_RR_Data[Team 1],$C19+AT$15),"") ->  | AV19: =IF(L19,INDEX(tbl_RR_Data[Team 2],$C19+AT$15),"") ->  | AW19: =IF(M19,INDEX(tbl_RR_Data[Team 1],$C19+AW$15),"") ->  | AY19: =IF(M19,INDEX(tbl_RR_Data[Team 2],$C19+AW$15),"") ->  | AZ19: =IF(N19,INDEX(tbl_RR_Data[Team 1],$C19+AZ$15),"") ->  | BB19: =IF(N19,INDEX(tbl_RR_Data[Team 2],$C19+AZ$15),"") ->  | BC19: =IF(O19,INDEX(tbl_RR_Data[Team 1],$C19+BC$15),"") ->  | BE19: =IF(O19,INDEX(tbl_RR_Data[Team 2],$C19+BC$15),"") ->  | BF19: =IF(P19,INDEX(tbl_RR_Data[Team 1],$C19+BF$15),"") ->  | BH19: =IF(P19,INDEX(tbl_RR_Data[Team 2],$C19+BF$15),"") ->  | BI19: =IF(Q19,INDEX(tbl_RR_Data[Team 1],$C19+BI$15),"") ->  | BK19: =IF(Q19,INDEX(tbl_RR_Data[Team 2],$C19+BI$15),"") ->  | BM19: =SMALL(IF(COUNTIF($Y19:$BK19,$Y$1:$BB$1),999,$Y$1:$BB$1),$Y$1:$BB$1) -> 9 | BN19: 10 | BO19: 11 | BP19: 0 | BQ19: FALSE
A20: 5 | B20: 5 | C20: =IF(B20,MATCH($C$14+100*B20,tbl_RR_Data[ID],1),0) -> 73 | E20: 5 | F20: 10 | G20: 15 | H20: 20 | I20: 0 | J20: 0 | K20: 0 | L20: 0 | M20: 0 | N20: 0 | O20: 0 | P20: 0 | Q20: 0 | S20: =INDEX(tbl_RR_Info[Text 4],$S$14) -> txt_2275 | T20: =IF(S20<>0,VLOOKUP(S20,tbl_i18n[],Lang_Ind,FALSE),"") -> Daher spielt jedes Team je zweimal auf ##1 Spielfeldern und einmal auf einem Spielfeld, und jedes Team beginnt ##1- oder ##2 den ersten Satz. | X20: 5 | Y20: =IF(E20,INDEX(tbl_RR_Data[Team 1],$C20+Y$15),"") -> 4 | Z20: – | AA20: =IF(E20,INDEX(tbl_RR_Data[Team 2],$C20+Y$15),"") -> 1 | AB20: =IF(F20,INDEX(tbl_RR_Data[Team 1],$C20+AB$15),"") -> 2 | AC20: – | AD20: =IF(F20,INDEX(tbl_RR_Data[Team 2],$C20+AB$15),"") -> 3 | AE20: =IF(G20,INDEX(tbl_RR_Data[Team 1],$C20+AE$15),"") -> 7 | AF20: – | AG20: =IF(G20,INDEX(tbl_RR_Data[Team 2],$C20+AE$15),"") -> 6 | AH20: =IF(H20,INDEX(tbl_RR_Data[Team 1],$C20+AH$15),"") -> 8 | AI20: – | AJ20: =IF(H20,INDEX(tbl_RR_Data[Team 2],$C20+AH$15),"") -> 5 | AK20: =IF(I20,INDEX(tbl_RR_Data[Team 1],$C20+AK$15),"") ->  | AM20: =IF(I20,INDEX(tbl_RR_Data[Team 2],$C20+AK$15),"") ->  | AN20: =IF(J20,INDEX(tbl_RR_Data[Team 1],$C20+AN$15),"") ->  | AP20: =IF(J20,INDEX(tbl_RR_Data[Team 2],$C20+AN$15),"") ->  | AQ20: =IF(K20,INDEX(tbl_RR_Data[Team 1],$C20+AQ$15),"") ->  | AS20: =IF(K20,INDEX(tbl_RR_Data[Team 2],$C20+AQ$15),"") ->  | AT20: =IF(L20,INDEX(tbl_RR_Data[Team 1],$C20+AT$15),"") ->  | AV20: =IF(L20,INDEX(tbl_RR_Data[Team 2],$C20+AT$15),"") ->  | AW20: =IF(M20,INDEX(tbl_RR_Data[Team 1],$C20+AW$15),"") ->  | AY20: =IF(M20,INDEX(tbl_RR_Data[Team 2],$C20+AW$15),"") ->  | AZ20: =IF(N20,INDEX(tbl_RR_Data[Team 1],$C20+AZ$15),"") ->  | BB20: =IF(N20,INDEX(tbl_RR_Data[Team 2],$C20+AZ$15),"") ->  | BC20: =IF(O20,INDEX(tbl_RR_Data[Team 1],$C20+BC$15),"") ->  | BE20: =IF(O20,INDEX(tbl_RR_Data[Team 2],$C20+BC$15),"") ->  | BF20: =IF(P20,INDEX(tbl_RR_Data[Team 1],$C20+BF$15),"") ->  | BH20: =IF(P20,INDEX(tbl_RR_Data[Team 2],$C20+BF$15),"") ->  | BI20: =IF(Q20,INDEX(tbl_RR_Data[Team 1],$C20+BI$15),"") ->  | BK20: =IF(Q20,INDEX(tbl_RR_Data[Team 2],$C20+BI$15),"") ->  | BM20: =SMALL(IF(COUNTIF($Y20:$BK20,$Y$1:$BB$1),999,$Y$1:$BB$1),$Y$1:$BB$1) -> 9 | BN20: 10 | BO20: 11 | BP20: 0 | BQ20: FALSE
A21: 6 | B21: 6 | C21: =IF(B21,MATCH($C$14+100*B21,tbl_RR_Data[ID],1),0) -> 77 | E21: 6 | F21: 12 | G21: 18 | H21: 24 | I21: 0 | J21: 0 | K21: 0 | L21: 0 | M21: 0 | N21: 0 | O21: 0 | P21: 0 | Q21: 0 | T21: =SUBSTITUTE(SUBSTITUTE(T20,"##1",T15),"##2",T16) -> Daher spielt jedes Team je zweimal auf drei Spielfeldern und einmal auf einem Spielfeld, und jedes Team beginnt drei- oder viermal den ersten Satz. | X21: 6 | Y21: =IF(E21,INDEX(tbl_RR_Data[Team 1],$C21+Y$15),"") -> 8 | Z21: – | AA21: =IF(E21,INDEX(tbl_RR_Data[Team 2],$C21+Y$15),"") -> 6 | AB21: =IF(F21,INDEX(tbl_RR_Data[Team 1],$C21+AB$15),"") -> 5 | AC21: – | AD21: =IF(F21,INDEX(tbl_RR_Data[Team 2],$C21+AB$15),"") -> 7 | AE21: =IF(G21,INDEX(tbl_RR_Data[Team 1],$C21+AE$15),"") -> 2 | AF21: – | AG21: =IF(G21,INDEX(tbl_RR_Data[Team 2],$C21+AE$15),"") -> 4 | AH21: =IF(H21,INDEX(tbl_RR_Data[Team 1],$C21+AH$15),"") -> 3 | AI21: – | AJ21: =IF(H21,INDEX(tbl_RR_Data[Team 2],$C21+AH$15),"") -> 1 | AK21: =IF(I21,INDEX(tbl_RR_Data[Team 1],$C21+AK$15),"") ->  | AM21: =IF(I21,INDEX(tbl_RR_Data[Team 2],$C21+AK$15),"") ->  | AN21: =IF(J21,INDEX(tbl_RR_Data[Team 1],$C21+AN$15),"") ->  | AP21: =IF(J21,INDEX(tbl_RR_Data[Team 2],$C21+AN$15),"") ->  | AQ21: =IF(K21,INDEX(tbl_RR_Data[Team 1],$C21+AQ$15),"") ->  | AS21: =IF(K21,INDEX(tbl_RR_Data[Team 2],$C21+AQ$15),"") ->  | AT21: =IF(L21,INDEX(tbl_RR_Data[Team 1],$C21+AT$15),"") ->  | AV21: =IF(L21,INDEX(tbl_RR_Data[Team 2],$C21+AT$15),"") ->  | AW21: =IF(M21,INDEX(tbl_RR_Data[Team 1],$C21+AW$15),"") ->  | AY21: =IF(M21,INDEX(tbl_RR_Data[Team 2],$C21+AW$15),"") ->  | AZ21: =IF(N21,INDEX(tbl_RR_Data[Team 1],$C21+AZ$15),"") ->  | BB21: =IF(N21,INDEX(tbl_RR_Data[Team 2],$C21+AZ$15),"") ->  | BC21: =IF(O21,INDEX(tbl_RR_Data[Team 1],$C21+BC$15),"") ->  | BE21: =IF(O21,INDEX(tbl_RR_Data[Team 2],$C21+BC$15),"") ->  | BF21: =IF(P21,INDEX(tbl_RR_Data[Team 1],$C21+BF$15),"") ->  | BH21: =IF(P21,INDEX(tbl_RR_Data[Team 2],$C21+BF$15),"") ->  | BI21: =IF(Q21,INDEX(tbl_RR_Data[Team 1],$C21+BI$15),"") ->  | BK21: =IF(Q21,INDEX(tbl_RR_Data[Team 2],$C21+BI$15),"") ->  | BM21: =SMALL(IF(COUNTIF($Y21:$BK21,$Y$1:$BB$1),999,$Y$1:$BB$1),$Y$1:$BB$1) -> 9 | BN21: 10 | BO21: 11 | BP21: 0 | BQ21: FALSE
A22: 7 | B22: 7 | C22: =IF(B22,MATCH($C$14+100*B22,tbl_RR_Data[ID],1),0) -> 81 | E22: 7 | F22: 14 | G22: 21 | H22: 28 | I22: 0 | J22: 0 | K22: 0 | L22: 0 | M22: 0 | N22: 0 | O22: 0 | P22: 0 | Q22: 0 | X22: 7 | Y22: =IF(E22,INDEX(tbl_RR_Data[Team 1],$C22+Y$15),"") -> 1 | Z22: – | AA22: =IF(E22,INDEX(tbl_RR_Data[Team 2],$C22+Y$15),"") -> 2 | AB22: =IF(F22,INDEX(tbl_RR_Data[Team 1],$C22+AB$15),"") -> 3 | AC22: – | AD22: =IF(F22,INDEX(tbl_RR_Data[Team 2],$C22+AB$15),"") -> 4 | AE22: =IF(G22,INDEX(tbl_RR_Data[Team 1],$C22+AE$15),"") -> 6 | AF22: – | AG22: =IF(G22,INDEX(tbl_RR_Data[Team 2],$C22+AE$15),"") -> 5 | AH22: =IF(H22,INDEX(tbl_RR_Data[Team 1],$C22+AH$15),"") -> 7 | AI22: – | AJ22: =IF(H22,INDEX(tbl_RR_Data[Team 2],$C22+AH$15),"") -> 8 | AK22: =IF(I22,INDEX(tbl_RR_Data[Team 1],$C22+AK$15),"") ->  | AM22: =IF(I22,INDEX(tbl_RR_Data[Team 2],$C22+AK$15),"") ->  | AN22: =IF(J22,INDEX(tbl_RR_Data[Team 1],$C22+AN$15),"") ->  | AP22: =IF(J22,INDEX(tbl_RR_Data[Team 2],$C22+AN$15),"") ->  | AQ22: =IF(K22,INDEX(tbl_RR_Data[Team 1],$C22+AQ$15),"") ->  | AS22: =IF(K22,INDEX(tbl_RR_Data[Team 2],$C22+AQ$15),"") ->  | AT22: =IF(L22,INDEX(tbl_RR_Data[Team 1],$C22+AT$15),"") ->  | AV22: =IF(L22,INDEX(tbl_RR_Data[Team 2],$C22+AT$15),"") ->  | AW22: =IF(M22,INDEX(tbl_RR_Data[Team 1],$C22+AW$15),"") ->  | AY22: =IF(M22,INDEX(tbl_RR_Data[Team 2],$C22+AW$15),"") ->  | AZ22: =IF(N22,INDEX(tbl_RR_Data[Team 1],$C22+AZ$15),"") ->  | BB22: =IF(N22,INDEX(tbl_RR_Data[Team 2],$C22+AZ$15),"") ->  | BC22: =IF(O22,INDEX(tbl_RR_Data[Team 1],$C22+BC$15),"") ->  | BE22: =IF(O22,INDEX(tbl_RR_Data[Team 2],$C22+BC$15),"") ->  | BF22: =IF(P22,INDEX(tbl_RR_Data[Team 1],$C22+BF$15),"") ->  | BH22: =IF(P22,INDEX(tbl_RR_Data[Team 2],$C22+BF$15),"") ->  | BI22: =IF(Q22,INDEX(tbl_RR_Data[Team 1],$C22+BI$15),"") ->  | BK22: =IF(Q22,INDEX(tbl_RR_Data[Team 2],$C22+BI$15),"") ->  | BM22: =SMALL(IF(COUNTIF($Y22:$BK22,$Y$1:$BB$1),999,$Y$1:$BB$1),$Y$1:$BB$1) -> 9 | BN22: 10 | BO22: 11 | BP22: 0 | BQ22: FALSE
A23: 8 | B23: 0 | C23: =IF(B23,MATCH($C$14+100*B23,tbl_RR_Data[ID],1),0) -> 0 | E23: 0 | F23: 0 | G23: 0 | H23: 0 | I23: 0 | J23: 0 | K23: 0 | L23: 0 | M23: 0 | N23: 0 | O23: 0 | P23: 0 | Q23: 0 | X23: 0 | Y23: =IF(E23,INDEX(tbl_RR_Data[Team 1],$C23+Y$15),"") ->  | AA23: =IF(E23,INDEX(tbl_RR_Data[Team 2],$C23+Y$15),"") ->  | AB23: =IF(F23,INDEX(tbl_RR_Data[Team 1],$C23+AB$15),"") ->  | AD23: =IF(F23,INDEX(tbl_RR_Data[Team 2],$C23+AB$15),"") ->  | AE23: =IF(G23,INDEX(tbl_RR_Data[Team 1],$C23+AE$15),"") ->  | AG23: =IF(G23,INDEX(tbl_RR_Data[Team 2],$C23+AE$15),"") ->  | AH23: =IF(H23,INDEX(tbl_RR_Data[Team 1],$C23+AH$15),"") ->  | AJ23: =IF(H23,INDEX(tbl_RR_Data[Team 2],$C23+AH$15),"") ->  | AK23: =IF(I23,INDEX(tbl_RR_Data[Team 1],$C23+AK$15),"") ->  | AM23: =IF(I23,INDEX(tbl_RR_Data[Team 2],$C23+AK$15),"") ->  | AN23: =IF(J23,INDEX(tbl_RR_Data[Team 1],$C23+AN$15),"") ->  | AP23: =IF(J23,INDEX(tbl_RR_Data[Team 2],$C23+AN$15),"") ->  | AQ23: =IF(K23,INDEX(tbl_RR_Data[Team 1],$C23+AQ$15),"") ->  | AS23: =IF(K23,INDEX(tbl_RR_Data[Team 2],$C23+AQ$15),"") ->  | AT23: =IF(L23,INDEX(tbl_RR_Data[Team 1],$C23+AT$15),"") ->  | AV23: =IF(L23,INDEX(tbl_RR_Data[Team 2],$C23+AT$15),"") ->  | AW23: =IF(M23,INDEX(tbl_RR_Data[Team 1],$C23+AW$15),"") ->  | AY23: =IF(M23,INDEX(tbl_RR_Data[Team 2],$C23+AW$15),"") ->  | AZ23: =IF(N23,INDEX(tbl_RR_Data[Team 1],$C23+AZ$15),"") ->  | BB23: =IF(N23,INDEX(tbl_RR_Data[Team 2],$C23+AZ$15),"") ->  | BC23: =IF(O23,INDEX(tbl_RR_Data[Team 1],$C23+BC$15),"") ->  | BE23: =IF(O23,INDEX(tbl_RR_Data[Team 2],$C23+BC$15),"") ->  | BF23: =IF(P23,INDEX(tbl_RR_Data[Team 1],$C23+BF$15),"") ->  | BH23: =IF(P23,INDEX(tbl_RR_Data[Team 2],$C23+BF$15),"") ->  | BI23: =IF(Q23,INDEX(tbl_RR_Data[Team 1],$C23+BI$15),"") ->  | BK23: =IF(Q23,INDEX(tbl_RR_Data[Team 2],$C23+BI$15),"") ->  | BM23: =SMALL(IF(COUNTIF($Y23:$BK23,$Y$1:$BB$1),999,$Y$1:$BB$1),$Y$1:$BB$1) -> 1 | BN23: 2 | BO23: 3 | BP23: 8 | BQ23: FALSE
A24: 9 | B24: 0 | C24: =IF(B24,MATCH($C$14+100*B24,tbl_RR_Data[ID],1),0) -> 0 | E24: 0 | F24: 0 | G24: 0 | H24: 0 | I24: 0 | J24: 0 | K24: 0 | L24: 0 | M24: 0 | N24: 0 | O24: 0 | P24: 0 | Q24: 0 | X24: 0 | Y24: =IF(E24,INDEX(tbl_RR_Data[Team 1],$C24+Y$15),"") ->  | AA24: =IF(E24,INDEX(tbl_RR_Data[Team 2],$C24+Y$15),"") ->  | AB24: =IF(F24,INDEX(tbl_RR_Data[Team 1],$C24+AB$15),"") ->  | AD24: =IF(F24,INDEX(tbl_RR_Data[Team 2],$C24+AB$15),"") ->  | AE24: =IF(G24,INDEX(tbl_RR_Data[Team 1],$C24+AE$15),"") ->  | AG24: =IF(G24,INDEX(tbl_RR_Data[Team 2],$C24+AE$15),"") ->  | AH24: =IF(H24,INDEX(tbl_RR_Data[Team 1],$C24+AH$15),"") ->  | AJ24: =IF(H24,INDEX(tbl_RR_Data[Team 2],$C24+AH$15),"") ->  | AK24: =IF(I24,INDEX(tbl_RR_Data[Team 1],$C24+AK$15),"") ->  | AM24: =IF(I24,INDEX(tbl_RR_Data[Team 2],$C24+AK$15),"") ->  | AN24: =IF(J24,INDEX(tbl_RR_Data[Team 1],$C24+AN$15),"") ->  | AP24: =IF(J24,INDEX(tbl_RR_Data[Team 2],$C24+AN$15),"") ->  | AQ24: =IF(K24,INDEX(tbl_RR_Data[Team 1],$C24+AQ$15),"") ->  | AS24: =IF(K24,INDEX(tbl_RR_Data[Team 2],$C24+AQ$15),"") ->  | AT24: =IF(L24,INDEX(tbl_RR_Data[Team 1],$C24+AT$15),"") ->  | AV24: =IF(L24,INDEX(tbl_RR_Data[Team 2],$C24+AT$15),"") ->  | AW24: =IF(M24,INDEX(tbl_RR_Data[Team 1],$C24+AW$15),"") ->  | AY24: =IF(M24,INDEX(tbl_RR_Data[Team 2],$C24+AW$15),"") ->  | AZ24: =IF(N24,INDEX(tbl_RR_Data[Team 1],$C24+AZ$15),"") ->  | BB24: =IF(N24,INDEX(tbl_RR_Data[Team 2],$C24+AZ$15),"") ->  | BC24: =IF(O24,INDEX(tbl_RR_Data[Team 1],$C24+BC$15),"") ->  | BE24: =IF(O24,INDEX(tbl_RR_Data[Team 2],$C24+BC$15),"") ->  | BF24: =IF(P24,INDEX(tbl_RR_Data[Team 1],$C24+BF$15),"") ->  | BH24: =IF(P24,INDEX(tbl_RR_Data[Team 2],$C24+BF$15),"") ->  | BI24: =IF(Q24,INDEX(tbl_RR_Data[Team 1],$C24+BI$15),"") ->  | BK24: =IF(Q24,INDEX(tbl_RR_Data[Team 2],$C24+BI$15),"") ->  | BM24: =SMALL(IF(COUNTIF($Y24:$BK24,$Y$1:$BB$1),999,$Y$1:$BB$1),$Y$1:$BB$1) -> 1 | BN24: 2 | BO24: 3 | BP24: 8 | BQ24: FALSE
A25: 10 | B25: 0 | C25: =IF(B25,MATCH($C$14+100*B25,tbl_RR_Data[ID],1),0) -> 0 | E25: 0 | F25: 0 | G25: 0 | H25: 0 | I25: 0 | J25: 0 | K25: 0 | L25: 0 | M25: 0 | N25: 0 | O25: 0 | P25: 0 | Q25: 0 | X25: 0 | Y25: =IF(E25,INDEX(tbl_RR_Data[Team 1],$C25+Y$15),"") ->  | AA25: =IF(E25,INDEX(tbl_RR_Data[Team 2],$C25+Y$15),"") ->  | AB25: =IF(F25,INDEX(tbl_RR_Data[Team 1],$C25+AB$15),"") ->  | AD25: =IF(F25,INDEX(tbl_RR_Data[Team 2],$C25+AB$15),"") ->  | AE25: =IF(G25,INDEX(tbl_RR_Data[Team 1],$C25+AE$15),"") ->  | AG25: =IF(G25,INDEX(tbl_RR_Data[Team 2],$C25+AE$15),"") ->  | AH25: =IF(H25,INDEX(tbl_RR_Data[Team 1],$C25+AH$15),"") ->  | AJ25: =IF(H25,INDEX(tbl_RR_Data[Team 2],$C25+AH$15),"") ->  | AK25: =IF(I25,INDEX(tbl_RR_Data[Team 1],$C25+AK$15),"") ->  | AM25: =IF(I25,INDEX(tbl_RR_Data[Team 2],$C25+AK$15),"") ->  | AN25: =IF(J25,INDEX(tbl_RR_Data[Team 1],$C25+AN$15),"") ->  | AP25: =IF(J25,INDEX(tbl_RR_Data[Team 2],$C25+AN$15),"") ->  | AQ25: =IF(K25,INDEX(tbl_RR_Data[Team 1],$C25+AQ$15),"") ->  | AS25: =IF(K25,INDEX(tbl_RR_Data[Team 2],$C25+AQ$15),"") ->  | AT25: =IF(L25,INDEX(tbl_RR_Data[Team 1],$C25+AT$15),"") ->  | AV25: =IF(L25,INDEX(tbl_RR_Data[Team 2],$C25+AT$15),"") ->  | AW25: =IF(M25,INDEX(tbl_RR_Data[Team 1],$C25+AW$15),"") ->  | AY25: =IF(M25,INDEX(tbl_RR_Data[Team 2],$C25+AW$15),"") ->  | AZ25: =IF(N25,INDEX(tbl_RR_Data[Team 1],$C25+AZ$15),"") ->  | BB25: =IF(N25,INDEX(tbl_RR_Data[Team 2],$C25+AZ$15),"") ->  | BC25: =IF(O25,INDEX(tbl_RR_Data[Team 1],$C25+BC$15),"") ->  | BE25: =IF(O25,INDEX(tbl_RR_Data[Team 2],$C25+BC$15),"") ->  | BF25: =IF(P25,INDEX(tbl_RR_Data[Team 1],$C25+BF$15),"") ->  | BH25: =IF(P25,INDEX(tbl_RR_Data[Team 2],$C25+BF$15),"") ->  | BI25: =IF(Q25,INDEX(tbl_RR_Data[Team 1],$C25+BI$15),"") ->  | BK25: =IF(Q25,INDEX(tbl_RR_Data[Team 2],$C25+BI$15),"") ->  | BM25: =SMALL(IF(COUNTIF($Y25:$BK25,$Y$1:$BB$1),999,$Y$1:$BB$1),$Y$1:$BB$1) -> 1 | BN25: 2 | BO25: 3 | BP25: 8 | BQ25: FALSE
A26: 11 | B26: 0 | C26: =IF(B26,MATCH($C$14+100*B26,tbl_RR_Data[ID],1),0) -> 0 | E26: 0 | F26: 0 | G26: 0 | H26: 0 | I26: 0 | J26: 0 | K26: 0 | L26: 0 | M26: 0 | N26: 0 | O26: 0 | P26: 0 | Q26: 0 | X26: 0 | Y26: =IF(E26,INDEX(tbl_RR_Data[Team 1],$C26+Y$15),"") ->  | AA26: =IF(E26,INDEX(tbl_RR_Data[Team 2],$C26+Y$15),"") ->  | AB26: =IF(F26,INDEX(tbl_RR_Data[Team 1],$C26+AB$15),"") ->  | AD26: =IF(F26,INDEX(tbl_RR_Data[Team 2],$C26+AB$15),"") ->  | AE26: =IF(G26,INDEX(tbl_RR_Data[Team 1],$C26+AE$15),"") ->  | AG26: =IF(G26,INDEX(tbl_RR_Data[Team 2],$C26+AE$15),"") ->  | AH26: =IF(H26,INDEX(tbl_RR_Data[Team 1],$C26+AH$15),"") ->  | AJ26: =IF(H26,INDEX(tbl_RR_Data[Team 2],$C26+AH$15),"") ->  | AK26: =IF(I26,INDEX(tbl_RR_Data[Team 1],$C26+AK$15),"") ->  | AM26: =IF(I26,INDEX(tbl_RR_Data[Team 2],$C26+AK$15),"") ->  | AN26: =IF(J26,INDEX(tbl_RR_Data[Team 1],$C26+AN$15),"") ->  | AP26: =IF(J26,INDEX(tbl_RR_Data[Team 2],$C26+AN$15),"") ->  | AQ26: =IF(K26,INDEX(tbl_RR_Data[Team 1],$C26+AQ$15),"") ->  | AS26: =IF(K26,INDEX(tbl_RR_Data[Team 2],$C26+AQ$15),"") ->  | AT26: =IF(L26,INDEX(tbl_RR_Data[Team 1],$C26+AT$15),"") ->  | AV26: =IF(L26,INDEX(tbl_RR_Data[Team 2],$C26+AT$15),"") ->  | AW26: =IF(M26,INDEX(tbl_RR_Data[Team 1],$C26+AW$15),"") ->  | AY26: =IF(M26,INDEX(tbl_RR_Data[Team 2],$C26+AW$15),"") ->  | AZ26: =IF(N26,INDEX(tbl_RR_Data[Team 1],$C26+AZ$15),"") ->  | BB26: =IF(N26,INDEX(tbl_RR_Data[Team 2],$C26+AZ$15),"") ->  | BC26: =IF(O26,INDEX(tbl_RR_Data[Team 1],$C26+BC$15),"") ->  | BE26: =IF(O26,INDEX(tbl_RR_Data[Team 2],$C26+BC$15),"") ->  | BF26: =IF(P26,INDEX(tbl_RR_Data[Team 1],$C26+BF$15),"") ->  | BH26: =IF(P26,INDEX(tbl_RR_Data[Team 2],$C26+BF$15),"") ->  | BI26: =IF(Q26,INDEX(tbl_RR_Data[Team 1],$C26+BI$15),"") ->  | BK26: =IF(Q26,INDEX(tbl_RR_Data[Team 2],$C26+BI$15),"") ->  | BM26: =SMALL(IF(COUNTIF($Y26:$BK26,$Y$1:$BB$1),999,$Y$1:$BB$1),$Y$1:$BB$1) -> 1 | BN26: 2 | BO26: 3 | BP26: 8 | BQ26: FALSE
A27: 12 | B27: 0 | C27: =IF(B27,MATCH($C$14+100*B27,tbl_RR_Data[ID],1),0) -> 0 | E27: 0 | F27: 0 | G27: 0 | H27: 0 | I27: 0 | J27: 0 | K27: 0 | L27: 0 | M27: 0 | N27: 0 | O27: 0 | P27: 0 | Q27: 0 | X27: 0 | Y27: =IF(E27,INDEX(tbl_RR_Data[Team 1],$C27+Y$15),"") ->  | AA27: =IF(E27,INDEX(tbl_RR_Data[Team 2],$C27+Y$15),"") ->  | AB27: =IF(F27,INDEX(tbl_RR_Data[Team 1],$C27+AB$15),"") ->  | AD27: =IF(F27,INDEX(tbl_RR_Data[Team 2],$C27+AB$15),"") ->  | AE27: =IF(G27,INDEX(tbl_RR_Data[Team 1],$C27+AE$15),"") ->  | AG27: =IF(G27,INDEX(tbl_RR_Data[Team 2],$C27+AE$15),"") ->  | AH27: =IF(H27,INDEX(tbl_RR_Data[Team 1],$C27+AH$15),"") ->  | AJ27: =IF(H27,INDEX(tbl_RR_Data[Team 2],$C27+AH$15),"") ->  | AK27: =IF(I27,INDEX(tbl_RR_Data[Team 1],$C27+AK$15),"") ->  | AM27: =IF(I27,INDEX(tbl_RR_Data[Team 2],$C27+AK$15),"") ->  | AN27: =IF(J27,INDEX(tbl_RR_Data[Team 1],$C27+AN$15),"") ->  | AP27: =IF(J27,INDEX(tbl_RR_Data[Team 2],$C27+AN$15),"") ->  | AQ27: =IF(K27,INDEX(tbl_RR_Data[Team 1],$C27+AQ$15),"") ->  | AS27: =IF(K27,INDEX(tbl_RR_Data[Team 2],$C27+AQ$15),"") ->  | AT27: =IF(L27,INDEX(tbl_RR_Data[Team 1],$C27+AT$15),"") ->  | AV27: =IF(L27,INDEX(tbl_RR_Data[Team 2],$C27+AT$15),"") ->  | AW27: =IF(M27,INDEX(tbl_RR_Data[Team 1],$C27+AW$15),"") ->  | AY27: =IF(M27,INDEX(tbl_RR_Data[Team 2],$C27+AW$15),"") ->  | AZ27: =IF(N27,INDEX(tbl_RR_Data[Team 1],$C27+AZ$15),"") ->  | BB27: =IF(N27,INDEX(tbl_RR_Data[Team 2],$C27+AZ$15),"") ->  | BC27: =IF(O27,INDEX(tbl_RR_Data[Team 1],$C27+BC$15),"") ->  | BE27: =IF(O27,INDEX(tbl_RR_Data[Team 2],$C27+BC$15),"") ->  | BF27: =IF(P27,INDEX(tbl_RR_Data[Team 1],$C27+BF$15),"") ->  | BH27: =IF(P27,INDEX(tbl_RR_Data[Team 2],$C27+BF$15),"") ->  | BI27: =IF(Q27,INDEX(tbl_RR_Data[Team 1],$C27+BI$15),"") ->  | BK27: =IF(Q27,INDEX(tbl_RR_Data[Team 2],$C27+BI$15),"") ->  | BM27: =SMALL(IF(COUNTIF($Y27:$BK27,$Y$1:$BB$1),999,$Y$1:$BB$1),$Y$1:$BB$1) -> 1 | BN27: 2 | BO27: 3 | BP27: 8 | BQ27: FALSE
A28: 13 | B28: 0 | C28: =IF(B28,MATCH($C$14+100*B28,tbl_RR_Data[ID],1),0) -> 0 | E28: 0 | F28: 0 | G28: 0 | H28: 0 | I28: 0 | J28: 0 | K28: 0 | L28: 0 | M28: 0 | N28: 0 | O28: 0 | P28: 0 | Q28: 0 | X28: 0 | Y28: =IF(E28,INDEX(tbl_RR_Data[Team 1],$C28+Y$15),"") ->  | AA28: =IF(E28,INDEX(tbl_RR_Data[Team 2],$C28+Y$15),"") ->  | AB28: =IF(F28,INDEX(tbl_RR_Data[Team 1],$C28+AB$15),"") ->  | AD28: =IF(F28,INDEX(tbl_RR_Data[Team 2],$C28+AB$15),"") ->  | AE28: =IF(G28,INDEX(tbl_RR_Data[Team 1],$C28+AE$15),"") ->  | AG28: =IF(G28,INDEX(tbl_RR_Data[Team 2],$C28+AE$15),"") ->  | AH28: =IF(H28,INDEX(tbl_RR_Data[Team 1],$C28+AH$15),"") ->  | AJ28: =IF(H28,INDEX(tbl_RR_Data[Team 2],$C28+AH$15),"") ->  | AK28: =IF(I28,INDEX(tbl_RR_Data[Team 1],$C28+AK$15),"") ->  | AM28: =IF(I28,INDEX(tbl_RR_Data[Team 2],$C28+AK$15),"") ->  | AN28: =IF(J28,INDEX(tbl_RR_Data[Team 1],$C28+AN$15),"") ->  | AP28: =IF(J28,INDEX(tbl_RR_Data[Team 2],$C28+AN$15),"") ->  | AQ28: =IF(K28,INDEX(tbl_RR_Data[Team 1],$C28+AQ$15),"") ->  | AS28: =IF(K28,INDEX(tbl_RR_Data[Team 2],$C28+AQ$15),"") ->  | AT28: =IF(L28,INDEX(tbl_RR_Data[Team 1],$C28+AT$15),"") ->  | AV28: =IF(L28,INDEX(tbl_RR_Data[Team 2],$C28+AT$15),"") ->  | AW28: =IF(M28,INDEX(tbl_RR_Data[Team 1],$C28+AW$15),"") ->  | AY28: =IF(M28,INDEX(tbl_RR_Data[Team 2],$C28+AW$15),"") ->  | AZ28: =IF(N28,INDEX(tbl_RR_Data[Team 1],$C28+AZ$15),"") ->  | BB28: =IF(N28,INDEX(tbl_RR_Data[Team 2],$C28+AZ$15),"") ->  | BC28: =IF(O28,INDEX(tbl_RR_Data[Team 1],$C28+BC$15),"") ->  | BE28: =IF(O28,INDEX(tbl_RR_Data[Team 2],$C28+BC$15),"") ->  | BF28: =IF(P28,INDEX(tbl_RR_Data[Team 1],$C28+BF$15),"") ->  | BH28: =IF(P28,INDEX(tbl_RR_Data[Team 2],$C28+BF$15),"") ->  | BI28: =IF(Q28,INDEX(tbl_RR_Data[Team 1],$C28+BI$15),"") ->  | BK28: =IF(Q28,INDEX(tbl_RR_Data[Team 2],$C28+BI$15),"") ->  | BM28: =SMALL(IF(COUNTIF($Y28:$BK28,$Y$1:$BB$1),999,$Y$1:$BB$1),$Y$1:$BB$1) -> 1 | BN28: 2 | BO28: 3 | BP28: 8 | BQ28: FALSE
A29: 14 | B29: 0 | C29: =IF(B29,MATCH($C$14+100*B29,tbl_RR_Data[ID],1),0) -> 0 | E29: 0 | F29: 0 | G29: 0 | H29: 0 | I29: 0 | J29: 0 | K29: 0 | L29: 0 | M29: 0 | N29: 0 | O29: 0 | P29: 0 | Q29: 0 | X29: 0 | Y29: =IF(E29,INDEX(tbl_RR_Data[Team 1],$C29+Y$15),"") ->  | AA29: =IF(E29,INDEX(tbl_RR_Data[Team 2],$C29+Y$15),"") ->  | AB29: =IF(F29,INDEX(tbl_RR_Data[Team 1],$C29+AB$15),"") ->  | AD29: =IF(F29,INDEX(tbl_RR_Data[Team 2],$C29+AB$15),"") ->  | AE29: =IF(G29,INDEX(tbl_RR_Data[Team 1],$C29+AE$15),"") ->  | AG29: =IF(G29,INDEX(tbl_RR_Data[Team 2],$C29+AE$15),"") ->  | AH29: =IF(H29,INDEX(tbl_RR_Data[Team 1],$C29+AH$15),"") ->  | AJ29: =IF(H29,INDEX(tbl_RR_Data[Team 2],$C29+AH$15),"") ->  | AK29: =IF(I29,INDEX(tbl_RR_Data[Team 1],$C29+AK$15),"") ->  | AM29: =IF(I29,INDEX(tbl_RR_Data[Team 2],$C29+AK$15),"") ->  | AN29: =IF(J29,INDEX(tbl_RR_Data[Team 1],$C29+AN$15),"") ->  | AP29: =IF(J29,INDEX(tbl_RR_Data[Team 2],$C29+AN$15),"") ->  | AQ29: =IF(K29,INDEX(tbl_RR_Data[Team 1],$C29+AQ$15),"") ->  | AS29: =IF(K29,INDEX(tbl_RR_Data[Team 2],$C29+AQ$15),"") ->  | AT29: =IF(L29,INDEX(tbl_RR_Data[Team 1],$C29+AT$15),"") ->  | AV29: =IF(L29,INDEX(tbl_RR_Data[Team 2],$C29+AT$15),"") ->  | AW29: =IF(M29,INDEX(tbl_RR_Data[Team 1],$C29+AW$15),"") ->  | AY29: =IF(M29,INDEX(tbl_RR_Data[Team 2],$C29+AW$15),"") ->  | AZ29: =IF(N29,INDEX(tbl_RR_Data[Team 1],$C29+AZ$15),"") ->  | BB29: =IF(N29,INDEX(tbl_RR_Data[Team 2],$C29+AZ$15),"") ->  | BC29: =IF(O29,INDEX(tbl_RR_Data[Team 1],$C29+BC$15),"") ->  | BE29: =IF(O29,INDEX(tbl_RR_Data[Team 2],$C29+BC$15),"") ->  | BF29: =IF(P29,INDEX(tbl_RR_Data[Team 1],$C29+BF$15),"") ->  | BH29: =IF(P29,INDEX(tbl_RR_Data[Team 2],$C29+BF$15),"") ->  | BI29: =IF(Q29,INDEX(tbl_RR_Data[Team 1],$C29+BI$15),"") ->  | BK29: =IF(Q29,INDEX(tbl_RR_Data[Team 2],$C29+BI$15),"") ->  | BM29: =SMALL(IF(COUNTIF($Y29:$BK29,$Y$1:$BB$1),999,$Y$1:$BB$1),$Y$1:$BB$1) -> 1 | BN29: 2 | BO29: 3 | BP29: 8 | BQ29: FALSE
A30: 15 | B30: 0 | C30: =IF(B30,MATCH($C$14+100*B30,tbl_RR_Data[ID],1),0) -> 0 | E30: 0 | F30: 0 | G30: 0 | H30: 0 | I30: 0 | J30: 0 | K30: 0 | L30: 0 | M30: 0 | N30: 0 | O30: 0 | P30: 0 | Q30: 0 | X30: 0 | Y30: =IF(E30,INDEX(tbl_RR_Data[Team 1],$C30+Y$15),"") ->  | AA30: =IF(E30,INDEX(tbl_RR_Data[Team 2],$C30+Y$15),"") ->  | AB30: =IF(F30,INDEX(tbl_RR_Data[Team 1],$C30+AB$15),"") ->  | AD30: =IF(F30,INDEX(tbl_RR_Data[Team 2],$C30+AB$15),"") ->  | AE30: =IF(G30,INDEX(tbl_RR_Data[Team 1],$C30+AE$15),"") ->  | AG30: =IF(G30,INDEX(tbl_RR_Data[Team 2],$C30+AE$15),"") ->  | AH30: =IF(H30,INDEX(tbl_RR_Data[Team 1],$C30+AH$15),"") ->  | AJ30: =IF(H30,INDEX(tbl_RR_Data[Team 2],$C30+AH$15),"") ->  | AK30: =IF(I30,INDEX(tbl_RR_Data[Team 1],$C30+AK$15),"") ->  | AM30: =IF(I30,INDEX(tbl_RR_Data[Team 2],$C30+AK$15),"") ->  | AN30: =IF(J30,INDEX(tbl_RR_Data[Team 1],$C30+AN$15),"") ->  | AP30: =IF(J30,INDEX(tbl_RR_Data[Team 2],$C30+AN$15),"") ->  | AQ30: =IF(K30,INDEX(tbl_RR_Data[Team 1],$C30+AQ$15),"") ->  | AS30: =IF(K30,INDEX(tbl_RR_Data[Team 2],$C30+AQ$15),"") ->  | AT30: =IF(L30,INDEX(tbl_RR_Data[Team 1],$C30+AT$15),"") ->  | AV30: =IF(L30,INDEX(tbl_RR_Data[Team 2],$C30+AT$15),"") ->  | AW30: =IF(M30,INDEX(tbl_RR_Data[Team 1],$C30+AW$15),"") ->  | AY30: =IF(M30,INDEX(tbl_RR_Data[Team 2],$C30+AW$15),"") ->  | AZ30: =IF(N30,INDEX(tbl_RR_Data[Team 1],$C30+AZ$15),"") ->  | BB30: =IF(N30,INDEX(tbl_RR_Data[Team 2],$C30+AZ$15),"") ->  | BC30: =IF(O30,INDEX(tbl_RR_Data[Team 1],$C30+BC$15),"") ->  | BE30: =IF(O30,INDEX(tbl_RR_Data[Team 2],$C30+BC$15),"") ->  | BF30: =IF(P30,INDEX(tbl_RR_Data[Team 1],$C30+BF$15),"") ->  | BH30: =IF(P30,INDEX(tbl_RR_Data[Team 2],$C30+BF$15),"") ->  | BI30: =IF(Q30,INDEX(tbl_RR_Data[Team 1],$C30+BI$15),"") ->  | BK30: =IF(Q30,INDEX(tbl_RR_Data[Team 2],$C30+BI$15),"") ->  | BM30: =SMALL(IF(COUNTIF($Y30:$BK30,$Y$1:$BB$1),999,$Y$1:$BB$1),$Y$1:$BB$1) -> 1 | BN30: 2 | BO30: 3 | BP30: 8 | BQ30: FALSE
A31: 16 | B31: 0 | C31: =IF(B31,MATCH($C$14+100*B31,tbl_RR_Data[ID],1),0) -> 0 | E31: 0 | F31: 0 | G31: 0 | H31: 0 | I31: 0 | J31: 0 | K31: 0 | L31: 0 | M31: 0 | N31: 0 | O31: 0 | P31: 0 | Q31: 0 | X31: 0 | Y31: =IF(E31,INDEX(tbl_RR_Data[Team 1],$C31+Y$15),"") ->  | AA31: =IF(E31,INDEX(tbl_RR_Data[Team 2],$C31+Y$15),"") ->  | AB31: =IF(F31,INDEX(tbl_RR_Data[Team 1],$C31+AB$15),"") ->  | AD31: =IF(F31,INDEX(tbl_RR_Data[Team 2],$C31+AB$15),"") ->  | AE31: =IF(G31,INDEX(tbl_RR_Data[Team 1],$C31+AE$15),"") ->  | AG31: =IF(G31,INDEX(tbl_RR_Data[Team 2],$C31+AE$15),"") ->  | AH31: =IF(H31,INDEX(tbl_RR_Data[Team 1],$C31+AH$15),"") ->  | AJ31: =IF(H31,INDEX(tbl_RR_Data[Team 2],$C31+AH$15),"") ->  | AK31: =IF(I31,INDEX(tbl_RR_Data[Team 1],$C31+AK$15),"") ->  | AM31: =IF(I31,INDEX(tbl_RR_Data[Team 2],$C31+AK$15),"") ->  | AN31: =IF(J31,INDEX(tbl_RR_Data[Team 1],$C31+AN$15),"") ->  | AP31: =IF(J31,INDEX(tbl_RR_Data[Team 2],$C31+AN$15),"") ->  | AQ31: =IF(K31,INDEX(tbl_RR_Data[Team 1],$C31+AQ$15),"") ->  | AS31: =IF(K31,INDEX(tbl_RR_Data[Team 2],$C31+AQ$15),"") ->  | AT31: =IF(L31,INDEX(tbl_RR_Data[Team 1],$C31+AT$15),"") ->  | AV31: =IF(L31,INDEX(tbl_RR_Data[Team 2],$C31+AT$15),"") ->  | AW31: =IF(M31,INDEX(tbl_RR_Data[Team 1],$C31+AW$15),"") ->  | AY31: =IF(M31,INDEX(tbl_RR_Data[Team 2],$C31+AW$15),"") ->  | AZ31: =IF(N31,INDEX(tbl_RR_Data[Team 1],$C31+AZ$15),"") ->  | BB31: =IF(N31,INDEX(tbl_RR_Data[Team 2],$C31+AZ$15),"") ->  | BC31: =IF(O31,INDEX(tbl_RR_Data[Team 1],$C31+BC$15),"") ->  | BE31: =IF(O31,INDEX(tbl_RR_Data[Team 2],$C31+BC$15),"") ->  | BF31: =IF(P31,INDEX(tbl_RR_Data[Team 1],$C31+BF$15),"") ->  | BH31: =IF(P31,INDEX(tbl_RR_Data[Team 2],$C31+BF$15),"") ->  | BI31: =IF(Q31,INDEX(tbl_RR_Data[Team 1],$C31+BI$15),"") ->  | BK31: =IF(Q31,INDEX(tbl_RR_Data[Team 2],$C31+BI$15),"") ->  | BM31: =SMALL(IF(COUNTIF($Y31:$BK31,$Y$1:$BB$1),999,$Y$1:$BB$1),$Y$1:$BB$1) -> 1 | BN31: 2 | BO31: 3 | BP31: 8 | BQ31: FALSE
A32: 17 | B32: 0 | C32: =IF(B32,MATCH($C$14+100*B32,tbl_RR_Data[ID],1),0) -> 0 | E32: 0 | F32: 0 | G32: 0 | H32: 0 | I32: 0 | J32: 0 | K32: 0 | L32: 0 | M32: 0 | N32: 0 | O32: 0 | P32: 0 | Q32: 0 | X32: 0 | Y32: =IF(E32,INDEX(tbl_RR_Data[Team 1],$C32+Y$15),"") ->  | AA32: =IF(E32,INDEX(tbl_RR_Data[Team 2],$C32+Y$15),"") ->  | AB32: =IF(F32,INDEX(tbl_RR_Data[Team 1],$C32+AB$15),"") ->  | AD32: =IF(F32,INDEX(tbl_RR_Data[Team 2],$C32+AB$15),"") ->  | AE32: =IF(G32,INDEX(tbl_RR_Data[Team 1],$C32+AE$15),"") ->  | AG32: =IF(G32,INDEX(tbl_RR_Data[Team 2],$C32+AE$15),"") ->  | AH32: =IF(H32,INDEX(tbl_RR_Data[Team 1],$C32+AH$15),"") ->  | AJ32: =IF(H32,INDEX(tbl_RR_Data[Team 2],$C32+AH$15),"") ->  | AK32: =IF(I32,INDEX(tbl_RR_Data[Team 1],$C32+AK$15),"") ->  | AM32: =IF(I32,INDEX(tbl_RR_Data[Team 2],$C32+AK$15),"") ->  | AN32: =IF(J32,INDEX(tbl_RR_Data[Team 1],$C32+AN$15),"") ->  | AP32: =IF(J32,INDEX(tbl_RR_Data[Team 2],$C32+AN$15),"") ->  | AQ32: =IF(K32,INDEX(tbl_RR_Data[Team 1],$C32+AQ$15),"") ->  | AS32: =IF(K32,INDEX(tbl_RR_Data[Team 2],$C32+AQ$15),"") ->  | AT32: =IF(L32,INDEX(tbl_RR_Data[Team 1],$C32+AT$15),"") ->  | AV32: =IF(L32,INDEX(tbl_RR_Data[Team 2],$C32+AT$15),"") ->  | AW32: =IF(M32,INDEX(tbl_RR_Data[Team 1],$C32+AW$15),"") ->  | AY32: =IF(M32,INDEX(tbl_RR_Data[Team 2],$C32+AW$15),"") ->  | AZ32: =IF(N32,INDEX(tbl_RR_Data[Team 1],$C32+AZ$15),"") ->  | BB32: =IF(N32,INDEX(tbl_RR_Data[Team 2],$C32+AZ$15),"") ->  | BC32: =IF(O32,INDEX(tbl_RR_Data[Team 1],$C32+BC$15),"") ->  | BE32: =IF(O32,INDEX(tbl_RR_Data[Team 2],$C32+BC$15),"") ->  | BF32: =IF(P32,INDEX(tbl_RR_Data[Team 1],$C32+BF$15),"") ->  | BH32: =IF(P32,INDEX(tbl_RR_Data[Team 2],$C32+BF$15),"") ->  | BI32: =IF(Q32,INDEX(tbl_RR_Data[Team 1],$C32+BI$15),"") ->  | BK32: =IF(Q32,INDEX(tbl_RR_Data[Team 2],$C32+BI$15),"") ->  | BM32: =SMALL(IF(COUNTIF($Y32:$BK32,$Y$1:$BB$1),999,$Y$1:$BB$1),$Y$1:$BB$1) -> 1 | BN32: 2 | BO32: 3 | BP32: 8 | BQ32: FALSE
A33: 18 | B33: 0 | C33: =IF(B33,MATCH($C$14+100*B33,tbl_RR_Data[ID],1),0) -> 0 | E33: 0 | F33: 0 | G33: 0 | H33: 0 | I33: 0 | J33: 0 | K33: 0 | L33: 0 | M33: 0 | N33: 0 | O33: 0 | P33: 0 | Q33: 0 | X33: 0 | Y33: =IF(E33,INDEX(tbl_RR_Data[Team 1],$C33+Y$15),"") ->  | AA33: =IF(E33,INDEX(tbl_RR_Data[Team 2],$C33+Y$15),"") ->  | AB33: =IF(F33,INDEX(tbl_RR_Data[Team 1],$C33+AB$15),"") ->  | AD33: =IF(F33,INDEX(tbl_RR_Data[Team 2],$C33+AB$15),"") ->  | AE33: =IF(G33,INDEX(tbl_RR_Data[Team 1],$C33+AE$15),"") ->  | AG33: =IF(G33,INDEX(tbl_RR_Data[Team 2],$C33+AE$15),"") ->  | AH33: =IF(H33,INDEX(tbl_RR_Data[Team 1],$C33+AH$15),"") ->  | AJ33: =IF(H33,INDEX(tbl_RR_Data[Team 2],$C33+AH$15),"") ->  | AK33: =IF(I33,INDEX(tbl_RR_Data[Team 1],$C33+AK$15),"") ->  | AM33: =IF(I33,INDEX(tbl_RR_Data[Team 2],$C33+AK$15),"") ->  | AN33: =IF(J33,INDEX(tbl_RR_Data[Team 1],$C33+AN$15),"") ->  | AP33: =IF(J33,INDEX(tbl_RR_Data[Team 2],$C33+AN$15),"") ->  | AQ33: =IF(K33,INDEX(tbl_RR_Data[Team 1],$C33+AQ$15),"") ->  | AS33: =IF(K33,INDEX(tbl_RR_Data[Team 2],$C33+AQ$15),"") ->  | AT33: =IF(L33,INDEX(tbl_RR_Data[Team 1],$C33+AT$15),"") ->  | AV33: =IF(L33,INDEX(tbl_RR_Data[Team 2],$C33+AT$15),"") ->  | AW33: =IF(M33,INDEX(tbl_RR_Data[Team 1],$C33+AW$15),"") ->  | AY33: =IF(M33,INDEX(tbl_RR_Data[Team 2],$C33+AW$15),"") ->  | AZ33: =IF(N33,INDEX(tbl_RR_Data[Team 1],$C33+AZ$15),"") ->  | BB33: =IF(N33,INDEX(tbl_RR_Data[Team 2],$C33+AZ$15),"") ->  | BC33: =IF(O33,INDEX(tbl_RR_Data[Team 1],$C33+BC$15),"") ->  | BE33: =IF(O33,INDEX(tbl_RR_Data[Team 2],$C33+BC$15),"") ->  | BF33: =IF(P33,INDEX(tbl_RR_Data[Team 1],$C33+BF$15),"") ->  | BH33: =IF(P33,INDEX(tbl_RR_Data[Team 2],$C33+BF$15),"") ->  | BI33: =IF(Q33,INDEX(tbl_RR_Data[Team 1],$C33+BI$15),"") ->  | BK33: =IF(Q33,INDEX(tbl_RR_Data[Team 2],$C33+BI$15),"") ->  | BM33: =SMALL(IF(COUNTIF($Y33:$BK33,$Y$1:$BB$1),999,$Y$1:$BB$1),$Y$1:$BB$1) -> 1 | BN33: 2 | BO33: 3 | BP33: 8 | BQ33: FALSE
A34: 19 | B34: 0 | C34: =IF(B34,MATCH($C$14+100*B34,tbl_RR_Data[ID],1),0) -> 0 | E34: 0 | F34: 0 | G34: 0 | H34: 0 | I34: 0 | J34: 0 | K34: 0 | L34: 0 | M34: 0 | N34: 0 | O34: 0 | P34: 0 | Q34: 0 | X34: 0 | Y34: =IF(E34,INDEX(tbl_RR_Data[Team 1],$C34+Y$15),"") ->  | AA34: =IF(E34,INDEX(tbl_RR_Data[Team 2],$C34+Y$15),"") ->  | AB34: =IF(F34,INDEX(tbl_RR_Data[Team 1],$C34+AB$15),"") ->  | AD34: =IF(F34,INDEX(tbl_RR_Data[Team 2],$C34+AB$15),"") ->  | AE34: =IF(G34,INDEX(tbl_RR_Data[Team 1],$C34+AE$15),"") ->  | AG34: =IF(G34,INDEX(tbl_RR_Data[Team 2],$C34+AE$15),"") ->  | AH34: =IF(H34,INDEX(tbl_RR_Data[Team 1],$C34+AH$15),"") ->  | AJ34: =IF(H34,INDEX(tbl_RR_Data[Team 2],$C34+AH$15),"") ->  | AK34: =IF(I34,INDEX(tbl_RR_Data[Team 1],$C34+AK$15),"") ->  | AM34: =IF(I34,INDEX(tbl_RR_Data[Team 2],$C34+AK$15),"") ->  | AN34: =IF(J34,INDEX(tbl_RR_Data[Team 1],$C34+AN$15),"") ->  | AP34: =IF(J34,INDEX(tbl_RR_Data[Team 2],$C34+AN$15),"") ->  | AQ34: =IF(K34,INDEX(tbl_RR_Data[Team 1],$C34+AQ$15),"") ->  | AS34: =IF(K34,INDEX(tbl_RR_Data[Team 2],$C34+AQ$15),"") ->  | AT34: =IF(L34,INDEX(tbl_RR_Data[Team 1],$C34+AT$15),"") ->  | AV34: =IF(L34,INDEX(tbl_RR_Data[Team 2],$C34+AT$15),"") ->  | AW34: =IF(M34,INDEX(tbl_RR_Data[Team 1],$C34+AW$15),"") ->  | AY34: =IF(M34,INDEX(tbl_RR_Data[Team 2],$C34+AW$15),"") ->  | AZ34: =IF(N34,INDEX(tbl_RR_Data[Team 1],$C34+AZ$15),"") ->  | BB34: =IF(N34,INDEX(tbl_RR_Data[Team 2],$C34+AZ$15),"") ->  | BC34: =IF(O34,INDEX(tbl_RR_Data[Team 1],$C34+BC$15),"") ->  | BE34: =IF(O34,INDEX(tbl_RR_Data[Team 2],$C34+BC$15),"") ->  | BF34: =IF(P34,INDEX(tbl_RR_Data[Team 1],$C34+BF$15),"") ->  | BH34: =IF(P34,INDEX(tbl_RR_Data[Team 2],$C34+BF$15),"") ->  | BI34: =IF(Q34,INDEX(tbl_RR_Data[Team 1],$C34+BI$15),"") ->  | BK34: =IF(Q34,INDEX(tbl_RR_Data[Team 2],$C34+BI$15),"") ->  | BM34: =SMALL(IF(COUNTIF($Y34:$BK34,$Y$1:$BB$1),999,$Y$1:$BB$1),$Y$1:$BB$1) -> 1 | BN34: 2 | BO34: 3 | BP34: 8 | BQ34: FALSE
A35: 20 | B35: 0 | C35: =IF(B35,MATCH($C$14+100*B35,tbl_RR_Data[ID],1),0) -> 0 | E35: 0 | F35: 0 | G35: 0 | H35: 0 | I35: 0 | J35: 0 | K35: 0 | L35: 0 | M35: =$B35*M$15 -> 0 | N35: 0 | O35: 0 | P35: 0 | Q35: 0 | X35: 0 | Y35: =IF(E35,INDEX(tbl_RR_Data[Team 1],$C35+Y$15),"") ->  | AA35: =IF(E35,INDEX(tbl_RR_Data[Team 2],$C35+Y$15),"") ->  | AB35: =IF(F35,INDEX(tbl_RR_Data[Team 1],$C35+AB$15),"") ->  | AD35: =IF(F35,INDEX(tbl_RR_Data[Team 2],$C35+AB$15),"") ->  | AE35: =IF(G35,INDEX(tbl_RR_Data[Team 1],$C35+AE$15),"") ->  | AG35: =IF(G35,INDEX(tbl_RR_Data[Team 2],$C35+AE$15),"") ->  | AH35: =IF(H35,INDEX(tbl_RR_Data[Team 1],$C35+AH$15),"") ->  | AJ35: =IF(H35,INDEX(tbl_RR_Data[Team 2],$C35+AH$15),"") ->  | AK35: =IF(I35,INDEX(tbl_RR_Data[Team 1],$C35+AK$15),"") ->  | AM35: =IF(I35,INDEX(tbl_RR_Data[Team 2],$C35+AK$15),"") ->  | AN35: =IF(J35,INDEX(tbl_RR_Data[Team 1],$C35+AN$15),"") ->  | AP35: =IF(J35,INDEX(tbl_RR_Data[Team 2],$C35+AN$15),"") ->  | AQ35: =IF(K35,INDEX(tbl_RR_Data[Team 1],$C35+AQ$15),"") ->  | AS35: =IF(K35,INDEX(tbl_RR_Data[Team 2],$C35+AQ$15),"") ->  | AT35: =IF(L35,INDEX(tbl_RR_Data[Team 1],$C35+AT$15),"") ->  | AV35: =IF(L35,INDEX(tbl_RR_Data[Team 2],$C35+AT$15),"") ->  | AW35: =IF(M35,INDEX(tbl_RR_Data[Team 1],$C35+AW$15),"") ->  | AY35: =IF(M35,INDEX(tbl_RR_Data[Team 2],$C35+AW$15),"") ->  | AZ35: =IF(N35,INDEX(tbl_RR_Data[Team 1],$C35+AZ$15),"") ->  | BB35: =IF(N35,INDEX(tbl_RR_Data[Team 2],$C35+AZ$15),"") ->  | BC35: =IF(O35,INDEX(tbl_RR_Data[Team 1],$C35+BC$15),"") ->  | BE35: =IF(O35,INDEX(tbl_RR_Data[Team 2],$C35+BC$15),"") ->  | BF35: =IF(P35,INDEX(tbl_RR_Data[Team 1],$C35+BF$15),"") ->  | BH35: =IF(P35,INDEX(tbl_RR_Data[Team 2],$C35+BF$15),"") ->  | BI35: =IF(Q35,INDEX(tbl_RR_Data[Team 1],$C35+BI$15),"") ->  | BK35: =IF(Q35,INDEX(tbl_RR_Data[Team 2],$C35+BI$15),"") ->  | BM35: =SMALL(IF(COUNTIF($Y35:$BK35,$Y$1:$BB$1),999,$Y$1:$BB$1),$Y$1:$BB$1) -> 1 | BN35: 2 | BO35: 3 | BP35: 8 | BQ35: FALSE
A36: 21 | B36: 0 | C36: =IF(B36,MATCH($C$14+100*B36,tbl_RR_Data[ID],1),0) -> 0 | E36: =$B36*E$15 -> 0 | F36: 0 | G36: 0 | H36: 0 | I36: 0 | J36: 0 | K36: 0 | L36: 0 | M36: 0 | N36: 0 | O36: 0 | P36: 0 | Q36: 0 | X36: 0 | Y36: =IF(E36,INDEX(tbl_RR_Data[Team 1],$C36+Y$15),"") ->  | AA36: =IF(E36,INDEX(tbl_RR_Data[Team 2],$C36+Y$15),"") ->  | AB36: =IF(F36,INDEX(tbl_RR_Data[Team 1],$C36+AB$15),"") ->  | AD36: =IF(F36,INDEX(tbl_RR_Data[Team 2],$C36+AB$15),"") ->  | AE36: =IF(G36,INDEX(tbl_RR_Data[Team 1],$C36+AE$15),"") ->  | AG36: =IF(G36,INDEX(tbl_RR_Data[Team 2],$C36+AE$15),"") ->  | AH36: =IF(H36,INDEX(tbl_RR_Data[Team 1],$C36+AH$15),"") ->  | AJ36: =IF(H36,INDEX(tbl_RR_Data[Team 2],$C36+AH$15),"") ->  | AK36: =IF(I36,INDEX(tbl_RR_Data[Team 1],$C36+AK$15),"") ->  | AM36: =IF(I36,INDEX(tbl_RR_Data[Team 2],$C36+AK$15),"") ->  | AN36: =IF(J36,INDEX(tbl_RR_Data[Team 1],$C36+AN$15),"") ->  | AP36: =IF(J36,INDEX(tbl_RR_Data[Team 2],$C36+AN$15),"") ->  | AQ36: =IF(K36,INDEX(tbl_RR_Data[Team 1],$C36+AQ$15),"") ->  | AS36: =IF(K36,INDEX(tbl_RR_Data[Team 2],$C36+AQ$15),"") ->  | AT36: =IF(L36,INDEX(tbl_RR_Data[Team 1],$C36+AT$15),"") ->  | AV36: =IF(L36,INDEX(tbl_RR_Data[Team 2],$C36+AT$15),"") ->  | AW36: =IF(M36,INDEX(tbl_RR_Data[Team 1],$C36+AW$15),"") ->  | AY36: =IF(M36,INDEX(tbl_RR_Data[Team 2],$C36+AW$15),"") ->  | AZ36: =IF(N36,INDEX(tbl_RR_Data[Team 1],$C36+AZ$15),"") ->  | BB36: =IF(N36,INDEX(tbl_RR_Data[Team 2],$C36+AZ$15),"") ->  | BC36: =IF(O36,INDEX(tbl_RR_Data[Team 1],$C36+BC$15),"") ->  | BE36: =IF(O36,INDEX(tbl_RR_Data[Team 2],$C36+BC$15),"") ->  | BF36: =IF(P36,INDEX(tbl_RR_Data[Team 1],$C36+BF$15),"") ->  | BH36: =IF(P36,INDEX(tbl_RR_Data[Team 2],$C36+BF$15),"") ->  | BI36: =IF(Q36,INDEX(tbl_RR_Data[Team 1],$C36+BI$15),"") ->  | BK36: =IF(Q36,INDEX(tbl_RR_Data[Team 2],$C36+BI$15),"") ->  | BM36: =SMALL(IF(COUNTIF($Y36:$BK36,$Y$1:$BB$1),999,$Y$1:$BB$1),$Y$1:$BB$1) -> 1 | BN36: 2 | BO36: 3 | BP36: 8 | BQ36: FALSE
A37: 22 | B37: 0 | C37: =IF(B37,MATCH($C$14+100*B37,tbl_RR_Data[ID],1),0) -> 0 | E37: 0 | F37: 0 | G37: 0 | H37: 0 | I37: 0 | J37: 0 | K37: 0 | L37: 0 | M37: 0 | N37: 0 | O37: 0 | P37: 0 | Q37: 0 | X37: 0 | Y37: =IF(E37,INDEX(tbl_RR_Data[Team 1],$C37+Y$15),"") ->  | AA37: =IF(E37,INDEX(tbl_RR_Data[Team 2],$C37+Y$15),"") ->  | AB37: =IF(F37,INDEX(tbl_RR_Data[Team 1],$C37+AB$15),"") ->  | AD37: =IF(F37,INDEX(tbl_RR_Data[Team 2],$C37+AB$15),"") ->  | AE37: =IF(G37,INDEX(tbl_RR_Data[Team 1],$C37+AE$15),"") ->  | AG37: =IF(G37,INDEX(tbl_RR_Data[Team 2],$C37+AE$15),"") ->  | AH37: =IF(H37,INDEX(tbl_RR_Data[Team 1],$C37+AH$15),"") ->  | AJ37: =IF(H37,INDEX(tbl_RR_Data[Team 2],$C37+AH$15),"") ->  | AK37: =IF(I37,INDEX(tbl_RR_Data[Team 1],$C37+AK$15),"") ->  | AM37: =IF(I37,INDEX(tbl_RR_Data[Team 2],$C37+AK$15),"") ->  | AN37: =IF(J37,INDEX(tbl_RR_Data[Team 1],$C37+AN$15),"") ->  | AP37: =IF(J37,INDEX(tbl_RR_Data[Team 2],$C37+AN$15),"") ->  | AQ37: =IF(K37,INDEX(tbl_RR_Data[Team 1],$C37+AQ$15),"") ->  | AS37: =IF(K37,INDEX(tbl_RR_Data[Team 2],$C37+AQ$15),"") ->  | AT37: =IF(L37,INDEX(tbl_RR_Data[Team 1],$C37+AT$15),"") ->  | AV37: =IF(L37,INDEX(tbl_RR_Data[Team 2],$C37+AT$15),"") ->  | AW37: =IF(M37,INDEX(tbl_RR_Data[Team 1],$C37+AW$15),"") ->  | AY37: =IF(M37,INDEX(tbl_RR_Data[Team 2],$C37+AW$15),"") ->  | AZ37: =IF(N37,INDEX(tbl_RR_Data[Team 1],$C37+AZ$15),"") ->  | BB37: =IF(N37,INDEX(tbl_RR_Data[Team 2],$C37+AZ$15),"") ->  | BC37: =IF(O37,INDEX(tbl_RR_Data[Team 1],$C37+BC$15),"") ->  | BE37: =IF(O37,INDEX(tbl_RR_Data[Team 2],$C37+BC$15),"") ->  | BF37: =IF(P37,INDEX(tbl_RR_Data[Team 1],$C37+BF$15),"") ->  | BH37: =IF(P37,INDEX(tbl_RR_Data[Team 2],$C37+BF$15),"") ->  | BI37: =IF(Q37,INDEX(tbl_RR_Data[Team 1],$C37+BI$15),"") ->  | BK37: =IF(Q37,INDEX(tbl_RR_Data[Team 2],$C37+BI$15),"") ->  | BM37: =SMALL(IF(COUNTIF($Y37:$BK37,$Y$1:$BB$1),999,$Y$1:$BB$1),$Y$1:$BB$1) -> 1 | BN37: 2 | BO37: 3 | BP37: 8 | BQ37: FALSE
A38: 23 | B38: 0 | C38: =IF(B38,MATCH($C$14+100*B38,tbl_RR_Data[ID],1),0) -> 0 | E38: 0 | F38: 0 | G38: 0 | H38: 0 | I38: 0 | J38: 0 | K38: 0 | L38: 0 | M38: 0 | N38: 0 | O38: 0 | P38: 0 | Q38: 0 | X38: 0 | Y38: =IF(E38,INDEX(tbl_RR_Data[Team 1],$C38+Y$15),"") ->  | AA38: =IF(E38,INDEX(tbl_RR_Data[Team 2],$C38+Y$15),"") ->  | AB38: =IF(F38,INDEX(tbl_RR_Data[Team 1],$C38+AB$15),"") ->  | AD38: =IF(F38,INDEX(tbl_RR_Data[Team 2],$C38+AB$15),"") ->  | AE38: =IF(G38,INDEX(tbl_RR_Data[Team 1],$C38+AE$15),"") ->  | AG38: =IF(G38,INDEX(tbl_RR_Data[Team 2],$C38+AE$15),"") ->  | AH38: =IF(H38,INDEX(tbl_RR_Data[Team 1],$C38+AH$15),"") ->  | AJ38: =IF(H38,INDEX(tbl_RR_Data[Team 2],$C38+AH$15),"") ->  | AK38: =IF(I38,INDEX(tbl_RR_Data[Team 1],$C38+AK$15),"") ->  | AM38: =IF(I38,INDEX(tbl_RR_Data[Team 2],$C38+AK$15),"") ->  | AN38: =IF(J38,INDEX(tbl_RR_Data[Team 1],$C38+AN$15),"") ->  | AP38: =IF(J38,INDEX(tbl_RR_Data[Team 2],$C38+AN$15),"") ->  | AQ38: =IF(K38,INDEX(tbl_RR_Data[Team 1],$C38+AQ$15),"") ->  | AS38: =IF(K38,INDEX(tbl_RR_Data[Team 2],$C38+AQ$15),"") ->  | AT38: =IF(L38,INDEX(tbl_RR_Data[Team 1],$C38+AT$15),"") ->  | AV38: =IF(L38,INDEX(tbl_RR_Data[Team 2],$C38+AT$15),"") ->  | AW38: =IF(M38,INDEX(tbl_RR_Data[Team 1],$C38+AW$15),"") ->  | AY38: =IF(M38,INDEX(tbl_RR_Data[Team 2],$C38+AW$15),"") ->  | AZ38: =IF(N38,INDEX(tbl_RR_Data[Team 1],$C38+AZ$15),"") ->  | BB38: =IF(N38,INDEX(tbl_RR_Data[Team 2],$C38+AZ$15),"") ->  | BC38: =IF(O38,INDEX(tbl_RR_Data[Team 1],$C38+BC$15),"") ->  | BE38: =IF(O38,INDEX(tbl_RR_Data[Team 2],$C38+BC$15),"") ->  | BF38: =IF(P38,INDEX(tbl_RR_Data[Team 1],$C38+BF$15),"") ->  | BH38: =IF(P38,INDEX(tbl_RR_Data[Team 2],$C38+BF$15),"") ->  | BI38: =IF(Q38,INDEX(tbl_RR_Data[Team 1],$C38+BI$15),"") ->  | BK38: =IF(Q38,INDEX(tbl_RR_Data[Team 2],$C38+BI$15),"") ->  | BM38: =SMALL(IF(COUNTIF($Y38:$BK38,$Y$1:$BB$1),999,$Y$1:$BB$1),$Y$1:$BB$1) -> 1 | BN38: 2 | BO38: 3 | BP38: 8 | BQ38: FALSE
A39: 24 | B39: 0 | C39: =IF(B39,MATCH($C$14+100*B39,tbl_RR_Data[ID],1),0) -> 0 | E39: 0 | F39: 0 | G39: 0 | H39: 0 | I39: 0 | J39: 0 | K39: 0 | L39: 0 | M39: 0 | N39: 0 | O39: 0 | P39: 0 | Q39: 0 | X39: 0 | Y39: =IF(E39,INDEX(tbl_RR_Data[Team 1],$C39+Y$15),"") ->  | AA39: =IF(E39,INDEX(tbl_RR_Data[Team 2],$C39+Y$15),"") ->  | AB39: =IF(F39,INDEX(tbl_RR_Data[Team 1],$C39+AB$15),"") ->  | AD39: =IF(F39,INDEX(tbl_RR_Data[Team 2],$C39+AB$15),"") ->  | AE39: =IF(G39,INDEX(tbl_RR_Data[Team 1],$C39+AE$15),"") ->  | AG39: =IF(G39,INDEX(tbl_RR_Data[Team 2],$C39+AE$15),"") ->  | AH39: =IF(H39,INDEX(tbl_RR_Data[Team 1],$C39+AH$15),"") ->  | AJ39: =IF(H39,INDEX(tbl_RR_Data[Team 2],$C39+AH$15),"") ->  | AK39: =IF(I39,INDEX(tbl_RR_Data[Team 1],$C39+AK$15),"") ->  | AM39: =IF(I39,INDEX(tbl_RR_Data[Team 2],$C39+AK$15),"") ->  | AN39: =IF(J39,INDEX(tbl_RR_Data[Team 1],$C39+AN$15),"") ->  | AP39: =IF(J39,INDEX(tbl_RR_Data[Team 2],$C39+AN$15),"") ->  | AQ39: =IF(K39,INDEX(tbl_RR_Data[Team 1],$C39+AQ$15),"") ->  | AS39: =IF(K39,INDEX(tbl_RR_Data[Team 2],$C39+AQ$15),"") ->  | AT39: =IF(L39,INDEX(tbl_RR_Data[Team 1],$C39+AT$15),"") ->  | AV39: =IF(L39,INDEX(tbl_RR_Data[Team 2],$C39+AT$15),"") ->  | AW39: =IF(M39,INDEX(tbl_RR_Data[Team 1],$C39+AW$15),"") ->  | AY39: =IF(M39,INDEX(tbl_RR_Data[Team 2],$C39+AW$15),"") ->  | AZ39: =IF(N39,INDEX(tbl_RR_Data[Team 1],$C39+AZ$15),"") ->  | BB39: =IF(N39,INDEX(tbl_RR_Data[Team 2],$C39+AZ$15),"") ->  | BC39: =IF(O39,INDEX(tbl_RR_Data[Team 1],$C39+BC$15),"") ->  | BE39: =IF(O39,INDEX(tbl_RR_Data[Team 2],$C39+BC$15),"") ->  | BF39: =IF(P39,INDEX(tbl_RR_Data[Team 1],$C39+BF$15),"") ->  | BH39: =IF(P39,INDEX(tbl_RR_Data[Team 2],$C39+BF$15),"") ->  | BI39: =IF(Q39,INDEX(tbl_RR_Data[Team 1],$C39+BI$15),"") ->  | BK39: =IF(Q39,INDEX(tbl_RR_Data[Team 2],$C39+BI$15),"") ->  | BM39: =SMALL(IF(COUNTIF($Y39:$BK39,$Y$1:$BB$1),999,$Y$1:$BB$1),$Y$1:$BB$1) -> 1 | BN39: 2 | BO39: 3 | BP39: 8 | BQ39: FALSE
A40: 25 | B40: 0 | C40: =IF(B40,MATCH($C$14+100*B40,tbl_RR_Data[ID],1),0) -> 0 | E40: 0 | F40: 0 | G40: 0 | H40: 0 | I40: 0 | J40: 0 | K40: 0 | L40: 0 | M40: 0 | N40: 0 | O40: 0 | P40: 0 | Q40: 0 | X40: 0 | Y40: =IF(E40,INDEX(tbl_RR_Data[Team 1],$C40+Y$15),"") ->  | AA40: =IF(E40,INDEX(tbl_RR_Data[Team 2],$C40+Y$15),"") ->  | AB40: =IF(F40,INDEX(tbl_RR_Data[Team 1],$C40+AB$15),"") ->  | AD40: =IF(F40,INDEX(tbl_RR_Data[Team 2],$C40+AB$15),"") ->  | AE40: =IF(G40,INDEX(tbl_RR_Data[Team 1],$C40+AE$15),"") ->  | AG40: =IF(G40,INDEX(tbl_RR_Data[Team 2],$C40+AE$15),"") ->  | AH40: =IF(H40,INDEX(tbl_RR_Data[Team 1],$C40+AH$15),"") ->  | AJ40: =IF(H40,INDEX(tbl_RR_Data[Team 2],$C40+AH$15),"") ->  | AK40: =IF(I40,INDEX(tbl_RR_Data[Team 1],$C40+AK$15),"") ->  | AM40: =IF(I40,INDEX(tbl_RR_Data[Team 2],$C40+AK$15),"") ->  | AN40: =IF(J40,INDEX(tbl_RR_Data[Team 1],$C40+AN$15),"") ->  | AP40: =IF(J40,INDEX(tbl_RR_Data[Team 2],$C40+AN$15),"") ->  | AQ40: =IF(K40,INDEX(tbl_RR_Data[Team 1],$C40+AQ$15),"") ->  | AS40: =IF(K40,INDEX(tbl_RR_Data[Team 2],$C40+AQ$15),"") ->  | AT40: =IF(L40,INDEX(tbl_RR_Data[Team 1],$C40+AT$15),"") ->  | AV40: =IF(L40,INDEX(tbl_RR_Data[Team 2],$C40+AT$15),"") ->  | AW40: =IF(M40,INDEX(tbl_RR_Data[Team 1],$C40+AW$15),"") ->  | AY40: =IF(M40,INDEX(tbl_RR_Data[Team 2],$C40+AW$15),"") ->  | AZ40: =IF(N40,INDEX(tbl_RR_Data[Team 1],$C40+AZ$15),"") ->  | BB40: =IF(N40,INDEX(tbl_RR_Data[Team 2],$C40+AZ$15),"") ->  | BC40: =IF(O40,INDEX(tbl_RR_Data[Team 1],$C40+BC$15),"") ->  | BE40: =IF(O40,INDEX(tbl_RR_Data[Team 2],$C40+BC$15),"") ->  | BF40: =IF(P40,INDEX(tbl_RR_Data[Team 1],$C40+BF$15),"") ->  | BH40: =IF(P40,INDEX(tbl_RR_Data[Team 2],$C40+BF$15),"") ->  | BI40: =IF(Q40,INDEX(tbl_RR_Data[Team 1],$C40+BI$15),"") ->  | BK40: =IF(Q40,INDEX(tbl_RR_Data[Team 2],$C40+BI$15),"") ->  | BM40: =SMALL(IF(COUNTIF($Y40:$BK40,$Y$1:$BB$1),999,$Y$1:$BB$1),$Y$1:$BB$1) -> 1 | BN40: 2 | BO40: 3 | BP40: 8 | BQ40: FALSE

Sheet Multi-Teams
F2: =VLOOKUP("txt_0000",tbl_i18n[],Lang_Ind,FALSE) -> Spielsysteme für Turniere | BD2: created by: Walter Aust
D4: ç
F5: =VLOOKUP("txt_2301",tbl_i18n[],Lang_Ind,FALSE) -> Gruppenphase: Darstellung des Multi-Team-Spielsystems (Reihenfolge der Teams)
A7: MT_ShowSystem_Sel | B7: FALSE | F7: =VLOOKUP("txt_2351",tbl_i18n[],Lang_Ind,FALSE) -> Hervorheben von Team: | K7: 1 | U7: =VLOOKUP("txt_2364",tbl_i18n[],Lang_Ind,FALSE) -> System zur Reihenfolge der Teams anzeigen
K9: 3
F12: =VLOOKUP("txt_2352",tbl_i18n[],Lang_Ind,FALSE) -> Satz | H12: =VLOOKUP("txt_2353",tbl_i18n[],Lang_Ind,FALSE) -> 3 Teams in einem Spiel | P12: =VLOOKUP("txt_2354",tbl_i18n[],Lang_Ind,FALSE) -> 4 Teams in einem Spiel | Z12: =VLOOKUP("txt_2355",tbl_i18n[],Lang_Ind,FALSE) -> 5 Teams in einem Spiel | AL12: =VLOOKUP("txt_2356",tbl_i18n[],Lang_Ind,FALSE) -> 6 Teams in einem Spiel | BD12: =VLOOKUP("txt_2357",tbl_i18n[],Lang_Ind,FALSE) -> Eigenschaften dieser Turnierdesigns:
F14: 1 | BD14: =VLOOKUP("txt_2358",tbl_i18n[],Lang_Ind,FALSE) -> Es gibt so viele Sätze wie es Teams in einem Spiel gibt.
I15: 1 | J15: – | K15: 2 | L15: – | M15: 3 | Q15: 1 | R15: – | S15: 2 | T15: – | U15: 3 | V15: – | W15: 4 | AA15: 1 | AB15: – | AC15: 4 | AD15: – | AE15: 5 | AF15: – | AG15: 2 | AH15: – | AI15: 3 | AM15: 1 | AN15: – | AO15: 2 | AP15: – | AQ15: 3 | AR15: – | AS15: 4 | AT15: – | AU15: 5 | AV15: – | AW15: 6
F17: 2 | BD17: =VLOOKUP("txt_2359",tbl_i18n[],Lang_Ind,FALSE) -> Jedes Team beginnt genau einmal einen Satz.
I18: 2 | J18: – | K18: 3 | L18: – | M18: 1 | Q18: 2 | R18: – | S18: 4 | T18: – | U18: 1 | V18: – | W18: 3 | AA18: 2 | AB18: – | AC18: 5 | AD18: – | AE18: 1 | AF18: – | AG18: 3 | AH18: – | AI18: 4 | AM18: 2 | AN18: – | AO18: 4 | AP18: – | AQ18: 1 | AR18: – | AS18: 6 | AT18: – | AU18: 3 | AV18: – | AW18: 5
F20: 3
I21: 3 | J21: – | K21: 1 | L21: – | M21: 2 | Q21: 4 | R21: – | S21: 3 | T21: – | U21: 2 | V21: – | W21: 1 | AA21: 3 | AB21: – | AC21: 1 | AD21: – | AE21: 2 | AF21: – | AG21: 4 | AH21: – | AI21: 5 | AM21: 4 | AN21: – | AO21: 6 | AP21: – | AQ21: 2 | AR21: – | AS21: 5 | AT21: – | AU21: 1 | AV21: – | AW21: 3 | BD21: =VLOOKUP("txt_2360",tbl_i18n[],Lang_Ind,FALSE) & CHAR(10) & VLOOKUP("txt_2361",tbl_i18n[],Lang_Ind,FALSE) -> Gerade Anzahl von Teams: Zwei Teams, die in der Wurfreihenfolge aufeinander folgen, spielen genau einmal hintereinander.
F23: 4
Q24: 3 | R24: – | S24: 1 | T24: – | U24: 4 | V24: – | W24: 2 | AA24: 4 | AB24: – | AC24: 2 | AD24: – | AE24: 3 | AF24: – | AG24: 5 | AH24: – | AI24: 1 | AM24: 6 | AN24: – | AO24: 5 | AP24: – | AQ24: 4 | AR24: – | AS24: 3 | AT24: – | AU24: 2 | AV24: – | AW24: 1
F26: 5 | BD26: =VLOOKUP("txt_2362",tbl_i18n[],Lang_Ind,FALSE) & CHAR(10) & VLOOKUP("txt_2363",tbl_i18n[],Lang_Ind,FALSE) -> Ungerade Anzahl von Teams: Zwei Teams, die in der Wurfreihenfolge aufeinander folgen, spielen höchstens zweimal hintereinander.
AA27: 5 | AB27: – | AC27: 3 | AD27: – | AE27: 4 | AF27: – | AG27: 1 | AH27: – | AI27: 2 | AM27: 5 | AN27: – | AO27: 3 | AP27: – | AQ27: 6 | AR27: – | AS27: 1 | AT27: – | AU27: 4 | AV27: – | AW27: 2
F29: 6
AM30: 3 | AN30: – | AO30: 1 | AP30: – | AQ30: 5 | AR30: – | AS30: 2 | AT30: – | AU30: 6 | AV30: – | AW30: 4

Sheet Info Multi-Teams Aux (hidden)
C3: TRUE | E3: This part is necessary to show or hide the system of sequences without VBA macro.

Sheet KO-Single
O2: =VLOOKUP("txt_0000",tbl_i18n[#Data],Lang_Ind,FALSE) -> Spielsysteme für Turniere | BA2: created by: Walter Aust
M4: ç
O5: =VLOOKUP("txt_2401",tbl_i18n[#Data],Lang_Ind,FALSE) -> Finalrunden: Darstellung eines einfachen K.O-Systems (Ausscheidungsrunden)
A6: KO_txt_lbl1 | B6: =VLOOKUP("txt_2a52",tbl_i18n[],Lang_Ind,FALSE) -> erforderliche Teams:
A7: KO_txt_btn1 | B7: =VLOOKUP("txt_2a58",tbl_i18n[],Lang_Ind,FALSE) -> Spielergebnisse löschen | O7: =VLOOKUP("txt_2a51",tbl_i18n[#Data],Lang_Ind,FALSE) -> Einstiegsrunde:
A8: KO_txt_lbl2 | B8: =VLOOKUP("txt_2a54",tbl_i18n[],Lang_Ind,FALSE) -> Teams pro Gruppe:
A9: KO_txt_btn2 | B9: =VLOOKUP("txt_2a59",tbl_i18n[],Lang_Ind,FALSE) -> Spielergebnisse vorbesetzen | O9: =VLOOKUP("txt_2a53",tbl_i18n[#Data],Lang_Ind,FALSE) -> Anzahl der Vorrundengruppen:
O11: =IF(KO_Groups_Ind>1,VLOOKUP("txt_2a70",tbl_i18n[#Data],Lang_Ind,FALSE) & INDEX(tbl_i18n[#Data],KO_Groups_Ind+MATCH("txt_2a70",tbl_i18n[ID],0),Lang_Ind) & VLOOKUP("txt_2a72",tbl_i18n[#Data],Lang_Ind,FALSE),"") -> Hinweis: Ab den Halbfinalrunden (inklusive) können Teams mit der gleichen Gruppenplatzierung aufeinandertreffen.
D14: Game Offset | K14: rows | O14: Rank + Group | Q14: =B22 -> 1/64-Finale | V14: =B21 -> 1/32-Finale | AA14: =B20 -> 1/16-Finale | AF14: =B19 -> 1/8-Finale | AK14: =B18 -> 1/4-Finale | AP14: =B17 -> Halbfinale | AU14: =VLOOKUP("K_01_#",tbl_i18n[#Data],Lang_Ind,FALSE) -> Spiel um Rang # | AZ14: =VLOOKUP("txt_2a57",tbl_i18n[#Data],Lang_Ind,FALSE) -> Rang
D16: 2 | E16: 4 | F16: 8 | G16: 16 | H16: 32 | I16: 64 | Q16: =KO_Rounds_Ind=6 -> FALSE | V16: =KO_Rounds_Ind=5 -> FALSE | AA16: =KO_Rounds_Ind=4 -> FALSE | AF16: =KO_Rounds_Ind=3 -> TRUE | AK16: =KO_Rounds_Ind=2 -> FALSE | AP16: =KO_Rounds_Ind=1 -> FALSE
A17: KO_Rounds_List | B17: =VLOOKUP("K_02_A",tbl_i18n[#Data],Lang_Ind,FALSE) -> Halbfinale
B18: =VLOOKUP("K_04_A",tbl_i18n[#Data],Lang_Ind,FALSE) -> 1/4-Finale | I18: 1 | K18: =KO_Data_1row+INDEX(D18:I18,KO_Rounds_Ind) -> 295 | Q18: K_64_A01 | R18: field x | S18: best of n | T18: 0
B19: =VLOOKUP("K_08_A",tbl_i18n[#Data],Lang_Ind,FALSE) -> 1/8-Finale | O19: =INDEX(tbl_KO_Data[T1 Src Rank],K18) & ". Gr. " & INDEX(tbl_KO_Data[T1 Src Group],K18) -> 4. Gr. B
B20: =VLOOKUP("K_16_A",tbl_i18n[#Data],Lang_Ind,FALSE) -> 1/16-Finale | Q20: =O19 -> 4. Gr. B
B21: =VLOOKUP("K_32_A",tbl_i18n[#Data],Lang_Ind,FALSE) -> 1/32-Finale
B22: =VLOOKUP("K_64_A",tbl_i18n[#Data],Lang_Ind,FALSE) -> 1/64-Finale | Q22: =O23 -> 5. Gr. A
O23: =INDEX(tbl_KO_Data[T2 Src Rank],K18) & ". Gr. " & INDEX(tbl_KO_Data[T2 Src Group],K18) -> 5. Gr. A
A24: KO_Rounds_Ind | B24: 3
A26: KO_TeamsReq | B26: =2^(1+KO_Rounds_Ind) -> 16 | I26: 64 | K26: =KO_Data_1row+INDEX(D26:I26,KO_Rounds_Ind) -> 295 | Q26: K_64_A64 | R26: field x | S26: best of n | T26: 0
O27: =INDEX(tbl_KO_Data[T1 Src Rank],K26) & ". Gr. " & INDEX(tbl_KO_Data[T1 Src Group],K26) -> 4. Gr. B
A28: KO_Groups_List | B28: 1 | Q28: =O27 -> 4. Gr. B
B29: 2
B30: 4 | Q30: =O31 -> 5. Gr. A
B31: 8 | O31: =INDEX(tbl_KO_Data[T2 Src Rank],K26) & ". Gr. " & INDEX(tbl_KO_Data[T2 Src Group],K26) -> 5. Gr. A
B32: 16
B33: 32
B34: 64 | I34: 32 | K34: =KO_Data_1row+INDEX(D34:I34,KO_Rounds_Ind) -> 295 | Q34: K_64_A32 | R34: field x | S34: best of n | T34: 0
B35: 128 | O35: =INDEX(tbl_KO_Data[T1 Src Rank],K34) & ". Gr. " & INDEX(tbl_KO_Data[T1 Src Group],K34) -> 4. Gr. B
Q36: =O35 -> 4. Gr. B
A37: KO_Groups_Ind | B37: 3
Q38: =O39 -> 5. Gr. A
A39: KO_Groups_Sel | B39: =MIN(INDEX(KO_Groups_List,KO_Groups_Ind),KO_TeamsReq) -> 4 | O39: =INDEX(tbl_KO_Data[T2 Src Rank],K34) & ". Gr. " & INDEX(tbl_KO_Data[T2 Src Group],K34) -> 5. Gr. A
A41: KO_GroupSize | B41: =KO_TeamsReq/KO_Groups_Sel -> 4
I42: 33 | K42: =KO_Data_1row+INDEX(D42:I42,KO_Rounds_Ind) -> 295 | Q42: K_64_A33 | R42: field x | S42: best of n | T42: 0
A43: tbl_KO_Data.ID | B43: =1000000000*2^(KO_Rounds_Ind) + 1000000 * KO_Groups_Sel + 1000 * KO_GroupSize -> 8004004000 | O43: =INDEX(tbl_KO_Data[T1 Src Rank],K42) & ". Gr. " & INDEX(tbl_KO_Data[T1 Src Group],K42) -> 4. Gr. B
Q44: =O43 -> 4. Gr. B
A45: KO_Data_1row | B45: =MATCH(B43,tbl_KO_Data[ID],1) -> 295
Q46: =O47 -> 5. Gr. A
O47: =INDEX(tbl_KO_Data[T2 Src Rank],K42) & ". Gr. " & INDEX(tbl_KO_Data[T2 Src Group],K42) -> 5. Gr. A
I50: 16 | K50: =KO_Data_1row+INDEX(D50:I50,KO_Rounds_Ind) -> 295 | Q50: K_64_A16 | R50: field x | S50: best of n | T50: 0
O51: =INDEX(tbl_KO_Data[T1 Src Rank],K50) & ". Gr. " & INDEX(tbl_KO_Data[T1 Src Group],K50) -> 4. Gr. B
Q52: =O51 -> 4. Gr. B
Q54: =O55 -> 5. Gr. A
O55: =INDEX(tbl_KO_Data[T2 Src Rank],K50) & ". Gr. " & INDEX(tbl_KO_Data[T2 Src Group],K50) -> 5. Gr. A
I58: 49 | K58: =KO_Data_1row+INDEX(D58:I58,KO_Rounds_Ind) -> 295 | Q58: K_64_A49 | R58: field x | S58: best of n | T58: 0
O59: =INDEX(tbl_KO_Data[T1 Src Rank],K58) & ". Gr. " & INDEX(tbl_KO_Data[T1 Src Group],K58) -> 4. Gr. B
Q60: =O59 -> 4. Gr. B
Q62: =O63 -> 5. Gr. A
O63: =INDEX(tbl_KO_Data[T2 Src Rank],K58) & ". Gr. " & INDEX(tbl_KO_Data[T2 Src Group],K58) -> 5. Gr. A
I66: 17 | K66: =KO_Data_1row+INDEX(D66:I66,KO_Rounds_Ind) -> 295 | Q66: K_64_A17 | R66: field x | S66: best of n | T66: 0
O67: =INDEX(tbl_KO_Data[T1 Src Rank],K66) & ". Gr. " & INDEX(tbl_KO_Data[T1 Src Group],K66) -> 4. Gr. B
Q68: =O67 -> 4. Gr. B
Q70: =O71 -> 5. Gr. A
O71: =INDEX(tbl_KO_Data[T2 Src Rank],K66) & ". Gr. " & INDEX(tbl_KO_Data[T2 Src Group],K66) -> 5. Gr. A
I74: 48 | K74: =KO_Data_1row+INDEX(D74:I74,KO_Rounds_Ind) -> 295 | Q74: K_64_A48 | R74: field x | S74: best of n | T74: 0
O75: =INDEX(tbl_KO_Data[T1 Src Rank],K74) & ". Gr. " & INDEX(tbl_KO_Data[T1 Src Group],K74) -> 4. Gr. B
Q76: =O75 -> 4. Gr. B
Q78: =O79 -> 5. Gr. A
O79: =INDEX(tbl_KO_Data[T2 Src Rank],K74) & ". Gr. " & INDEX(tbl_KO_Data[T2 Src Group],K74) -> 5. Gr. A
I82: 8 | K82: =KO_Data_1row+INDEX(D82:I82,KO_Rounds_Ind) -> 295 | Q82: K_64_A08 | R82: field x | S82: best of n | T82: 0
O83: =INDEX(tbl_KO_Data[T1 Src Rank],K82) & ". Gr. " & INDEX(tbl_KO_Data[T1 Src Group],K82) -> 4. Gr. B
Q84: =O83 -> 4. Gr. B
Q86: =O87 -> 5. Gr. A
O87: =INDEX(tbl_KO_Data[T2 Src Rank],K82) & ". Gr. " & INDEX(tbl_KO_Data[T2 Src Group],K82) -> 5. Gr. A
I90: 57 | K90: =KO_Data_1row+INDEX(D90:I90,KO_Rounds_Ind) -> 295 | Q90: K_64_A57 | R90: field x | S90: best of n | T90: 0
O91: =INDEX(tbl_KO_Data[T1 Src Rank],K90) & ". Gr. " & INDEX(tbl_KO_Data[T1 Src Group],K90) -> 4. Gr. B
Q92: =O91 -> 4. Gr. B
Q94: =O95 -> 5. Gr. A
O95: =INDEX(tbl_KO_Data[T2 Src Rank],K90) & ". Gr. " & INDEX(tbl_KO_Data[T2 Src Group],K90) -> 5. Gr. A
I98: 25 | K98: =KO_Data_1row+INDEX(D98:I98,KO_Rounds_Ind) -> 295 | Q98: K_64_A25 | R98: field x | S98: best of n | T98: 0
O99: =INDEX(tbl_KO_Data[T1 Src Rank],K98) & ". Gr. " & INDEX(tbl_KO_Data[T1 Src Group],K98) -> 4. Gr. B
Q100: =O99 -> 4. Gr. B
Q102: =O103 -> 5. Gr. A
O103: =INDEX(tbl_KO_Data[T2 Src Rank],K98) & ". Gr. " & INDEX(tbl_KO_Data[T2 Src Group],K98) -> 5. Gr. A
I106: 40 | K106: =KO_Data_1row+INDEX(D106:I106,KO_Rounds_Ind) -> 295 | Q106: K_64_A40 | R106: field x | S106: best of n | T106: 0
O107: =INDEX(tbl_KO_Data[T1 Src Rank],K106) & ". Gr. " & INDEX(tbl_KO_Data[T1 Src Group],K106) -> 4. Gr. B
Q108: =O107 -> 4. Gr. B
Q110: =O111 -> 5. Gr. A
O111: =INDEX(tbl_KO_Data[T2 Src Rank],K106) & ". Gr. " & INDEX(tbl_KO_Data[T2 Src Group],K106) -> 5. Gr. A
I114: 9 | K114: =KO_Data_1row+INDEX(D114:I114,KO_Rounds_Ind) -> 295 | Q114: K_64_A09 | R114: field x | S114: best of n | T114: 0
O115: =INDEX(tbl_KO_Data[T1 Src Rank],K114) & ". Gr. " & INDEX(tbl_KO_Data[T1 Src Group],K114) -> 4. Gr. B
Q116: =O115 -> 4. Gr. B
Q118: =O119 -> 5. Gr. A
O119: =INDEX(tbl_KO_Data[T2 Src Rank],K114) & ". Gr. " & INDEX(tbl_KO_Data[T2 Src Group],K114) -> 5. Gr. A
I122: 56 | K122: =KO_Data_1row+INDEX(D122:I122,KO_Rounds_Ind) -> 295 | Q122: K_64_A56 | R122: field x | S122: best of n | T122: 0
O123: =INDEX(tbl_KO_Data[T1 Src Rank],K122) & ". Gr. " & INDEX(tbl_KO_Data[T1 Src Group],K122) -> 4. Gr. B
Q124: =O123 -> 4. Gr. B
Q126: =O127 -> 5. Gr. A
O127: =INDEX(tbl_KO_Data[T2 Src Rank],K122) & ". Gr. " & INDEX(tbl_KO_Data[T2 Src Group],K122) -> 5. Gr. A
I130: 24 | K130: =KO_Data_1row+INDEX(D130:I130,KO_Rounds_Ind) -> 295 | Q130: K_64_A24 | R130: field x | S130: best of n | T130: 0
O131: =INDEX(tbl_KO_Data[T1 Src Rank],K130) & ". Gr. " & INDEX(tbl_KO_Data[T1 Src Group],K130) -> 4. Gr. B
Q132: =O131 -> 4. Gr. B
Q134: =O135 -> 5. Gr. A
O135: =INDEX(tbl_KO_Data[T2 Src Rank],K130) & ". Gr. " & INDEX(tbl_KO_Data[T2 Src Group],K130) -> 5. Gr. A
I138: 41 | K138: =KO_Data_1row+INDEX(D138:I138,KO_Rounds_Ind) -> 295 | Q138: K_64_A41 | R138: field x | S138: best of n | T138: 1
O139: =INDEX(tbl_KO_Data[T1 Src Rank],K138) & ". Gr. " & INDEX(tbl_KO_Data[T1 Src Group],K138) -> 4. Gr. B
Q140: =O139 -> 4. Gr. B
Q142: =O143 -> 5. Gr. A
O143: =INDEX(tbl_KO_Data[T2 Src Rank],K138) & ". Gr. " & INDEX(tbl_KO_Data[T2 Src Group],K138) -> 5. Gr. A
H146: 1 | I146: 4 | K146: =KO_Data_1row+INDEX(D146:I146,KO_Rounds_Ind) -> 295 | Q146: K_64_A04 | R146: field x | S146: best of n | T146: 0 | V146: K_32_A01 | W146: field x | X146: best of n | Y146: 0
O147: =INDEX(tbl_KO_Data[T1 Src Rank],K146) & ". Gr. " & INDEX(tbl_KO_Data[T1 Src Group],K146) -> 4. Gr. B
Q148: =O147 -> 4. Gr. B | V148: =IF($V$16,O147,CHOOSE(SIGN(T22-T20)+2,Q20,"("&Q20&" : "&Q22&")",Q22)) -> (4. Gr. B : 5. Gr. A)
Q150: =O151 -> 5. Gr. A | V150: =IF($V$16,O151,CHOOSE(SIGN(T30-T28)+2,Q28,"("&Q28&" : "&Q30&")",Q30)) -> (4. Gr. B : 5. Gr. A)
O151: =INDEX(tbl_KO_Data[T2 Src Rank],K146) & ". Gr. " & INDEX(tbl_KO_Data[T2 Src Group],K146) -> 5. Gr. A
H154: 32 | I154: 61 | K154: =KO_Data_1row+INDEX(D154:I154,KO_Rounds_Ind) -> 295 | Q154: K_64_A61 | R154: field x | S154: best of n | T154: 0 | V154: K_32_A32 | W154: field x | X154: best of n | Y154: 0
O155: =INDEX(tbl_KO_Data[T1 Src Rank],K154) & ". Gr. " & INDEX(tbl_KO_Data[T1 Src Group],K154) -> 4. Gr. B
Q156: =O155 -> 4. Gr. B | V156: =IF($V$16,O155,CHOOSE(SIGN(T38-T36)+2,Q36,"("&Q36&" : "&Q38&")",Q38)) -> (4. Gr. B : 5. Gr. A)
Q158: =O159 -> 5. Gr. A | V158: =IF($V$16,O159,CHOOSE(SIGN(T46-T44)+2,Q44,"("&Q44&" : "&Q46&")",Q46)) -> (4. Gr. B : 5. Gr. A)
O159: =INDEX(tbl_KO_Data[T2 Src Rank],K154) & ". Gr. " & INDEX(tbl_KO_Data[T2 Src Group],K154) -> 5. Gr. A
H162: 16 | I162: 29 | K162: =KO_Data_1row+INDEX(D162:I162,KO_Rounds_Ind) -> 295 | Q162: K_64_A29 | R162: field x | S162: best of n | T162: 0 | V162: K_32_A16 | W162: field x | X162: best of n | Y162: 0
O163: =INDEX(tbl_KO_Data[T1 Src Rank],K162) & ". Gr. " & INDEX(tbl_KO_Data[T1 Src Group],K162) -> 4. Gr. B
Q164: =O163 -> 4. Gr. B | V164: =IF($V$16,O163,CHOOSE(SIGN(T54-T52)+2,Q52,"("&Q52&" : "&Q54&")",Q54)) -> (4. Gr. B : 5. Gr. A)
Q166: =O167 -> 5. Gr. A | V166: =IF($V$16,O167,CHOOSE(SIGN(T62-T60)+2,Q60,"("&Q60&" : "&Q62&")",Q62)) -> (4. Gr. B : 5. Gr. A)
O167: =INDEX(tbl_KO_Data[T2 Src Rank],K162) & ". Gr. " & INDEX(tbl_KO_Data[T2 Src Group],K162) -> 5. Gr. A
H170: 17 | I170: 36 | K170: =KO_Data_1row+INDEX(D170:I170,KO_Rounds_Ind) -> 295 | Q170: K_64_A36 | R170: field x | S170: best of n | T170: 0 | V170: K_32_A17 | W170: field x | X170: best of n | Y170: 0
O171: =INDEX(tbl_KO_Data[T1 Src Rank],K170) & ". Gr. " & INDEX(tbl_KO_Data[T1 Src Group],K170) -> 4. Gr. B
Q172: =O171 -> 4. Gr. B | V172: =IF($V$16,O171,CHOOSE(SIGN(T70-T68)+2,Q68,"("&Q68&" : "&Q70&")",Q70)) -> (4. Gr. B : 5. Gr. A)
Q174: =O175 -> 5. Gr. A | V174: =IF($V$16,O175,CHOOSE(SIGN(T78-T76)+2,Q76,"("&Q76&" : "&Q78&")",Q78)) -> (4. Gr. B : 5. Gr. A)
O175: =INDEX(tbl_KO_Data[T2 Src Rank],K170) & ". Gr. " & INDEX(tbl_KO_Data[T2 Src Group],K170) -> 5. Gr. A
H178: 8 | I178: 13 | K178: =KO_Data_1row+INDEX(D178:I178,KO_Rounds_Ind) -> 295 | Q178: K_64_A13 | R178: field x | S178: best of n | T178: 0 | V178: K_32_A08 | W178: field x | X178: best of n | Y178: 0
O179: =INDEX(tbl_KO_Data[T1 Src Rank],K178) & ". Gr. " & INDEX(tbl_KO_Data[T1 Src Group],K178) -> 4. Gr. B
Q180: =O179 -> 4. Gr. B | V180: =IF($V$16,O179,CHOOSE(SIGN(T86-T84)+2,Q84,"("&Q84&" : "&Q86&")",Q86)) -> (4. Gr. B : 5. Gr. A)
Q182: =O183 -> 5. Gr. A | V182: =IF($V$16,O183,CHOOSE(SIGN(T94-T92)+2,Q92,"("&Q92&" : "&Q94&")",Q94)) -> (4. Gr. B : 5. Gr. A)
O183: =INDEX(tbl_KO_Data[T2 Src Rank],K178) & ". Gr. " & INDEX(tbl_KO_Data[T2 Src Group],K178) -> 5. Gr. A
H186: 25 | I186: 52 | K186: =KO_Data_1row+INDEX(D186:I186,KO_Rounds_Ind) -> 295 | Q186: K_64_A52 | R186: field x | S186: best of n | T186: 0 | V186: K_32_A25 | W186: field x | X186: best of n | Y186: 0
O187: =INDEX(tbl_KO_Data[T1 Src Rank],K186) & ". Gr. " & INDEX(tbl_KO_Data[T1 Src Group],K186) -> 4. Gr. B
Q188: =O187 -> 4. Gr. B | V188: =IF($V$16,O187,CHOOSE(SIGN(T102-T100)+2,Q100,"("&Q100&" : "&Q102&")",Q102)) -> (4. Gr. B : 5. Gr. A)
Q190: =O191 -> 5. Gr. A | V190: =IF($V$16,O191,CHOOSE(SIGN(T110-T108)+2,Q108,"("&Q108&" : "&Q110&")",Q110)) -> (4. Gr. B : 5. Gr. A)
O191: =INDEX(tbl_KO_Data[T2 Src Rank],K186) & ". Gr. " & INDEX(tbl_KO_Data[T2 Src Group],K186) -> 5. Gr. A
H194: 9 | I194: 20 | K194: =KO_Data_1row+INDEX(D194:I194,KO_Rounds_Ind) -> 295 | Q194: K_64_A20 | R194: field x | S194: best of n | T194: 0 | V194: K_32_A09 | W194: field x | X194: best of n | Y194: 0
O195: =INDEX(tbl_KO_Data[T1 Src Rank],K194) & ". Gr. " & INDEX(tbl_KO_Data[T1 Src Group],K194) -> 4. Gr. B
Q196: =O195 -> 4. Gr. B | V196: =IF($V$16,O195,CHOOSE(SIGN(T118-T116)+2,Q116,"("&Q116&" : "&Q118&")",Q118)) -> (4. Gr. B : 5. Gr. A)
Q198: =O199 -> 5. Gr. A | V198: =IF($V$16,O199,CHOOSE(SIGN(T126-T124)+2,Q124,"("&Q124&" : "&Q126&")",Q126)) -> (4. Gr. B : 5. Gr. A)
O199: =INDEX(tbl_KO_Data[T2 Src Rank],K194) & ". Gr. " & INDEX(tbl_KO_Data[T2 Src Group],K194) -> 5. Gr. A
H202: 24 | I202: 45 | K202: =KO_Data_1row+INDEX(D202:I202,KO_Rounds_Ind) -> 295 | Q202: K_64_A45 | R202: field x | S202: best of n | T202: 0 | V202: K_32_A24 | W202: field x | X202: best of n | Y202: 0
O203: =INDEX(tbl_KO_Data[T1 Src Rank],K202) & ". Gr. " & INDEX(tbl_KO_Data[T1 Src Group],K202) -> 4. Gr. B
Q204: =O203 -> 4. Gr. B | V204: =IF($V$16,O203,CHOOSE(SIGN(T134-T132)+2,Q132,"("&Q132&" : "&Q134&")",Q134)) -> (4. Gr. B : 5. Gr. A)
Q206: =O207 -> 5. Gr. A | V206: =IF($V$16,O207,CHOOSE(SIGN(T142-T140)+2,Q140,"("&Q140&" : "&Q142&")",Q142)) -> (4. Gr. B : 5. Gr. A)
O207: =INDEX(tbl_KO_Data[T2 Src Rank],K202) & ". Gr. " & INDEX(tbl_KO_Data[T2 Src Group],K202) -> 5. Gr. A
G210: 1 | H210: 4 | I210: 5 | K210: =KO_Data_1row+INDEX(D210:I210,KO_Rounds_Ind) -> 295 | Q210: K_64_A05 | R210: field x | S210: best of n | T210: 0 | V210: K_32_A04 | W210: field x | X210: best of n | Y210: 0 | AA210: K_16_A01 | AB210: field x | AC210: best of n | AD210: 0
O211: =INDEX(tbl_KO_Data[T1 Src Rank],K210) & ". Gr. " & INDEX(tbl_KO_Data[T1 Src Group],K210) -> 4. Gr. B
Q212: =O211 -> 4. Gr. B | V212: =IF($V$16,O211,CHOOSE(SIGN(T150-T148)+2,Q148,"("&Q148&" : "&Q150&")",Q150)) -> (4. Gr. B : 5. Gr. A) | AA212: =IF($AA$16,O211,CHOOSE(SIGN(Y150-Y148)+2,V148,"("&V148&" : "&V150&")",V150)) -> ((4. Gr. B : 5. Gr. A) : (4. Gr. B : 5. Gr. A))
Q214: =O215 -> 5. Gr. A | V214: =IF($V$16,O215,CHOOSE(SIGN(T158-T156)+2,Q156,"("&Q156&" : "&Q158&")",Q158)) -> (4. Gr. B : 5. Gr. A) | AA214: =IF($AA$16,O215,CHOOSE(SIGN(Y158-Y156)+2,V156,"("&V156&" : "&V158&")",V158)) -> ((4. Gr. B : 5. Gr. A) : (4. Gr. B : 5. Gr. A))
O215: =INDEX(tbl_KO_Data[T2 Src Rank],K210) & ". Gr. " & INDEX(tbl_KO_Data[T2 Src Group],K210) -> 5. Gr. A
G218: 16 | H218: 29 | I218: 60 | K218: =KO_Data_1row+INDEX(D218:I218,KO_Rounds_Ind) -> 295 | Q218: K_64_A60 | R218: field x | S218: best of n | T218: 0 | V218: K_32_A29 | W218: field x | X218: best of n | Y218: 0 | AA218: K_16_A16 | AB218: field x | AC218: best of n | AD218: 0
O219: =INDEX(tbl_KO_Data[T1 Src Rank],K218) & ". Gr. " & INDEX(tbl_KO_Data[T1 Src Group],K218) -> 4. Gr. B
Q220: =O219 -> 4. Gr. B | V220: =IF($V$16,O219,CHOOSE(SIGN(T166-T164)+2,Q164,"("&Q164&" : "&Q166&")",Q166)) -> (4. Gr. B : 5. Gr. A) | AA220: =IF($AA$16,O219,CHOOSE(SIGN(Y166-Y164)+2,V164,"("&V164&" : "&V166&")",V166)) -> ((4. Gr. B : 5. Gr. A) : (4. Gr. B : 5. Gr. A))
Q222: =O223 -> 5. Gr. A | V222: =IF($V$16,O223,CHOOSE(SIGN(T174-T172)+2,Q172,"("&Q172&" : "&Q174&")",Q174)) -> (4. Gr. B : 5. Gr. A) | AA222: =IF($AA$16,O223,CHOOSE(SIGN(Y174-Y172)+2,V172,"("&V172&" : "&V174&")",V174)) -> ((4. Gr. B : 5. Gr. A) : (4. Gr. B : 5. Gr. A))
O223: =INDEX(tbl_KO_Data[T2 Src Rank],K218) & ". Gr. " & INDEX(tbl_KO_Data[T2 Src Group],K218) -> 5. Gr. A
G226: 8 | H226: 13 | I226: 28 | K226: =KO_Data_1row+INDEX(D226:I226,KO_Rounds_Ind) -> 295 | Q226: K_64_A28 | R226: field x | S226: best of n | T226: 0 | V226: K_32_A13 | W226: field x | X226: best of n | Y226: 0 | AA226: K_16_A08 | AB226: field x | AC226: best of n | AD226: 0
O227: =INDEX(tbl_KO_Data[T1 Src Rank],K226) & ". Gr. " & INDEX(tbl_KO_Data[T1 Src Group],K226) -> 4. Gr. B
Q228: =O227 -> 4. Gr. B | V228: =IF($V$16,O227,CHOOSE(SIGN(T182-T180)+2,Q180,"("&Q180&" : "&Q182&")",Q182)) -> (4. Gr. B : 5. Gr. A) | AA228: =IF($AA$16,O227,IF($AA$16,O211,CHOOSE(SIGN(Y182-Y180)+2,V180,"("&V180&" : "&V182&")",V182))) -> ((4. Gr. B : 5. Gr. A) : (4. Gr. B : 5. Gr. A))
Q230: =O231 -> 5. Gr. A | V230: =IF($V$16,O231,CHOOSE(SIGN(T190-T188)+2,Q188,"("&Q188&" : "&Q190&")",Q190)) -> (4. Gr. B : 5. Gr. A) | AA230: =IF($AA$16,O231,CHOOSE(SIGN(Y190-Y188)+2,V188,"("&V188&" : "&V190&")",V190)) -> ((4. Gr. B : 5. Gr. A) : (4. Gr. B : 5. Gr. A))
O231: =INDEX(tbl_KO_Data[T2 Src Rank],K226) & ". Gr. " & INDEX(tbl_KO_Data[T2 Src Group],K226) -> 5. Gr. A
G234: 9 | H234: 20 | I234: 37 | K234: =KO_Data_1row+INDEX(D234:I234,KO_Rounds_Ind) -> 295 | Q234: K_64_A37 | R234: field x | S234: best of n | T234: 0 | V234: K_32_A20 | W234: field x | X234: best of n | Y234: 0 | AA234: K_16_A09 | AB234: field x | AC234: best of n | AD234: 0
O235: =INDEX(tbl_KO_Data[T1 Src Rank],K234) & ". Gr. " & INDEX(tbl_KO_Data[T1 Src Group],K234) -> 4. Gr. B
Q236: =O235 -> 4. Gr. B | V236: =IF($V$16,O235,CHOOSE(SIGN(T198-T196)+2,Q196,"("&Q196&" : "&Q198&")",Q198)) -> (4. Gr. B : 5. Gr. A) | AA236: =IF($AA$16,O235,CHOOSE(SIGN(Y198-Y196)+2,V196,"("&V196&" : "&V198&")",V198)) -> ((4. Gr. B : 5. Gr. A) : (4. Gr. B : 5. Gr. A))
Q238: =O239 -> 5. Gr. A | V238: =IF($V$16,O239,CHOOSE(SIGN(T206-T204)+2,Q204,"("&Q204&" : "&Q206&")",Q206)) -> (4. Gr. B : 5. Gr. A) | AA238: =IF($AA$16,O239,CHOOSE(SIGN(Y206-Y204)+2,V204,"("&V204&" : "&V206&")",V206)) -> ((4. Gr. B : 5. Gr. A) : (4. Gr. B : 5. Gr. A))
O239: =INDEX(tbl_KO_Data[T2 Src Rank],K234) & ". Gr. " & INDEX(tbl_KO_Data[T2 Src Group],K234) -> 5. Gr. A
F242: 1 | G242: 4 | H242: 5 | I242: 12 | K242: =KO_Data_1row+INDEX(D242:I242,KO_Rounds_Ind) -> 296 | Q242: K_64_A12 | R242: field x | S242: best of n | T242: 0 | V242: K_32_A05 | W242: field x | X242: best of n | Y242: 0 | AA242: K_16_A04 | AB242: field x | AC242: best of n | AD242: 0 | AF242: K_08_A1 | AG242: field x | AH242: best of n | AI242: 0
O243: =INDEX(tbl_KO_Data[T1 Src Rank],K242) & ". Gr. " & INDEX(tbl_KO_Data[T1 Src Group],K242) -> 1. Gr. A
Q244: =O243 -> 1. Gr. A | V244: =IF($V$16,O243,CHOOSE(SIGN(T214-T212)+2,Q212,"("&Q212&" : "&Q214&")",Q214)) -> (4. Gr. B : 5. Gr. A) | AA244: =IF($AA$16,O243,CHOOSE(SIGN(Y214-Y212)+2,V212,"("&V212&" : "&V214&")",V214)) -> ((4. Gr. B : 5. Gr. A) : (4. Gr. B : 5. Gr. A)) | AF244: =IF($AF$16,O243,CHOOSE(SIGN(AD214-AD212)+2,AA212,"("&AA212&" : "&AA214&")",AA214)) -> 1. Gr. A
Q246: =O247 -> 4. Gr. B | V246: =IF($V$16,O247,CHOOSE(SIGN(T222-T220)+2,Q220,"("&Q220&" : "&Q222&")",Q222)) -> (4. Gr. B : 5. Gr. A) | AA246: =IF($AA$16,O247,CHOOSE(SIGN(Y222-Y220)+2,V220,"("&V220&" : "&V222&")",V222)) -> ((4. Gr. B : 5. Gr. A) : (4. Gr. B : 5. Gr. A)) | AF246: =IF($AF$16,O247,CHOOSE(SIGN(AD222-AD220)+2,AA220,"("&AA220&" : "&AA222&")",AA222)) -> 4. Gr. B
O247: =INDEX(tbl_KO_Data[T2 Src Rank],K242) & ". Gr. " & INDEX(tbl_KO_Data[T2 Src Group],K242) -> 4. Gr. B
F250: 8 | G250: 13 | H250: 28 | I250: 53 | K250: =KO_Data_1row+INDEX(D250:I250,KO_Rounds_Ind) -> 303 | Q250: K_64_A53 | R250: field x | S250: best of n | T250: 0 | V250: K_32_A28 | W250: field x | X250: best of n | Y250: 0 | AA250: K_16_A13 | AB250: field x | AC250: best of n | AD250: 0 | AF250: K_08_A8 | AG250: field x | AH250: best of n | AI250: 0
O251: =INDEX(tbl_KO_Data[T1 Src Rank],K250) & ". Gr. " & INDEX(tbl_KO_Data[T1 Src Group],K250) -> 2. Gr. D
Q252: =O251 -> 2. Gr. D | V252: =IF($V$16,O251,CHOOSE(SIGN(T230-T228)+2,Q228,"("&Q228&" : "&Q230&")",Q230)) -> (4. Gr. B : 5. Gr. A) | AA252: =IF($AA$16,O251,CHOOSE(SIGN(Y230-Y228)+2,V228,"("&V228&" : "&V230&")",V230)) -> ((4. Gr. B : 5. Gr. A) : (4. Gr. B : 5. Gr. A)) | AF252: =IF($AF$16,O251,CHOOSE(SIGN(AD230-AD228)+2,AA228,"("&AA228&" : "&AA230&")",AA230)) -> 2. Gr. D
Q254: =O255 -> 3. Gr. C | V254: =IF($V$16,O255,CHOOSE(SIGN(T238-T236)+2,Q236,"("&Q236&" : "&Q238&")",Q238)) -> (4. Gr. B : 5. Gr. A) | AA254: =IF($AA$16,O255,CHOOSE(SIGN(Y238-Y236)+2,V236,"("&V236&" : "&V238&")",V238)) -> ((4. Gr. B : 5. Gr. A) : (4. Gr. B : 5. Gr. A)) | AF254: =IF($AF$16,O255,CHOOSE(SIGN(AD238-AD236)+2,AA236,"("&AA236&" : "&AA238&")",AA238)) -> 3. Gr. C
O255: =INDEX(tbl_KO_Data[T2 Src Rank],K250) & ". Gr. " & INDEX(tbl_KO_Data[T2 Src Group],K250) -> 3. Gr. C
E258: 1 | F258: 4 | G258: 5 | H258: 12 | I258: 21 | K258: =KO_Data_1row+INDEX(D258:I258,KO_Rounds_Ind) -> 299 | Q258: K_64_A21 | R258: field x | S258: best of n | T258: 0 | V258: K_32_A12 | W258: field x | X258: best of n | Y258: 0 | AA258: K_16_A05 | AB258: field x | AC258: best of n | AD258: 0 | AF258: K_08_A4 | AG258: field x | AH258: best of n | AI258: 0 | AK258: K_04_A1 | AL258: field x | AM258: best of n | AN258: 0
O259: =INDEX(tbl_KO_Data[T1 Src Rank],K258) & ". Gr. " & INDEX(tbl_KO_Data[T1 Src Group],K258) -> 1. Gr. C
Q260: =O259 -> 1. Gr. C | V260: =IF($V$16,O259,CHOOSE(SIGN(T246-T244)+2,Q244,"("&Q244&" : "&Q246&")",Q246)) -> (1. Gr. A : 4. Gr. B) | AA260: =IF($AA$16,O259,CHOOSE(SIGN(Y246-Y244)+2,V244,"("&V244&" : "&V246&")",V246)) -> ((4. Gr. B : 5. Gr. A) : (4. Gr. B : 5. Gr. A)) | AF260: =IF($AF$16,O259,CHOOSE(SIGN(AD246-AD244)+2,AA244,"("&AA244&" : "&AA246&")",AA246)) -> 1. Gr. C | AK260: =IF($AK$16,O259,CHOOSE(SIGN(AI246-AI244)+2,AF244,"("&AF244&" : "&AF246&")",AF246)) -> (1. Gr. A : 4. Gr. B)
Q262: =O263 -> 4. Gr. D | V262: =IF($V$16,O263,CHOOSE(SIGN(T254-T252)+2,Q252,"("&Q252&" : "&Q254&")",Q254)) -> (2. Gr. D : 3. Gr. C) | AA262: =IF($AA$16,O263,CHOOSE(SIGN(Y254-Y252)+2,V252,"("&V252&" : "&V254&")",V254)) -> ((4. Gr. B : 5. Gr. A) : (4. Gr. B : 5. Gr. A)) | AF262: =IF($AF$16,O263,CHOOSE(SIGN(AD254-AD252)+2,AA252,"("&AA252&" : "&AA254&")",AA254)) -> 4. Gr. D | AK262: =IF($AK$16,O263,CHOOSE(SIGN(AI254-AI252)+2,AF252,"("&AF252&" : "&AF254&")",AF254)) -> (2. Gr. D : 3. Gr. C)
O263: =INDEX(tbl_KO_Data[T2 Src Rank],K258) & ". Gr. " & INDEX(tbl_KO_Data[T2 Src Group],K258) -> 4. Gr. D
D266: 1 | E266: 4 | F266: 5 | G266: 12 | H266: 21 | I266: 44 | K266: =KO_Data_1row+INDEX(D266:I266,KO_Rounds_Ind) -> 300 | Q266: K_64_A44 | R266: field x | S266: best of n | T266: 0 | V266: K_32_A21 | W266: field x | X266: best of n | Y266: 0 | AA266: K_16_A12 | AB266: field x | AC266: best of n | AD266: 0 | AF266: K_08_A5 | AG266: field x | AH266: best of n | AI266: 0 | AK266: K_04_A4 | AL266: field x | AM266: best of n | AN266: 0 | AP266: K_02_A1 | AQ266: field x | AR266: best of n | AS266: 0 | AU266: K_01_001 | AV266: field x | AW266: best of n | AX266: 0
O267: =INDEX(tbl_KO_Data[T1 Src Rank],K266) & ". Gr. " & INDEX(tbl_KO_Data[T1 Src Group],K266) -> 2. Gr. B | AZ267: 1 | BA267: =IF(AX268>AX270,AU268,IF(AX268<AX270,AU270,"")) -> 
Q268: =O267 -> 2. Gr. B | V268: =IF($V$16,O267,CHOOSE(SIGN(T262-T260)+2,Q260,"("&Q260&" : "&Q262&")",Q262)) -> (1. Gr. C : 4. Gr. D) | AA268: =IF($AA$16,O267,CHOOSE(SIGN(Y262-Y260)+2,V260,"("&V260&" : "&V262&")",V262)) -> ((1. Gr. A : 4. Gr. B) : (2. Gr. D : 3. Gr. C)) | AF268: =IF($AF$16,O267,CHOOSE(SIGN(AD262-AD260)+2,AA260,"("&AA260&" : "&AA262&")",AA262)) -> 2. Gr. B | AK268: =IF($AK$16,O267,CHOOSE(SIGN(AI262-AI260)+2,AF260,"("&AF260&" : "&AF262&")",AF262)) -> (1. Gr. C : 4. Gr. D) | AP268: =IF($AP$16,O267,CHOOSE(SIGN(AN262-AN260)+2,AK260,"("&AK260&" : "&AK262&")",AK262)) -> ((1. Gr. A : 4. Gr. B) : (2. Gr. D : 3. Gr. C)) | AU268: =CHOOSE(SIGN(AS270-AS268)+2,AP268,"("&AP268&" : "&AP270&")",AP270) -> (((1. Gr. A : 4. Gr. B) : (2. Gr. D : 3. Gr. C)) : ((1. Gr. C : 4. Gr. D) : (2. Gr. B : 3. Gr. A)))
Q270: =O271 -> 3. Gr. A | V270: =IF($V$16,O271,CHOOSE(SIGN(T270-T268)+2,Q268,"("&Q268&" : "&Q270&")",Q270)) -> (2. Gr. B : 3. Gr. A) | AA270: =IF($AA$16,O271,CHOOSE(SIGN(Y270-Y268)+2,V268,"("&V268&" : "&V270&")",V270)) -> ((1. Gr. C : 4. Gr. D) : (2. Gr. B : 3. Gr. A)) | AF270: =IF($AF$16,O271,CHOOSE(SIGN(AD270-AD268)+2,AA268,"("&AA268&" : "&AA270&")",AA270)) -> 3. Gr. A | AK270: =IF($AK$16,O271,CHOOSE(SIGN(AI270-AI268)+2,AF268,"("&AF268&" : "&AF270&")",AF270)) -> (2. Gr. B : 3. Gr. A) | AP270: =IF($AP$16,O271,CHOOSE(SIGN(AN270-AN268)+2,AK268,"("&AK268&" : "&AK270&")",AK270)) -> ((1. Gr. C : 4. Gr. D) : (2. Gr. B : 3. Gr. A)) | AU270: =CHOOSE(SIGN(AS278-AS276)+2,AP276,"("&AP276&" : "&AP278&")",AP278) -> (((1. Gr. B : 4. Gr. C) : (2. Gr. A : 3. Gr. D)) : ((1. Gr. D : 4. Gr. A) : (2. Gr. C : 3. Gr. B)))
O271: =INDEX(tbl_KO_Data[T2 Src Rank],K266) & ". Gr. " & INDEX(tbl_KO_Data[T2 Src Group],K266) -> 3. Gr. A | AZ271: 2 | BA271: =IF(AX268>AX270,AU270,IF(AX268<AX270,AU268,"")) -> 
D274: 2 | E274: 2 | F274: 2 | G274: 2 | H274: 2 | I274: 2 | K274: =KO_Data_1row+INDEX(D274:I274,KO_Rounds_Ind) -> 297 | Q274: K_64_A02 | R274: field x | S274: best of n | T274: 0 | V274: K_32_A02 | W274: field x | X274: best of n | Y274: 0 | AA274: K_16_A02 | AB274: field x | AC274: best of n | AD274: 0 | AF274: K_08_A2 | AG274: field x | AH274: best of n | AI274: 0 | AK274: K_04_A2 | AL274: field x | AM274: best of n | AN274: 0 | AP274: K_02_A1 | AQ274: field x | AR274: best of n | AS274: 0 | AU274: K_01_003 | AV274: field x | AW274: best of n | AX274: 0
O275: =INDEX(tbl_KO_Data[T1 Src Rank],K274) & ". Gr. " & INDEX(tbl_KO_Data[T1 Src Group],K274) -> 1. Gr. B | AZ275: 3 | BA275: =IF(AX276>AX278,AU276,IF(AX276<AX278,AU278,"")) -> 
Q276: =O275 -> 1. Gr. B | V276: =IF($V$16,O275,CHOOSE(SIGN(T278-T276)+2,Q276,"("&Q276&" : "&Q278&")",Q278)) -> (1. Gr. B : 4. Gr. C) | AA276: =IF($AA$16,O275,CHOOSE(SIGN(Y278-Y276)+2,V276,"("&V276&" : "&V278&")",V278)) -> ((1. Gr. B : 4. Gr. C) : (2. Gr. A : 3. Gr. D)) | AF276: =IF($AF$16,O275,CHOOSE(SIGN(AD278-AD276)+2,AA276,"("&AA276&" : "&AA278&")",AA278)) -> 1. Gr. B | AK276: =IF($AK$16,O275,CHOOSE(SIGN(AI278-AI276)+2,AF276,"("&AF276&" : "&AF278&")",AF278)) -> (1. Gr. B : 4. Gr. C) | AP276: =IF($AP$16,O275,CHOOSE(SIGN(AN278-AN276)+2,AK276,"("&AK276&" : "&AK278&")",AK278)) -> ((1. Gr. B : 4. Gr. C) : (2. Gr. A : 3. Gr. D)) | AU276: =CHOOSE(SIGN(AS268-AS270)+2,AP268,"("&AP268&" : "&AP270&")",AP270) -> (((1. Gr. A : 4. Gr. B) : (2. Gr. D : 3. Gr. C)) : ((1. Gr. C : 4. Gr. D) : (2. Gr. B : 3. Gr. A)))
Q278: =O279 -> 4. Gr. C | V278: =IF($V$16,O279,CHOOSE(SIGN(T286-T284)+2,Q284,"("&Q284&" : "&Q286&")",Q286)) -> (2. Gr. A : 3. Gr. D) | AA278: =IF($AA$16,O279,CHOOSE(SIGN(Y286-Y284)+2,V284,"("&V284&" : "&V286&")",V286)) -> ((1. Gr. D : 4. Gr. A) : (2. Gr. C : 3. Gr. B)) | AF278: =IF($AF$16,O279,CHOOSE(SIGN(AD286-AD284)+2,AA284,"("&AA284&" : "&AA286&")",AA286)) -> 4. Gr. C | AK278: =IF($AK$16,O279,CHOOSE(SIGN(AI286-AI284)+2,AF284,"("&AF284&" : "&AF286&")",AF286)) -> (2. Gr. A : 3. Gr. D) | AP278: =IF($AP$16,O279,CHOOSE(SIGN(AN286-AN284)+2,AK284,"("&AK284&" : "&AK286&")",AK286)) -> ((1. Gr. D : 4. Gr. A) : (2. Gr. C : 3. Gr. B)) | AU278: =CHOOSE(SIGN(AS276-AS278)+2,AP276,"("&AP276&" : "&AP278&")",AP278) -> (((1. Gr. B : 4. Gr. C) : (2. Gr. A : 3. Gr. D)) : ((1. Gr. D : 4. Gr. A) : (2. Gr. C : 3. Gr. B)))
O279: =INDEX(tbl_KO_Data[T2 Src Rank],K274) & ". Gr. " & INDEX(tbl_KO_Data[T2 Src Group],K274) -> 4. Gr. C | AZ279: 4 | BA279: =IF(AX276>AX278,AU278,IF(AX276<AX278,AU276,"")) -> 
E282: 3 | F282: 7 | G282: 15 | H282: 31 | I282: 63 | K282: =KO_Data_1row+INDEX(D282:I282,KO_Rounds_Ind) -> 302 | Q282: K_64_A63 | R282: field x | S282: best of n | T282: 0 | V282: K_32_A31 | W282: field x | X282: best of n | Y282: 0 | AA282: K_16_A15 | AB282: field x | AC282: best of n | AD282: 0 | AF282: K_08_A7 | AG282: field x | AH282: best of n | AI282: 0 | AK282: K_04_A3 | AL282: field x | AM282: best of n | AN282: 0
O283: =INDEX(tbl_KO_Data[T1 Src Rank],K282) & ". Gr. " & INDEX(tbl_KO_Data[T1 Src Group],K282) -> 2. Gr. A
Q284: =O283 -> 2. Gr. A | V284: =IF($V$16,O283,CHOOSE(SIGN(T294-T292)+2,Q292,"("&Q292&" : "&Q294&")",Q294)) -> (1. Gr. D : 4. Gr. A) | AA284: =IF($AA$16,O283,CHOOSE(SIGN(Y294-Y292)+2,V292,"("&V292&" : "&V294&")",V294)) -> ((4. Gr. B : 5. Gr. A) : (4. Gr. B : 5. Gr. A)) | AF284: =IF($AF$16,O283,CHOOSE(SIGN(AD294-AD292)+2,AA292,"("&AA292&" : "&AA294&")",AA294)) -> 2. Gr. A | AK284: =IF($AK$16,O283,CHOOSE(SIGN(AI294-AI292)+2,AF292,"("&AF292&" : "&AF294&")",AF294)) -> (1. Gr. D : 4. Gr. A)
Q286: =O287 -> 3. Gr. D | V286: =IF($V$16,O287,CHOOSE(SIGN(T302-T300)+2,Q300,"("&Q300&" : "&Q302&")",Q302)) -> (2. Gr. C : 3. Gr. B) | AA286: =IF($AA$16,O287,CHOOSE(SIGN(Y302-Y300)+2,V300,"("&V300&" : "&V302&")",V302)) -> ((4. Gr. B : 5. Gr. A) : (4. Gr. B : 5. Gr. A)) | AF286: =IF($AF$16,O287,CHOOSE(SIGN(AD302-AD300)+2,AA300,"("&AA300&" : "&AA302&")",AA302)) -> 3. Gr. D | AK286: =IF($AK$16,O287,CHOOSE(SIGN(AI302-AI300)+2,AF300,"("&AF300&" : "&AF302&")",AF302)) -> (2. Gr. C : 3. Gr. B)
O287: =INDEX(tbl_KO_Data[T2 Src Rank],K282) & ". Gr. " & INDEX(tbl_KO_Data[T2 Src Group],K282) -> 3. Gr. D
F290: 3 | G290: 7 | H290: 15 | I290: 31 | K290: =KO_Data_1row+INDEX(D290:I290,KO_Rounds_Ind) -> 298 | Q290: K_64_A31 | R290: field x | S290: best of n | T290: 0 | V290: K_32_A15 | W290: field x | X290: best of n | Y290: 0 | AA290: K_16_A07 | AB290: field x | AC290: best of n | AD290: 0 | AF290: K_08_A3 | AG290: field x | AH290: best of n | AI290: 0
O291: =INDEX(tbl_KO_Data[T1 Src Rank],K290) & ". Gr. " & INDEX(tbl_KO_Data[T1 Src Group],K290) -> 1. Gr. D
Q292: =O291 -> 1. Gr. D | V292: =IF($V$16,O291,CHOOSE(SIGN(T310-T308)+2,Q308,"("&Q308&" : "&Q310&")",Q310)) -> (4. Gr. B : 5. Gr. A) | AA292: =IF($AA$16,O291,CHOOSE(SIGN(Y310-Y308)+2,V308,"("&V308&" : "&V310&")",V310)) -> ((4. Gr. B : 5. Gr. A) : (4. Gr. B : 5. Gr. A)) | AF292: =IF($AF$16,O291,CHOOSE(SIGN(AD310-AD308)+2,AA308,"("&AA308&" : "&AA310&")",AA310)) -> 1. Gr. D
Q294: =O295 -> 4. Gr. A | V294: =IF($V$16,O295,CHOOSE(SIGN(T318-T316)+2,Q316,"("&Q316&" : "&Q318&")",Q318)) -> (4. Gr. B : 5. Gr. A) | AA294: =IF($AA$16,O295,CHOOSE(SIGN(Y318-Y316)+2,V316,"("&V316&" : "&V318&")",V318)) -> ((4. Gr. B : 5. Gr. A) : (4. Gr. B : 5. Gr. A)) | AF294: =IF($AF$16,O295,CHOOSE(SIGN(AD318-AD316)+2,AA316,"("&AA316&" : "&AA318&")",AA318)) -> 4. Gr. A
O295: =INDEX(tbl_KO_Data[T2 Src Rank],K290) & ". Gr. " & INDEX(tbl_KO_Data[T2 Src Group],K290) -> 4. Gr. A
F298: 6 | G298: 10 | H298: 18 | I298: 34 | K298: =KO_Data_1row+INDEX(D298:I298,KO_Rounds_Ind) -> 301 | Q298: K_64_A34 | R298: field x | S298: best of n | T298: 0 | V298: K_32_A18 | W298: field x | X298: best of n | Y298: 0 | AA298: K_16_A10 | AB298: field x | AC298: best of n | AD298: 0 | AF298: K_08_A6 | AG298: field x | AH298: best of n | AI298: 0
O299: =INDEX(tbl_KO_Data[T1 Src Rank],K298) & ". Gr. " & INDEX(tbl_KO_Data[T1 Src Group],K298) -> 2. Gr. C
Q300: =O299 -> 2. Gr. C | V300: =IF($V$16,O299,CHOOSE(SIGN(T326-T324)+2,Q324,"("&Q324&" : "&Q326&")",Q326)) -> (4. Gr. B : 5. Gr. A) | AA300: =IF($AA$16,O299,CHOOSE(SIGN(Y326-Y324)+2,V324,"("&V324&" : "&V326&")",V326)) -> ((4. Gr. B : 5. Gr. A) : (4. Gr. B : 5. Gr. A)) | AF300: =IF($AF$16,O299,CHOOSE(SIGN(AD326-AD324)+2,AA324,"("&AA324&" : "&AA326&")",AA326)) -> 2. Gr. C
Q302: =O303 -> 3. Gr. B | V302: =IF($V$16,O303,CHOOSE(SIGN(T334-T332)+2,Q332,"("&Q332&" : "&Q334&")",Q334)) -> (4. Gr. B : 5. Gr. A) | AA302: =IF($AA$16,O303,CHOOSE(SIGN(Y334-Y332)+2,V332,"("&V332&" : "&V334&")",V334)) -> ((4. Gr. B : 5. Gr. A) : (4. Gr. B : 5. Gr. A)) | AF302: =IF($AF$16,O303,CHOOSE(SIGN(AD334-AD332)+2,AA332,"("&AA332&" : "&AA334&")",AA334)) -> 3. Gr. B
O303: =INDEX(tbl_KO_Data[T2 Src Rank],K298) & ". Gr. " & INDEX(tbl_KO_Data[T2 Src Group],K298) -> 3. Gr. B
G306: 3 | H306: 7 | I306: 15 | K306: =KO_Data_1row+INDEX(D306:I306,KO_Rounds_Ind) -> 295 | Q306: K_64_A15 | R306: field x | S306: best of n | T306: 0 | V306: K_32_A07 | W306: field x | X306: best of n | Y306: 0 | AA306: K_16_A03 | AB306: field x | AC306: best of n | AD306: 0
... 139 more rows

Sheet KO-Full
O2: =VLOOKUP("txt_0000",tbl_i18n[],Lang_Ind,FALSE) -> Spielsysteme für Turniere | BA2: created by: Walter Aust
M4: ç
O5: =VLOOKUP("txt_2501",tbl_i18n[],Lang_Ind,FALSE) -> Finalrunden: Darstellung eines vollständiges KO-Systems (mit Ausspielung aller Plätze)
A6: KO_txt_lbl1 | B6: =VLOOKUP("txt_2a52",tbl_i18n[],Lang_Ind,FALSE) -> erforderliche Teams:
A7: KO_txt_btn1 | B7: =VLOOKUP("txt_2a58",tbl_i18n[],Lang_Ind,FALSE) -> Spielergebnisse löschen | O7: =VLOOKUP("txt_2a51",tbl_i18n[],Lang_Ind,FALSE) -> Einstiegsrunde:
A8: KO_txt_lbl2 | B8: =VLOOKUP("txt_2a54",tbl_i18n[],Lang_Ind,FALSE) -> Teams pro Gruppe:
A9: KO_txt_btn2 | B9: =VLOOKUP("txt_2a59",tbl_i18n[],Lang_Ind,FALSE) -> Spielergebnisse vorbesetzen | O9: =VLOOKUP("txt_2a53",tbl_i18n[],Lang_Ind,FALSE) -> Anzahl der Vorrundengruppen:
O11: =IF(KO_Groups_Ind>1,VLOOKUP("txt_2a70",tbl_i18n[],Lang_Ind,FALSE) & INDEX(tbl_i18n[],KO_Groups_Ind+MATCH("txt_2a70",tbl_i18n[ID],0),Lang_Ind) & VLOOKUP("txt_2a72",tbl_i18n[],Lang_Ind,FALSE),"") -> Hinweis: Ab den Halbfinalrunden (inklusive) können Teams mit der gleichen Gruppenplatzierung aufeinandertreffen.
D14: Game numbers | K14: rows | O14: Rank + Group | Q14: =B22 -> 1/64-Finale | V14: =B21 -> 1/32-Finale | AA14: =B20 -> 1/16-Finale | AF14: =B19 -> 1/8-Finale | AK14: =B18 -> 1/4-Finale | AP14: =B17 -> Halbfinale | AU14: =VLOOKUP("K_01_#",tbl_i18n[],Lang_Ind,FALSE) -> Spiel um Rang # | AZ14: =VLOOKUP("txt_2a57",tbl_i18n[],Lang_Ind,FALSE) -> Rang
D16: 2 | E16: 4 | F16: 8 | G16: 16 | H16: 32 | I16: 64 | Q16: =KO_Rounds_Ind=6 -> FALSE | V16: =KO_Rounds_Ind=5 -> FALSE | AA16: =KO_Rounds_Ind=4 -> FALSE | AF16: =KO_Rounds_Ind=3 -> TRUE | AK16: =KO_Rounds_Ind=2 -> FALSE | AP16: =KO_Rounds_Ind=1 -> FALSE
A17: KO_Rounds_List | B17: =VLOOKUP("K_02_A",tbl_i18n[#Data],Lang_Ind,FALSE) -> Halbfinale
B18: =VLOOKUP("K_04_A",tbl_i18n[#Data],Lang_Ind,FALSE) -> 1/4-Finale | D18: 1 | E18: 1 | F18: 1 | G18: 1 | H18: 1 | I18: 1 | K18: =KO_Data_1row+INDEX(D18:I18,KO_Rounds_Ind) -> 296 | Q18: K_64_A01 | R18: field x | S18: best of n | T18: 0 | V18: K_32_A01 | W18: field x | X18: best of n | Y18: 0 | AA18: K_16_A01 | AB18: field x | AC18: best of n | AD18: 0 | AF18: K_08_A1 | AG18: field x | AH18: best of n | AI18: 0 | AK18: K_04_A1 | AL18: field x | AM18: best of n | AN18: 0 | AP18: K_02_A1 | AQ18: field x | AR18: best of n | AS18: 0 | AU18: K_01_001 | AV18: field x | AW18: best of n | AX18: 0
B19: =VLOOKUP("K_08_A",tbl_i18n[#Data],Lang_Ind,FALSE) -> 1/8-Finale | O19: =INDEX(tbl_KO_Data[T1 Src Rank],K18) & ". Gr. " & INDEX(tbl_KO_Data[T1 Src Group],K18) -> 1. Gr. A | AZ19: 1 | BA19: =IF(AX20>AX22,AU20,IF(AX20<AX22,AU22,"")) -> 
B20: =VLOOKUP("K_16_A",tbl_i18n[#Data],Lang_Ind,FALSE) -> 1/16-Finale | Q20: =O19 -> 1. Gr. A | V20: =IF($V$16,O19,CHOOSE(SIGN(T22-T20)+2,Q20,"("&Q20&" : "&Q22&")",Q22)) -> (1. Gr. A : 4. Gr. B) | AA20: =IF($AA$16,O19,CHOOSE(SIGN(Y22-Y20)+2,V20,"("&V20&" : "&V22&")",V22)) -> ((1. Gr. A : 4. Gr. B) : (2. Gr. D : 3. Gr. C)) | AF20: =IF($AF$16,O19,CHOOSE(SIGN(AD22-AD20)+2,AA20,"("&AA20&" : "&AA22&")",AA22)) -> 1. Gr. A | AK20: =IF($AK$16,O19,CHOOSE(SIGN(AI22-AI20)+2,AF20,"("&AF20&" : "&AF22&")",AF22)) -> (1. Gr. A : 4. Gr. B) | AP20: =IF($AP$16,O19,CHOOSE(SIGN(AN22-AN20)+2,AK20,"("&AK20&" : "&AK22&")",AK22)) -> ((1. Gr. A : 4. Gr. B) : (2. Gr. D : 3. Gr. C)) | AU20: =CHOOSE(SIGN(AS22-AS20)+2,AP20,"("&AP20&" : "&AP22&")",AP22) -> (((1. Gr. A : 4. Gr. B) : (2. Gr. D : 3. Gr. C)) : ((1. Gr. C : 4. Gr. D) : (2. Gr. B : 3. Gr. A)))
B21: =VLOOKUP("K_32_A",tbl_i18n[#Data],Lang_Ind,FALSE) -> 1/32-Finale
B22: =VLOOKUP("K_64_A",tbl_i18n[#Data],Lang_Ind,FALSE) -> 1/64-Finale | Q22: =O23 -> 4. Gr. B | V22: =IF($V$16,O23,CHOOSE(SIGN(T30-T28)+2,Q28,"("&Q28&" : "&Q30&")",Q30)) -> (2. Gr. D : 3. Gr. C) | AA22: =IF($AA$16,O23,CHOOSE(SIGN(Y30-Y28)+2,V28,"("&V28&" : "&V30&")",V30)) -> ((1. Gr. C : 4. Gr. D) : (2. Gr. B : 3. Gr. A)) | AF22: =IF($AF$16,O23,CHOOSE(SIGN(AD30-AD28)+2,AA28,"("&AA28&" : "&AA30&")",AA30)) -> 4. Gr. B | AK22: =IF($AK$16,O23,CHOOSE(SIGN(AI30-AI28)+2,AF28,"("&AF28&" : "&AF30&")",AF30)) -> (2. Gr. D : 3. Gr. C) | AP22: =IF($AP$16,O23,CHOOSE(SIGN(AN30-AN28)+2,AK28,"("&AK28&" : "&AK30&")",AK30)) -> ((1. Gr. C : 4. Gr. D) : (2. Gr. B : 3. Gr. A)) | AU22: =CHOOSE(SIGN(AS30-AS28)+2,AP28,"("&AP28&" : "&AP30&")",AP30) -> (((1. Gr. B : 4. Gr. C) : (2. Gr. A : 3. Gr. D)) : ((1. Gr. D : 4. Gr. A) : (2. Gr. C : 3. Gr. B)))
O23: =INDEX(tbl_KO_Data[T2 Src Rank],K18) & ". Gr. " & INDEX(tbl_KO_Data[T2 Src Group],K18) -> 4. Gr. B | AZ23: 2 | BA23: =IF(AX20>AX22,AU22,IF(AX20<AX22,AU20,"")) -> 
A24: KO_Rounds_Ind | B24: 3
A26: KO_TeamsReq | B26: =2^(1+KO_Rounds_Ind) -> 16 | D26: 2 | E26: 4 | F26: 8 | G26: 16 | H26: 32 | I26: 64 | K26: =KO_Data_1row+INDEX(D26:I26,KO_Rounds_Ind) -> 303 | Q26: K_64_A64 | R26: field x | S26: best of n | T26: 0 | V26: K_32_A32 | W26: field x | X26: best of n | Y26: 0 | AA26: K_16_A16 | AB26: field x | AC26: best of n | AD26: 0 | AF26: K_08_A8 | AG26: field x | AH26: best of n | AI26: 0 | AK26: K_04_A4 | AL26: field x | AM26: best of n | AN26: 0 | AP26: K_02_A2 | AQ26: field x | AR26: best of n | AS26: 0 | AU26: K_01_003 | AV26: field x | AW26: best of n | AX26: 0
O27: =INDEX(tbl_KO_Data[T1 Src Rank],K26) & ". Gr. " & INDEX(tbl_KO_Data[T1 Src Group],K26) -> 2. Gr. D | AZ27: 3 | BA27: =IF(AX28>AX30,AU28,IF(AX28<AX30,AU30,"")) -> 
A28: KO_Groups_List | B28: 1 | Q28: =O27 -> 2. Gr. D | V28: =IF($V$16,O27,CHOOSE(SIGN(T38-T36)+2,Q36,"("&Q36&" : "&Q38&")",Q38)) -> (1. Gr. C : 4. Gr. D) | AA28: =IF($AA$16,O27,CHOOSE(SIGN(Y38-Y36)+2,V36,"("&V36&" : "&V38&")",V38)) -> ((1. Gr. B : 4. Gr. C) : (2. Gr. A : 3. Gr. D)) | AF28: =IF($AF$16,O27,CHOOSE(SIGN(AD38-AD36)+2,AA36,"("&AA36&" : "&AA38&")",AA38)) -> 2. Gr. D | AK28: =IF($AK$16,O27,CHOOSE(SIGN(AI38-AI36)+2,AF36,"("&AF36&" : "&AF38&")",AF38)) -> (1. Gr. C : 4. Gr. D) | AP28: =IF($AP$16,O27,CHOOSE(SIGN(AN38-AN36)+2,AK36,"("&AK36&" : "&AK38&")",AK38)) -> ((1. Gr. B : 4. Gr. C) : (2. Gr. A : 3. Gr. D)) | AU28: =CHOOSE(SIGN(AS20-AS22)+2,AP20,"("&AP20&" : "&AP22&")",AP22) -> (((1. Gr. A : 4. Gr. B) : (2. Gr. D : 3. Gr. C)) : ((1. Gr. C : 4. Gr. D) : (2. Gr. B : 3. Gr. A)))
B29: 2
B30: 4 | Q30: =O31 -> 3. Gr. C | V30: =IF($V$16,O31,CHOOSE(SIGN(T46-T44)+2,Q44,"("&Q44&" : "&Q46&")",Q46)) -> (2. Gr. B : 3. Gr. A) | AA30: =IF($AA$16,O31,CHOOSE(SIGN(Y46-Y44)+2,V44,"("&V44&" : "&V46&")",V46)) -> ((1. Gr. D : 4. Gr. A) : (2. Gr. C : 3. Gr. B)) | AF30: =IF($AF$16,O31,CHOOSE(SIGN(AD46-AD44)+2,AA44,"("&AA44&" : "&AA46&")",AA46)) -> 3. Gr. C | AK30: =IF($AK$16,O31,CHOOSE(SIGN(AI46-AI44)+2,AF44,"("&AF44&" : "&AF46&")",AF46)) -> (2. Gr. B : 3. Gr. A) | AP30: =IF($AP$16,O31,CHOOSE(SIGN(AN46-AN44)+2,AK44,"("&AK44&" : "&AK46&")",AK46)) -> ((1. Gr. D : 4. Gr. A) : (2. Gr. C : 3. Gr. B)) | AU30: =CHOOSE(SIGN(AS28-AS30)+2,AP28,"("&AP28&" : "&AP30&")",AP30) -> (((1. Gr. B : 4. Gr. C) : (2. Gr. A : 3. Gr. D)) : ((1. Gr. D : 4. Gr. A) : (2. Gr. C : 3. Gr. B)))
B31: 8 | O31: =INDEX(tbl_KO_Data[T2 Src Rank],K26) & ". Gr. " & INDEX(tbl_KO_Data[T2 Src Group],K26) -> 3. Gr. C | AZ31: 4 | BA31: =IF(AX28>AX30,AU30,IF(AX28<AX30,AU28,"")) -> 
B32: 16
B33: 32
B34: 64 | E34: 2 | F34: 4 | G34: 8 | H34: 16 | I34: 32 | K34: =KO_Data_1row+INDEX(D34:I34,KO_Rounds_Ind) -> 299 | Q34: K_64_A32 | R34: field x | S34: best of n | T34: 0 | V34: K_32_A16 | W34: field x | X34: best of n | Y34: 0 | AA34: K_16_A08 | AB34: field x | AC34: best of n | AD34: 0 | AF34: K_08_A4 | AG34: field x | AH34: best of n | AI34: 0 | AK34: K_04_A2 | AL34: field x | AM34: best of n | AN34: 0 | AP34: K_02_B1 | AQ34: field x | AR34: best of n | AS34: 0 | AU34: K_01_005 | AV34: field x | AW34: best of 0 | AX34: 0
B35: 128 | O35: =INDEX(tbl_KO_Data[T1 Src Rank],K34) & ". Gr. " & INDEX(tbl_KO_Data[T1 Src Group],K34) -> 1. Gr. C | AZ35: 5 | BA35: =IF(AX36>AX38,AU36,IF(AX36<AX38,AU38,"")) -> 
Q36: =O35 -> 1. Gr. C | V36: =IF($V$16,O35,CHOOSE(SIGN(T54-T52)+2,Q52,"("&Q52&" : "&Q54&")",Q54)) -> (1. Gr. B : 4. Gr. C) | AA36: =IF($AA$16,O35,IF($AA$16,O211,CHOOSE(SIGN(Y54-Y52)+2,V52,"("&V52&" : "&V54&")",V54))) -> ((4. Gr. B : 5. Gr. A) : (4. Gr. B : 5. Gr. A)) | AF36: =IF($AF$16,O35,CHOOSE(SIGN(AD54-AD52)+2,AA52,"("&AA52&" : "&AA54&")",AA54)) -> 1. Gr. C | AK36: =IF($AK$16,O35,CHOOSE(SIGN(AI54-AI52)+2,AF52,"("&AF52&" : "&AF54&")",AF54)) -> (1. Gr. B : 4. Gr. C) | AP36: =CHOOSE(SIGN(AN20-AN22)+2,AK20,"("&AK20&" : "&AK22&")",AK22) -> ((1. Gr. A : 4. Gr. B) : (2. Gr. D : 3. Gr. C)) | AU36: =CHOOSE(SIGN(AS38-AS36)+2,AP36,"("&AP36&" : "&AP38&")",AP38) -> (((1. Gr. A : 4. Gr. B) : (2. Gr. D : 3. Gr. C)) : ((1. Gr. C : 4. Gr. D) : (2. Gr. B : 3. Gr. A)))
A37: KO_Groups_Ind | B37: 3
Q38: =O39 -> 4. Gr. D | V38: =IF($V$16,O39,CHOOSE(SIGN(T62-T60)+2,Q60,"("&Q60&" : "&Q62&")",Q62)) -> (2. Gr. A : 3. Gr. D) | AA38: =IF($AA$16,O39,CHOOSE(SIGN(Y62-Y60)+2,V60,"("&V60&" : "&V62&")",V62)) -> ((4. Gr. B : 5. Gr. A) : (4. Gr. B : 5. Gr. A)) | AF38: =IF($AF$16,O39,CHOOSE(SIGN(AD62-AD60)+2,AA60,"("&AA60&" : "&AA62&")",AA62)) -> 4. Gr. D | AK38: =IF($AK$16,O39,CHOOSE(SIGN(AI62-AI60)+2,AF60,"("&AF60&" : "&AF62&")",AF62)) -> (2. Gr. A : 3. Gr. D) | AP38: =CHOOSE(SIGN(AN28-AN30)+2,AK28,"("&AK28&" : "&AK30&")",AK30) -> ((1. Gr. C : 4. Gr. D) : (2. Gr. B : 3. Gr. A)) | AU38: =CHOOSE(SIGN(AS46-AS44)+2,AP44,"("&AP44&" : "&AP46&")",AP46) -> (((1. Gr. B : 4. Gr. C) : (2. Gr. A : 3. Gr. D)) : ((1. Gr. D : 4. Gr. A) : (2. Gr. C : 3. Gr. B)))
A39: KO_Groups_Sel | B39: =MIN(INDEX(KO_Groups_List,KO_Groups_Ind),KO_TeamsReq) -> 4 | O39: =INDEX(tbl_KO_Data[T2 Src Rank],K34) & ". Gr. " & INDEX(tbl_KO_Data[T2 Src Group],K34) -> 4. Gr. D | AZ39: 6 | BA39: =IF(AX36>AX38,AU38,IF(AX36<AX38,AU36,"")) -> 
A41: KO_GroupSize | B41: =KO_TeamsReq/KO_Groups_Sel -> 4
E42: 3 | F42: 5 | G42: 9 | H42: 17 | I42: 33 | K42: =KO_Data_1row+INDEX(D42:I42,KO_Rounds_Ind) -> 300 | Q42: K_64_A33 | R42: field x | S42: best of n | T42: 0 | V42: K_32_A17 | W42: field x | X42: best of n | Y42: 0 | AA42: K_16_A09 | AB42: field x | AC42: best of n | AD42: 0 | AF42: K_08_A5 | AG42: field x | AH42: best of n | AI42: 0 | AK42: K_04_A3 | AL42: field x | AM42: best of n | AN42: 0 | AP42: K_02_B2 | AQ42: field x | AR42: best of n | AS42: 0 | AU42: K_01_007 | AV42: field x | AW42: best of 0 | AX42: 0
A43: tbl_KO_Data.ID | B43: =1000000000*2^(KO_Rounds_Ind) + 1000000 * KO_Groups_Sel + 1000 * KO_GroupSize -> 8004004000 | O43: =INDEX(tbl_KO_Data[T1 Src Rank],K42) & ". Gr. " & INDEX(tbl_KO_Data[T1 Src Group],K42) -> 2. Gr. B | AZ43: 7 | BA43: =IF(AX44>AX46,AU44,IF(AX44<AX46,AU46,"")) -> 
Q44: =O43 -> 2. Gr. B | V44: =IF($V$16,O43,CHOOSE(SIGN(T70-T68)+2,Q68,"("&Q68&" : "&Q70&")",Q70)) -> (1. Gr. D : 4. Gr. A) | AA44: =IF($AA$16,O43,CHOOSE(SIGN(Y70-Y68)+2,V68,"("&V68&" : "&V70&")",V70)) -> ((4. Gr. B : 5. Gr. A) : (4. Gr. B : 5. Gr. A)) | AF44: =IF($AF$16,O43,CHOOSE(SIGN(AD70-AD68)+2,AA68,"("&AA68&" : "&AA70&")",AA70)) -> 2. Gr. B | AK44: =IF($AK$16,O43,CHOOSE(SIGN(AI70-AI68)+2,AF68,"("&AF68&" : "&AF70&")",AF70)) -> (1. Gr. D : 4. Gr. A) | AP44: =CHOOSE(SIGN(AN36-AN38)+2,AK36,"("&AK36&" : "&AK38&")",AK38) -> ((1. Gr. B : 4. Gr. C) : (2. Gr. A : 3. Gr. D)) | AU44: =CHOOSE(SIGN(AS36-AS38)+2,AP36,"("&AP36&" : "&AP38&")",AP38) -> (((1. Gr. A : 4. Gr. B) : (2. Gr. D : 3. Gr. C)) : ((1. Gr. C : 4. Gr. D) : (2. Gr. B : 3. Gr. A)))
A45: KO_Data_1row | B45: =MATCH(B43,tbl_KO_Data[ID],1) -> 295
Q46: =O47 -> 3. Gr. A | V46: =IF($V$16,O47,CHOOSE(SIGN(T78-T76)+2,Q76,"("&Q76&" : "&Q78&")",Q78)) -> (2. Gr. C : 3. Gr. B) | AA46: =IF($AA$16,O47,CHOOSE(SIGN(Y78-Y76)+2,V76,"("&V76&" : "&V78&")",V78)) -> ((4. Gr. B : 5. Gr. A) : (4. Gr. B : 5. Gr. A)) | AF46: =IF($AF$16,O47,CHOOSE(SIGN(AD78-AD76)+2,AA76,"("&AA76&" : "&AA78&")",AA78)) -> 3. Gr. A | AK46: =IF($AK$16,O47,CHOOSE(SIGN(AI78-AI76)+2,AF76,"("&AF76&" : "&AF78&")",AF78)) -> (2. Gr. C : 3. Gr. B) | AP46: =CHOOSE(SIGN(AN44-AN46)+2,AK44,"("&AK44&" : "&AK46&")",AK46) -> ((1. Gr. D : 4. Gr. A) : (2. Gr. C : 3. Gr. B)) | AU46: =CHOOSE(SIGN(AS44-AS46)+2,AP44,"("&AP44&" : "&AP46&")",AP46) -> (((1. Gr. B : 4. Gr. C) : (2. Gr. A : 3. Gr. D)) : ((1. Gr. D : 4. Gr. A) : (2. Gr. C : 3. Gr. B)))
O47: =INDEX(tbl_KO_Data[T2 Src Rank],K42) & ". Gr. " & INDEX(tbl_KO_Data[T2 Src Group],K42) -> 3. Gr. A | AZ47: 8 | BA47: =IF(AX44>AX46,AU46,IF(AX44<AX46,AU44,"")) -> 
F50: 2 | G50: 4 | H50: 8 | I50: 16 | K50: =KO_Data_1row+INDEX(D50:I50,KO_Rounds_Ind) -> 297 | Q50: K_64_A16 | R50: field x | S50: best of n | T50: 0 | V50: K_32_A08 | W50: field x | X50: best of n | Y50: 0 | AA50: K_16_A04 | AB50: field x | AC50: best of n | AD50: 0 | AF50: K_08_A2 | AG50: field x | AH50: best of n | AI50: 0 | AK50: K_04_B1 | AL50: field x | AM50: best of n | AN50: 0 | AP50: K_02_C1 | AQ50: field x | AR50: best of n | AS50: 0 | AU50: K_01_009 | AV50: field x | AW50: best of 0 | AX50: 0
O51: =INDEX(tbl_KO_Data[T1 Src Rank],K50) & ". Gr. " & INDEX(tbl_KO_Data[T1 Src Group],K50) -> 1. Gr. B | AZ51: 9 | BA51: =IF(AX52>AX54,AU52,IF(AX52<AX54,AU54,"")) -> 
Q52: =O51 -> 1. Gr. B | V52: =IF($V$16,O51,CHOOSE(SIGN(T86-T84)+2,Q84,"("&Q84&" : "&Q86&")",Q86)) -> (4. Gr. B : 5. Gr. A) | AA52: =IF($AA$16,O51,CHOOSE(SIGN(Y86-Y84)+2,V84,"("&V84&" : "&V86&")",V86)) -> ((4. Gr. B : 5. Gr. A) : (4. Gr. B : 5. Gr. A)) | AF52: =IF($AF$16,O51,CHOOSE(SIGN(AD86-AD84)+2,AA84,"("&AA84&" : "&AA86&")",AA86)) -> 1. Gr. B | AK52: =CHOOSE(SIGN(AI20-AI22)+2,AF20,"("&AF20&" : "&AF22&")",AF22) -> (1. Gr. A : 4. Gr. B) | AP52: =CHOOSE(SIGN(AN54-AN52)+2,AK52,"("&AK52&" : "&AK54&")",AK54) -> ((1. Gr. A : 4. Gr. B) : (2. Gr. D : 3. Gr. C)) | AU52: =CHOOSE(SIGN(AS54-AS52)+2,AP52,"("&AP52&" : "&AP54&")",AP54) -> (((1. Gr. A : 4. Gr. B) : (2. Gr. D : 3. Gr. C)) : ((1. Gr. C : 4. Gr. D) : (2. Gr. B : 3. Gr. A)))
Q54: =O55 -> 4. Gr. C | V54: =IF($V$16,O55,CHOOSE(SIGN(T94-T92)+2,Q92,"("&Q92&" : "&Q94&")",Q94)) -> (4. Gr. B : 5. Gr. A) | AA54: =IF($AA$16,O55,CHOOSE(SIGN(Y94-Y92)+2,V92,"("&V92&" : "&V94&")",V94)) -> ((4. Gr. B : 5. Gr. A) : (4. Gr. B : 5. Gr. A)) | AF54: =IF($AF$16,O55,CHOOSE(SIGN(AD94-AD92)+2,AA92,"("&AA92&" : "&AA94&")",AA94)) -> 4. Gr. C | AK54: =CHOOSE(SIGN(AI28-AI30)+2,AF28,"("&AF28&" : "&AF30&")",AF30) -> (2. Gr. D : 3. Gr. C) | AP54: =CHOOSE(SIGN(AN62-AN60)+2,AK60,"("&AK60&" : "&AK62&")",AK62) -> ((1. Gr. C : 4. Gr. D) : (2. Gr. B : 3. Gr. A)) | AU54: =CHOOSE(SIGN(AS62-AS60)+2,AP60,"("&AP60&" : "&AP62&")",AP62) -> (((1. Gr. B : 4. Gr. C) : (2. Gr. A : 3. Gr. D)) : ((1. Gr. D : 4. Gr. A) : (2. Gr. C : 3. Gr. B)))
O55: =INDEX(tbl_KO_Data[T2 Src Rank],K50) & ". Gr. " & INDEX(tbl_KO_Data[T2 Src Group],K50) -> 4. Gr. C | AZ55: 10 | BA55: =IF(AX52>AX54,AU54,IF(AX52<AX54,AU52,"")) -> 
F58: 7 | G58: 13 | H58: 25 | I58: 49 | K58: =KO_Data_1row+INDEX(D58:I58,KO_Rounds_Ind) -> 302 | Q58: K_64_A49 | R58: field x | S58: best of n | T58: 0 | V58: K_32_A25 | W58: field x | X58: best of n | Y58: 0 | AA58: K_16_A13 | AB58: field x | AC58: best of n | AD58: 0 | AF58: K_08_A7 | AG58: field x | AH58: best of n | AI58: 0 | AK58: K_04_B4 | AL58: field x | AM58: best of n | AN58: 0 | AP58: K_02_C2 | AQ58: field x | AR58: best of n | AS58: 0 | AU58: K_01_011 | AV58: field x | AW58: best of 0 | AX58: 0
O59: =INDEX(tbl_KO_Data[T1 Src Rank],K58) & ". Gr. " & INDEX(tbl_KO_Data[T1 Src Group],K58) -> 2. Gr. A | AZ59: 11 | BA59: =IF(AX60>AX62,AU60,IF(AX60<AX62,AU62,"")) -> 
Q60: =O59 -> 2. Gr. A | V60: =IF($V$16,O59,CHOOSE(SIGN(T102-T100)+2,Q100,"("&Q100&" : "&Q102&")",Q102)) -> (4. Gr. B : 5. Gr. A) | AA60: =IF($AA$16,O59,CHOOSE(SIGN(Y102-Y100)+2,V100,"("&V100&" : "&V102&")",V102)) -> ((4. Gr. B : 5. Gr. A) : (4. Gr. B : 5. Gr. A)) | AF60: =IF($AF$16,O59,CHOOSE(SIGN(AD102-AD100)+2,AA100,"("&AA100&" : "&AA102&")",AA102)) -> 2. Gr. A | AK60: =CHOOSE(SIGN(AI36-AI38)+2,AF36,"("&AF36&" : "&AF38&")",AF38) -> (1. Gr. C : 4. Gr. D) | AP60: =CHOOSE(SIGN(AN70-AN68)+2,AK68,"("&AK68&" : "&AK70&")",AK70) -> ((1. Gr. B : 4. Gr. C) : (2. Gr. A : 3. Gr. D)) | AU60: =CHOOSE(SIGN(AS52-AS54)+2,AP52,"("&AP52&" : "&AP54&")",AP54) -> (((1. Gr. A : 4. Gr. B) : (2. Gr. D : 3. Gr. C)) : ((1. Gr. C : 4. Gr. D) : (2. Gr. B : 3. Gr. A)))
Q62: =O63 -> 3. Gr. D | V62: =IF($V$16,O63,CHOOSE(SIGN(T110-T108)+2,Q108,"("&Q108&" : "&Q110&")",Q110)) -> (4. Gr. B : 5. Gr. A) | AA62: =IF($AA$16,O63,CHOOSE(SIGN(Y110-Y108)+2,V108,"("&V108&" : "&V110&")",V110)) -> ((4. Gr. B : 5. Gr. A) : (4. Gr. B : 5. Gr. A)) | AF62: =IF($AF$16,O63,CHOOSE(SIGN(AD110-AD108)+2,AA108,"("&AA108&" : "&AA110&")",AA110)) -> 3. Gr. D | AK62: =CHOOSE(SIGN(AI44-AI46)+2,AF44,"("&AF44&" : "&AF46&")",AF46) -> (2. Gr. B : 3. Gr. A) | AP62: =CHOOSE(SIGN(AN78-AN76)+2,AK76,"("&AK76&" : "&AK78&")",AK78) -> ((1. Gr. D : 4. Gr. A) : (2. Gr. C : 3. Gr. B)) | AU62: =CHOOSE(SIGN(AS60-AS62)+2,AP60,"("&AP60&" : "&AP62&")",AP62) -> (((1. Gr. B : 4. Gr. C) : (2. Gr. A : 3. Gr. D)) : ((1. Gr. D : 4. Gr. A) : (2. Gr. C : 3. Gr. B)))
O63: =INDEX(tbl_KO_Data[T2 Src Rank],K58) & ". Gr. " & INDEX(tbl_KO_Data[T2 Src Group],K58) -> 3. Gr. D | AZ63: 12 | BA63: =IF(AX60>AX62,AU62,IF(AX60<AX62,AU60,"")) -> 
F66: 3 | G66: 5 | H66: 9 | I66: 17 | K66: =KO_Data_1row+INDEX(D66:I66,KO_Rounds_Ind) -> 298 | Q66: K_64_A17 | R66: field x | S66: best of n | T66: 0 | V66: K_32_A09 | W66: field x | X66: best of n | Y66: 0 | AA66: K_16_A05 | AB66: field x | AC66: best of n | AD66: 0 | AF66: K_08_A3 | AG66: field x | AH66: best of n | AI66: 0 | AK66: K_04_B2 | AL66: field x | AM66: best of n | AN66: 0 | AP66: K_02_D1 | AQ66: field x | AR66: best of n | AS66: 0 | AU66: K_01_013 | AV66: field x | AW66: best of 0 | AX66: 0
O67: =INDEX(tbl_KO_Data[T1 Src Rank],K66) & ". Gr. " & INDEX(tbl_KO_Data[T1 Src Group],K66) -> 1. Gr. D | AZ67: 13 | BA67: =IF(AX68>AX70,AU68,IF(AX68<AX70,AU70,"")) -> 
Q68: =O67 -> 1. Gr. D | V68: =IF($V$16,O67,CHOOSE(SIGN(T118-T116)+2,Q116,"("&Q116&" : "&Q118&")",Q118)) -> (4. Gr. B : 5. Gr. A) | AA68: =IF($AA$16,O67,CHOOSE(SIGN(Y118-Y116)+2,V116,"("&V116&" : "&V118&")",V118)) -> ((4. Gr. B : 5. Gr. A) : (4. Gr. B : 5. Gr. A)) | AF68: =IF($AF$16,O67,CHOOSE(SIGN(AD118-AD116)+2,AA116,"("&AA116&" : "&AA118&")",AA118)) -> 1. Gr. D | AK68: =CHOOSE(SIGN(AI52-AI54)+2,AF52,"("&AF52&" : "&AF54&")",AF54) -> (1. Gr. B : 4. Gr. C) | AP68: =CHOOSE(SIGN(AN52-AN54)+2,AK52,"("&AK52&" : "&AK54&")",AK54) -> ((1. Gr. A : 4. Gr. B) : (2. Gr. D : 3. Gr. C)) | AU68: =CHOOSE(SIGN(AS70-AS68)+2,AP68,"("&AP68&" : "&AP70&")",AP70) -> (((1. Gr. A : 4. Gr. B) : (2. Gr. D : 3. Gr. C)) : ((1. Gr. C : 4. Gr. D) : (2. Gr. B : 3. Gr. A)))
Q70: =O71 -> 4. Gr. A | V70: =IF($V$16,O71,CHOOSE(SIGN(T126-T124)+2,Q124,"("&Q124&" : "&Q126&")",Q126)) -> (4. Gr. B : 5. Gr. A) | AA70: =IF($AA$16,O71,CHOOSE(SIGN(Y126-Y124)+2,V124,"("&V124&" : "&V126&")",V126)) -> ((4. Gr. B : 5. Gr. A) : (4. Gr. B : 5. Gr. A)) | AF70: =IF($AF$16,O71,CHOOSE(SIGN(AD126-AD124)+2,AA124,"("&AA124&" : "&AA126&")",AA126)) -> 4. Gr. A | AK70: =CHOOSE(SIGN(AI60-AI62)+2,AF60,"("&AF60&" : "&AF62&")",AF62) -> (2. Gr. A : 3. Gr. D) | AP70: =CHOOSE(SIGN(AN60-AN62)+2,AK60,"("&AK60&" : "&AK62&")",AK62) -> ((1. Gr. C : 4. Gr. D) : (2. Gr. B : 3. Gr. A)) | AU70: =CHOOSE(SIGN(AS78-AS76)+2,AP76,"("&AP76&" : "&AP78&")",AP78) -> (((1. Gr. B : 4. Gr. C) : (2. Gr. A : 3. Gr. D)) : ((1. Gr. D : 4. Gr. A) : (2. Gr. C : 3. Gr. B)))
O71: =INDEX(tbl_KO_Data[T2 Src Rank],K66) & ". Gr. " & INDEX(tbl_KO_Data[T2 Src Group],K66) -> 4. Gr. A | AZ71: 14 | BA71: =IF(AX68>AX70,AU70,IF(AX68<AX70,AU68,"")) -> 
F74: 6 | G74: 12 | H74: 24 | I74: 48 | K74: =KO_Data_1row+INDEX(D74:I74,KO_Rounds_Ind) -> 301 | Q74: K_64_A48 | R74: field x | S74: best of n | T74: 0 | V74: K_32_A24 | W74: field x | X74: best of n | Y74: 0 | AA74: K_16_A12 | AB74: field x | AC74: best of n | AD74: 0 | AF74: K_08_A6 | AG74: field x | AH74: best of n | AI74: 0 | AK74: K_04_B3 | AL74: field x | AM74: best of n | AN74: 0 | AP74: K_02_D2 | AQ74: field x | AR74: best of n | AS74: 0 | AU74: K_01_015 | AV74: field x | AW74: best of 0 | AX74: 0
O75: =INDEX(tbl_KO_Data[T1 Src Rank],K74) & ". Gr. " & INDEX(tbl_KO_Data[T1 Src Group],K74) -> 2. Gr. C | AZ75: 15 | BA75: =IF(AX76>AX78,AU76,IF(AX76<AX78,AU78,"")) -> 
Q76: =O75 -> 2. Gr. C | V76: =IF($V$16,O75,CHOOSE(SIGN(T134-T132)+2,Q132,"("&Q132&" : "&Q134&")",Q134)) -> (4. Gr. B : 5. Gr. A) | AA76: =IF($AA$16,O75,CHOOSE(SIGN(Y134-Y132)+2,V132,"("&V132&" : "&V134&")",V134)) -> ((4. Gr. B : 5. Gr. A) : (4. Gr. B : 5. Gr. A)) | AF76: =IF($AF$16,O75,CHOOSE(SIGN(AD134-AD132)+2,AA132,"("&AA132&" : "&AA134&")",AA134)) -> 2. Gr. C | AK76: =CHOOSE(SIGN(AI68-AI70)+2,AF68,"("&AF68&" : "&AF70&")",AF70) -> (1. Gr. D : 4. Gr. A) | AP76: =CHOOSE(SIGN(AN68-AN70)+2,AK68,"("&AK68&" : "&AK70&")",AK70) -> ((1. Gr. B : 4. Gr. C) : (2. Gr. A : 3. Gr. D)) | AU76: =CHOOSE(SIGN(AS68-AS70)+2,AP68,"("&AP68&" : "&AP70&")",AP70) -> (((1. Gr. A : 4. Gr. B) : (2. Gr. D : 3. Gr. C)) : ((1. Gr. C : 4. Gr. D) : (2. Gr. B : 3. Gr. A)))
Q78: =O79 -> 3. Gr. B | V78: =IF($V$16,O79,CHOOSE(SIGN(T142-T140)+2,Q140,"("&Q140&" : "&Q142&")",Q142)) -> (4. Gr. B : 5. Gr. A) | AA78: =IF($AA$16,O79,CHOOSE(SIGN(Y142-Y140)+2,V140,"("&V140&" : "&V142&")",V142)) -> ((4. Gr. B : 5. Gr. A) : (4. Gr. B : 5. Gr. A)) | AF78: =IF($AF$16,O79,CHOOSE(SIGN(AD142-AD140)+2,AA140,"("&AA140&" : "&AA142&")",AA142)) -> 3. Gr. B | AK78: =CHOOSE(SIGN(AI76-AI78)+2,AF76,"("&AF76&" : "&AF78&")",AF78) -> (2. Gr. C : 3. Gr. B) | AP78: =CHOOSE(SIGN(AN76-AN78)+2,AK76,"("&AK76&" : "&AK78&")",AK78) -> ((1. Gr. D : 4. Gr. A) : (2. Gr. C : 3. Gr. B)) | AU78: =CHOOSE(SIGN(AS76-AS78)+2,AP76,"("&AP76&" : "&AP78&")",AP78) -> (((1. Gr. B : 4. Gr. C) : (2. Gr. A : 3. Gr. D)) : ((1. Gr. D : 4. Gr. A) : (2. Gr. C : 3. Gr. B)))
O79: =INDEX(tbl_KO_Data[T2 Src Rank],K74) & ". Gr. " & INDEX(tbl_KO_Data[T2 Src Group],K74) -> 3. Gr. B | AZ79: 16 | BA79: =IF(AX76>AX78,AU78,IF(AX76<AX78,AU76,"")) -> 
G82: 2 | H82: 4 | I82: 8 | K82: =KO_Data_1row+INDEX(D82:I82,KO_Rounds_Ind) -> 295 | Q82: K_64_A08 | R82: field x | S82: best of n | T82: 0 | V82: K_32_A04 | W82: field x | X82: best of n | Y82: 0 | AA82: K_16_A02 | AB82: field x | AC82: best of n | AD82: 0 | AF82: K_08_B1 | AG82: field x | AH82: best of n | AI82: 0 | AK82: K_04_C1 | AL82: field x | AM82: best of n | AN82: 0 | AP82: K_02_E1 | AQ82: field x | AR82: best of n | AS82: 0 | AU82: K_01_017 | AV82: field x | AW82: best of n | AX82: 0
O83: =INDEX(tbl_KO_Data[T1 Src Rank],K82) & ". Gr. " & INDEX(tbl_KO_Data[T1 Src Group],K82) -> 4. Gr. B | AZ83: 17 | BA83: =IF(AX84>AX86,AU84,IF(AX84<AX86,AU86,"")) -> 
Q84: =O83 -> 4. Gr. B | V84: =IF($V$16,O83,CHOOSE(SIGN(T150-T148)+2,Q148,"("&Q148&" : "&Q150&")",Q150)) -> (4. Gr. B : 5. Gr. A) | AA84: =IF($AA$16,O83,CHOOSE(SIGN(Y150-Y148)+2,V148,"("&V148&" : "&V150&")",V150)) -> ((4. Gr. B : 5. Gr. A) : (4. Gr. B : 5. Gr. A)) | AF84: =CHOOSE(SIGN(AD20-AD22)+2,AA20,"("&AA20&" : "&AA22&")",AA22) -> (((1. Gr. A : 4. Gr. B) : (2. Gr. D : 3. Gr. C)) : ((1. Gr. C : 4. Gr. D) : (2. Gr. B : 3. Gr. A))) | AK84: =CHOOSE(SIGN(AI86-AI84)+2,AF84,"("&AF84&" : "&AF86&")",AF86) -> ((((1. Gr. A : 4. Gr. B) : (2. Gr. D : 3. Gr. C)) : ((1. Gr. C : 4. Gr. D) : (2. Gr. B : 3. Gr. A))) : (((1. Gr. B : 4. Gr. C) : (2. Gr. A : 3. Gr. D)) : ((1. Gr. D : 4. Gr. A) : (2. Gr. C : 3. Gr. B)))) | AP84: =CHOOSE(SIGN(AN86-AN84)+2,AK84,"("&AK84&" : "&AK86&")",AK86) -> (((((1. Gr. A : 4. Gr. B) : (2. Gr. D : 3. Gr. C)) : ((1. Gr. C : 4. Gr. D) : (2. Gr. B : 3. Gr. A))) : (((1. Gr. B : 4. Gr. C) : (2. Gr. A : 3. Gr. D)) : ((1. Gr. D : 4. Gr. A) : (2. Gr. C : 3. Gr. B)))) : ((((4. Gr. B : 5. Gr. A) : (4. Gr. B : 5. Gr. A)) : ((4. Gr. B : 5. Gr. A) : (4. Gr. B : 5. Gr. A))) : (((4. Gr. B : 5. Gr. A) : (4. Gr. B : 5. Gr. A)) : ((4. Gr. B : 5. Gr. A) : (4. Gr. B : 5. Gr. A))))) | AU84: =CHOOSE(SIGN(AS86-AS84)+2,AP84,"("&AP84&" : "&AP86&")",AP86) -> ((((((1. Gr. A : 4. Gr. B) : (2. Gr. D : 3. Gr. C)) : ((1. Gr. C : 4. Gr. D) : (2. Gr. B : 3. Gr. A))) : (((1. Gr. B : 4. Gr. C) : (2. Gr. A : 3. Gr. D)) : ((1. Gr. D : 4. Gr. A) : (2. Gr. C : 3. Gr. B)))) : ((((4. Gr. B : 5. Gr. A) : (4. Gr. B : 5. Gr. A)) : ((4. Gr. B : 5. Gr. A) : (4. Gr. B : 5. Gr. A))) : (((4. Gr. B : 5. Gr. A) : (4. Gr. B : 5. Gr. A)) : ((4. Gr. B : 5. Gr. A) : (4. Gr. B : 5. Gr. A))))) : (((((4. Gr. B : 5. Gr. A) : (4. Gr. B : 5. Gr. A)) : ((4. Gr. B : 5. Gr. A) : (4. Gr. B : 5. Gr. A))) : (((4. Gr. B : 5. Gr. A) : (4. Gr. B : 5. Gr. A)) : ((4. Gr. B : 5. Gr. A) : (4. Gr. B : 5. Gr. A)))) : ((((4. Gr. B : 5. Gr. A) : (4. Gr. B : 5. Gr. A)) : ((4. Gr. B : 5. Gr. A) : (4. Gr. B : 5. Gr. A))) : (((4. Gr. B : 5. Gr. A) : (4. Gr. B : 5. Gr. A)) : ((4. Gr. B : 5. Gr. A) : (4. Gr. B : 5. Gr. A))))))
Q86: =O87 -> 5. Gr. A | V86: =IF($V$16,O87,CHOOSE(SIGN(T158-T156)+2,Q156,"("&Q156&" : "&Q158&")",Q158)) -> (4. Gr. B : 5. Gr. A) | AA86: =IF($AA$16,O87,CHOOSE(SIGN(Y158-Y156)+2,V156,"("&V156&" : "&V158&")",V158)) -> ((4. Gr. B : 5. Gr. A) : (4. Gr. B : 5. Gr. A)) | AF86: =CHOOSE(SIGN(AD28-AD30)+2,AA28,"("&AA28&" : "&AA30&")",AA30) -> (((1. Gr. B : 4. Gr. C) : (2. Gr. A : 3. Gr. D)) : ((1. Gr. D : 4. Gr. A) : (2. Gr. C : 3. Gr. B))) | AK86: =CHOOSE(SIGN(AI94-AI92)+2,AF92,"("&AF92&" : "&AF94&")",AF94) -> ((((4. Gr. B : 5. Gr. A) : (4. Gr. B : 5. Gr. A)) : ((4. Gr. B : 5. Gr. A) : (4. Gr. B : 5. Gr. A))) : (((4. Gr. B : 5. Gr. A) : (4. Gr. B : 5. Gr. A)) : ((4. Gr. B : 5. Gr. A) : (4. Gr. B : 5. Gr. A)))) | AP86: =CHOOSE(SIGN(AN94-AN92)+2,AK92,"("&AK92&" : "&AK94&")",AK94) -> (((((4. Gr. B : 5. Gr. A) : (4. Gr. B : 5. Gr. A)) : ((4. Gr. B : 5. Gr. A) : (4. Gr. B : 5. Gr. A))) : (((4. Gr. B : 5. Gr. A) : (4. Gr. B : 5. Gr. A)) : ((4. Gr. B : 5. Gr. A) : (4. Gr. B : 5. Gr. A)))) : ((((4. Gr. B : 5. Gr. A) : (4. Gr. B : 5. Gr. A)) : ((4. Gr. B : 5. Gr. A) : (4. Gr. B : 5. Gr. A))) : (((4. Gr. B : 5. Gr. A) : (4. Gr. B : 5. Gr. A)) : ((4. Gr. B : 5. Gr. A) : (4. Gr. B : 5. Gr. A))))) | AU86: =CHOOSE(SIGN(AS94-AS92)+2,AP92,"("&AP92&" : "&AP94&")",AP94) -> ((((((4. Gr. B : 5. Gr. A) : (4. Gr. B : 5. Gr. A)) : ((4. Gr. B : 5. Gr. A) : (4. Gr. B : 5. Gr. A))) : (((4. Gr. B : 5. Gr. A) : (4. Gr. B : 5. Gr. A)) : ((4. Gr. B : 5. Gr. A) : (4. Gr. B : 5. Gr. A)))) : ((((4. Gr. B : 5. Gr. A) : (4. Gr. B : 5. Gr. A)) : ((4. Gr. B : 5. Gr. A) : (4. Gr. B : 5. Gr. A))) : (((4. Gr. B : 5. Gr. A) : (4. Gr. B : 5. Gr. A)) : ((4. Gr. B : 5. Gr. A) : (4. Gr. B : 5. Gr. A))))) : (((((4. Gr. B : 5. Gr. A) : (4. Gr. B : 5. Gr. A)) : ((4. Gr. B : 5. Gr. A) : (4. Gr. B : 5. Gr. A))) : (((4. Gr. B : 5. Gr. A) : (4. Gr. B : 5. Gr. A)) : ((4. Gr. B : 5. Gr. A) : (4. Gr. B : 5. Gr. A)))) : ((((4. Gr. B : 5. Gr. A) : (4. Gr. B : 5. Gr. A)) : ((4. Gr. B : 5. Gr. A) : (4. Gr. B : 5. Gr. A))) : (((4. Gr. B : 5. Gr. A) : (4. Gr. B : 5. Gr. A)) : ((4. Gr. B : 5. Gr. A) : (4. Gr. B : 5. Gr. A))))))
O87: =INDEX(tbl_KO_Data[T2 Src Rank],K82) & ". Gr. " & INDEX(tbl_KO_Data[T2 Src Group],K82) -> 5. Gr. A | AZ87: 18 | BA87: =IF(AX84>AX86,AU86,IF(AX84<AX86,AU84,"")) -> 
G90: 15 | H90: 29 | I90: 57 | K90: =KO_Data_1row+INDEX(D90:I90,KO_Rounds_Ind) -> 295 | Q90: K_64_A57 | R90: field x | S90: best of n | T90: 0 | V90: K_32_A29 | W90: field x | X90: best of n | Y90: 0 | AA90: K_16_A15 | AB90: field x | AC90: best of n | AD90: 0 | AF90: K_08_B8 | AG90: field x | AH90: best of n | AI90: 0 | AK90: K_04_C4 | AL90: field x | AM90: best of n | AN90: 0 | AP90: K_02_E2 | AQ90: field x | AR90: best of n | AS90: 0 | AU90: K_01_019 | AV90: field x | AW90: best of n | AX90: 0
O91: =INDEX(tbl_KO_Data[T1 Src Rank],K90) & ". Gr. " & INDEX(tbl_KO_Data[T1 Src Group],K90) -> 4. Gr. B | AZ91: 19 | BA91: =IF(AX92>AX94,AU92,IF(AX92<AX94,AU94,"")) -> 
Q92: =O91 -> 4. Gr. B | V92: =IF($V$16,O91,CHOOSE(SIGN(T166-T164)+2,Q164,"("&Q164&" : "&Q166&")",Q166)) -> (4. Gr. B : 5. Gr. A) | AA92: =IF($AA$16,O91,CHOOSE(SIGN(Y166-Y164)+2,V164,"("&V164&" : "&V166&")",V166)) -> ((4. Gr. B : 5. Gr. A) : (4. Gr. B : 5. Gr. A)) | AF92: =CHOOSE(SIGN(AD36-AD38)+2,AA36,"("&AA36&" : "&AA38&")",AA38) -> (((4. Gr. B : 5. Gr. A) : (4. Gr. B : 5. Gr. A)) : ((4. Gr. B : 5. Gr. A) : (4. Gr. B : 5. Gr. A))) | AK92: =CHOOSE(SIGN(AI102-AI100)+2,AF100,"("&AF100&" : "&AF102&")",AF102) -> ((((4. Gr. B : 5. Gr. A) : (4. Gr. B : 5. Gr. A)) : ((4. Gr. B : 5. Gr. A) : (4. Gr. B : 5. Gr. A))) : (((4. Gr. B : 5. Gr. A) : (4. Gr. B : 5. Gr. A)) : ((4. Gr. B : 5. Gr. A) : (4. Gr. B : 5. Gr. A)))) | AP92: =CHOOSE(SIGN(AN102-AN100)+2,AK100,"("&AK100&" : "&AK102&")",AK102) -> (((((4. Gr. B : 5. Gr. A) : (4. Gr. B : 5. Gr. A)) : ((4. Gr. B : 5. Gr. A) : (4. Gr. B : 5. Gr. A))) : (((4. Gr. B : 5. Gr. A) : (4. Gr. B : 5. Gr. A)) : ((4. Gr. B : 5. Gr. A) : (4. Gr. B : 5. Gr. A)))) : ((((4. Gr. B : 5. Gr. A) : (4. Gr. B : 5. Gr. A)) : ((4. Gr. B : 5. Gr. A) : (4. Gr. B : 5. Gr. A))) : (((4. Gr. B : 5. Gr. A) : (4. Gr. B : 5. Gr. A)) : ((4. Gr. B : 5. Gr. A) : (4. Gr. B : 5. Gr. A))))) | AU92: =CHOOSE(SIGN(AS84-AS86)+2,AP84,"("&AP84&" : "&AP86&")",AP86) -> ((((((1. Gr. A : 4. Gr. B) : (2. Gr. D : 3. Gr. C)) : ((1. Gr. C : 4. Gr. D) : (2. Gr. B : 3. Gr. A))) : (((1. Gr. B : 4. Gr. C) : (2. Gr. A : 3. Gr. D)) : ((1. Gr. D : 4. Gr. A) : (2. Gr. C : 3. Gr. B)))) : ((((4. Gr. B : 5. Gr. A) : (4. Gr. B : 5. Gr. A)) : ((4. Gr. B : 5. Gr. A) : (4. Gr. B : 5. Gr. A))) : (((4. Gr. B : 5. Gr. A) : (4. Gr. B : 5. Gr. A)) : ((4. Gr. B : 5. Gr. A) : (4. Gr. B : 5. Gr. A))))) : (((((4. Gr. B : 5. Gr. A) : (4. Gr. B : 5. Gr. A)) : ((4. Gr. B : 5. Gr. A) : (4. Gr. B : 5. Gr. A))) : (((4. Gr. B : 5. Gr. A) : (4. Gr. B : 5. Gr. A)) : ((4. Gr. B : 5. Gr. A) : (4. Gr. B : 5. Gr. A)))) : ((((4. Gr. B : 5. Gr. A) : (4. Gr. B : 5. Gr. A)) : ((4. Gr. B : 5. Gr. A) : (4. Gr. B : 5. Gr. A))) : (((4. Gr. B : 5. Gr. A) : (4. Gr. B : 5. Gr. A)) : ((4. Gr. B : 5. Gr. A) : (4. Gr. B : 5. Gr. A))))))
Q94: =O95 -> 5. Gr. A | V94: =IF($V$16,O95,CHOOSE(SIGN(T174-T172)+2,Q172,"("&Q172&" : "&Q174&")",Q174)) -> (4. Gr. B : 5. Gr. A) | AA94: =IF($AA$16,O95,CHOOSE(SIGN(Y174-Y172)+2,V172,"("&V172&" : "&V174&")",V174)) -> ((4. Gr. B : 5. Gr. A) : (4. Gr. B : 5. Gr. A)) | AF94: =CHOOSE(SIGN(AD44-AD46)+2,AA44,"("&AA44&" : "&AA46&")",AA46) -> (((4. Gr. B : 5. Gr. A) : (4. Gr. B : 5. Gr. A)) : ((4. Gr. B : 5. Gr. A) : (4. Gr. B : 5. Gr. A))) | AK94: =CHOOSE(SIGN(AI110-AI108)+2,AF108,"("&AF108&" : "&AF110&")",AF110) -> ((((4. Gr. B : 5. Gr. A) : (4. Gr. B : 5. Gr. A)) : ((4. Gr. B : 5. Gr. A) : (4. Gr. B : 5. Gr. A))) : (((4. Gr. B : 5. Gr. A) : (4. Gr. B : 5. Gr. A)) : ((4. Gr. B : 5. Gr. A) : (4. Gr. B : 5. Gr. A)))) | AP94: =CHOOSE(SIGN(AN110-AN108)+2,AK108,"("&AK108&" : "&AK110&")",AK110) -> (((((4. Gr. B : 5. Gr. A) : (4. Gr. B : 5. Gr. A)) : ((4. Gr. B : 5. Gr. A) : (4. Gr. B : 5. Gr. A))) : (((4. Gr. B : 5. Gr. A) : (4. Gr. B : 5. Gr. A)) : ((4. Gr. B : 5. Gr. A) : (4. Gr. B : 5. Gr. A)))) : ((((4. Gr. B : 5. Gr. A) : (4. Gr. B : 5. Gr. A)) : ((4. Gr. B : 5. Gr. A) : (4. Gr. B : 5. Gr. A))) : (((4. Gr. B : 5. Gr. A) : (4. Gr. B : 5. Gr. A)) : ((4. Gr. B : 5. Gr. A) : (4. Gr. B : 5. Gr. A))))) | AU94: =CHOOSE(SIGN(AS92-AS94)+2,AP92,"("&AP92&" : "&AP94&")",AP94) -> ((((((4. Gr. B : 5. Gr. A) : (4. Gr. B : 5. Gr. A)) : ((4. Gr. B : 5. Gr. A) : (4. Gr. B : 5. Gr. A))) : (((4. Gr. B : 5. Gr. A) : (4. Gr. B : 5. Gr. A)) : ((4. Gr. B : 5. Gr. A) : (4. Gr. B : 5. Gr. A)))) : ((((4. Gr. B : 5. Gr. A) : (4. Gr. B : 5. Gr. A)) : ((4. Gr. B : 5. Gr. A) : (4. Gr. B : 5. Gr. A))) : (((4. Gr. B : 5. Gr. A) : (4. Gr. B : 5. Gr. A)) : ((4. Gr. B : 5. Gr. A) : (4. Gr. B : 5. Gr. A))))) : (((((4. Gr. B : 5. Gr. A) : (4. Gr. B : 5. Gr. A)) : ((4. Gr. B : 5. Gr. A) : (4. Gr. B : 5. Gr. A))) : (((4. Gr. B : 5. Gr. A) : (4. Gr. B : 5. Gr. A)) : ((4. Gr. B : 5. Gr. A) : (4. Gr. B : 5. Gr. A)))) : ((((4. Gr. B : 5. Gr. A) : (4. Gr. B : 5. Gr. A)) : ((4. Gr. B : 5. Gr. A) : (4. Gr. B : 5. Gr. A))) : (((4. Gr. B : 5. Gr. A) : (4. Gr. B : 5. Gr. A)) : ((4. Gr. B : 5. Gr. A) : (4. Gr. B : 5. Gr. A))))))
O95: =INDEX(tbl_KO_Data[T2 Src Rank],K90) & ". Gr. " & INDEX(tbl_KO_Data[T2 Src Group],K90) -> 5. Gr. A | AZ95: 20 | BA95: =IF(AX92>AX94,AU94,IF(AX92<AX94,AU92,"")) -> 
G98: 7 | H98: 13 | I98: 25 | K98: =KO_Data_1row+INDEX(D98:I98,KO_Rounds_Ind) -> 295 | Q98: K_64_A25 | R98: field x | S98: best of n | T98: 0 | V98: K_32_A13 | W98: field x | X98: best of n | Y98: 0 | AA98: K_16_A07 | AB98: field x | AC98: best of n | AD98: 0 | AF98: K_08_B4 | AG98: field x | AH98: best of n | AI98: 0 | AK98: K_04_C2 | AL98: field x | AM98: best of n | AN98: 0 | AP98: K_02_F1 | AQ98: field x | AR98: best of n | AS98: 0 | AU98: K_01_021 | AV98: field x | AW98: best of n | AX98: 0
O99: =INDEX(tbl_KO_Data[T1 Src Rank],K98) & ". Gr. " & INDEX(tbl_KO_Data[T1 Src Group],K98) -> 4. Gr. B | AZ99: 21 | BA99: =IF(AX100>AX102,AU100,IF(AX100<AX102,AU102,"")) -> 
Q100: =O99 -> 4. Gr. B | V100: =IF($V$16,O99,CHOOSE(SIGN(T182-T180)+2,Q180,"("&Q180&" : "&Q182&")",Q182)) -> (4. Gr. B : 5. Gr. A) | AA100: =IF($AA$16,O99,CHOOSE(SIGN(Y182-Y180)+2,V180,"("&V180&" : "&V182&")",V182)) -> ((4. Gr. B : 5. Gr. A) : (4. Gr. B : 5. Gr. A)) | AF100: =CHOOSE(SIGN(AD52-AD54)+2,AA52,"("&AA52&" : "&AA54&")",AA54) -> (((4. Gr. B : 5. Gr. A) : (4. Gr. B : 5. Gr. A)) : ((4. Gr. B : 5. Gr. A) : (4. Gr. B : 5. Gr. A))) | AK100: =CHOOSE(SIGN(AI118-AI116)+2,AF116,"("&AF116&" : "&AF118&")",AF118) -> ((((4. Gr. B : 5. Gr. A) : (4. Gr. B : 5. Gr. A)) : ((4. Gr. B : 5. Gr. A) : (4. Gr. B : 5. Gr. A))) : (((4. Gr. B : 5. Gr. A) : (4. Gr. B : 5. Gr. A)) : ((4. Gr. B : 5. Gr. A) : (4. Gr. B : 5. Gr. A)))) | AP100: =CHOOSE(SIGN(AN84-AN86)+2,AK84,"("&AK84&" : "&AK86&")",AK86) -> (((((1. Gr. A : 4. Gr. B) : (2. Gr. D : 3. Gr. C)) : ((1. Gr. C : 4. Gr. D) : (2. Gr. B : 3. Gr. A))) : (((1. Gr. B : 4. Gr. C) : (2. Gr. A : 3. Gr. D)) : ((1. Gr. D : 4. Gr. A) : (2. Gr. C : 3. Gr. B)))) : ((((4. Gr. B : 5. Gr. A) : (4. Gr. B : 5. Gr. A)) : ((4. Gr. B : 5. Gr. A) : (4. Gr. B : 5. Gr. A))) : (((4. Gr. B : 5. Gr. A) : (4. Gr. B : 5. Gr. A)) : ((4. Gr. B : 5. Gr. A) : (4. Gr. B : 5. Gr. A))))) | AU100: =CHOOSE(SIGN(AS102-AS100)+2,AP100,"("&AP100&" : "&AP102&")",AP102) -> ((((((1. Gr. A : 4. Gr. B) : (2. Gr. D : 3. Gr. C)) : ((1. Gr. C : 4. Gr. D) : (2. Gr. B : 3. Gr. A))) : (((1. Gr. B : 4. Gr. C) : (2. Gr. A : 3. Gr. D)) : ((1. Gr. D : 4. Gr. A) : (2. Gr. C : 3. Gr. B)))) : ((((4. Gr. B : 5. Gr. A) : (4. Gr. B : 5. Gr. A)) : ((4. Gr. B : 5. Gr. A) : (4. Gr. B : 5. Gr. A))) : (((4. Gr. B : 5. Gr. A) : (4. Gr. B : 5. Gr. A)) : ((4. Gr. B : 5. Gr. A) : (4. Gr. B : 5. Gr. A))))) : (((((4. Gr. B : 5. Gr. A) : (4. Gr. B : 5. Gr. A)) : ((4. Gr. B : 5. Gr. A) : (4. Gr. B : 5. Gr. A))) : (((4. Gr. B : 5. Gr. A) : (4. Gr. B : 5. Gr. A)) : ((4. Gr. B : 5. Gr. A) : (4. Gr. B : 5. Gr. A)))) : ((((4. Gr. B : 5. Gr. A) : (4. Gr. B : 5. Gr. A)) : ((4. Gr. B : 5. Gr. A) : (4. Gr. B : 5. Gr. A))) : (((4. Gr. B : 5. Gr. A) : (4. Gr. B : 5. Gr. A)) : ((4. Gr. B : 5. Gr. A) : (4. Gr. B : 5. Gr. A))))))
Q102: =O103 -> 5. Gr. A | V102: =IF($V$16,O103,CHOOSE(SIGN(T190-T188)+2,Q188,"("&Q188&" : "&Q190&")",Q190)) -> (4. Gr. B : 5. Gr. A) | AA102: =IF($AA$16,O103,CHOOSE(SIGN(Y190-Y188)+2,V188,"("&V188&" : "&V190&")",V190)) -> ((4. Gr. B : 5. Gr. A) : (4. Gr. B : 5. Gr. A)) | AF102: =CHOOSE(SIGN(AD60-AD62)+2,AA60,"("&AA60&" : "&AA62&")",AA62) -> (((4. Gr. B : 5. Gr. A) : (4. Gr. B : 5. Gr. A)) : ((4. Gr. B : 5. Gr. A) : (4. Gr. B : 5. Gr. A))) | AK102: =CHOOSE(SIGN(AI126-AI124)+2,AF124,"("&AF124&" : "&AF126&")",AF126) -> ((((4. Gr. B : 5. Gr. A) : (4. Gr. B : 5. Gr. A)) : ((4. Gr. B : 5. Gr. A) : (4. Gr. B : 5. Gr. A))) : (((4. Gr. B : 5. Gr. A) : (4. Gr. B : 5. Gr. A)) : ((4. Gr. B : 5. Gr. A) : (4. Gr. B : 5. Gr. A)))) | AP102: =CHOOSE(SIGN(AN92-AN94)+2,AK92,"("&AK92&" : "&AK94&")",AK94) -> (((((4. Gr. B : 5. Gr. A) : (4. Gr. B : 5. Gr. A)) : ((4. Gr. B : 5. Gr. A) : (4. Gr. B : 5. Gr. A))) : (((4. Gr. B : 5. Gr. A) : (4. Gr. B : 5. Gr. A)) : ((4. Gr. B : 5. Gr. A) : (4. Gr. B : 5. Gr. A)))) : ((((4. Gr. B : 5. Gr. A) : (4. Gr. B : 5. Gr. A)) : ((4. Gr. B : 5. Gr. A) : (4. Gr. B : 5. Gr. A))) : (((4. Gr. B : 5. Gr. A) : (4. Gr. B : 5. Gr. A)) : ((4. Gr. B : 5. Gr. A) : (4. Gr. B : 5. Gr. A))))) | AU102: =CHOOSE(SIGN(AS110-AS108)+2,AP108,"("&AP108&" : "&AP110&")",AP110) -> ((((((4. Gr. B : 5. Gr. A) : (4. Gr. B : 5. Gr. A)) : ((4. Gr. B : 5. Gr. A) : (4. Gr. B : 5. Gr. A))) : (((4. Gr. B : 5. Gr. A) : (4. Gr. B : 5. Gr. A)) : ((4. Gr. B : 5. Gr. A) : (4. Gr. B : 5. Gr. A)))) : ((((4. Gr. B : 5. Gr. A) : (4. Gr. B : 5. Gr. A)) : ((4. Gr. B : 5. Gr. A) : (4. Gr. B : 5. Gr. A))) : (((4. Gr. B : 5. Gr. A) : (4. Gr. B : 5. Gr. A)) : ((4. Gr. B : 5. Gr. A) : (4. Gr. B : 5. Gr. A))))) : (((((4. Gr. B : 5. Gr. A) : (4. Gr. B : 5. Gr. A)) : ((4. Gr. B : 5. Gr. A) : (4. Gr. B : 5. Gr. A))) : (((4. Gr. B : 5. Gr. A) : (4. Gr. B : 5. Gr. A)) : ((4. Gr. B : 5. Gr. A) : (4. Gr. B : 5. Gr. A)))) : ((((4. Gr. B : 5. Gr. A) : (4. Gr. B : 5. Gr. A)) : ((4. Gr. B : 5. Gr. A) : (4. Gr. B : 5. Gr. A))) : (((4. Gr. B : 5. Gr. A) : (4. Gr. B : 5. Gr. A)) : ((4. Gr. B : 5. Gr. A) : (4. Gr. B : 5. Gr. A))))))
O103: =INDEX(tbl_KO_Data[T2 Src Rank],K98) & ". Gr. " & INDEX(tbl_KO_Data[T2 Src Group],K98) -> 5. Gr. A | AZ103: 22 | BA103: =IF(AX100>AX102,AU102,IF(AX100<AX102,AU100,"")) -> 
G106: 10 | H106: 20 | I106: 40 | K106: =KO_Data_1row+INDEX(D106:I106,KO_Rounds_Ind) -> 295 | Q106: K_64_A40 | R106: field x | S106: best of n | T106: 0 | V106: K_32_A20 | W106: field x | X106: best of n | Y106: 0 | AA106: K_16_A10 | AB106: field x | AC106: best of n | AD106: 0 | AF106: K_08_B5 | AG106: field x | AH106: best of n | AI106: 0 | AK106: K_04_C3 | AL106: field x | AM106: best of n | AN106: 0 | AP106: K_02_F2 | AQ106: field x | AR106: best of n | AS106: 0 | AU106: K_01_023 | AV106: field x | AW106: best of n | AX106: 0
O107: =INDEX(tbl_KO_Data[T1 Src Rank],K106) & ". Gr. " & INDEX(tbl_KO_Data[T1 Src Group],K106) -> 4. Gr. B | AZ107: 23 | BA107: =IF(AX108>AX110,AU108,IF(AX108<AX110,AU110,"")) -> 
Q108: =O107 -> 4. Gr. B | V108: =IF($V$16,O107,CHOOSE(SIGN(T198-T196)+2,Q196,"("&Q196&" : "&Q198&")",Q198)) -> (4. Gr. B : 5. Gr. A) | AA108: =IF($AA$16,O107,CHOOSE(SIGN(Y198-Y196)+2,V196,"("&V196&" : "&V198&")",V198)) -> ((4. Gr. B : 5. Gr. A) : (4. Gr. B : 5. Gr. A)) | AF108: =CHOOSE(SIGN(AD68-AD70)+2,AA68,"("&AA68&" : "&AA70&")",AA70) -> (((4. Gr. B : 5. Gr. A) : (4. Gr. B : 5. Gr. A)) : ((4. Gr. B : 5. Gr. A) : (4. Gr. B : 5. Gr. A))) | AK108: =CHOOSE(SIGN(AI134-AI132)+2,AF132,"("&AF132&" : "&AF134&")",AF134) -> ((((4. Gr. B : 5. Gr. A) : (4. Gr. B : 5. Gr. A)) : ((4. Gr. B : 5. Gr. A) : (4. Gr. B : 5. Gr. A))) : (((4. Gr. B : 5. Gr. A) : (4. Gr. B : 5. Gr. A)) : ((4. Gr. B : 5. Gr. A) : (4. Gr. B : 5. Gr. A)))) | AP108: =CHOOSE(SIGN(AN100-AN102)+2,AK100,"("&AK100&" : "&AK102&")",AK102) -> (((((4. Gr. B : 5. Gr. A) : (4. Gr. B : 5. Gr. A)) : ((4. Gr. B : 5. Gr. A) : (4. Gr. B : 5. Gr. A))) : (((4. Gr. B : 5. Gr. A) : (4. Gr. B : 5. Gr. A)) : ((4. Gr. B : 5. Gr. A) : (4. Gr. B : 5. Gr. A)))) : ((((4. Gr. B : 5. Gr. A) : (4. Gr. B : 5. Gr. A)) : ((4. Gr. B : 5. Gr. A) : (4. Gr. B : 5. Gr. A))) : (((4. Gr. B : 5. Gr. A) : (4. Gr. B : 5. Gr. A)) : ((4. Gr. B : 5. Gr. A) : (4. Gr. B : 5. Gr. A))))) | AU108: =CHOOSE(SIGN(AS100-AS102)+2,AP100,"("&AP100&" : "&AP102&")",AP102) -> ((((((1. Gr. A : 4. Gr. B) : (2. Gr. D : 3. Gr. C)) : ((1. Gr. C : 4. Gr. D) : (2. Gr. B : 3. Gr. A))) : (((1. Gr. B : 4. Gr. C) : (2. Gr. A : 3. Gr. D)) : ((1. Gr. D : 4. Gr. A) : (2. Gr. C : 3. Gr. B)))) : ((((4. Gr. B : 5. Gr. A) : (4. Gr. B : 5. Gr. A)) : ((4. Gr. B : 5. Gr. A) : (4. Gr. B : 5. Gr. A))) : (((4. Gr. B : 5. Gr. A) : (4. Gr. B : 5. Gr. A)) : ((4. Gr. B : 5. Gr. A) : (4. Gr. B : 5. Gr. A))))) : (((((4. Gr. B : 5. Gr. A) : (4. Gr. B : 5. Gr. A)) : ((4. Gr. B : 5. Gr. A) : (4. Gr. B : 5. Gr. A))) : (((4. Gr. B : 5. Gr. A) : (4. Gr. B : 5. Gr. A)) : ((4. Gr. B : 5. Gr. A) : (4. Gr. B : 5. Gr. A)))) : ((((4. Gr. B : 5. Gr. A) : (4. Gr. B : 5. Gr. A)) : ((4. Gr. B : 5. Gr. A) : (4. Gr. B : 5. Gr. A))) : (((4. Gr. B : 5. Gr. A) : (4. Gr. B : 5. Gr. A)) : ((4. Gr. B : 5. Gr. A) : (4. Gr. B : 5. Gr. A))))))
Q110: =O111 -> 5. Gr. A | V110: =IF($V$16,O111,CHOOSE(SIGN(T206-T204)+2,Q204,"("&Q204&" : "&Q206&")",Q206)) -> (4. Gr. B : 5. Gr. A) | AA110: =IF($AA$16,O111,CHOOSE(SIGN(Y206-Y204)+2,V204,"("&V204&" : "&V206&")",V206)) -> ((4. Gr. B : 5. Gr. A) : (4. Gr. B : 5. Gr. A)) | AF110: =CHOOSE(SIGN(AD76-AD78)+2,AA76,"("&AA76&" : "&AA78&")",AA78) -> (((4. Gr. B : 5. Gr. A) : (4. Gr. B : 5. Gr. A)) : ((4. Gr. B : 5. Gr. A) : (4. Gr. B : 5. Gr. A))) | AK110: =CHOOSE(SIGN(AI142-AI140)+2,AF140,"("&AF140&" : "&AF142&")",AF142) -> ((((4. Gr. B : 5. Gr. A) : (4. Gr. B : 5. Gr. A)) : ((4. Gr. B : 5. Gr. A) : (4. Gr. B : 5. Gr. A))) : (((4. Gr. B : 5. Gr. A) : (4. Gr. B : 5. Gr. A)) : ((4. Gr. B : 5. Gr. A) : (4. Gr. B : 5. Gr. A)))) | AP110: =CHOOSE(SIGN(AN108-AN110)+2,AK108,"("&AK108&" : "&AK110&")",AK110) -> (((((4. Gr. B : 5. Gr. A) : (4. Gr. B : 5. Gr. A)) : ((4. Gr. B : 5. Gr. A) : (4. Gr. B : 5. Gr. A))) : (((4. Gr. B : 5. Gr. A) : (4. Gr. B : 5. Gr. A)) : ((4. Gr. B : 5. Gr. A) : (4. Gr. B : 5. Gr. A)))) : ((((4. Gr. B : 5. Gr. A) : (4. Gr. B : 5. Gr. A)) : ((4. Gr. B : 5. Gr. A) : (4. Gr. B : 5. Gr. A))) : (((4. Gr. B : 5. Gr. A) : (4. Gr. B : 5. Gr. A)) : ((4. Gr. B : 5. Gr. A) : (4. Gr. B : 5. Gr. A))))) | AU110: =CHOOSE(SIGN(AS108-AS110)+2,AP108,"("&AP108&" : "&AP110&")",AP110) -> ((((((4. Gr. B : 5. Gr. A) : (4. Gr. B : 5. Gr. A)) : ((4. Gr. B : 5. Gr. A) : (4. Gr. B : 5. Gr. A))) : (((4. Gr. B : 5. Gr. A) : (4. Gr. B : 5. Gr. A)) : ((4. Gr. B : 5. Gr. A) : (4. Gr. B : 5. Gr. A)))) : ((((4. Gr. B : 5. Gr. A) : (4. Gr. B : 5. Gr. A)) : ((4. Gr. B : 5. Gr. A) : (4. Gr. B : 5. Gr. A))) : (((4. Gr. B : 5. Gr. A) : (4. Gr. B : 5. Gr. A)) : ((4. Gr. B : 5. Gr. A) : (4. Gr. B : 5. Gr. A))))) : (((((4. Gr. B : 5. Gr. A) : (4. Gr. B : 5. Gr. A)) : ((4. Gr. B : 5. Gr. A) : (4. Gr. B : 5. Gr. A))) : (((4. Gr. B : 5. Gr. A) : (4. Gr. B : 5. Gr. A)) : ((4. Gr. B : 5. Gr. A) : (4. Gr. B : 5. Gr. A)))) : ((((4. Gr. B : 5. Gr. A) : (4. Gr. B : 5. Gr. A)) : ((4. Gr. B : 5. Gr. A) : (4. Gr. B : 5. Gr. A))) : (((4. Gr. B : 5. Gr. A) : (4. Gr. B : 5. Gr. A)) : ((4. Gr. B : 5. Gr. A) : (4. Gr. B : 5. Gr. A))))))
O111: =INDEX(tbl_KO_Data[T2 Src Rank],K106) & ". Gr. " & INDEX(tbl_KO_Data[T2 Src Group],K106) -> 5. Gr. A | AZ111: 24 | BA111: =IF(AX108>AX110,AU110,IF(AX108<AX110,AU108,"")) -> 
G114: 3 | H114: 5 | I114: 9 | K114: =KO_Data_1row+INDEX(D114:I114,KO_Rounds_Ind) -> 295 | Q114: K_64_A09 | R114: field x | S114: best of n | T114: 0 | V114: K_32_A05 | W114: field x | X114: best of n | Y114: 0 | AA114: K_16_A03 | AB114: field x | AC114: best of n | AD114: 0 | AF114: K_08_B2 | AG114: field x | AH114: best of n | AI114: 0 | AK114: K_04_D1 | AL114: field x | AM114: best of n | AN114: 0 | AP114: K_02_G1 | AQ114: field x | AR114: best of n | AS114: 0 | AU114: K_01_025 | AV114: field x | AW114: best of n | AX114: 0
O115: =INDEX(tbl_KO_Data[T1 Src Rank],K114) & ". Gr. " & INDEX(tbl_KO_Data[T1 Src Group],K114) -> 4. Gr. B | AZ115: 25 | BA115: =IF(AX116>AX118,AU116,IF(AX116<AX118,AU118,"")) -> 
Q116: =O115 -> 4. Gr. B | V116: =IF($V$16,O115,CHOOSE(SIGN(T214-T212)+2,Q212,"("&Q212&" : "&Q214&")",Q214)) -> (4. Gr. B : 5. Gr. A) | AA116: =IF($AA$16,O115,CHOOSE(SIGN(Y214-Y212)+2,V212,"("&V212&" : "&V214&")",V214)) -> ((4. Gr. B : 5. Gr. A) : (4. Gr. B : 5. Gr. A)) | AF116: =CHOOSE(SIGN(AD84-AD86)+2,AA84,"("&AA84&" : "&AA86&")",AA86) -> (((4. Gr. B : 5. Gr. A) : (4. Gr. B : 5. Gr. A)) : ((4. Gr. B : 5. Gr. A) : (4. Gr. B : 5. Gr. A))) | AK116: =CHOOSE(SIGN(AI84-AI86)+2,AF84,"("&AF84&" : "&AF86&")",AF86) -> ((((1. Gr. A : 4. Gr. B) : (2. Gr. D : 3. Gr. C)) : ((1. Gr. C : 4. Gr. D) : (2. Gr. B : 3. Gr. A))) : (((1. Gr. B : 4. Gr. C) : (2. Gr. A : 3. Gr. D)) : ((1. Gr. D : 4. Gr. A) : (2. Gr. C : 3. Gr. B)))) | AP116: =CHOOSE(SIGN(AN118-AN116)+2,AK116,"("&AK116&" : "&AK118&")",AK118) -> (((((1. Gr. A : 4. Gr. B) : (2. Gr. D : 3. Gr. C)) : ((1. Gr. C : 4. Gr. D) : (2. Gr. B : 3. Gr. A))) : (((1. Gr. B : 4. Gr. C) : (2. Gr. A : 3. Gr. D)) : ((1. Gr. D : 4. Gr. A) : (2. Gr. C : 3. Gr. B)))) : ((((4. Gr. B : 5. Gr. A) : (4. Gr. B : 5. Gr. A)) : ((4. Gr. B : 5. Gr. A) : (4. Gr. B : 5. Gr. A))) : (((4. Gr. B : 5. Gr. A) : (4. Gr. B : 5. Gr. A)) : ((4. Gr. B : 5. Gr. A) : (4. Gr. B : 5. Gr. A))))) | AU116: =CHOOSE(SIGN(AS118-AS116)+2,AP116,"("&AP116&" : "&AP118&")",AP118) -> ((((((1. Gr. A : 4. Gr. B) : (2. Gr. D : 3. Gr. C)) : ((1. Gr. C : 4. Gr. D) : (2. Gr. B : 3. Gr. A))) : (((1. Gr. B : 4. Gr. C) : (2. Gr. A : 3. Gr. D)) : ((1. Gr. D : 4. Gr. A) : (2. Gr. C : 3. Gr. B)))) : ((((4. Gr. B : 5. Gr. A) : (4. Gr. B : 5. Gr. A)) : ((4. Gr. B : 5. Gr. A) : (4. Gr. B : 5. Gr. A))) : (((4. Gr. B : 5. Gr. A) : (4. Gr. B : 5. Gr. A)) : ((4. Gr. B : 5. Gr. A) : (4. Gr. B : 5. Gr. A))))) : (((((4. Gr. B : 5. Gr. A) : (4. Gr. B : 5. Gr. A)) : ((4. Gr. B : 5. Gr. A) : (4. Gr. B : 5. Gr. A))) : (((4. Gr. B : 5. Gr. A) : (4. Gr. B : 5. Gr. A)) : ((4. Gr. B : 5. Gr. A) : (4. Gr. B : 5. Gr. A)))) : ((((4. Gr. B : 5. Gr. A) : (4. Gr. B : 5. Gr. A)) : ((4. Gr. B : 5. Gr. A) : (4. Gr. B : 5. Gr. A))) : (((4. Gr. B : 5. Gr. A) : (4. Gr. B : 5. Gr. A)) : ((4. Gr. B : 5. Gr. A) : (4. Gr. B : 5. Gr. A))))))
Q118: =O119 -> 5. Gr. A | V118: =IF($V$16,O119,CHOOSE(SIGN(T222-T220)+2,Q220,"("&Q220&" : "&Q222&")",Q222)) -> (4. Gr. B : 5. Gr. A) | AA118: =IF($AA$16,O119,CHOOSE(SIGN(Y222-Y220)+2,V220,"("&V220&" : "&V222&")",V222)) -> ((4. Gr. B : 5. Gr. A) : (4. Gr. B : 5. Gr. A)) | AF118: =CHOOSE(SIGN(AD92-AD94)+2,AA92,"("&AA92&" : "&AA94&")",AA94) -> (((4. Gr. B : 5. Gr. A) : (4. Gr. B : 5. Gr. A)) : ((4. Gr. B : 5. Gr. A) : (4. Gr. B : 5. Gr. A))) | AK118: =CHOOSE(SIGN(AI92-AI94)+2,AF92,"("&AF92&" : "&AF94&")",AF94) -> ((((4. Gr. B : 5. Gr. A) : (4. Gr. B : 5. Gr. A)) : ((4. Gr. B : 5. Gr. A) : (4. Gr. B : 5. Gr. A))) : (((4. Gr. B : 5. Gr. A) : (4. Gr. B : 5. Gr. A)) : ((4. Gr. B : 5. Gr. A) : (4. Gr. B : 5. Gr. A)))) | AP118: =CHOOSE(SIGN(AN126-AN124)+2,AK124,"("&AK124&" : "&AK126&")",AK126) -> (((((4. Gr. B : 5. Gr. A) : (4. Gr. B : 5. Gr. A)) : ((4. Gr. B : 5. Gr. A) : (4. Gr. B : 5. Gr. A))) : (((4. Gr. B : 5. Gr. A) : (4. Gr. B : 5. Gr. A)) : ((4. Gr. B : 5. Gr. A) : (4. Gr. B : 5. Gr. A)))) : ((((4. Gr. B : 5. Gr. A) : (4. Gr. B : 5. Gr. A)) : ((4. Gr. B : 5. Gr. A) : (4. Gr. B : 5. Gr. A))) : (((4. Gr. B : 5. Gr. A) : (4. Gr. B : 5. Gr. A)) : ((4. Gr. B : 5. Gr. A) : (4. Gr. B : 5. Gr. A))))) | AU118: =CHOOSE(SIGN(AS126-AS124)+2,AP124,"("&AP124&" : "&AP126&")",AP126) -> ((((((4. Gr. B : 5. Gr. A) : (4. Gr. B : 5. Gr. A)) : ((4. Gr. B : 5. Gr. A) : (4. Gr. B : 5. Gr. A))) : (((4. Gr. B : 5. Gr. A) : (4. Gr. B : 5. Gr. A)) : ((4. Gr. B : 5. Gr. A) : (4. Gr. B : 5. Gr. A)))) : ((((4. Gr. B : 5. Gr. A) : (4. Gr. B : 5. Gr. A)) : ((4. Gr. B : 5. Gr. A) : (4. Gr. B : 5. Gr. A))) : (((4. Gr. B : 5. Gr. A) : (4. Gr. B : 5. Gr. A)) : ((4. Gr. B : 5. Gr. A) : (4. Gr. B : 5. Gr. A))))) : (((((4. Gr. B : 5. Gr. A) : (4. Gr. B : 5. Gr. A)) : ((4. Gr. B : 5. Gr. A) : (4. Gr. B : 5. Gr. A))) : (((4. Gr. B : 5. Gr. A) : (4. Gr. B : 5. Gr. A)) : ((4. Gr. B : 5. Gr. A) : (4. Gr. B : 5. Gr. A)))) : ((((4. Gr. B : 5. Gr. A) : (4. Gr. B : 5. Gr. A)) : ((4. Gr. B : 5. Gr. A) : (4. Gr. B : 5. Gr. A))) : (((4. Gr. B : 5. Gr. A) : (4. Gr. B : 5. Gr. A)) : ((4. Gr. B : 5. Gr. A) : (4. Gr. B : 5. Gr. A))))))
O119: =INDEX(tbl_KO_Data[T2 Src Rank],K114) & ". Gr. " & INDEX(tbl_KO_Data[T2 Src Group],K114) -> 5. Gr. A | AZ119: 26 | BA119: =IF(AX116>AX118,AU118,IF(AX116<AX118,AU116,"")) -> 
G122: 14 | H122: 28 | I122: 56 | K122: =KO_Data_1row+INDEX(D122:I122,KO_Rounds_Ind) -> 295 | Q122: K_64_A56 | R122: field x | S122: best of n | T122: 0 | V122: K_32_A28 | W122: field x | X122: best of n | Y122: 0 | AA122: K_16_A14 | AB122: field x | AC122: best of n | AD122: 0 | AF122: K_08_B7 | AG122: field x | AH122: best of n | AI122: 0 | AK122: K_04_D4 | AL122: field x | AM122: best of n | AN122: 0 | AP122: K_02_G2 | AQ122: field x | AR122: best of n | AS122: 0 | AU122: K_01_027 | AV122: field x | AW122: best of n | AX122: 0
O123: =INDEX(tbl_KO_Data[T1 Src Rank],K122) & ". Gr. " & INDEX(tbl_KO_Data[T1 Src Group],K122) -> 4. Gr. B | AZ123: 27 | BA123: =IF(AX124>AX126,AU124,IF(AX124<AX126,AU126,"")) -> 
Q124: =O123 -> 4. Gr. B | V124: =IF($V$16,O123,CHOOSE(SIGN(T230-T228)+2,Q228,"("&Q228&" : "&Q230&")",Q230)) -> (4. Gr. B : 5. Gr. A) | AA124: =IF($AA$16,O123,CHOOSE(SIGN(Y230-Y228)+2,V228,"("&V228&" : "&V230&")",V230)) -> ((4. Gr. B : 5. Gr. A) : (4. Gr. B : 5. Gr. A)) | AF124: =CHOOSE(SIGN(AD100-AD102)+2,AA100,"("&AA100&" : "&AA102&")",AA102) -> (((4. Gr. B : 5. Gr. A) : (4. Gr. B : 5. Gr. A)) : ((4. Gr. B : 5. Gr. A) : (4. Gr. B : 5. Gr. A))) | AK124: =CHOOSE(SIGN(AI100-AI102)+2,AF100,"("&AF100&" : "&AF102&")",AF102) -> ((((4. Gr. B : 5. Gr. A) : (4. Gr. B : 5. Gr. A)) : ((4. Gr. B : 5. Gr. A) : (4. Gr. B : 5. Gr. A))) : (((4. Gr. B : 5. Gr. A) : (4. Gr. B : 5. Gr. A)) : ((4. Gr. B : 5. Gr. A) : (4. Gr. B : 5. Gr. A)))) | AP124: =CHOOSE(SIGN(AN134-AN132)+2,AK132,"("&AK132&" : "&AK134&")",AK134) -> (((((4. Gr. B : 5. Gr. A) : (4. Gr. B : 5. Gr. A)) : ((4. Gr. B : 5. Gr. A) : (4. Gr. B : 5. Gr. A))) : (((4. Gr. B : 5. Gr. A) : (4. Gr. B : 5. Gr. A)) : ((4. Gr. B : 5. Gr. A) : (4. Gr. B : 5. Gr. A)))) : ((((4. Gr. B : 5. Gr. A) : (4. Gr. B : 5. Gr. A)) : ((4. Gr. B : 5. Gr. A) : (4. Gr. B : 5. Gr. A))) : (((4. Gr. B : 5. Gr. A) : (4. Gr. B : 5. Gr. A)) : ((4. Gr. B : 5. Gr. A) : (4. Gr. B : 5. Gr. A))))) | AU124: =CHOOSE(SIGN(AS116-AS118)+2,AP116,"("&AP116&" : "&AP118&")",AP118) -> ((((((1. Gr. A : 4. Gr. B) : (2. Gr. D : 3. Gr. C)) : ((1. Gr. C : 4. Gr. D) : (2. Gr. B : 3. Gr. A))) : (((1. Gr. B : 4. Gr. C) : (2. Gr. A : 3. Gr. D)) : ((1. Gr. D : 4. Gr. A) : (2. Gr. C : 3. Gr. B)))) : ((((4. Gr. B : 5. Gr. A) : (4. Gr. B : 5. Gr. A)) : ((4. Gr. B : 5. Gr. A) : (4. Gr. B : 5. Gr. A))) : (((4. Gr. B : 5. Gr. A) : (4. Gr. B : 5. Gr. A)) : ((4. Gr. B : 5. Gr. A) : (4. Gr. B : 5. Gr. A))))) : (((((4. Gr. B : 5. Gr. A) : (4. Gr. B : 5. Gr. A)) : ((4. Gr. B : 5. Gr. A) : (4. Gr. B : 5. Gr. A))) : (((4. Gr. B : 5. Gr. A) : (4. Gr. B : 5. Gr. A)) : ((4. Gr. B : 5. Gr. A) : (4. Gr. B : 5. Gr. A)))) : ((((4. Gr. B : 5. Gr. A) : (4. Gr. B : 5. Gr. A)) : ((4. Gr. B : 5. Gr. A) : (4. Gr. B : 5. Gr. A))) : (((4. Gr. B : 5. Gr. A) : (4. Gr. B : 5. Gr. A)) : ((4. Gr. B : 5. Gr. A) : (4. Gr. B : 5. Gr. A))))))
Q126: =O127 -> 5. Gr. A | V126: =IF($V$16,O127,CHOOSE(SIGN(T238-T236)+2,Q236,"("&Q236&" : "&Q238&")",Q238)) -> (4. Gr. B : 5. Gr. A) | AA126: =IF($AA$16,O127,CHOOSE(SIGN(Y238-Y236)+2,V236,"("&V236&" : "&V238&")",V238)) -> ((4. Gr. B : 5. Gr. A) : (4. Gr. B : 5. Gr. A)) | AF126: =CHOOSE(SIGN(AD108-AD110)+2,AA108,"("&AA108&" : "&AA110&")",AA110) -> (((4. Gr. B : 5. Gr. A) : (4. Gr. B : 5. Gr. A)) : ((4. Gr. B : 5. Gr. A) : (4. Gr. B : 5. Gr. A))) | AK126: =CHOOSE(SIGN(AI108-AI110)+2,AF108,"("&AF108&" : "&AF110&")",AF110) -> ((((4. Gr. B : 5. Gr. A) : (4. Gr. B : 5. Gr. A)) : ((4. Gr. B : 5. Gr. A) : (4. Gr. B : 5. Gr. A))) : (((4. Gr. B : 5. Gr. A) : (4. Gr. B : 5. Gr. A)) : ((4. Gr. B : 5. Gr. A) : (4. Gr. B : 5. Gr. A)))) | AP126: =CHOOSE(SIGN(AN142-AN140)+2,AK140,"("&AK140&" : "&AK142&")",AK142) -> (((((4. Gr. B : 5. Gr. A) : (4. Gr. B : 5. Gr. A)) : ((4. Gr. B : 5. Gr. A) : (4. Gr. B : 5. Gr. A))) : (((4. Gr. B : 5. Gr. A) : (4. Gr. B : 5. Gr. A)) : ((4. Gr. B : 5. Gr. A) : (4. Gr. B : 5. Gr. A)))) : ((((4. Gr. B : 5. Gr. A) : (4. Gr. B : 5. Gr. A)) : ((4. Gr. B : 5. Gr. A) : (4. Gr. B : 5. Gr. A))) : (((4. Gr. B : 5. Gr. A) : (4. Gr. B : 5. Gr. A)) : ((4. Gr. B : 5. Gr. A) : (4. Gr. B : 5. Gr. A))))) | AU126: =CHOOSE(SIGN(AS124-AS126)+2,AP124,"("&AP124&" : "&AP126&")",AP126) -> ((((((4. Gr. B : 5. Gr. A) : (4. Gr. B : 5. Gr. A)) : ((4. Gr. B : 5. Gr. A) : (4. Gr. B : 5. Gr. A))) : (((4. Gr. B : 5. Gr. A) : (4. Gr. B : 5. Gr. A)) : ((4. Gr. B : 5. Gr. A) : (4. Gr. B : 5. Gr. A)))) : ((((4. Gr. B : 5. Gr. A) : (4. Gr. B : 5. Gr. A)) : ((4. Gr. B : 5. Gr. A) : (4. Gr. B : 5. Gr. A))) : (((4. Gr. B : 5. Gr. A) : (4. Gr. B : 5. Gr. A)) : ((4. Gr. B : 5. Gr. A) : (4. Gr. B : 5. Gr. A))))) : (((((4. Gr. B : 5. Gr. A) : (4. Gr. B : 5. Gr. A)) : ((4. Gr. B : 5. Gr. A) : (4. Gr. B : 5. Gr. A))) : (((4. Gr. B : 5. Gr. A) : (4. Gr. B : 5. Gr. A)) : ((4. Gr. B : 5. Gr. A) : (4. Gr. B : 5. Gr. A)))) : ((((4. Gr. B : 5. Gr. A) : (4. Gr. B : 5. Gr. A)) : ((4. Gr. B : 5. Gr. A) : (4. Gr. B : 5. Gr. A))) : (((4. Gr. B : 5. Gr. A) : (4. Gr. B : 5. Gr. A)) : ((4. Gr. B : 5. Gr. A) : (4. Gr. B : 5. Gr. A))))))
O127: =INDEX(tbl_KO_Data[T2 Src Rank],K122) & ". Gr. " & INDEX(tbl_KO_Data[T2 Src Group],K122) -> 5. Gr. A | AZ127: 28 | BA127: =IF(AX124>AX126,AU126,IF(AX124<AX126,AU124,"")) -> 
G130: 6 | H130: 12 | I130: 24 | K130: =KO_Data_1row+INDEX(D130:I130,KO_Rounds_Ind) -> 295 | Q130: K_64_A24 | R130: field x | S130: best of n | T130: 0 | V130: K_32_A12 | W130: field x | X130: best of n | Y130: 0 | AA130: K_16_A06 | AB130: field x | AC130: best of n | AD130: 0 | AF130: K_08_B3 | AG130: field x | AH130: best of n | AI130: 0 | AK130: K_04_D2 | AL130: field x | AM130: best of n | AN130: 0 | AP130: K_02_H1 | AQ130: field x | AR130: best of n | AS130: 0 | AU130: K_01_029 | AV130: field x | AW130: best of n | AX130: 0
O131: =INDEX(tbl_KO_Data[T1 Src Rank],K130) & ". Gr. " & INDEX(tbl_KO_Data[T1 Src Group],K130) -> 4. Gr. B | AZ131: 29 | BA131: =IF(AX132>AX134,AU132,IF(AX132<AX134,AU134,"")) -> 
Q132: =O131 -> 4. Gr. B | V132: =IF($V$16,O131,CHOOSE(SIGN(T246-T244)+2,Q244,"("&Q244&" : "&Q246&")",Q246)) -> (4. Gr. B : 5. Gr. A) | AA132: =IF($AA$16,O131,CHOOSE(SIGN(Y246-Y244)+2,V244,"("&V244&" : "&V246&")",V246)) -> ((4. Gr. B : 5. Gr. A) : (4. Gr. B : 5. Gr. A)) | AF132: =CHOOSE(SIGN(AD116-AD118)+2,AA116,"("&AA116&" : "&AA118&")",AA118) -> (((4. Gr. B : 5. Gr. A) : (4. Gr. B : 5. Gr. A)) : ((4. Gr. B : 5. Gr. A) : (4. Gr. B : 5. Gr. A))) | AK132: =CHOOSE(SIGN(AI116-AI118)+2,AF116,"("&AF116&" : "&AF118&")",AF118) -> ((((4. Gr. B : 5. Gr. A) : (4. Gr. B : 5. Gr. A)) : ((4. Gr. B : 5. Gr. A) : (4. Gr. B : 5. Gr. A))) : (((4. Gr. B : 5. Gr. A) : (4. Gr. B : 5. Gr. A)) : ((4. Gr. B : 5. Gr. A) : (4. Gr. B : 5. Gr. A)))) | AP132: =CHOOSE(SIGN(AN116-AN118)+2,AK116,"("&AK116&" : "&AK118&")",AK118) -> (((((1. Gr. A : 4. Gr. B) : (2. Gr. D : 3. Gr. C)) : ((1. Gr. C : 4. Gr. D) : (2. Gr. B : 3. Gr. A))) : (((1. Gr. B : 4. Gr. C) : (2. Gr. A : 3. Gr. D)) : ((1. Gr. D : 4. Gr. A) : (2. Gr. C : 3. Gr. B)))) : ((((4. Gr. B : 5. Gr. A) : (4. Gr. B : 5. Gr. A)) : ((4. Gr. B : 5. Gr. A) : (4. Gr. B : 5. Gr. A))) : (((4. Gr. B : 5. Gr. A) : (4. Gr. B : 5. Gr. A)) : ((4. Gr. B : 5. Gr. A) : (4. Gr. B : 5. Gr. A))))) | AU132: =CHOOSE(SIGN(AS134-AS132)+2,AP132,"("&AP132&" : "&AP134&")",AP134) -> ((((((1. Gr. A : 4. Gr. B) : (2. Gr. D : 3. Gr. C)) : ((1. Gr. C : 4. Gr. D) : (2. Gr. B : 3. Gr. A))) : (((1. Gr. B : 4. Gr. C) : (2. Gr. A : 3. Gr. D)) : ((1. Gr. D : 4. Gr. A) : (2. Gr. C : 3. Gr. B)))) : ((((4. Gr. B : 5. Gr. A) : (4. Gr. B : 5. Gr. A)) : ((4. Gr. B : 5. Gr. A) : (4. Gr. B : 5. Gr. A))) : (((4. Gr. B : 5. Gr. A) : (4. Gr. B : 5. Gr. A)) : ((4. Gr. B : 5. Gr. A) : (4. Gr. B : 5. Gr. A))))) : (((((4. Gr. B : 5. Gr. A) : (4. Gr. B : 5. Gr. A)) : ((4. Gr. B : 5. Gr. A) : (4. Gr. B : 5. Gr. A))) : (((4. Gr. B : 5. Gr. A) : (4. Gr. B : 5. Gr. A)) : ((4. Gr. B : 5. Gr. A) : (4. Gr. B : 5. Gr. A)))) : ((((4. Gr. B : 5. Gr. A) : (4. Gr. B : 5. Gr. A)) : ((4. Gr. B : 5. Gr. A) : (4. Gr. B : 5. Gr. A))) : (((4. Gr. B : 5. Gr. A) : (4. Gr. B : 5. Gr. A)) : ((4. Gr. B : 5. Gr. A) : (4. Gr. B : 5. Gr. A))))))
Q134: =O135 -> 5. Gr. A | V134: =IF($V$16,O135,CHOOSE(SIGN(T254-T252)+2,Q252,"("&Q252&" : "&Q254&")",Q254)) -> (4. Gr. B : 5. Gr. A) | AA134: =IF($AA$16,O135,CHOOSE(SIGN(Y254-Y252)+2,V252,"("&V252&" : "&V254&")",V254)) -> ((4. Gr. B : 5. Gr. A) : (4. Gr. B : 5. Gr. A)) | AF134: =CHOOSE(SIGN(AD124-AD126)+2,AA124,"("&AA124&" : "&AA126&")",AA126) -> (((4. Gr. B : 5. Gr. A) : (4. Gr. B : 5. Gr. A)) : ((4. Gr. B : 5. Gr. A) : (4. Gr. B : 5. Gr. A))) | AK134: =CHOOSE(SIGN(AI124-AI126)+2,AF124,"("&AF124&" : "&AF126&")",AF126) -> ((((4. Gr. B : 5. Gr. A) : (4. Gr. B : 5. Gr. A)) : ((4. Gr. B : 5. Gr. A) : (4. Gr. B : 5. Gr. A))) : (((4. Gr. B : 5. Gr. A) : (4. Gr. B : 5. Gr. A)) : ((4. Gr. B : 5. Gr. A) : (4. Gr. B : 5. Gr. A)))) | AP134: =CHOOSE(SIGN(AN124-AN126)+2,AK124,"("&AK124&" : "&AK126&")",AK126) -> (((((4. Gr. B : 5. Gr. A) : (4. Gr. B : 5. Gr. A)) : ((4. Gr. B : 5. Gr. A) : (4. Gr. B : 5. Gr. A))) : (((4. Gr. B : 5. Gr. A) : (4. Gr. B : 5. Gr. A)) : ((4. Gr. B : 5. Gr. A) : (4. Gr. B : 5. Gr. A)))) : ((((4. Gr. B : 5. Gr. A) : (4. Gr. B : 5. Gr. A)) : ((4. Gr. B : 5. Gr. A) : (4. Gr. B : 5. Gr. A))) : (((4. Gr. B : 5. Gr. A) : (4. Gr. B : 5. Gr. A)) : ((4. Gr. B : 5. Gr. A) : (4. Gr. B : 5. Gr. A))))) | AU134: =CHOOSE(SIGN(AS142-AS140)+2,AP140,"("&AP140&" : "&AP142&")",AP142) -> ((((((4. Gr. B : 5. Gr. A) : (4. Gr. B : 5. Gr. A)) : ((4. Gr. B : 5. Gr. A) : (4. Gr. B : 5. Gr. A))) : (((4. Gr. B : 5. Gr. A) : (4. Gr. B : 5. Gr. A)) : ((4. Gr. B : 5. Gr. A) : (4. Gr. B : 5. Gr. A)))) : ((((4. Gr. B : 5. Gr. A) : (4. Gr. B : 5. Gr. A)) : ((4. Gr. B : 5. Gr. A) : (4. Gr. B : 5. Gr. A))) : (((4. Gr. B : 5. Gr. A) : (4. Gr. B : 5. Gr. A)) : ((4. Gr. B : 5. Gr. A) : (4. Gr. B : 5. Gr. A))))) : (((((4. Gr. B : 5. Gr. A) : (4. Gr. B : 5. Gr. A)) : ((4. Gr. B : 5. Gr. A) : (4. Gr. B : 5. Gr. A))) : (((4. Gr. B : 5. Gr. A) : (4. Gr. B : 5. Gr. A)) : ((4. Gr. B : 5. Gr. A) : (4. Gr. B : 5. Gr. A)))) : ((((4. Gr. B : 5. Gr. A) : (4. Gr. B : 5. Gr. A)) : ((4. Gr. B : 5. Gr. A) : (4. Gr. B : 5. Gr. A))) : (((4. Gr. B : 5. Gr. A) : (4. Gr. B : 5. Gr. A)) : ((4. Gr. B : 5. Gr. A) : (4. Gr. B : 5. Gr. A))))))
O135: =INDEX(tbl_KO_Data[T2 Src Rank],K130) & ". Gr. " & INDEX(tbl_KO_Data[T2 Src Group],K130) -> 5. Gr. A | AZ135: 30 | BA135: =IF(AX132>AX134,AU134,IF(AX132<AX134,AU132,"")) -> 
G138: 11 | H138: 21 | I138: 41 | K138: =KO_Data_1row+INDEX(D138:I138,KO_Rounds_Ind) -> 295 | Q138: K_64_A41 | R138: field x | S138: best of n | T138: 0 | V138: K_32_A21 | W138: field x | X138: best of n | Y138: 0 | AA138: K_16_A11 | AB138: field x | AC138: best of n | AD138: 0 | AF138: K_08_B6 | AG138: field x | AH138: best of n | AI138: 0 | AK138: K_04_D3 | AL138: field x | AM138: best of n | AN138: 0 | AP138: K_02_H2 | AQ138: field x | AR138: best of n | AS138: 0 | AU138: K_01_031 | AV138: field x | AW138: best of n | AX138: 0
O139: =INDEX(tbl_KO_Data[T1 Src Rank],K138) & ". Gr. " & INDEX(tbl_KO_Data[T1 Src Group],K138) -> 4. Gr. B | AZ139: 31 | BA139: =IF(AX140>AX142,AU140,IF(AX140<AX142,AU142,"")) -> 
Q140: =O139 -> 4. Gr. B | V140: =IF($V$16,O139,CHOOSE(SIGN(T262-T260)+2,Q260,"("&Q260&" : "&Q262&")",Q262)) -> (4. Gr. B : 5. Gr. A) | AA140: =IF($AA$16,O139,CHOOSE(SIGN(Y262-Y260)+2,V260,"("&V260&" : "&V262&")",V262)) -> ((4. Gr. B : 5. Gr. A) : (4. Gr. B : 5. Gr. A)) | AF140: =CHOOSE(SIGN(AD132-AD134)+2,AA132,"("&AA132&" : "&AA134&")",AA134) -> (((4. Gr. B : 5. Gr. A) : (4. Gr. B : 5. Gr. A)) : ((4. Gr. B : 5. Gr. A) : (4. Gr. B : 5. Gr. A))) | AK140: =CHOOSE(SIGN(AI132-AI134)+2,AF132,"("&AF132&" : "&AF134&")",AF134) -> ((((4. Gr. B : 5. Gr. A) : (4. Gr. B : 5. Gr. A)) : ((4. Gr. B : 5. Gr. A) : (4. Gr. B : 5. Gr. A))) : (((4. Gr. B : 5. Gr. A) : (4. Gr. B : 5. Gr. A)) : ((4. Gr. B : 5. Gr. A) : (4. Gr. B : 5. Gr. A)))) | AP140: =CHOOSE(SIGN(AN132-AN134)+2,AK132,"("&AK132&" : "&AK134&")",AK134) -> (((((4. Gr. B : 5. Gr. A) : (4. Gr. B : 5. Gr. A)) : ((4. Gr. B : 5. Gr. A) : (4. Gr. B : 5. Gr. A))) : (((4. Gr. B : 5. Gr. A) : (4. Gr. B : 5. Gr. A)) : ((4. Gr. B : 5. Gr. A) : (4. Gr. B : 5. Gr. A)))) : ((((4. Gr. B : 5. Gr. A) : (4. Gr. B : 5. Gr. A)) : ((4. Gr. B : 5. Gr. A) : (4. Gr. B : 5. Gr. A))) : (((4. Gr. B : 5. Gr. A) : (4. Gr. B : 5. Gr. A)) : ((4. Gr. B : 5. Gr. A) : (4. Gr. B : 5. Gr. A))))) | AU140: =CHOOSE(SIGN(AS132-AS134)+2,AP132,"("&AP132&" : "&AP134&")",AP134) -> ((((((1. Gr. A : 4. Gr. B) : (2. Gr. D : 3. Gr. C)) : ((1. Gr. C : 4. Gr. D) : (2. Gr. B : 3. Gr. A))) : (((1. Gr. B : 4. Gr. C) : (2. Gr. A : 3. Gr. D)) : ((1. Gr. D : 4. Gr. A) : (2. Gr. C : 3. Gr. B)))) : ((((4. Gr. B : 5. Gr. A) : (4. Gr. B : 5. Gr. A)) : ((4. Gr. B : 5. Gr. A) : (4. Gr. B : 5. Gr. A))) : (((4. Gr. B : 5. Gr. A) : (4. Gr. B : 5. Gr. A)) : ((4. Gr. B : 5. Gr. A) : (4. Gr. B : 5. Gr. A))))) : (((((4. Gr. B : 5. Gr. A) : (4. Gr. B : 5. Gr. A)) : ((4. Gr. B : 5. Gr. A) : (4. Gr. B : 5. Gr. A))) : (((4. Gr. B : 5. Gr. A) : (4. Gr. B : 5. Gr. A)) : ((4. Gr. B : 5. Gr. A) : (4. Gr. B : 5. Gr. A)))) : ((((4. Gr. B : 5. Gr. A) : (4. Gr. B : 5. Gr. A)) : ((4. Gr. B : 5. Gr. A) : (4. Gr. B : 5. Gr. A))) : (((4. Gr. B : 5. Gr. A) : (4. Gr. B : 5. Gr. A)) : ((4. Gr. B : 5. Gr. A) : (4. Gr. B : 5. Gr. A))))))
Q142: =O143 -> 5. Gr. A | V142: =IF($V$16,O143,CHOOSE(SIGN(T270-T268)+2,Q268,"("&Q268&" : "&Q270&")",Q270)) -> (4. Gr. B : 5. Gr. A) | AA142: =IF($AA$16,O143,CHOOSE(SIGN(Y270-Y268)+2,V268,"("&V268&" : "&V270&")",V270)) -> ((4. Gr. B : 5. Gr. A) : (4. Gr. B : 5. Gr. A)) | AF142: =CHOOSE(SIGN(AD140-AD142)+2,AA140,"("&AA140&" : "&AA142&")",AA142) -> (((4. Gr. B : 5. Gr. A) : (4. Gr. B : 5. Gr. A)) : ((4. Gr. B : 5. Gr. A) : (4. Gr. B : 5. Gr. A))) | AK142: =CHOOSE(SIGN(AI140-AI142)+2,AF140,"("&AF140&" : "&AF142&")",AF142) -> ((((4. Gr. B : 5. Gr. A) : (4. Gr. B : 5. Gr. A)) : ((4. Gr. B : 5. Gr. A) : (4. Gr. B : 5. Gr. A))) : (((4. Gr. B : 5. Gr. A) : (4. Gr. B : 5. Gr. A)) : ((4. Gr. B : 5. Gr. A) : (4. Gr. B : 5. Gr. A)))) | AP142: =CHOOSE(SIGN(AN140-AN142)+2,AK140,"("&AK140&" : "&AK142&")",AK142) -> (((((4. Gr. B : 5. Gr. A) : (4. Gr. B : 5. Gr. A)) : ((4. Gr. B : 5. Gr. A) : (4. Gr. B : 5. Gr. A))) : (((4. Gr. B : 5. Gr. A) : (4. Gr. B : 5. Gr. A)) : ((4. Gr. B : 5. Gr. A) : (4. Gr. B : 5. Gr. A)))) : ((((4. Gr. B : 5. Gr. A) : (4. Gr. B : 5. Gr. A)) : ((4. Gr. B : 5. Gr. A) : (4. Gr. B : 5. Gr. A))) : (((4. Gr. B : 5. Gr. A) : (4. Gr. B : 5. Gr. A)) : ((4. Gr. B : 5. Gr. A) : (4. Gr. B : 5. Gr. A))))) | AU142: =CHOOSE(SIGN(AS140-AS142)+2,AP140,"("&AP140&" : "&AP142&")",AP142) -> ((((((4. Gr. B : 5. Gr. A) : (4. Gr. B : 5. Gr. A)) : ((4. Gr. B : 5. Gr. A) : (4. Gr. B : 5. Gr. A))) : (((4. Gr. B : 5. Gr. A) : (4. Gr. B : 5. Gr. A)) : ((4. Gr. B : 5. Gr. A) : (4. Gr. B : 5. Gr. A)))) : ((((4. Gr. B : 5. Gr. A) : (4. Gr. B : 5. Gr. A)) : ((4. Gr. B : 5. Gr. A) : (4. Gr. B : 5. Gr. A))) : (((4. Gr. B : 5. Gr. A) : (4. Gr. B : 5. Gr. A)) : ((4. Gr. B : 5. Gr. A) : (4. Gr. B : 5. Gr. A))))) : (((((4. Gr. B : 5. Gr. A) : (4. Gr. B : 5. Gr. A)) : ((4. Gr. B : 5. Gr. A) : (4. Gr. B : 5. Gr. A))) : (((4. Gr. B : 5. Gr. A) : (4. Gr. B : 5. Gr. A)) : ((4. Gr. B : 5. Gr. A) : (4. Gr. B : 5. Gr. A)))) : ((((4. Gr. B : 5. Gr. A) : (4. Gr. B : 5. Gr. A)) : ((4. Gr. B : 5. Gr. A) : (4. Gr. B : 5. Gr. A))) : (((4. Gr. B : 5. Gr. A) : (4. Gr. B : 5. Gr. A)) : ((4. Gr. B : 5. Gr. A) : (4. Gr. B : 5. Gr. A))))))
O143: =INDEX(tbl_KO_Data[T2 Src Rank],K138) & ". Gr. " & INDEX(tbl_KO_Data[T2 Src Group],K138) -> 5. Gr. A | AZ143: 32 | BA143: =IF(AX140>AX142,AU142,IF(AX140<AX142,AU140,"")) -> 
H146: 2 | I146: 4 | K146: =KO_Data_1row+INDEX(D146:I146,KO_Rounds_Ind) -> 295 | Q146: K_64_A04 | R146: field x | S146: best of n | T146: 0 | V146: K_32_A02 | W146: field x | X146: best of n | Y146: 0 | AA146: K_16_B01 | AB146: field x | AC146: best of n | AD146: 0 | AF146: K_08_C1 | AG146: field x | AH146: best of n | AI146: 0 | AK146: K_04_E1 | AL146: field x | AM146: best of n | AN146: 0 | AP146: K_02_I1 | AQ146: field x | AR146: best of n | AS146: 0 | AU146: K_01_033 | AV146: field x | AW146: best of n | AX146: 0
O147: =INDEX(tbl_KO_Data[T1 Src Rank],K146) & ". Gr. " & INDEX(tbl_KO_Data[T1 Src Group],K146) -> 4. Gr. B | AZ147: 33 | BA147: =IF(AX148>AX150,AU148,IF(AX148<AX150,AU150,"")) -> 
Q148: =O147 -> 4. Gr. B | V148: =IF($V$16,O147,CHOOSE(SIGN(T278-T276)+2,Q276,"("&Q276&" : "&Q278&")",Q278)) -> (4. Gr. B : 5. Gr. A) | AA148: =CHOOSE(SIGN(Y20-Y22)+2,V20,"("&V20&" : "&V22&")",V22) -> ((1. Gr. A : 4. Gr. B) : (2. Gr. D : 3. Gr. C)) | AF148: =CHOOSE(SIGN(AD150-AD148)+2,AA148,"("&AA148&" : "&AA150&")",AA150) -> (((1. Gr. A : 4. Gr. B) : (2. Gr. D : 3. Gr. C)) : ((1. Gr. C : 4. Gr. D) : (2. Gr. B : 3. Gr. A))) | AK148: =CHOOSE(SIGN(AI150-AI148)+2,AF148,"("&AF148&" : "&AF150&")",AF150) -> ((((1. Gr. A : 4. Gr. B) : (2. Gr. D : 3. Gr. C)) : ((1. Gr. C : 4. Gr. D) : (2. Gr. B : 3. Gr. A))) : (((1. Gr. B : 4. Gr. C) : (2. Gr. A : 3. Gr. D)) : ((1. Gr. D : 4. Gr. A) : (2. Gr. C : 3. Gr. B)))) | AP148: =CHOOSE(SIGN(AN150-AN148)+2,AK148,"("&AK148&" : "&AK150&")",AK150) -> (((((1. Gr. A : 4. Gr. B) : (2. Gr. D : 3. Gr. C)) : ((1. Gr. C : 4. Gr. D) : (2. Gr. B : 3. Gr. A))) : (((1. Gr. B : 4. Gr. C) : (2. Gr. A : 3. Gr. D)) : ((1. Gr. D : 4. Gr. A) : (2. Gr. C : 3. Gr. B)))) : ((((4. Gr. B : 5. Gr. A) : (4. Gr. B : 5. Gr. A)) : ((4. Gr. B : 5. Gr. A) : (4. Gr. B : 5. Gr. A))) : (((4. Gr. B : 5. Gr. A) : (4. Gr. B : 5. Gr. A)) : ((4. Gr. B : 5. Gr. A) : (4. Gr. B : 5. Gr. A))))) | AU148: =CHOOSE(SIGN(AS150-AS148)+2,AP148,"("&AP148&" : "&AP150&")",AP150) -> ((((((1. Gr. A : 4. Gr. B) : (2. Gr. D : 3. Gr. C)) : ((1. Gr. C : 4. Gr. D) : (2. Gr. B : 3. Gr. A))) : (((1. Gr. B : 4. Gr. C) : (2. Gr. A : 3. Gr. D)) : ((1. Gr. D : 4. Gr. A) : (2. Gr. C : 3. Gr. B)))) : ((((4. Gr. B : 5. Gr. A) : (4. Gr. B : 5. Gr. A)) : ((4. Gr. B : 5. Gr. A) : (4. Gr. B : 5. Gr. A))) : (((4. Gr. B : 5. Gr. A) : (4. Gr. B : 5. Gr. A)) : ((4. Gr. B : 5. Gr. A) : (4. Gr. B : 5. Gr. A))))) : (((((4. Gr. B : 5. Gr. A) : (4. Gr. B : 5. Gr. A)) : ((4. Gr. B : 5. Gr. A) : (4. Gr. B : 5. Gr. A))) : (((4. Gr. B : 5. Gr. A) : (4. Gr. B : 5. Gr. A)) : ((4. Gr. B : 5. Gr. A) : (4. Gr. B : 5. Gr. A)))) : ((((4. Gr. B : 5. Gr. A) : (4. Gr. B : 5. Gr. A)) : ((4. Gr. B : 5. Gr. A) : (4. Gr. B : 5. Gr. A))) : (((4. Gr. B : 5. Gr. A) : (4. Gr. B : 5. Gr. A)) : ((4. Gr. B : 5. Gr. A) : (4. Gr. B : 5. Gr. A))))))
Q150: =O151 -> 5. Gr. A | V150: =IF($V$16,O151,CHOOSE(SIGN(T286-T284)+2,Q284,"("&Q284&" : "&Q286&")",Q286)) -> (4. Gr. B : 5. Gr. A) | AA150: =CHOOSE(SIGN(Y28-Y30)+2,V28,"("&V28&" : "&V30&")",V30) -> ((1. Gr. C : 4. Gr. D) : (2. Gr. B : 3. Gr. A)) | AF150: =CHOOSE(SIGN(AD158-AD156)+2,AA156,"("&AA156&" : "&AA158&")",AA158) -> (((1. Gr. B : 4. Gr. C) : (2. Gr. A : 3. Gr. D)) : ((1. Gr. D : 4. Gr. A) : (2. Gr. C : 3. Gr. B))) | AK150: =CHOOSE(SIGN(AI158-AI156)+2,AF156,"("&AF156&" : "&AF158&")",AF158) -> ((((4. Gr. B : 5. Gr. A) : (4. Gr. B : 5. Gr. A)) : ((4. Gr. B : 5. Gr. A) : (4. Gr. B : 5. Gr. A))) : (((4. Gr. B : 5. Gr. A) : (4. Gr. B : 5. Gr. A)) : ((4. Gr. B : 5. Gr. A) : (4. Gr. B : 5. Gr. A)))) | AP150: =CHOOSE(SIGN(AN158-AN156)+2,AK156,"("&AK156&" : "&AK158&")",AK158) -> (((((4. Gr. B : 5. Gr. A) : (4. Gr. B : 5. Gr. A)) : ((4. Gr. B : 5. Gr. A) : (4. Gr. B : 5. Gr. A))) : (((4. Gr. B : 5. Gr. A) : (4. Gr. B : 5. Gr. A)) : ((4. Gr. B : 5. Gr. A) : (4. Gr. B : 5. Gr. A)))) : ((((4. Gr. B : 5. Gr. A) : (4. Gr. B : 5. Gr. A)) : ((4. Gr. B : 5. Gr. A) : (4. Gr. B : 5. Gr. A))) : (((4. Gr. B : 5. Gr. A) : (4. Gr. B : 5. Gr. A)) : ((4. Gr. B : 5. Gr. A) : (4. Gr. B : 5. Gr. A))))) | AU150: =CHOOSE(SIGN(AS158-AS156)+2,AP156,"("&AP156&" : "&AP158&")",AP158) -> ((((((4. Gr. B : 5. Gr. A) : (4. Gr. B : 5. Gr. A)) : ((4. Gr. B : 5. Gr. A) : (4. Gr. B : 5. Gr. A))) : (((4. Gr. B : 5. Gr. A) : (4. Gr. B : 5. Gr. A)) : ((4. Gr. B : 5. Gr. A) : (4. Gr. B : 5. Gr. A)))) : ((((4. Gr. B : 5. Gr. A) : (4. Gr. B : 5. Gr. A)) : ((4. Gr. B : 5. Gr. A) : (4. Gr. B : 5. Gr. A))) : (((4. Gr. B : 5. Gr. A) : (4. Gr. B : 5. Gr. A)) : ((4. Gr. B : 5. Gr. A) : (4. Gr. B : 5. Gr. A))))) : (((((4. Gr. B : 5. Gr. A) : (4. Gr. B : 5. Gr. A)) : ((4. Gr. B : 5. Gr. A) : (4. Gr. B : 5. Gr. A))) : (((4. Gr. B : 5. Gr. A) : (4. Gr. B : 5. Gr. A)) : ((4. Gr. B : 5. Gr. A) : (4. Gr. B : 5. Gr. A)))) : ((((4. Gr. B : 5. Gr. A) : (4. Gr. B : 5. Gr. A)) : ((4. Gr. B : 5. Gr. A) : (4. Gr. B : 5. Gr. A))) : (((4. Gr. B : 5. Gr. A) : (4. Gr. B : 5. Gr. A)) : ((4. Gr. B : 5. Gr. A) : (4. Gr. B : 5. Gr. A))))))
O151: =INDEX(tbl_KO_Data[T2 Src Rank],K146) & ". Gr. " & INDEX(tbl_KO_Data[T2 Src Group],K146) -> 5. Gr. A | AZ151: 34 | BA151: =IF(AX148>AX150,AU150,IF(AX148<AX150,AU148,"")) -> 
H154: 31 | I154: 61 | K154: =KO_Data_1row+INDEX(D154:I154,KO_Rounds_Ind) -> 295 | Q154: K_64_A61 | R154: field x | S154: best of n | T154: 0 | V154: K_32_A31 | W154: field x | X154: best of n | Y154: 0 | AA154: K_16_B16 | AB154: field x | AC154: best of n | AD154: 0 | AF154: K_08_C8 | AG154: field x | AH154: best of n | AI154: 0 | AK154: K_04_E4 | AL154: field x | AM154: best of n | AN154: 0 | AP154: K_02_I2 | AQ154: field x | AR154: best of n | AS154: 0 | AU154: K_01_035 | AV154: field x | AW154: best of n | AX154: 0
O155: =INDEX(tbl_KO_Data[T1 Src Rank],K154) & ". Gr. " & INDEX(tbl_KO_Data[T1 Src Group],K154) -> 4. Gr. B | AZ155: 35 | BA155: =IF(AX156>AX158,AU156,IF(AX156<AX158,AU158,"")) -> 
Q156: =O155 -> 4. Gr. B | V156: =IF($V$16,O155,CHOOSE(SIGN(T294-T292)+2,Q292,"("&Q292&" : "&Q294&")",Q294)) -> (4. Gr. B : 5. Gr. A) | AA156: =CHOOSE(SIGN(Y36-Y38)+2,V36,"("&V36&" : "&V38&")",V38) -> ((1. Gr. B : 4. Gr. C) : (2. Gr. A : 3. Gr. D)) | AF156: =CHOOSE(SIGN(AD166-AD164)+2,AA164,"("&AA164&" : "&AA166&")",AA166) -> (((4. Gr. B : 5. Gr. A) : (4. Gr. B : 5. Gr. A)) : ((4. Gr. B : 5. Gr. A) : (4. Gr. B : 5. Gr. A))) | AK156: =CHOOSE(SIGN(AI166-AI164)+2,AF164,"("&AF164&" : "&AF166&")",AF166) -> ((((4. Gr. B : 5. Gr. A) : (4. Gr. B : 5. Gr. A)) : ((4. Gr. B : 5. Gr. A) : (4. Gr. B : 5. Gr. A))) : (((4. Gr. B : 5. Gr. A) : (4. Gr. B : 5. Gr. A)) : ((4. Gr. B : 5. Gr. A) : (4. Gr. B : 5. Gr. A)))) | AP156: =CHOOSE(SIGN(AN166-AN164)+2,AK164,"("&AK164&" : "&AK166&")",AK166) -> (((((4. Gr. B : 5. Gr. A) : (4. Gr. B : 5. Gr. A)) : ((4. Gr. B : 5. Gr. A) : (4. Gr. B : 5. Gr. A))) : (((4. Gr. B : 5. Gr. A) : (4. Gr. B : 5. Gr. A)) : ((4. Gr. B : 5. Gr. A) : (4. Gr. B : 5. Gr. A)))) : ((((4. Gr. B : 5. Gr. A) : (4. Gr. B : 5. Gr. A)) : ((4. Gr. B : 5. Gr. A) : (4. Gr. B : 5. Gr. A))) : (((4. Gr. B : 5. Gr. A) : (4. Gr. B : 5. Gr. A)) : ((4. Gr. B : 5. Gr. A) : (4. Gr. B : 5. Gr. A))))) | AU156: =CHOOSE(SIGN(AS148-AS150)+2,AP148,"("&AP148&" : "&AP150&")",AP150) -> ((((((1. Gr. A : 4. Gr. B) : (2. Gr. D : 3. Gr. C)) : ((1. Gr. C : 4. Gr. D) : (2. Gr. B : 3. Gr. A))) : (((1. Gr. B : 4. Gr. C) : (2. Gr. A : 3. Gr. D)) : ((1. Gr. D : 4. Gr. A) : (2. Gr. C : 3. Gr. B)))) : ((((4. Gr. B : 5. Gr. A) : (4. Gr. B : 5. Gr. A)) : ((4. Gr. B : 5. Gr. A) : (4. Gr. B : 5. Gr. A))) : (((4. Gr. B : 5. Gr. A) : (4. Gr. B : 5. Gr. A)) : ((4. Gr. B : 5. Gr. A) : (4. Gr. B : 5. Gr. A))))) : (((((4. Gr. B : 5. Gr. A) : (4. Gr. B : 5. Gr. A)) : ((4. Gr. B : 5. Gr. A) : (4. Gr. B : 5. Gr. A))) : (((4. Gr. B : 5. Gr. A) : (4. Gr. B : 5. Gr. A)) : ((4. Gr. B : 5. Gr. A) : (4. Gr. B : 5. Gr. A)))) : ((((4. Gr. B : 5. Gr. A) : (4. Gr. B : 5. Gr. A)) : ((4. Gr. B : 5. Gr. A) : (4. Gr. B : 5. Gr. A))) : (((4. Gr. B : 5. Gr. A) : (4. Gr. B : 5. Gr. A)) : ((4. Gr. B : 5. Gr. A) : (4. Gr. B : 5. Gr. A))))))
Q158: =O159 -> 5. Gr. A | V158: =IF($V$16,O159,CHOOSE(SIGN(T302-T300)+2,Q300,"("&Q300&" : "&Q302&")",Q302)) -> (4. Gr. B : 5. Gr. A) | AA158: =CHOOSE(SIGN(Y44-Y46)+2,V44,"("&V44&" : "&V46&")",V46) -> ((1. Gr. D : 4. Gr. A) : (2. Gr. C : 3. Gr. B)) | AF158: =CHOOSE(SIGN(AD174-AD172)+2,AA172,"("&AA172&" : "&AA174&")",AA174) -> (((4. Gr. B : 5. Gr. A) : (4. Gr. B : 5. Gr. A)) : ((4. Gr. B : 5. Gr. A) : (4. Gr. B : 5. Gr. A))) | AK158: =CHOOSE(SIGN(AI174-AI172)+2,AF172,"("&AF172&" : "&AF174&")",AF174) -> ((((4. Gr. B : 5. Gr. A) : (4. Gr. B : 5. Gr. A)) : ((4. Gr. B : 5. Gr. A) : (4. Gr. B : 5. Gr. A))) : (((4. Gr. B : 5. Gr. A) : (4. Gr. B : 5. Gr. A)) : ((4. Gr. B : 5. Gr. A) : (4. Gr. B : 5. Gr. A)))) | AP158: =CHOOSE(SIGN(AN174-AN172)+2,AK172,"("&AK172&" : "&AK174&")",AK174) -> (((((4. Gr. B : 5. Gr. A) : (4. Gr. B : 5. Gr. A)) : ((4. Gr. B : 5. Gr. A) : (4. Gr. B : 5. Gr. A))) : (((4. Gr. B : 5. Gr. A) : (4. Gr. B : 5. Gr. A)) : ((4. Gr. B : 5. Gr. A) : (4. Gr. B : 5. Gr. A)))) : ((((4. Gr. B : 5. Gr. A) : (4. Gr. B : 5. Gr. A)) : ((4. Gr. B : 5. Gr. A) : (4. Gr. B : 5. Gr. A))) : (((4. Gr. B : 5. Gr. A) : (4. Gr. B : 5. Gr. A)) : ((4. Gr. B : 5. Gr. A) : (4. Gr. B : 5. Gr. A))))) | AU158: =CHOOSE(SIGN(AS156-AS158)+2,AP156,"("&AP156&" : "&AP158&")",AP158) -> ((((((4. Gr. B : 5. Gr. A) : (4. Gr. B : 5. Gr. A)) : ((4. Gr. B : 5. Gr. A) : (4. Gr. B : 5. Gr. A))) : (((4. Gr. B : 5. Gr. A) : (4. Gr. B : 5. Gr. A)) : ((4. Gr. B : 5. Gr. A) : (4. Gr. B : 5. Gr. A)))) : ((((4. Gr. B : 5. Gr. A) : (4. Gr. B : 5. Gr. A)) : ((4. Gr. B : 5. Gr. A) : (4. Gr. B : 5. Gr. A))) : (((4. Gr. B : 5. Gr. A) : (4. Gr. B : 5. Gr. A)) : ((4. Gr. B : 5. Gr. A) : (4. Gr. B : 5. Gr. A))))) : (((((4. Gr. B : 5. Gr. A) : (4. Gr. B : 5. Gr. A)) : ((4. Gr. B : 5. Gr. A) : (4. Gr. B : 5. Gr. A))) : (((4. Gr. B : 5. Gr. A) : (4. Gr. B : 5. Gr. A)) : ((4. Gr. B : 5. Gr. A) : (4. Gr. B : 5. Gr. A)))) : ((((4. Gr. B : 5. Gr. A) : (4. Gr. B : 5. Gr. A)) : ((4. Gr. B : 5. Gr. A) : (4. Gr. B : 5. Gr. A))) : (((4. Gr. B : 5. Gr. A) : (4. Gr. B : 5. Gr. A)) : ((4. Gr. B : 5. Gr. A) : (4. Gr. B : 5. Gr. A))))))
O159: =INDEX(tbl_KO_Data[T2 Src Rank],K154) & ". Gr. " & INDEX(tbl_KO_Data[T2 Src Group],K154) -> 5. Gr. A | AZ159: 36 | BA159: =IF(AX156>AX158,AU158,IF(AX156<AX158,AU156,"")) -> 
H162: 15 | I162: 29 | K162: =KO_Data_1row+INDEX(D162:I162,KO_Rounds_Ind) -> 295 | Q162: K_64_A29 | R162: field x | S162: best of n | T162: 0 | V162: K_32_A15 | W162: field x | X162: best of n | Y162: 0 | AA162: K_16_B08 | AB162: field x | AC162: best of n | AD162: 0 | AF162: K_08_C4 | AG162: field x | AH162: best of n | AI162: 0 | AK162: K_04_E2 | AL162: field x | AM162: best of n | AN162: 0 | AP162: K_02_J1 | AQ162: field x | AR162: best of n | AS162: 0 | AU162: K_01_037 | AV162: field x | AW162: best of n | AX162: 0
O163: =INDEX(tbl_KO_Data[T1 Src Rank],K162) & ". Gr. " & INDEX(tbl_KO_Data[T1 Src Group],K162) -> 4. Gr. B | AZ163: 37 | BA163: =IF(AX164>AX166,AU164,IF(AX164<AX166,AU166,"")) -> 
Q164: =O163 -> 4. Gr. B | V164: =IF($V$16,O163,CHOOSE(SIGN(T310-T308)+2,Q308,"("&Q308&" : "&Q310&")",Q310)) -> (4. Gr. B : 5. Gr. A) | AA164: =CHOOSE(SIGN(Y52-Y54)+2,V52,"("&V52&" : "&V54&")",V54) -> ((4. Gr. B : 5. Gr. A) : (4. Gr. B : 5. Gr. A)) | AF164: =CHOOSE(SIGN(AD182-AD180)+2,AA180,"("&AA180&" : "&AA182&")",AA182) -> (((4. Gr. B : 5. Gr. A) : (4. Gr. B : 5. Gr. A)) : ((4. Gr. B : 5. Gr. A) : (4. Gr. B : 5. Gr. A))) | AK164: =CHOOSE(SIGN(AI182-AI180)+2,AF180,"("&AF180&" : "&AF182&")",AF182) -> ((((4. Gr. B : 5. Gr. A) : (4. Gr. B : 5. Gr. A)) : ((4. Gr. B : 5. Gr. A) : (4. Gr. B : 5. Gr. A))) : (((4. Gr. B : 5. Gr. A) : (4. Gr. B : 5. Gr. A)) : ((4. Gr. B : 5. Gr. A) : (4. Gr. B : 5. Gr. A)))) | AP164: =CHOOSE(SIGN(AN148-AN150)+2,AK148,"("&AK148&" : "&AK150&")",AK150) -> (((((1. Gr. A : 4. Gr. B) : (2. Gr. D : 3. Gr. C)) : ((1. Gr. C : 4. Gr. D) : (2. Gr. B : 3. Gr. A))) : (((1. Gr. B : 4. Gr. C) : (2. Gr. A : 3. Gr. D)) : ((1. Gr. D : 4. Gr. A) : (2. Gr. C : 3. Gr. B)))) : ((((4. Gr. B : 5. Gr. A) : (4. Gr. B : 5. Gr. A)) : ((4. Gr. B : 5. Gr. A) : (4. Gr. B : 5. Gr. A))) : (((4. Gr. B : 5. Gr. A) : (4. Gr. B : 5. Gr. A)) : ((4. Gr. B : 5. Gr. A) : (4. Gr. B : 5. Gr. A))))) | AU164: =CHOOSE(SIGN(AS166-AS164)+2,AP164,"("&AP164&" : "&AP166&")",AP166) -> ((((((1. Gr. A : 4. Gr. B) : (2. Gr. D : 3. Gr. C)) : ((1. Gr. C : 4. Gr. D) : (2. Gr. B : 3. Gr. A))) : (((1. Gr. B : 4. Gr. C) : (2. Gr. A : 3. Gr. D)) : ((1. Gr. D : 4. Gr. A) : (2. Gr. C : 3. Gr. B)))) : ((((4. Gr. B : 5. Gr. A) : (4. Gr. B : 5. Gr. A)) : ((4. Gr. B : 5. Gr. A) : (4. Gr. B : 5. Gr. A))) : (((4. Gr. B : 5. Gr. A) : (4. Gr. B : 5. Gr. A)) : ((4. Gr. B : 5. Gr. A) : (4. Gr. B : 5. Gr. A))))) : (((((4. Gr. B : 5. Gr. A) : (4. Gr. B : 5. Gr. A)) : ((4. Gr. B : 5. Gr. A) : (4. Gr. B : 5. Gr. A))) : (((4. Gr. B : 5. Gr. A) : (4. Gr. B : 5. Gr. A)) : ((4. Gr. B : 5. Gr. A) : (4. Gr. B : 5. Gr. A)))) : ((((4. Gr. B : 5. Gr. A) : (4. Gr. B : 5. Gr. A)) : ((4. Gr. B : 5. Gr. A) : (4. Gr. B : 5. Gr. A))) : (((4. Gr. B : 5. Gr. A) : (4. Gr. B : 5. Gr. A)) : ((4. Gr. B : 5. Gr. A) : (4. Gr. B : 5. Gr. A))))))
Q166: =O167 -> 5. Gr. A | V166: =IF($V$16,O167,CHOOSE(SIGN(T318-T316)+2,Q316,"("&Q316&" : "&Q318&")",Q318)) -> (4. Gr. B : 5. Gr. A) | AA166: =CHOOSE(SIGN(Y60-Y62)+2,V60,"("&V60&" : "&V62&")",V62) -> ((4. Gr. B : 5. Gr. A) : (4. Gr. B : 5. Gr. A)) | AF166: =CHOOSE(SIGN(AD190-AD188)+2,AA188,"("&AA188&" : "&AA190&")",AA190) -> (((4. Gr. B : 5. Gr. A) : (4. Gr. B : 5. Gr. A)) : ((4. Gr. B : 5. Gr. A) : (4. Gr. B : 5. Gr. A))) | AK166: =CHOOSE(SIGN(AI190-AI188)+2,AF188,"("&AF188&" : "&AF190&")",AF190) -> ((((4. Gr. B : 5. Gr. A) : (4. Gr. B : 5. Gr. A)) : ((4. Gr. B : 5. Gr. A) : (4. Gr. B : 5. Gr. A))) : (((4. Gr. B : 5. Gr. A) : (4. Gr. B : 5. Gr. A)) : ((4. Gr. B : 5. Gr. A) : (4. Gr. B : 5. Gr. A)))) | AP166: =CHOOSE(SIGN(AN156-AN158)+2,AK156,"("&AK156&" : "&AK158&")",AK158) -> (((((4. Gr. B : 5. Gr. A) : (4. Gr. B : 5. Gr. A)) : ((4. Gr. B : 5. Gr. A) : (4. Gr. B : 5. Gr. A))) : (((4. Gr. B : 5. Gr. A) : (4. Gr. B : 5. Gr. A)) : ((4. Gr. B : 5. Gr. A) : (4. Gr. B : 5. Gr. A)))) : ((((4. Gr. B : 5. Gr. A) : (4. Gr. B : 5. Gr. A)) : ((4. Gr. B : 5. Gr. A) : (4. Gr. B : 5. Gr. A))) : (((4. Gr. B : 5. Gr. A) : (4. Gr. B : 5. Gr. A)) : ((4. Gr. B : 5. Gr. A) : (4. Gr. B : 5. Gr. A))))) | AU166: =CHOOSE(SIGN(AS174-AS172)+2,AP172,"("&AP172&" : "&AP174&")",AP174) -> ((((((4. Gr. B : 5. Gr. A) : (4. Gr. B : 5. Gr. A)) : ((4. Gr. B : 5. Gr. A) : (4. Gr. B : 5. Gr. A))) : (((4. Gr. B : 5. Gr. A) : (4. Gr. B : 5. Gr. A)) : ((4. Gr. B : 5. Gr. A) : (4. Gr. B : 5. Gr. A)))) : ((((4. Gr. B : 5. Gr. A) : (4. Gr. B : 5. Gr. A)) : ((4. Gr. B : 5. Gr. A) : (4. Gr. B : 5. Gr. A))) : (((4. Gr. B : 5. Gr. A) : (4. Gr. B : 5. Gr. A)) : ((4. Gr. B : 5. Gr. A) : (4. Gr. B : 5. Gr. A))))) : (((((4. Gr. B : 5. Gr. A) : (4. Gr. B : 5. Gr. A)) : ((4. Gr. B : 5. Gr. A) : (4. Gr. B : 5. Gr. A))) : (((4. Gr. B : 5. Gr. A) : (4. Gr. B : 5. Gr. A)) : ((4. Gr. B : 5. Gr. A) : (4. Gr. B : 5. Gr. A)))) : ((((4. Gr. B : 5. Gr. A) : (4. Gr. B : 5. Gr. A)) : ((4. Gr. B : 5. Gr. A) : (4. Gr. B : 5. Gr. A))) : (((4. Gr. B : 5. Gr. A) : (4. Gr. B : 5. Gr. A)) : ((4. Gr. B : 5. Gr. A) : (4. Gr. B : 5. Gr. A))))))
O167: =INDEX(tbl_KO_Data[T2 Src Rank],K162) & ". Gr. " & INDEX(tbl_KO_Data[T2 Src Group],K162) -> 5. Gr. A | AZ167: 38 | BA167: =IF(AX164>AX166,AU166,IF(AX164<AX166,AU164,"")) -> 
H170: 18 | I170: 36 | K170: =KO_Data_1row+INDEX(D170:I170,KO_Rounds_Ind) -> 295 | Q170: K_64_A36 | R170: field x | S170: best of n | T170: 0 | V170: K_32_A18 | W170: field x | X170: best of n | Y170: 0 | AA170: K_16_B09 | AB170: field x | AC170: best of n | AD170: 0 | AF170: K_08_C5 | AG170: field x | AH170: best of n | AI170: 0 | AK170: K_04_E3 | AL170: field x | AM170: best of n | AN170: 0 | AP170: K_02_J2 | AQ170: field x | AR170: best of n | AS170: 0 | AU170: K_01_039 | AV170: field x | AW170: best of n | AX170: 0
O171: =INDEX(tbl_KO_Data[T1 Src Rank],K170) & ". Gr. " & INDEX(tbl_KO_Data[T1 Src Group],K170) -> 4. Gr. B | AZ171: 39 | BA171: =IF(AX172>AX174,AU172,IF(AX172<AX174,AU174,"")) -> 
Q172: =O171 -> 4. Gr. B | V172: =IF($V$16,O171,CHOOSE(SIGN(T326-T324)+2,Q324,"("&Q324&" : "&Q326&")",Q326)) -> (4. Gr. B : 5. Gr. A) | AA172: =CHOOSE(SIGN(Y68-Y70)+2,V68,"("&V68&" : "&V70&")",V70) -> ((4. Gr. B : 5. Gr. A) : (4. Gr. B : 5. Gr. A)) | AF172: =CHOOSE(SIGN(AD198-AD196)+2,AA196,"("&AA196&" : "&AA198&")",AA198) -> (((4. Gr. B : 5. Gr. A) : (4. Gr. B : 5. Gr. A)) : ((4. Gr. B : 5. Gr. A) : (4. Gr. B : 5. Gr. A))) | AK172: =CHOOSE(SIGN(AI198-AI196)+2,AF196,"("&AF196&" : "&AF198&")",AF198) -> ((((4. Gr. B : 5. Gr. A) : (4. Gr. B : 5. Gr. A)) : ((4. Gr. B : 5. Gr. A) : (4. Gr. B : 5. Gr. A))) : (((4. Gr. B : 5. Gr. A) : (4. Gr. B : 5. Gr. A)) : ((4. Gr. B : 5. Gr. A) : (4. Gr. B : 5. Gr. A)))) | AP172: =CHOOSE(SIGN(AN164-AN166)+2,AK164,"("&AK164&" : "&AK166&")",AK166) -> (((((4. Gr. B : 5. Gr. A) : (4. Gr. B : 5. Gr. A)) : ((4. Gr. B : 5. Gr. A) : (4. Gr. B : 5. Gr. A))) : (((4. Gr. B : 5. Gr. A) : (4. Gr. B : 5. Gr. A)) : ((4. Gr. B : 5. Gr. A) : (4. Gr. B : 5. Gr. A)))) : ((((4. Gr. B : 5. Gr. A) : (4. Gr. B : 5. Gr. A)) : ((4. Gr. B : 5. Gr. A) : (4. Gr. B : 5. Gr. A))) : (((4. Gr. B : 5. Gr. A) : (4. Gr. B : 5. Gr. A)) : ((4. Gr. B : 5. Gr. A) : (4. Gr. B : 5. Gr. A))))) | AU172: =CHOOSE(SIGN(AS164-AS166)+2,AP164,"("&AP164&" : "&AP166&")",AP166) -> ((((((1. Gr. A : 4. Gr. B) : (2. Gr. D : 3. Gr. C)) : ((1. Gr. C : 4. Gr. D) : (2. Gr. B : 3. Gr. A))) : (((1. Gr. B : 4. Gr. C) : (2. Gr. A : 3. Gr. D)) : ((1. Gr. D : 4. Gr. A) : (2. Gr. C : 3. Gr. B)))) : ((((4. Gr. B : 5. Gr. A) : (4. Gr. B : 5. Gr. A)) : ((4. Gr. B : 5. Gr. A) : (4. Gr. B : 5. Gr. A))) : (((4. Gr. B : 5. Gr. A) : (4. Gr. B : 5. Gr. A)) : ((4. Gr. B : 5. Gr. A) : (4. Gr. B : 5. Gr. A))))) : (((((4. Gr. B : 5. Gr. A) : (4. Gr. B : 5. Gr. A)) : ((4. Gr. B : 5. Gr. A) : (4. Gr. B : 5. Gr. A))) : (((4. Gr. B : 5. Gr. A) : (4. Gr. B : 5. Gr. A)) : ((4. Gr. B : 5. Gr. A) : (4. Gr. B : 5. Gr. A)))) : ((((4. Gr. B : 5. Gr. A) : (4. Gr. B : 5. Gr. A)) : ((4. Gr. B : 5. Gr. A) : (4. Gr. B : 5. Gr. A))) : (((4. Gr. B : 5. Gr. A) : (4. Gr. B : 5. Gr. A)) : ((4. Gr. B : 5. Gr. A) : (4. Gr. B : 5. Gr. A))))))
Q174: =O175 -> 5. Gr. A | V174: =IF($V$16,O175,CHOOSE(SIGN(T334-T332)+2,Q332,"("&Q332&" : "&Q334&")",Q334)) -> (4. Gr. B : 5. Gr. A) | AA174: =CHOOSE(SIGN(Y76-Y78)+2,V76,"("&V76&" : "&V78&")",V78) -> ((4. Gr. B : 5. Gr. A) : (4. Gr. B : 5. Gr. A)) | AF174: =CHOOSE(SIGN(AD206-AD204)+2,AA204,"("&AA204&" : "&AA206&")",AA206) -> (((4. Gr. B : 5. Gr. A) : (4. Gr. B : 5. Gr. A)) : ((4. Gr. B : 5. Gr. A) : (4. Gr. B : 5. Gr. A))) | AK174: =CHOOSE(SIGN(AI206-AI204)+2,AF204,"("&AF204&" : "&AF206&")",AF206) -> ((((4. Gr. B : 5. Gr. A) : (4. Gr. B : 5. Gr. A)) : ((4. Gr. B : 5. Gr. A) : (4. Gr. B : 5. Gr. A))) : (((4. Gr. B : 5. Gr. A) : (4. Gr. B : 5. Gr. A)) : ((4. Gr. B : 5. Gr. A) : (4. Gr. B : 5. Gr. A)))) | AP174: =CHOOSE(SIGN(AN172-AN174)+2,AK172,"("&AK172&" : "&AK174&")",AK174) -> (((((4. Gr. B : 5. Gr. A) : (4. Gr. B : 5. Gr. A)) : ((4. Gr. B : 5. Gr. A) : (4. Gr. B : 5. Gr. A))) : (((4. Gr. B : 5. Gr. A) : (4. Gr. B : 5. Gr. A)) : ((4. Gr. B : 5. Gr. A) : (4. Gr. B : 5. Gr. A)))) : ((((4. Gr. B : 5. Gr. A) : (4. Gr. B : 5. Gr. A)) : ((4. Gr. B : 5. Gr. A) : (4. Gr. B : 5. Gr. A))) : (((4. Gr. B : 5. Gr. A) : (4. Gr. B : 5. Gr. A)) : ((4. Gr. B : 5. Gr. A) : (4. Gr. B : 5. Gr. A))))) | AU174: =CHOOSE(SIGN(AS172-AS174)+2,AP172,"("&AP172&" : "&AP174&")",AP174) -> ((((((4. Gr. B : 5. Gr. A) : (4. Gr. B : 5. Gr. A)) : ((4. Gr. B : 5. Gr. A) : (4. Gr. B : 5. Gr. A))) : (((4. Gr. B : 5. Gr. A) : (4. Gr. B : 5. Gr. A)) : ((4. Gr. B : 5. Gr. A) : (4. Gr. B : 5. Gr. A)))) : ((((4. Gr. B : 5. Gr. A) : (4. Gr. B : 5. Gr. A)) : ((4. Gr. B : 5. Gr. A) : (4. Gr. B : 5. Gr. A))) : (((4. Gr. B : 5. Gr. A) : (4. Gr. B : 5. Gr. A)) : ((4. Gr. B : 5. Gr. A) : (4. Gr. B : 5. Gr. A))))) : (((((4. Gr. B : 5. Gr. A) : (4. Gr. B : 5. Gr. A)) : ((4. Gr. B : 5. Gr. A) : (4. Gr. B : 5. Gr. A))) : (((4. Gr. B : 5. Gr. A) : (4. Gr. B : 5. Gr. A)) : ((4. Gr. B : 5. Gr. A) : (4. Gr. B : 5. Gr. A)))) : ((((4. Gr. B : 5. Gr. A) : (4. Gr. B : 5. Gr. A)) : ((4. Gr. B : 5. Gr. A) : (4. Gr. B : 5. Gr. A))) : (((4. Gr. B : 5. Gr. A) : (4. Gr. B : 5. Gr. A)) : ((4. Gr. B : 5. Gr. A) : (4. Gr. B : 5. Gr. A))))))
O175: =INDEX(tbl_KO_Data[T2 Src Rank],K170) & ". Gr. " & INDEX(tbl_KO_Data[T2 Src Group],K170) -> 5. Gr. A | AZ175: 40 | BA175: =IF(AX172>AX174,AU174,IF(AX172<AX174,AU172,"")) -> 
H178: 7 | I178: 13 | K178: =KO_Data_1row+INDEX(D178:I178,KO_Rounds_Ind) -> 295 | Q178: K_64_A13 | R178: field x | S178: best of n | T178: 0 | V178: K_32_A07 | W178: field x | X178: best of n | Y178: 0 | AA178: K_16_B04 | AB178: field x | AC178: best of n | AD178: 0 | AF178: K_08_C2 | AG178: field x | AH178: best of n | AI178: 0 | AK178: K_04_F1 | AL178: field x | AM178: best of n | AN178: 0 | AP178: K_02_K1 | AQ178: field x | AR178: best of n | AS178: 0 | AU178: K_01_041 | AV178: field x | AW178: best of n | AX178: 0
O179: =INDEX(tbl_KO_Data[T1 Src Rank],K178) & ". Gr. " & INDEX(tbl_KO_Data[T1 Src Group],K178) -> 4. Gr. B | AZ179: 41 | BA179: =IF(AX180>AX182,AU180,IF(AX180<AX182,AU182,"")) -> 
Q180: =O179 -> 4. Gr. B | V180: =IF($V$16,O179,CHOOSE(SIGN(T342-T340)+2,Q340,"("&Q340&" : "&Q342&")",Q342)) -> (4. Gr. B : 5. Gr. A) | AA180: =CHOOSE(SIGN(Y84-Y86)+2,V84,"("&V84&" : "&V86&")",V86) -> ((4. Gr. B : 5. Gr. A) : (4. Gr. B : 5. Gr. A)) | AF180: =CHOOSE(SIGN(AD214-AD212)+2,AA212,"("&AA212&" : "&AA214&")",AA214) -> (((4. Gr. B : 5. Gr. A) : (4. Gr. B : 5. Gr. A)) : ((4. Gr. B : 5. Gr. A) : (4. Gr. B : 5. Gr. A))) | AK180: =CHOOSE(SIGN(AI148-AI150)+2,AF148,"("&AF148&" : "&AF150&")",AF150) -> ((((1. Gr. A : 4. Gr. B) : (2. Gr. D : 3. Gr. C)) : ((1. Gr. C : 4. Gr. D) : (2. Gr. B : 3. Gr. A))) : (((1. Gr. B : 4. Gr. C) : (2. Gr. A : 3. Gr. D)) : ((1. Gr. D : 4. Gr. A) : (2. Gr. C : 3. Gr. B)))) | AP180: =CHOOSE(SIGN(AN182-AN180)+2,AK180,"("&AK180&" : "&AK182&")",AK182) -> (((((1. Gr. A : 4. Gr. B) : (2. Gr. D : 3. Gr. C)) : ((1. Gr. C : 4. Gr. D) : (2. Gr. B : 3. Gr. A))) : (((1. Gr. B : 4. Gr. C) : (2. Gr. A : 3. Gr. D)) : ((1. Gr. D : 4. Gr. A) : (2. Gr. C : 3. Gr. B)))) : ((((4. Gr. B : 5. Gr. A) : (4. Gr. B : 5. Gr. A)) : ((4. Gr. B : 5. Gr. A) : (4. Gr. B : 5. Gr. A))) : (((4. Gr. B : 5. Gr. A) : (4. Gr. B : 5. Gr. A)) : ((4. Gr. B : 5. Gr. A) : (4. Gr. B : 5. Gr. A))))) | AU180: =CHOOSE(SIGN(AS182-AS180)+2,AP180,"("&AP180&" : "&AP182&")",AP182) -> ((((((1. Gr. A : 4. Gr. B) : (2. Gr. D : 3. Gr. C)) : ((1. Gr. C : 4. Gr. D) : (2. Gr. B : 3. Gr. A))) : (((1. Gr. B : 4. Gr. C) : (2. Gr. A : 3. Gr. D)) : ((1. Gr. D : 4. Gr. A) : (2. Gr. C : 3. Gr. B)))) : ((((4. Gr. B : 5. Gr. A) : (4. Gr. B : 5. Gr. A)) : ((4. Gr. B : 5. Gr. A) : (4. Gr. B : 5. Gr. A))) : (((4. Gr. B : 5. Gr. A) : (4. Gr. B : 5. Gr. A)) : ((4. Gr. B : 5. Gr. A) : (4. Gr. B : 5. Gr. A))))) : (((((4. Gr. B : 5. Gr. A) : (4. Gr. B : 5. Gr. A)) : ((4. Gr. B : 5. Gr. A) : (4. Gr. B : 5. Gr. A))) : (((4. Gr. B : 5. Gr. A) : (4. Gr. B : 5. Gr. A)) : ((4. Gr. B : 5. Gr. A) : (4. Gr. B : 5. Gr. A)))) : ((((4. Gr. B : 5. Gr. A) : (4. Gr. B : 5. Gr. A)) : ((4. Gr. B : 5. Gr. A) : (4. Gr. B : 5. Gr. A))) : (((4. Gr. B : 5. Gr. A) : (4. Gr. B : 5. Gr. A)) : ((4. Gr. B : 5. Gr. A) : (4. Gr. B : 5. Gr. A))))))
Q182: =O183 -> 5. Gr. A | V182: =IF($V$16,O183,CHOOSE(SIGN(T350-T348)+2,Q348,"("&Q348&" : "&Q350&")",Q350)) -> (4. Gr. B : 5. Gr. A) | AA182: =CHOOSE(SIGN(Y92-Y94)+2,V92,"("&V92&" : "&V94&")",V94) -> ((4. Gr. B : 5. Gr. A) : (4. Gr. B : 5. Gr. A)) | AF182: =CHOOSE(SIGN(AD222-AD220)+2,AA220,"("&AA220&" : "&AA222&")",AA222) -> (((4. Gr. B : 5. Gr. A) : (4. Gr. B : 5. Gr. A)) : ((4. Gr. B : 5. Gr. A) : (4. Gr. B : 5. Gr. A))) | AK182: =CHOOSE(SIGN(AI156-AI158)+2,AF156,"("&AF156&" : "&AF158&")",AF158) -> ((((4. Gr. B : 5. Gr. A) : (4. Gr. B : 5. Gr. A)) : ((4. Gr. B : 5. Gr. A) : (4. Gr. B : 5. Gr. A))) : (((4. Gr. B : 5. Gr. A) : (4. Gr. B : 5. Gr. A)) : ((4. Gr. B : 5. Gr. A) : (4. Gr. B : 5. Gr. A)))) | AP182: =CHOOSE(SIGN(AN190-AN188)+2,AK188,"("&AK188&" : "&AK190&")",AK190) -> (((((4. Gr. B : 5. Gr. A) : (4. Gr. B : 5. Gr. A)) : ((4. Gr. B : 5. Gr. A) : (4. Gr. B : 5. Gr. A))) : (((4. Gr. B : 5. Gr. A) : (4. Gr. B : 5. Gr. A)) : ((4. Gr. B : 5. Gr. A) : (4. Gr. B : 5. Gr. A)))) : ((((4. Gr. B : 5. Gr. A) : (4. Gr. B : 5. Gr. A)) : ((4. Gr. B : 5. Gr. A) : (4. Gr. B : 5. Gr. A))) : (((4. Gr. B : 5. Gr. A) : (4. Gr. B : 5. Gr. A)) : ((4. Gr. B : 5. Gr. A) : (4. Gr. B : 5. Gr. A))))) | AU182: =CHOOSE(SIGN(AS190-AS188)+2,AP188,"("&AP188&" : "&AP190&")",AP190) -> ((((((4. Gr. B : 5. Gr. A) : (4. Gr. B : 5. Gr. A)) : ((4. Gr. B : 5. Gr. A) : (4. Gr. B : 5. Gr. A))) : (((4. Gr. B : 5. Gr. A) : (4. Gr. B : 5. Gr. A)) : ((4. Gr. B : 5. Gr. A) : (4. Gr. B : 5. Gr. A)))) : ((((4. Gr. B : 5. Gr. A) : (4. Gr. B : 5. Gr. A)) : ((4. Gr. B : 5. Gr. A) : (4. Gr. B : 5. Gr. A))) : (((4. Gr. B : 5. Gr. A) : (4. Gr. B : 5. Gr. A)) : ((4. Gr. B : 5. Gr. A) : (4. Gr. B : 5. Gr. A))))) : (((((4. Gr. B : 5. Gr. A) : (4. Gr. B : 5. Gr. A)) : ((4. Gr. B : 5. Gr. A) : (4. Gr. B : 5. Gr. A))) : (((4. Gr. B : 5. Gr. A) : (4. Gr. B : 5. Gr. A)) : ((4. Gr. B : 5. Gr. A) : (4. Gr. B : 5. Gr. A)))) : ((((4. Gr. B : 5. Gr. A) : (4. Gr. B : 5. Gr. A)) : ((4. Gr. B : 5. Gr. A) : (4. Gr. B : 5. Gr. A))) : (((4. Gr. B : 5. Gr. A) : (4. Gr. B : 5. Gr. A)) : ((4. Gr. B : 5. Gr. A) : (4. Gr. B : 5. Gr. A))))))
O183: =INDEX(tbl_KO_Data[T2 Src Rank],K178) & ". Gr. " & INDEX(tbl_KO_Data[T2 Src Group],K178) -> 5. Gr. A | AZ183: 42 | BA183: =IF(AX180>AX182,AU182,IF(AX180<AX182,AU180,"")) -> 
H186: 26 | I186: 52 | K186: =KO_Data_1row+INDEX(D186:I186,KO_Rounds_Ind) -> 295 | Q186: K_64_A52 | R186: field x | S186: best of n | T186: 0 | V186: K_32_A26 | W186: field x | X186: best of n | Y186: 0 | AA186: K_16_B13 | AB186: field x | AC186: best of n | AD186: 0 | AF186: K_08_C7 | AG186: field x | AH186: best of n | AI186: 0 | AK186: K_04_F4 | AL186: field x | AM186: best of n | AN186: 0 | AP186: K_02_K2 | AQ186: field x | AR186: best of n | AS186: 0 | AU186: K_01_043 | AV186: field x | AW186: best of n | AX186: 0
O187: =INDEX(tbl_KO_Data[T1 Src Rank],K186) & ". Gr. " & INDEX(tbl_KO_Data[T1 Src Group],K186) -> 4. Gr. B | AZ187: 43 | BA187: =IF(AX188>AX190,AU188,IF(AX188<AX190,AU190,"")) -> 
Q188: =O187 -> 4. Gr. B | V188: =IF($V$16,O187,CHOOSE(SIGN(T358-T356)+2,Q356,"("&Q356&" : "&Q358&")",Q358)) -> (4. Gr. B : 5. Gr. A) | AA188: =CHOOSE(SIGN(Y100-Y102)+2,V100,"("&V100&" : "&V102&")",V102) -> ((4. Gr. B : 5. Gr. A) : (4. Gr. B : 5. Gr. A)) | AF188: =CHOOSE(SIGN(AD230-AD228)+2,AA228,"("&AA228&" : "&AA230&")",AA230) -> (((4. Gr. B : 5. Gr. A) : (4. Gr. B : 5. Gr. A)) : ((4. Gr. B : 5. Gr. A) : (4. Gr. B : 5. Gr. A))) | AK188: =CHOOSE(SIGN(AI164-AI166)+2,AF164,"("&AF164&" : "&AF166&")",AF166) -> ((((4. Gr. B : 5. Gr. A) : (4. Gr. B : 5. Gr. A)) : ((4. Gr. B : 5. Gr. A) : (4. Gr. B : 5. Gr. A))) : (((4. Gr. B : 5. Gr. A) : (4. Gr. B : 5. Gr. A)) : ((4. Gr. B : 5. Gr. A) : (4. Gr. B : 5. Gr. A)))) | AP188: =CHOOSE(SIGN(AN198-AN196)+2,AK196,"("&AK196&" : "&AK198&")",AK198) -> (((((4. Gr. B : 5. Gr. A) : (4. Gr. B : 5. Gr. A)) : ((4. Gr. B : 5. Gr. A) : (4. Gr. B : 5. Gr. A))) : (((4. Gr. B : 5. Gr. A) : (4. Gr. B : 5. Gr. A)) : ((4. Gr. B : 5. Gr. A) : (4. Gr. B : 5. Gr. A)))) : ((((4. Gr. B : 5. Gr. A) : (4. Gr. B : 5. Gr. A)) : ((4. Gr. B : 5. Gr. A) : (4. Gr. B : 5. Gr. A))) : (((4. Gr. B : 5. Gr. A) : (4. Gr. B : 5. Gr. A)) : ((4. Gr. B : 5. Gr. A) : (4. Gr. B : 5. Gr. A))))) | AU188: =CHOOSE(SIGN(AS180-AS182)+2,AP180,"("&AP180&" : "&AP182&")",AP182) -> ((((((1. Gr. A : 4. Gr. B) : (2. Gr. D : 3. Gr. C)) : ((1. Gr. C : 4. Gr. D) : (2. Gr. B : 3. Gr. A))) : (((1. Gr. B : 4. Gr. C) : (2. Gr. A : 3. Gr. D)) : ((1. Gr. D : 4. Gr. A) : (2. Gr. C : 3. Gr. B)))) : ((((4. Gr. B : 5. Gr. A) : (4. Gr. B : 5. Gr. A)) : ((4. Gr. B : 5. Gr. A) : (4. Gr. B : 5. Gr. A))) : (((4. Gr. B : 5. Gr. A) : (4. Gr. B : 5. Gr. A)) : ((4. Gr. B : 5. Gr. A) : (4. Gr. B : 5. Gr. A))))) : (((((4. Gr. B : 5. Gr. A) : (4. Gr. B : 5. Gr. A)) : ((4. Gr. B : 5. Gr. A) : (4. Gr. B : 5. Gr. A))) : (((4. Gr. B : 5. Gr. A) : (4. Gr. B : 5. Gr. A)) : ((4. Gr. B : 5. Gr. A) : (4. Gr. B : 5. Gr. A)))) : ((((4. Gr. B : 5. Gr. A) : (4. Gr. B : 5. Gr. A)) : ((4. Gr. B : 5. Gr. A) : (4. Gr. B : 5. Gr. A))) : (((4. Gr. B : 5. Gr. A) : (4. Gr. B : 5. Gr. A)) : ((4. Gr. B : 5. Gr. A) : (4. Gr. B : 5. Gr. A))))))
Q190: =O191 -> 5. Gr. A | V190: =IF($V$16,O191,CHOOSE(SIGN(T366-T364)+2,Q364,"("&Q364&" : "&Q366&")",Q366)) -> (4. Gr. B : 5. Gr. A) | AA190: =CHOOSE(SIGN(Y108-Y110)+2,V108,"("&V108&" : "&V110&")",V110) -> ((4. Gr. B : 5. Gr. A) : (4. Gr. B : 5. Gr. A)) | AF190: =CHOOSE(SIGN(AD238-AD236)+2,AA236,"("&AA236&" : "&AA238&")",AA238) -> (((4. Gr. B : 5. Gr. A) : (4. Gr. B : 5. Gr. A)) : ((4. Gr. B : 5. Gr. A) : (4. Gr. B : 5. Gr. A))) | AK190: =CHOOSE(SIGN(AI172-AI174)+2,AF172,"("&AF172&" : "&AF174&")",AF174) -> ((((4. Gr. B : 5. Gr. A) : (4. Gr. B : 5. Gr. A)) : ((4. Gr. B : 5. Gr. A) : (4. Gr. B : 5. Gr. A))) : (((4. Gr. B : 5. Gr. A) : (4. Gr. B : 5. Gr. A)) : ((4. Gr. B : 5. Gr. A) : (4. Gr. B : 5. Gr. A)))) | AP190: =CHOOSE(SIGN(AN206-AN204)+2,AK204,"("&AK204&" : "&AK206&")",AK206) -> (((((4. Gr. B : 5. Gr. A) : (4. Gr. B : 5. Gr. A)) : ((4. Gr. B : 5. Gr. A) : (4. Gr. B : 5. Gr. A))) : (((4. Gr. B : 5. Gr. A) : (4. Gr. B : 5. Gr. A)) : ((4. Gr. B : 5. Gr. A) : (4. Gr. B : 5. Gr. A)))) : ((((4. Gr. B : 5. Gr. A) : (4. Gr. B : 5. Gr. A)) : ((4. Gr. B : 5. Gr. A) : (4. Gr. B : 5. Gr. A))) : (((4. Gr. B : 5. Gr. A) : (4. Gr. B : 5. Gr. A)) : ((4. Gr. B : 5. Gr. A) : (4. Gr. B : 5. Gr. A))))) | AU190: =CHOOSE(SIGN(AS188-AS190)+2,AP188,"("&AP188&" : "&AP190&")",AP190) -> ((((((4. Gr. B : 5. Gr. A) : (4. Gr. B : 5. Gr. A)) : ((4. Gr. B : 5. Gr. A) : (4. Gr. B : 5. Gr. A))) : (((4. Gr. B : 5. Gr. A) : (4. Gr. B : 5. Gr. A)) : ((4. Gr. B : 5. Gr. A) : (4. Gr. B : 5. Gr. A)))) : ((((4. Gr. B : 5. Gr. A) : (4. Gr. B : 5. Gr. A)) : ((4. Gr. B : 5. Gr. A) : (4. Gr. B : 5. Gr. A))) : (((4. Gr. B : 5. Gr. A) : (4. Gr. B : 5. Gr. A)) : ((4. Gr. B : 5. Gr. A) : (4. Gr. B : 5. Gr. A))))) : (((((4. Gr. B : 5. Gr. A) : (4. Gr. B : 5. Gr. A)) : ((4. Gr. B : 5. Gr. A) : (4. Gr. B : 5. Gr. A))) : (((4. Gr. B : 5. Gr. A) : (4. Gr. B : 5. Gr. A)) : ((4. Gr. B : 5. Gr. A) : (4. Gr. B : 5. Gr. A)))) : ((((4. Gr. B : 5. Gr. A) : (4. Gr. B : 5. Gr. A)) : ((4. Gr. B : 5. Gr. A) : (4. Gr. B : 5. Gr. A))) : (((4. Gr. B : 5. Gr. A) : (4. Gr. B : 5. Gr. A)) : ((4. Gr. B : 5. Gr. A) : (4. Gr. B : 5. Gr. A))))))
O191: =INDEX(tbl_KO_Data[T2 Src Rank],K186) & ". Gr. " & INDEX(tbl_KO_Data[T2 Src Group],K186) -> 5. Gr. A | AZ191: 44 | BA191: =IF(AX188>AX190,AU190,IF(AX188<AX190,AU188,"")) -> 
H194: 10 | I194: 20 | K194: =KO_Data_1row+INDEX(D194:I194,KO_Rounds_Ind) -> 295 | Q194: K_64_A20 | R194: field x | S194: best of n | T194: 0 | V194: K_32_A10 | W194: field x | X194: best of n | Y194: 0 | AA194: K_16_B05 | AB194: field x | AC194: best of n | AD194: 0 | AF194: K_08_C3 | AG194: field x | AH194: best of n | AI194: 0 | AK194: K_04_F2 | AL194: field x | AM194: best of n | AN194: 0 | AP194: K_02_L1 | AQ194: field x | AR194: best of n | AS194: 0 | AU194: K_01_045 | AV194: field x | AW194: best of n | AX194: 0
O195: =INDEX(tbl_KO_Data[T1 Src Rank],K194) & ". Gr. " & INDEX(tbl_KO_Data[T1 Src Group],K194) -> 4. Gr. B | AZ195: 45 | BA195: =IF(AX196>AX198,AU196,IF(AX196<AX198,AU198,"")) -> 
Q196: =O195 -> 4. Gr. B | V196: =IF($V$16,O195,CHOOSE(SIGN(T374-T372)+2,Q372,"("&Q372&" : "&Q374&")",Q374)) -> (4. Gr. B : 5. Gr. A) | AA196: =CHOOSE(SIGN(Y116-Y118)+2,V116,"("&V116&" : "&V118&")",V118) -> ((4. Gr. B : 5. Gr. A) : (4. Gr. B : 5. Gr. A)) | AF196: =CHOOSE(SIGN(AD246-AD244)+2,AA244,"("&AA244&" : "&AA246&")",AA246) -> (((4. Gr. B : 5. Gr. A) : (4. Gr. B : 5. Gr. A)) : ((4. Gr. B : 5. Gr. A) : (4. Gr. B : 5. Gr. A))) | AK196: =CHOOSE(SIGN(AI180-AI182)+2,AF180,"("&AF180&" : "&AF182&")",AF182) -> ((((4. Gr. B : 5. Gr. A) : (4. Gr. B : 5. Gr. A)) : ((4. Gr. B : 5. Gr. A) : (4. Gr. B : 5. Gr. A))) : (((4. Gr. B : 5. Gr. A) : (4. Gr. B : 5. Gr. A)) : ((4. Gr. B : 5. Gr. A) : (4. Gr. B : 5. Gr. A)))) | AP196: =CHOOSE(SIGN(AN180-AN182)+2,AK180,"("&AK180&" : "&AK182&")",AK182) -> (((((1. Gr. A : 4. Gr. B) : (2. Gr. D : 3. Gr. C)) : ((1. Gr. C : 4. Gr. D) : (2. Gr. B : 3. Gr. A))) : (((1. Gr. B : 4. Gr. C) : (2. Gr. A : 3. Gr. D)) : ((1. Gr. D : 4. Gr. A) : (2. Gr. C : 3. Gr. B)))) : ((((4. Gr. B : 5. Gr. A) : (4. Gr. B : 5. Gr. A)) : ((4. Gr. B : 5. Gr. A) : (4. Gr. B : 5. Gr. A))) : (((4. Gr. B : 5. Gr. A) : (4. Gr. B : 5. Gr. A)) : ((4. Gr. B : 5. Gr. A) : (4. Gr. B : 5. Gr. A))))) | AU196: =CHOOSE(SIGN(AS198-AS196)+2,AP196,"("&AP196&" : "&AP198&")",AP198) -> ((((((1. Gr. A : 4. Gr. B) : (2. Gr. D : 3. Gr. C)) : ((1. Gr. C : 4. Gr. D) : (2. Gr. B : 3. Gr. A))) : (((1. Gr. B : 4. Gr. C) : (2. Gr. A : 3. Gr. D)) : ((1. Gr. D : 4. Gr. A) : (2. Gr. C : 3. Gr. B)))) : ((((4. Gr. B : 5. Gr. A) : (4. Gr. B : 5. Gr. A)) : ((4. Gr. B : 5. Gr. A) : (4. Gr. B : 5. Gr. A))) : (((4. Gr. B : 5. Gr. A) : (4. Gr. B : 5. Gr. A)) : ((4. Gr. B : 5. Gr. A) : (4. Gr. B : 5. Gr. A))))) : (((((4. Gr. B : 5. Gr. A) : (4. Gr. B : 5. Gr. A)) : ((4. Gr. B : 5. Gr. A) : (4. Gr. B : 5. Gr. A))) : (((4. Gr. B : 5. Gr. A) : (4. Gr. B : 5. Gr. A)) : ((4. Gr. B : 5. Gr. A) : (4. Gr. B : 5. Gr. A)))) : ((((4. Gr. B : 5. Gr. A) : (4. Gr. B : 5. Gr. A)) : ((4. Gr. B : 5. Gr. A) : (4. Gr. B : 5. Gr. A))) : (((4. Gr. B : 5. Gr. A) : (4. Gr. B : 5. Gr. A)) : ((4. Gr. B : 5. Gr. A) : (4. Gr. B : 5. Gr. A))))))
Q198: =O199 -> 5. Gr. A | V198: =IF($V$16,O199,CHOOSE(SIGN(T382-T380)+2,Q380,"("&Q380&" : "&Q382&")",Q382)) -> (4. Gr. B : 5. Gr. A) | AA198: =CHOOSE(SIGN(Y124-Y126)+2,V124,"("&V124&" : "&V126&")",V126) -> ((4. Gr. B : 5. Gr. A) : (4. Gr. B : 5. Gr. A)) | AF198: =CHOOSE(SIGN(AD254-AD252)+2,AA252,"("&AA252&" : "&AA254&")",AA254) -> (((4. Gr. B : 5. Gr. A) : (4. Gr. B : 5. Gr. A)) : ((4. Gr. B : 5. Gr. A) : (4. Gr. B : 5. Gr. A))) | AK198: =CHOOSE(SIGN(AI188-AI190)+2,AF188,"("&AF188&" : "&AF190&")",AF190) -> ((((4. Gr. B : 5. Gr. A) : (4. Gr. B : 5. Gr. A)) : ((4. Gr. B : 5. Gr. A) : (4. Gr. B : 5. Gr. A))) : (((4. Gr. B : 5. Gr. A) : (4. Gr. B : 5. Gr. A)) : ((4. Gr. B : 5. Gr. A) : (4. Gr. B : 5. Gr. A)))) | AP198: =CHOOSE(SIGN(AN188-AN190)+2,AK188,"("&AK188&" : "&AK190&")",AK190) -> (((((4. Gr. B : 5. Gr. A) : (4. Gr. B : 5. Gr. A)) : ((4. Gr. B : 5. Gr. A) : (4. Gr. B : 5. Gr. A))) : (((4. Gr. B : 5. Gr. A) : (4. Gr. B : 5. Gr. A)) : ((4. Gr. B : 5. Gr. A) : (4. Gr. B : 5. Gr. A)))) : ((((4. Gr. B : 5. Gr. A) : (4. Gr. B : 5. Gr. A)) : ((4. Gr. B : 5. Gr. A) : (4. Gr. B : 5. Gr. A))) : (((4. Gr. B : 5. Gr. A) : (4. Gr. B : 5. Gr. A)) : ((4. Gr. B : 5. Gr. A) : (4. Gr. B : 5. Gr. A))))) | AU198: =CHOOSE(SIGN(AS206-AS204)+2,AP204,"("&AP204&" : "&AP206&")",AP206) -> ((((((4. Gr. B : 5. Gr. A) : (4. Gr. B : 5. Gr. A)) : ((4. Gr. B : 5. Gr. A) : (4. Gr. B : 5. Gr. A))) : (((4. Gr. B : 5. Gr. A) : (4. Gr. B : 5. Gr. A)) : ((4. Gr. B : 5. Gr. A) : (4. Gr. B : 5. Gr. A)))) : ((((4. Gr. B : 5. Gr. A) : (4. Gr. B : 5. Gr. A)) : ((4. Gr. B : 5. Gr. A) : (4. Gr. B : 5. Gr. A))) : (((4. Gr. B : 5. Gr. A) : (4. Gr. B : 5. Gr. A)) : ((4. Gr. B : 5. Gr. A) : (4. Gr. B : 5. Gr. A))))) : (((((4. Gr. B : 5. Gr. A) : (4. Gr. B : 5. Gr. A)) : ((4. Gr. B : 5. Gr. A) : (4. Gr. B : 5. Gr. A))) : (((4. Gr. B : 5. Gr. A) : (4. Gr. B : 5. Gr. A)) : ((4. Gr. B : 5. Gr. A) : (4. Gr. B : 5. Gr. A)))) : ((((4. Gr. B : 5. Gr. A) : (4. Gr. B : 5. Gr. A)) : ((4. Gr. B : 5. Gr. A) : (4. Gr. B : 5. Gr. A))) : (((4. Gr. B : 5. Gr. A) : (4. Gr. B : 5. Gr. A)) : ((4. Gr. B : 5. Gr. A) : (4. Gr. B : 5. Gr. A))))))
O199: =INDEX(tbl_KO_Data[T2 Src Rank],K194) & ". Gr. " & INDEX(tbl_KO_Data[T2 Src Group],K194) -> 5. Gr. A | AZ199: 46 | BA199: =IF(AX196>AX198,AU198,IF(AX196<AX198,AU196,"")) -> 
H202: 23 | I202: 45 | K202: =KO_Data_1row+INDEX(D202:I202,KO_Rounds_Ind) -> 295 | Q202: K_64_A45 | R202: field x | S202: best of n | T202: 0 | V202: K_32_A23 | W202: field x | X202: best of n | Y202: 0 | AA202: K_16_B12 | AB202: field x | AC202: best of n | AD202: 0 | AF202: K_08_C6 | AG202: field x | AH202: best of n | AI202: 0 | AK202: K_04_F3 | AL202: field x | AM202: best of n | AN202: 0 | AP202: K_02_L2 | AQ202: field x | AR202: best of n | AS202: 0 | AU202: K_01_047 | AV202: field x | AW202: best of n | AX202: 0
O203: =INDEX(tbl_KO_Data[T1 Src Rank],K202) & ". Gr. " & INDEX(tbl_KO_Data[T1 Src Group],K202) -> 4. Gr. B | AZ203: 47 | BA203: =IF(AX204>AX206,AU204,IF(AX204<AX206,AU206,"")) -> 
Q204: =O203 -> 4. Gr. B | V204: =IF($V$16,O203,CHOOSE(SIGN(T390-T388)+2,Q388,"("&Q388&" : "&Q390&")",Q390)) -> (4. Gr. B : 5. Gr. A) | AA204: =CHOOSE(SIGN(Y132-Y134)+2,V132,"("&V132&" : "&V134&")",V134) -> ((4. Gr. B : 5. Gr. A) : (4. Gr. B : 5. Gr. A)) | AF204: =CHOOSE(SIGN(AD262-AD260)+2,AA260,"("&AA260&" : "&AA262&")",AA262) -> (((4. Gr. B : 5. Gr. A) : (4. Gr. B : 5. Gr. A)) : ((4. Gr. B : 5. Gr. A) : (4. Gr. B : 5. Gr. A))) | AK204: =CHOOSE(SIGN(AI196-AI198)+2,AF196,"("&AF196&" : "&AF198&")",AF198) -> ((((4. Gr. B : 5. Gr. A) : (4. Gr. B : 5. Gr. A)) : ((4. Gr. B : 5. Gr. A) : (4. Gr. B : 5. Gr. A))) : (((4. Gr. B : 5. Gr. A) : (4. Gr. B : 5. Gr. A)) : ((4. Gr. B : 5. Gr. A) : (4. Gr. B : 5. Gr. A)))) | AP204: =CHOOSE(SIGN(AN196-AN198)+2,AK196,"("&AK196&" : "&AK198&")",AK198) -> (((((4. Gr. B : 5. Gr. A) : (4. Gr. B : 5. Gr. A)) : ((4. Gr. B : 5. Gr. A) : (4. Gr. B : 5. Gr. A))) : (((4. Gr. B : 5. Gr. A) : (4. Gr. B : 5. Gr. A)) : ((4. Gr. B : 5. Gr. A) : (4. Gr. B : 5. Gr. A)))) : ((((4. Gr. B : 5. Gr. A) : (4. Gr. B : 5. Gr. A)) : ((4. Gr. B : 5. Gr. A) : (4. Gr. B : 5. Gr. A))) : (((4. Gr. B : 5. Gr. A) : (4. Gr. B : 5. Gr. A)) : ((4. Gr. B : 5. Gr. A) : (4. Gr. B : 5. Gr. A))))) | AU204: =CHOOSE(SIGN(AS196-AS198)+2,AP196,"("&AP196&" : "&AP198&")",AP198) -> ((((((1. Gr. A : 4. Gr. B) : (2. Gr. D : 3. Gr. C)) : ((1. Gr. C : 4. Gr. D) : (2. Gr. B : 3. Gr. A))) : (((1. Gr. B : 4. Gr. C) : (2. Gr. A : 3. Gr. D)) : ((1. Gr. D : 4. Gr. A) : (2. Gr. C : 3. Gr. B)))) : ((((4. Gr. B : 5. Gr. A) : (4. Gr. B : 5. Gr. A)) : ((4. Gr. B : 5. Gr. A) : (4. Gr. B : 5. Gr. A))) : (((4. Gr. B : 5. Gr. A) : (4. Gr. B : 5. Gr. A)) : ((4. Gr. B : 5. Gr. A) : (4. Gr. B : 5. Gr. A))))) : (((((4. Gr. B : 5. Gr. A) : (4. Gr. B : 5. Gr. A)) : ((4. Gr. B : 5. Gr. A) : (4. Gr. B : 5. Gr. A))) : (((4. Gr. B : 5. Gr. A) : (4. Gr. B : 5. Gr. A)) : ((4. Gr. B : 5. Gr. A) : (4. Gr. B : 5. Gr. A)))) : ((((4. Gr. B : 5. Gr. A) : (4. Gr. B : 5. Gr. A)) : ((4. Gr. B : 5. Gr. A) : (4. Gr. B : 5. Gr. A))) : (((4. Gr. B : 5. Gr. A) : (4. Gr. B : 5. Gr. A)) : ((4. Gr. B : 5. Gr. A) : (4. Gr. B : 5. Gr. A))))))
Q206: =O207 -> 5. Gr. A | V206: =IF($V$16,O207,CHOOSE(SIGN(T398-T396)+2,Q396,"("&Q396&" : "&Q398&")",Q398)) -> (4. Gr. B : 5. Gr. A) | AA206: =CHOOSE(SIGN(Y140-Y142)+2,V140,"("&V140&" : "&V142&")",V142) -> ((4. Gr. B : 5. Gr. A) : (4. Gr. B : 5. Gr. A)) | AF206: =CHOOSE(SIGN(AD270-AD268)+2,AA268,"("&AA268&" : "&AA270&")",AA270) -> (((4. Gr. B : 5. Gr. A) : (4. Gr. B : 5. Gr. A)) : ((4. Gr. B : 5. Gr. A) : (4. Gr. B : 5. Gr. A))) | AK206: =CHOOSE(SIGN(AI204-AI206)+2,AF204,"("&AF204&" : "&AF206&")",AF206) -> ((((4. Gr. B : 5. Gr. A) : (4. Gr. B : 5. Gr. A)) : ((4. Gr. B : 5. Gr. A) : (4. Gr. B : 5. Gr. A))) : (((4. Gr. B : 5. Gr. A) : (4. Gr. B : 5. Gr. A)) : ((4. Gr. B : 5. Gr. A) : (4. Gr. B : 5. Gr. A)))) | AP206: =CHOOSE(SIGN(AN204-AN206)+2,AK204,"("&AK204&" : "&AK206&")",AK206) -> (((((4. Gr. B : 5. Gr. A) : (4. Gr. B : 5. Gr. A)) : ((4. Gr. B : 5. Gr. A) : (4. Gr. B : 5. Gr. A))) : (((4. Gr. B : 5. Gr. A) : (4. Gr. B : 5. Gr. A)) : ((4. Gr. B : 5. Gr. A) : (4. Gr. B : 5. Gr. A)))) : ((((4. Gr. B : 5. Gr. A) : (4. Gr. B : 5. Gr. A)) : ((4. Gr. B : 5. Gr. A) : (4. Gr. B : 5. Gr. A))) : (((4. Gr. B : 5. Gr. A) : (4. Gr. B : 5. Gr. A)) : ((4. Gr. B : 5. Gr. A) : (4. Gr. B : 5. Gr. A))))) | AU206: =CHOOSE(SIGN(AS204-AS206)+2,AP204,"("&AP204&" : "&AP206&")",AP206) -> ((((((4. Gr. B : 5. Gr. A) : (4. Gr. B : 5. Gr. A)) : ((4. Gr. B : 5. Gr. A) : (4. Gr. B : 5. Gr. A))) : (((4. Gr. B : 5. Gr. A) : (4. Gr. B : 5. Gr. A)) : ((4. Gr. B : 5. Gr. A) : (4. Gr. B : 5. Gr. A)))) : ((((4. Gr. B : 5. Gr. A) : (4. Gr. B : 5. Gr. A)) : ((4. Gr. B : 5. Gr. A) : (4. Gr. B : 5. Gr. A))) : (((4. Gr. B : 5. Gr. A) : (4. Gr. B : 5. Gr. A)) : ((4. Gr. B : 5. Gr. A) : (4. Gr. B : 5. Gr. A))))) : (((((4. Gr. B : 5. Gr. A) : (4. Gr. B : 5. Gr. A)) : ((4. Gr. B : 5. Gr. A) : (4. Gr. B : 5. Gr. A))) : (((4. Gr. B : 5. Gr. A) : (4. Gr. B : 5. Gr. A)) : ((4. Gr. B : 5. Gr. A) : (4. Gr. B : 5. Gr. A)))) : ((((4. Gr. B : 5. Gr. A) : (4. Gr. B : 5. Gr. A)) : ((4. Gr. B : 5. Gr. A) : (4. Gr. B : 5. Gr. A))) : (((4. Gr. B : 5. Gr. A) : (4. Gr. B : 5. Gr. A)) : ((4. Gr. B : 5. Gr. A) : (4. Gr. B : 5. Gr. A))))))
O207: =INDEX(tbl_KO_Data[T2 Src Rank],K202) & ". Gr. " & INDEX(tbl_KO_Data[T2 Src Group],K202) -> 5. Gr. A | AZ207: 48 | BA207: =IF(AX204>AX206,AU206,IF(AX204<AX206,AU204,"")) -> 
H210: 3 | I210: 5 | K210: =KO_Data_1row+INDEX(D210:I210,KO_Rounds_Ind) -> 295 | Q210: K_64_A05 | R210: field x | S210: best of n | T210: 0 | V210: K_32_A03 | W210: field x | X210: best of n | Y210: 0 | AA210: K_16_B02 | AB210: field x | AC210: best of n | AD210: 0 | AF210: K_08_D1 | AG210: field x | AH210: best of n | AI210: 0 | AK210: K_04_G1 | AL210: field x | AM210: best of n | AN210: 0 | AP210: K_02_M1 | AQ210: field x | AR210: best of n | AS210: 0 | AU210: K_01_049 | AV210: field x | AW210: best of n | AX210: 0
O211: =INDEX(tbl_KO_Data[T1 Src Rank],K210) & ". Gr. " & INDEX(tbl_KO_Data[T1 Src Group],K210) -> 4. Gr. B | AZ211: 49 | BA211: =IF(AX212>AX214,AU212,IF(AX212<AX214,AU214,"")) -> 
Q212: =O211 -> 4. Gr. B | V212: =IF($V$16,O211,CHOOSE(SIGN(T406-T404)+2,Q404,"("&Q404&" : "&Q406&")",Q406)) -> (4. Gr. B : 5. Gr. A) | AA212: =CHOOSE(SIGN(Y148-Y150)+2,V148,"("&V148&" : "&V150&")",V150) -> ((4. Gr. B : 5. Gr. A) : (4. Gr. B : 5. Gr. A)) | AF212: =CHOOSE(SIGN(AD148-AD150)+2,AA148,"("&AA148&" : "&AA150&")",AA150) -> (((1. Gr. A : 4. Gr. B) : (2. Gr. D : 3. Gr. C)) : ((1. Gr. C : 4. Gr. D) : (2. Gr. B : 3. Gr. A))) | AK212: =CHOOSE(SIGN(AI214-AI212)+2,AF212,"("&AF212&" : "&AF214&")",AF214) -> ((((1. Gr. A : 4. Gr. B) : (2. Gr. D : 3. Gr. C)) : ((1. Gr. C : 4. Gr. D) : (2. Gr. B : 3. Gr. A))) : (((1. Gr. B : 4. Gr. C) : (2. Gr. A : 3. Gr. D)) : ((1. Gr. D : 4. Gr. A) : (2. Gr. C : 3. Gr. B)))) | AP212: =CHOOSE(SIGN(AN214-AN212)+2,AK212,"("&AK212&" : "&AK214&")",AK214) -> (((((1. Gr. A : 4. Gr. B) : (2. Gr. D : 3. Gr. C)) : ((1. Gr. C : 4. Gr. D) : (2. Gr. B : 3. Gr. A))) : (((1. Gr. B : 4. Gr. C) : (2. Gr. A : 3. Gr. D)) : ((1. Gr. D : 4. Gr. A) : (2. Gr. C : 3. Gr. B)))) : ((((4. Gr. B : 5. Gr. A) : (4. Gr. B : 5. Gr. A)) : ((4. Gr. B : 5. Gr. A) : (4. Gr. B : 5. Gr. A))) : (((4. Gr. B : 5. Gr. A) : (4. Gr. B : 5. Gr. A)) : ((4. Gr. B : 5. Gr. A) : (4. Gr. B : 5. Gr. A))))) | AU212: =CHOOSE(SIGN(AS214-AS212)+2,AP212,"("&AP212&" : "&AP214&")",AP214) -> ((((((1. Gr. A : 4. Gr. B) : (2. Gr. D : 3. Gr. C)) : ((1. Gr. C : 4. Gr. D) : (2. Gr. B : 3. Gr. A))) : (((1. Gr. B : 4. Gr. C) : (2. Gr. A : 3. Gr. D)) : ((1. Gr. D : 4. Gr. A) : (2. Gr. C : 3. Gr. B)))) : ((((4. Gr. B : 5. Gr. A) : (4. Gr. B : 5. Gr. A)) : ((4. Gr. B : 5. Gr. A) : (4. Gr. B : 5. Gr. A))) : (((4. Gr. B : 5. Gr. A) : (4. Gr. B : 5. Gr. A)) : ((4. Gr. B : 5. Gr. A) : (4. Gr. B : 5. Gr. A))))) : (((((4. Gr. B : 5. Gr. A) : (4. Gr. B : 5. Gr. A)) : ((4. Gr. B : 5. Gr. A) : (4. Gr. B : 5. Gr. A))) : (((4. Gr. B : 5. Gr. A) : (4. Gr. B : 5. Gr. A)) : ((4. Gr. B : 5. Gr. A) : (4. Gr. B : 5. Gr. A)))) : ((((4. Gr. B : 5. Gr. A) : (4. Gr. B : 5. Gr. A)) : ((4. Gr. B : 5. Gr. A) : (4. Gr. B : 5. Gr. A))) : (((4. Gr. B : 5. Gr. A) : (4. Gr. B : 5. Gr. A)) : ((4. Gr. B : 5. Gr. A) : (4. Gr. B : 5. Gr. A))))))
Q214: =O215 -> 5. Gr. A | V214: =IF($V$16,O215,CHOOSE(SIGN(T414-T412)+2,Q412,"("&Q412&" : "&Q414&")",Q414)) -> (4. Gr. B : 5. Gr. A) | AA214: =CHOOSE(SIGN(Y156-Y158)+2,V156,"("&V156&" : "&V158&")",V158) -> ((4. Gr. B : 5. Gr. A) : (4. Gr. B : 5. Gr. A)) | AF214: =CHOOSE(SIGN(AD156-AD158)+2,AA156,"("&AA156&" : "&AA158&")",AA158) -> (((1. Gr. B : 4. Gr. C) : (2. Gr. A : 3. Gr. D)) : ((1. Gr. D : 4. Gr. A) : (2. Gr. C : 3. Gr. B))) | AK214: =CHOOSE(SIGN(AI222-AI220)+2,AF220,"("&AF220&" : "&AF222&")",AF222) -> ((((4. Gr. B : 5. Gr. A) : (4. Gr. B : 5. Gr. A)) : ((4. Gr. B : 5. Gr. A) : (4. Gr. B : 5. Gr. A))) : (((4. Gr. B : 5. Gr. A) : (4. Gr. B : 5. Gr. A)) : ((4. Gr. B : 5. Gr. A) : (4. Gr. B : 5. Gr. A)))) | AP214: =CHOOSE(SIGN(AN222-AN220)+2,AK220,"("&AK220&" : "&AK222&")",AK222) -> (((((4. Gr. B : 5. Gr. A) : (4. Gr. B : 5. Gr. A)) : ((4. Gr. B : 5. Gr. A) : (4. Gr. B : 5. Gr. A))) : (((4. Gr. B : 5. Gr. A) : (4. Gr. B : 5. Gr. A)) : ((4. Gr. B : 5. Gr. A) : (4. Gr. B : 5. Gr. A)))) : ((((4. Gr. B : 5. Gr. A) : (4. Gr. B : 5. Gr. A)) : ((4. Gr. B : 5. Gr. A) : (4. Gr. B : 5. Gr. A))) : (((4. Gr. B : 5. Gr. A) : (4. Gr. B : 5. Gr. A)) : ((4. Gr. B : 5. Gr. A) : (4. Gr. B : 5. Gr. A))))) | AU214: =CHOOSE(SIGN(AS222-AS220)+2,AP220,"("&AP220&" : "&AP222&")",AP222) -> ((((((4. Gr. B : 5. Gr. A) : (4. Gr. B : 5. Gr. A)) : ((4. Gr. B : 5. Gr. A) : (4. Gr. B : 5. Gr. A))) : (((4. Gr. B : 5. Gr. A) : (4. Gr. B : 5. Gr. A)) : ((4. Gr. B : 5. Gr. A) : (4. Gr. B : 5. Gr. A)))) : ((((4. Gr. B : 5. Gr. A) : (4. Gr. B : 5. Gr. A)) : ((4. Gr. B : 5. Gr. A) : (4. Gr. B : 5. Gr. A))) : (((4. Gr. B : 5. Gr. A) : (4. Gr. B : 5. Gr. A)) : ((4. Gr. B : 5. Gr. A) : (4. Gr. B : 5. Gr. A))))) : (((((4. Gr. B : 5. Gr. A) : (4. Gr. B : 5. Gr. A)) : ((4. Gr. B : 5. Gr. A) : (4. Gr. B : 5. Gr. A))) : (((4. Gr. B : 5. Gr. A) : (4. Gr. B : 5. Gr. A)) : ((4. Gr. B : 5. Gr. A) : (4. Gr. B : 5. Gr. A)))) : ((((4. Gr. B : 5. Gr. A) : (4. Gr. B : 5. Gr. A)) : ((4. Gr. B : 5. Gr. A) : (4. Gr. B : 5. Gr. A))) : (((4. Gr. B : 5. Gr. A) : (4. Gr. B : 5. Gr. A)) : ((4. Gr. B : 5. Gr. A) : (4. Gr. B : 5. Gr. A))))))
O215: =INDEX(tbl_KO_Data[T2 Src Rank],K210) & ". Gr. " & INDEX(tbl_KO_Data[T2 Src Group],K210) -> 5. Gr. A | AZ215: 50 | BA215: =IF(AX212>AX214,AU214,IF(AX212<AX214,AU212,"")) -> 
H218: 30 | I218: 60 | K218: =KO_Data_1row+INDEX(D218:I218,KO_Rounds_Ind) -> 295 | Q218: K_64_A60 | R218: field x | S218: best of n | T218: 0 | V218: K_32_A30 | W218: field x | X218: best of n | Y218: 0 | AA218: K_16_B15 | AB218: field x | AC218: best of n | AD218: 0 | AF218: K_08_D8 | AG218: field x | AH218: best of n | AI218: 0 | AK218: K_04_G4 | AL218: field x | AM218: best of n | AN218: 0 | AP218: K_02_M2 | AQ218: field x | AR218: best of n | AS218: 0 | AU218: K_01_051 | AV218: field x | AW218: best of n | AX218: 0
O219: =INDEX(tbl_KO_Data[T1 Src Rank],K218) & ". Gr. " & INDEX(tbl_KO_Data[T1 Src Group],K218) -> 4. Gr. B | AZ219: 51 | BA219: =IF(AX220>AX222,AU220,IF(AX220<AX222,AU222,"")) -> 
Q220: =O219 -> 4. Gr. B | V220: =IF($V$16,O219,CHOOSE(SIGN(T422-T420)+2,Q420,"("&Q420&" : "&Q422&")",Q422)) -> (4. Gr. B : 5. Gr. A) | AA220: =CHOOSE(SIGN(Y164-Y166)+2,V164,"("&V164&" : "&V166&")",V166) -> ((4. Gr. B : 5. Gr. A) : (4. Gr. B : 5. Gr. A)) | AF220: =CHOOSE(SIGN(AD164-AD166)+2,AA164,"("&AA164&" : "&AA166&")",AA166) -> (((4. Gr. B : 5. Gr. A) : (4. Gr. B : 5. Gr. A)) : ((4. Gr. B : 5. Gr. A) : (4. Gr. B : 5. Gr. A))) | AK220: =CHOOSE(SIGN(AI230-AI228)+2,AF228,"("&AF228&" : "&AF230&")",AF230) -> ((((4. Gr. B : 5. Gr. A) : (4. Gr. B : 5. Gr. A)) : ((4. Gr. B : 5. Gr. A) : (4. Gr. B : 5. Gr. A))) : (((4. Gr. B : 5. Gr. A) : (4. Gr. B : 5. Gr. A)) : ((4. Gr. B : 5. Gr. A) : (4. Gr. B : 5. Gr. A)))) | AP220: =CHOOSE(SIGN(AN230-AN228)+2,AK228,"("&AK228&" : "&AK230&")",AK230) -> (((((4. Gr. B : 5. Gr. A) : (4. Gr. B : 5. Gr. A)) : ((4. Gr. B : 5. Gr. A) : (4. Gr. B : 5. Gr. A))) : (((4. Gr. B : 5. Gr. A) : (4. Gr. B : 5. Gr. A)) : ((4. Gr. B : 5. Gr. A) : (4. Gr. B : 5. Gr. A)))) : ((((4. Gr. B : 5. Gr. A) : (4. Gr. B : 5. Gr. A)) : ((4. Gr. B : 5. Gr. A) : (4. Gr. B : 5. Gr. A))) : (((4. Gr. B : 5. Gr. A) : (4. Gr. B : 5. Gr. A)) : ((4. Gr. B : 5. Gr. A) : (4. Gr. B : 5. Gr. A))))) | AU220: =CHOOSE(SIGN(AS212-AS214)+2,AP212,"("&AP212&" : "&AP214&")",AP214) -> ((((((1. Gr. A : 4. Gr. B) : (2. Gr. D : 3. Gr. C)) : ((1. Gr. C : 4. Gr. D) : (2. Gr. B : 3. Gr. A))) : (((1. Gr. B : 4. Gr. C) : (2. Gr. A : 3. Gr. D)) : ((1. Gr. D : 4. Gr. A) : (2. Gr. C : 3. Gr. B)))) : ((((4. Gr. B : 5. Gr. A) : (4. Gr. B : 5. Gr. A)) : ((4. Gr. B : 5. Gr. A) : (4. Gr. B : 5. Gr. A))) : (((4. Gr. B : 5. Gr. A) : (4. Gr. B : 5. Gr. A)) : ((4. Gr. B : 5. Gr. A) : (4. Gr. B : 5. Gr. A))))) : (((((4. Gr. B : 5. Gr. A) : (4. Gr. B : 5. Gr. A)) : ((4. Gr. B : 5. Gr. A) : (4. Gr. B : 5. Gr. A))) : (((4. Gr. B : 5. Gr. A) : (4. Gr. B : 5. Gr. A)) : ((4. Gr. B : 5. Gr. A) : (4. Gr. B : 5. Gr. A)))) : ((((4. Gr. B : 5. Gr. A) : (4. Gr. B : 5. Gr. A)) : ((4. Gr. B : 5. Gr. A) : (4. Gr. B : 5. Gr. A))) : (((4. Gr. B : 5. Gr. A) : (4. Gr. B : 5. Gr. A)) : ((4. Gr. B : 5. Gr. A) : (4. Gr. B : 5. Gr. A))))))
Q222: =O223 -> 5. Gr. A | V222: =IF($V$16,O223,CHOOSE(SIGN(T430-T428)+2,Q428,"("&Q428&" : "&Q430&")",Q430)) -> (4. Gr. B : 5. Gr. A) | AA222: =CHOOSE(SIGN(Y172-Y174)+2,V172,"("&V172&" : "&V174&")",V174) -> ((4. Gr. B : 5. Gr. A) : (4. Gr. B : 5. Gr. A)) | AF222: =CHOOSE(SIGN(AD172-AD174)+2,AA172,"("&AA172&" : "&AA174&")",AA174) -> (((4. Gr. B : 5. Gr. A) : (4. Gr. B : 5. Gr. A)) : ((4. Gr. B : 5. Gr. A) : (4. Gr. B : 5. Gr. A))) | AK222: =CHOOSE(SIGN(AI238-AI236)+2,AF236,"("&AF236&" : "&AF238&")",AF238) -> ((((4. Gr. B : 5. Gr. A) : (4. Gr. B : 5. Gr. A)) : ((4. Gr. B : 5. Gr. A) : (4. Gr. B : 5. Gr. A))) : (((4. Gr. B : 5. Gr. A) : (4. Gr. B : 5. Gr. A)) : ((4. Gr. B : 5. Gr. A) : (4. Gr. B : 5. Gr. A)))) | AP222: =CHOOSE(SIGN(AN238-AN236)+2,AK236,"("&AK236&" : "&AK238&")",AK238) -> (((((4. Gr. B : 5. Gr. A) : (4. Gr. B : 5. Gr. A)) : ((4. Gr. B : 5. Gr. A) : (4. Gr. B : 5. Gr. A))) : (((4. Gr. B : 5. Gr. A) : (4. Gr. B : 5. Gr. A)) : ((4. Gr. B : 5. Gr. A) : (4. Gr. B : 5. Gr. A)))) : ((((4. Gr. B : 5. Gr. A) : (4. Gr. B : 5. Gr. A)) : ((4. Gr. B : 5. Gr. A) : (4. Gr. B : 5. Gr. A))) : (((4. Gr. B : 5. Gr. A) : (4. Gr. B : 5. Gr. A)) : ((4. Gr. B : 5. Gr. A) : (4. Gr. B : 5. Gr. A))))) | AU222: =CHOOSE(SIGN(AS220-AS222)+2,AP220,"("&AP220&" : "&AP222&")",AP222) -> ((((((4. Gr. B : 5. Gr. A) : (4. Gr. B : 5. Gr. A)) : ((4. Gr. B : 5. Gr. A) : (4. Gr. B : 5. Gr. A))) : (((4. Gr. B : 5. Gr. A) : (4. Gr. B : 5. Gr. A)) : ((4. Gr. B : 5. Gr. A) : (4. Gr. B : 5. Gr. A)))) : ((((4. Gr. B : 5. Gr. A) : (4. Gr. B : 5. Gr. A)) : ((4. Gr. B : 5. Gr. A) : (4. Gr. B : 5. Gr. A))) : (((4. Gr. B : 5. Gr. A) : (4. Gr. B : 5. Gr. A)) : ((4. Gr. B : 5. Gr. A) : (4. Gr. B : 5. Gr. A))))) : (((((4. Gr. B : 5. Gr. A) : (4. Gr. B : 5. Gr. A)) : ((4. Gr. B : 5. Gr. A) : (4. Gr. B : 5. Gr. A))) : (((4. Gr. B : 5. Gr. A) : (4. Gr. B : 5. Gr. A)) : ((4. Gr. B : 5. Gr. A) : (4. Gr. B : 5. Gr. A)))) : ((((4. Gr. B : 5. Gr. A) : (4. Gr. B : 5. Gr. A)) : ((4. Gr. B : 5. Gr. A) : (4. Gr. B : 5. Gr. A))) : (((4. Gr. B : 5. Gr. A) : (4. Gr. B : 5. Gr. A)) : ((4. Gr. B : 5. Gr. A) : (4. Gr. B : 5. Gr. A))))))
O223: =INDEX(tbl_KO_Data[T2 Src Rank],K218) & ". Gr. " & INDEX(tbl_KO_Data[T2 Src Group],K218) -> 5. Gr. A | AZ223: 52 | BA223: =IF(AX220>AX222,AU222,IF(AX220<AX222,AU220,"")) -> 
H226: 14 | I226: 28 | K226: =KO_Data_1row+INDEX(D226:I226,KO_Rounds_Ind) -> 295 | Q226: K_64_A28 | R226: field x | S226: best of n | T226: 0 | V226: K_32_A14 | W226: field x | X226: best of n | Y226: 0 | AA226: K_16_B07 | AB226: field x | AC226: best of n | AD226: 0 | AF226: K_08_D4 | AG226: field x | AH226: best of n | AI226: 0 | AK226: K_04_G2 | AL226: field x | AM226: best of n | AN226: 0 | AP226: K_02_N1 | AQ226: field x | AR226: best of n | AS226: 0 | AU226: K_01_053 | AV226: field x | AW226: best of n | AX226: 0
O227: =INDEX(tbl_KO_Data[T1 Src Rank],K226) & ". Gr. " & INDEX(tbl_KO_Data[T1 Src Group],K226) -> 4. Gr. B | AZ227: 53 | BA227: =IF(AX228>AX230,AU228,IF(AX228<AX230,AU230,"")) -> 
Q228: =O227 -> 4. Gr. B | V228: =IF($V$16,O227,CHOOSE(SIGN(T438-T436)+2,Q436,"("&Q436&" : "&Q438&")",Q438)) -> (4. Gr. B : 5. Gr. A) | AA228: =CHOOSE(SIGN(Y180-Y182)+2,V180,"("&V180&" : "&V182&")",V182) -> ((4. Gr. B : 5. Gr. A) : (4. Gr. B : 5. Gr. A)) | AF228: =CHOOSE(SIGN(AD180-AD182)+2,AA180,"("&AA180&" : "&AA182&")",AA182) -> (((4. Gr. B : 5. Gr. A) : (4. Gr. B : 5. Gr. A)) : ((4. Gr. B : 5. Gr. A) : (4. Gr. B : 5. Gr. A))) | AK228: =CHOOSE(SIGN(AI246-AI244)+2,AF244,"("&AF244&" : "&AF246&")",AF246) -> ((((4. Gr. B : 5. Gr. A) : (4. Gr. B : 5. Gr. A)) : ((4. Gr. B : 5. Gr. A) : (4. Gr. B : 5. Gr. A))) : (((4. Gr. B : 5. Gr. A) : (4. Gr. B : 5. Gr. A)) : ((4. Gr. B : 5. Gr. A) : (4. Gr. B : 5. Gr. A)))) | AP228: =CHOOSE(SIGN(AN212-AN214)+2,AK212,"("&AK212&" : "&AK214&")",AK214) -> (((((1. Gr. A : 4. Gr. B) : (2. Gr. D : 3. Gr. C)) : ((1. Gr. C : 4. Gr. D) : (2. Gr. B : 3. Gr. A))) : (((1. Gr. B : 4. Gr. C) : (2. Gr. A : 3. Gr. D)) : ((1. Gr. D : 4. Gr. A) : (2. Gr. C : 3. Gr. B)))) : ((((4. Gr. B : 5. Gr. A) : (4. Gr. B : 5. Gr. A)) : ((4. Gr. B : 5. Gr. A) : (4. Gr. B : 5. Gr. A))) : (((4. Gr. B : 5. Gr. A) : (4. Gr. B : 5. Gr. A)) : ((4. Gr. B : 5. Gr. A) : (4. Gr. B : 5. Gr. A))))) | AU228: =CHOOSE(SIGN(AS230-AS228)+2,AP228,"("&AP228&" : "&AP230&")",AP230) -> ((((((1. Gr. A : 4. Gr. B) : (2. Gr. D : 3. Gr. C)) : ((1. Gr. C : 4. Gr. D) : (2. Gr. B : 3. Gr. A))) : (((1. Gr. B : 4. Gr. C) : (2. Gr. A : 3. Gr. D)) : ((1. Gr. D : 4. Gr. A) : (2. Gr. C : 3. Gr. B)))) : ((((4. Gr. B : 5. Gr. A) : (4. Gr. B : 5. Gr. A)) : ((4. Gr. B : 5. Gr. A) : (4. Gr. B : 5. Gr. A))) : (((4. Gr. B : 5. Gr. A) : (4. Gr. B : 5. Gr. A)) : ((4. Gr. B : 5. Gr. A) : (4. Gr. B : 5. Gr. A))))) : (((((4. Gr. B : 5. Gr. A) : (4. Gr. B : 5. Gr. A)) : ((4. Gr. B : 5. Gr. A) : (4. Gr. B : 5. Gr. A))) : (((4. Gr. B : 5. Gr. A) : (4. Gr. B : 5. Gr. A)) : ((4. Gr. B : 5. Gr. A) : (4. Gr. B : 5. Gr. A)))) : ((((4. Gr. B : 5. Gr. A) : (4. Gr. B : 5. Gr. A)) : ((4. Gr. B : 5. Gr. A) : (4. Gr. B : 5. Gr. A))) : (((4. Gr. B : 5. Gr. A) : (4. Gr. B : 5. Gr. A)) : ((4. Gr. B : 5. Gr. A) : (4. Gr. B : 5. Gr. A))))))
Q230: =O231 -> 5. Gr. A | V230: =IF($V$16,O231,CHOOSE(SIGN(T446-T444)+2,Q444,"("&Q444&" : "&Q446&")",Q446)) -> (4. Gr. B : 5. Gr. A) | AA230: =CHOOSE(SIGN(Y188-Y190)+2,V188,"("&V188&" : "&V190&")",V190) -> ((4. Gr. B : 5. Gr. A) : (4. Gr. B : 5. Gr. A)) | AF230: =CHOOSE(SIGN(AD188-AD190)+2,AA188,"("&AA188&" : "&AA190&")",AA190) -> (((4. Gr. B : 5. Gr. A) : (4. Gr. B : 5. Gr. A)) : ((4. Gr. B : 5. Gr. A) : (4. Gr. B : 5. Gr. A))) | AK230: =CHOOSE(SIGN(AI254-AI252)+2,AF252,"("&AF252&" : "&AF254&")",AF254) -> ((((4. Gr. B : 5. Gr. A) : (4. Gr. B : 5. Gr. A)) : ((4. Gr. B : 5. Gr. A) : (4. Gr. B : 5. Gr. A))) : (((4. Gr. B : 5. Gr. A) : (4. Gr. B : 5. Gr. A)) : ((4. Gr. B : 5. Gr. A) : (4. Gr. B : 5. Gr. A)))) | AP230: =CHOOSE(SIGN(AN220-AN222)+2,AK220,"("&AK220&" : "&AK222&")",AK222) -> (((((4. Gr. B : 5. Gr. A) : (4. Gr. B : 5. Gr. A)) : ((4. Gr. B : 5. Gr. A) : (4. Gr. B : 5. Gr. A))) : (((4. Gr. B : 5. Gr. A) : (4. Gr. B : 5. Gr. A)) : ((4. Gr. B : 5. Gr. A) : (4. Gr. B : 5. Gr. A)))) : ((((4. Gr. B : 5. Gr. A) : (4. Gr. B : 5. Gr. A)) : ((4. Gr. B : 5. Gr. A) : (4. Gr. B : 5. Gr. A))) : (((4. Gr. B : 5. Gr. A) : (4. Gr. B : 5. Gr. A)) : ((4. Gr. B : 5. Gr. A) : (4. Gr. B : 5. Gr. A))))) | AU230: =CHOOSE(SIGN(AS238-AS236)+2,AP236,"("&AP236&" : "&AP238&")",AP238) -> ((((((4. Gr. B : 5. Gr. A) : (4. Gr. B : 5. Gr. A)) : ((4. Gr. B : 5. Gr. A) : (4. Gr. B : 5. Gr. A))) : (((4. Gr. B : 5. Gr. A) : (4. Gr. B : 5. Gr. A)) : ((4. Gr. B : 5. Gr. A) : (4. Gr. B : 5. Gr. A)))) : ((((4. Gr. B : 5. Gr. A) : (4. Gr. B : 5. Gr. A)) : ((4. Gr. B : 5. Gr. A) : (4. Gr. B : 5. Gr. A))) : (((4. Gr. B : 5. Gr. A) : (4. Gr. B : 5. Gr. A)) : ((4. Gr. B : 5. Gr. A) : (4. Gr. B : 5. Gr. A))))) : (((((4. Gr. B : 5. Gr. A) : (4. Gr. B : 5. Gr. A)) : ((4. Gr. B : 5. Gr. A) : (4. Gr. B : 5. Gr. A))) : (((4. Gr. B : 5. Gr. A) : (4. Gr. B : 5. Gr. A)) : ((4. Gr. B : 5. Gr. A) : (4. Gr. B : 5. Gr. A)))) : ((((4. Gr. B : 5. Gr. A) : (4. Gr. B : 5. Gr. A)) : ((4. Gr. B : 5. Gr. A) : (4. Gr. B : 5. Gr. A))) : (((4. Gr. B : 5. Gr. A) : (4. Gr. B : 5. Gr. A)) : ((4. Gr. B : 5. Gr. A) : (4. Gr. B : 5. Gr. A))))))
O231: =INDEX(tbl_KO_Data[T2 Src Rank],K226) & ". Gr. " & INDEX(tbl_KO_Data[T2 Src Group],K226) -> 5. Gr. A | AZ231: 54 | BA231: =IF(AX228>AX230,AU230,IF(AX228<AX230,AU228,"")) -> 
H234: 19 | I234: 37 | K234: =KO_Data_1row+INDEX(D234:I234,KO_Rounds_Ind) -> 295 | Q234: K_64_A37 | R234: field x | S234: best of n | T234: 0 | V234: K_32_A19 | W234: field x | X234: best of n | Y234: 0 | AA234: K_16_B10 | AB234: field x | AC234: best of n | AD234: 0 | AF234: K_08_D5 | AG234: field x | AH234: best of n | AI234: 0 | AK234: K_04_G3 | AL234: field x | AM234: best of n | AN234: 0 | AP234: K_02_N2 | AQ234: field x | AR234: best of n | AS234: 0 | AU234: K_01_055 | AV234: field x | AW234: best of n | AX234: 0
O235: =INDEX(tbl_KO_Data[T1 Src Rank],K234) & ". Gr. " & INDEX(tbl_KO_Data[T1 Src Group],K234) -> 4. Gr. B | AZ235: 55 | BA235: =IF(AX236>AX238,AU236,IF(AX236<AX238,AU238,"")) -> 
Q236: =O235 -> 4. Gr. B | V236: =IF($V$16,O235,CHOOSE(SIGN(T454-T452)+2,Q452,"("&Q452&" : "&Q454&")",Q454)) -> (4. Gr. B : 5. Gr. A) | AA236: =CHOOSE(SIGN(Y196-Y198)+2,V196,"("&V196&" : "&V198&")",V198) -> ((4. Gr. B : 5. Gr. A) : (4. Gr. B : 5. Gr. A)) | AF236: =CHOOSE(SIGN(AD196-AD198)+2,AA196,"("&AA196&" : "&AA198&")",AA198) -> (((4. Gr. B : 5. Gr. A) : (4. Gr. B : 5. Gr. A)) : ((4. Gr. B : 5. Gr. A) : (4. Gr. B : 5. Gr. A))) | AK236: =CHOOSE(SIGN(AI262-AI260)+2,AF260,"("&AF260&" : "&AF262&")",AF262) -> ((((4. Gr. B : 5. Gr. A) : (4. Gr. B : 5. Gr. A)) : ((4. Gr. B : 5. Gr. A) : (4. Gr. B : 5. Gr. A))) : (((4. Gr. B : 5. Gr. A) : (4. Gr. B : 5. Gr. A)) : ((4. Gr. B : 5. Gr. A) : (4. Gr. B : 5. Gr. A)))) | AP236: =CHOOSE(SIGN(AN228-AN230)+2,AK228,"("&AK228&" : "&AK230&")",AK230) -> (((((4. Gr. B : 5. Gr. A) : (4. Gr. B : 5. Gr. A)) : ((4. Gr. B : 5. Gr. A) : (4. Gr. B : 5. Gr. A))) : (((4. Gr. B : 5. Gr. A) : (4. Gr. B : 5. Gr. A)) : ((4. Gr. B : 5. Gr. A) : (4. Gr. B : 5. Gr. A)))) : ((((4. Gr. B : 5. Gr. A) : (4. Gr. B : 5. Gr. A)) : ((4. Gr. B : 5. Gr. A) : (4. Gr. B : 5. Gr. A))) : (((4. Gr. B : 5. Gr. A) : (4. Gr. B : 5. Gr. A)) : ((4. Gr. B : 5. Gr. A) : (4. Gr. B : 5. Gr. A))))) | AU236: =CHOOSE(SIGN(AS228-AS230)+2,AP228,"("&AP228&" : "&AP230&")",AP230) -> ((((((1. Gr. A : 4. Gr. B) : (2. Gr. D : 3. Gr. C)) : ((1. Gr. C : 4. Gr. D) : (2. Gr. B : 3. Gr. A))) : (((1. Gr. B : 4. Gr. C) : (2. Gr. A : 3. Gr. D)) : ((1. Gr. D : 4. Gr. A) : (2. Gr. C : 3. Gr. B)))) : ((((4. Gr. B : 5. Gr. A) : (4. Gr. B : 5. Gr. A)) : ((4. Gr. B : 5. Gr. A) : (4. Gr. B : 5. Gr. A))) : (((4. Gr. B : 5. Gr. A) : (4. Gr. B : 5. Gr. A)) : ((4. Gr. B : 5. Gr. A) : (4. Gr. B : 5. Gr. A))))) : (((((4. Gr. B : 5. Gr. A) : (4. Gr. B : 5. Gr. A)) : ((4. Gr. B : 5. Gr. A) : (4. Gr. B : 5. Gr. A))) : (((4. Gr. B : 5. Gr. A) : (4. Gr. B : 5. Gr. A)) : ((4. Gr. B : 5. Gr. A) : (4. Gr. B : 5. Gr. A)))) : ((((4. Gr. B : 5. Gr. A) : (4. Gr. B : 5. Gr. A)) : ((4. Gr. B : 5. Gr. A) : (4. Gr. B : 5. Gr. A))) : (((4. Gr. B : 5. Gr. A) : (4. Gr. B : 5. Gr. A)) : ((4. Gr. B : 5. Gr. A) : (4. Gr. B : 5. Gr. A))))))
Q238: =O239 -> 5. Gr. A | V238: =IF($V$16,O239,CHOOSE(SIGN(T462-T460)+2,Q460,"("&Q460&" : "&Q462&")",Q462)) -> (4. Gr. B : 5. Gr. A) | AA238: =CHOOSE(SIGN(Y204-Y206)+2,V204,"("&V204&" : "&V206&")",V206) -> ((4. Gr. B : 5. Gr. A) : (4. Gr. B : 5. Gr. A)) | AF238: =CHOOSE(SIGN(AD204-AD206)+2,AA204,"("&AA204&" : "&AA206&")",AA206) -> (((4. Gr. B : 5. Gr. A) : (4. Gr. B : 5. Gr. A)) : ((4. Gr. B : 5. Gr. A) : (4. Gr. B : 5. Gr. A))) | AK238: =CHOOSE(SIGN(AI270-AI268)+2,AF268,"("&AF268&" : "&AF270&")",AF270) -> ((((4. Gr. B : 5. Gr. A) : (4. Gr. B : 5. Gr. A)) : ((4. Gr. B : 5. Gr. A) : (4. Gr. B : 5. Gr. A))) : (((4. Gr. B : 5. Gr. A) : (4. Gr. B : 5. Gr. A)) : ((4. Gr. B : 5. Gr. A) : (4. Gr. B : 5. Gr. A)))) | AP238: =CHOOSE(SIGN(AN236-AN238)+2,AK236,"("&AK236&" : "&AK238&")",AK238) -> (((((4. Gr. B : 5. Gr. A) : (4. Gr. B : 5. Gr. A)) : ((4. Gr. B : 5. Gr. A) : (4. Gr. B : 5. Gr. A))) : (((4. Gr. B : 5. Gr. A) : (4. Gr. B : 5. Gr. A)) : ((4. Gr. B : 5. Gr. A) : (4. Gr. B : 5. Gr. A)))) : ((((4. Gr. B : 5. Gr. A) : (4. Gr. B : 5. Gr. A)) : ((4. Gr. B : 5. Gr. A) : (4. Gr. B : 5. Gr. A))) : (((4. Gr. B : 5. Gr. A) : (4. Gr. B : 5. Gr. A)) : ((4. Gr. B : 5. Gr. A) : (4. Gr. B : 5. Gr. A))))) | AU238: =CHOOSE(SIGN(AS236-AS238)+2,AP236,"("&AP236&" : "&AP238&")",AP238) -> ((((((4. Gr. B : 5. Gr. A) : (4. Gr. B : 5. Gr. A)) : ((4. Gr. B : 5. Gr. A) : (4. Gr. B : 5. Gr. A))) : (((4. Gr. B : 5. Gr. A) : (4. Gr. B : 5. Gr. A)) : ((4. Gr. B : 5. Gr. A) : (4. Gr. B : 5. Gr. A)))) : ((((4. Gr. B : 5. Gr. A) : (4. Gr. B : 5. Gr. A)) : ((4. Gr. B : 5. Gr. A) : (4. Gr. B : 5. Gr. A))) : (((4. Gr. B : 5. Gr. A) : (4. Gr. B : 5. Gr. A)) : ((4. Gr. B : 5. Gr. A) : (4. Gr. B : 5. Gr. A))))) : (((((4. Gr. B : 5. Gr. A) : (4. Gr. B : 5. Gr. A)) : ((4. Gr. B : 5. Gr. A) : (4. Gr. B : 5. Gr. A))) : (((4. Gr. B : 5. Gr. A) : (4. Gr. B : 5. Gr. A)) : ((4. Gr. B : 5. Gr. A) : (4. Gr. B : 5. Gr. A)))) : ((((4. Gr. B : 5. Gr. A) : (4. Gr. B : 5. Gr. A)) : ((4. Gr. B : 5. Gr. A) : (4. Gr. B : 5. Gr. A))) : (((4. Gr. B : 5. Gr. A) : (4. Gr. B : 5. Gr. A)) : ((4. Gr. B : 5. Gr. A) : (4. Gr. B : 5. Gr. A))))))
O239: =INDEX(tbl_KO_Data[T2 Src Rank],K234) & ". Gr. " & INDEX(tbl_KO_Data[T2 Src Group],K234) -> 5. Gr. A | AZ239: 56 | BA239: =IF(AX236>AX238,AU238,IF(AX236<AX238,AU236,"")) -> 
H242: 6 | I242: 12 | K242: =KO_Data_1row+INDEX(D242:I242,KO_Rounds_Ind) -> 295 | Q242: K_64_A12 | R242: field x | S242: best of n | T242: 0 | V242: K_32_A06 | W242: field x | X242: best of n | Y242: 0 | AA242: K_16_B03 | AB242: field x | AC242: best of n | AD242: 0 | AF242: K_08_D2 | AG242: field x | AH242: best of n | AI242: 0 | AK242: K_04_H1 | AL242: field x | AM242: best of n | AN242: 0 | AP242: K_02_O1 | AQ242: field x | AR242: best of n | AS242: 0 | AU242: K_01_057 | AV242: field x | AW242: best of n | AX242: 0
O243: =INDEX(tbl_KO_Data[T1 Src Rank],K242) & ". Gr. " & INDEX(tbl_KO_Data[T1 Src Group],K242) -> 4. Gr. B | AZ243: 57 | BA243: =IF(AX244>AX246,AU244,IF(AX244<AX246,AU246,"")) -> 
Q244: =O243 -> 4. Gr. B | V244: =IF($V$16,O243,CHOOSE(SIGN(T470-T468)+2,Q468,"("&Q468&" : "&Q470&")",Q470)) -> (4. Gr. B : 5. Gr. A) | AA244: =CHOOSE(SIGN(Y212-Y214)+2,V212,"("&V212&" : "&V214&")",V214) -> ((4. Gr. B : 5. Gr. A) : (4. Gr. B : 5. Gr. A)) | AF244: =CHOOSE(SIGN(AD212-AD214)+2,AA212,"("&AA212&" : "&AA214&")",AA214) -> (((4. Gr. B : 5. Gr. A) : (4. Gr. B : 5. Gr. A)) : ((4. Gr. B : 5. Gr. A) : (4. Gr. B : 5. Gr. A))) | AK244: =CHOOSE(SIGN(AI212-AI214)+2,AF212,"("&AF212&" : "&AF214&")",AF214) -> ((((1. Gr. A : 4. Gr. B) : (2. Gr. D : 3. Gr. C)) : ((1. Gr. C : 4. Gr. D) : (2. Gr. B : 3. Gr. A))) : (((1. Gr. B : 4. Gr. C) : (2. Gr. A : 3. Gr. D)) : ((1. Gr. D : 4. Gr. A) : (2. Gr. C : 3. Gr. B)))) | AP244: =CHOOSE(SIGN(AN246-AN244)+2,AK244,"("&AK244&" : "&AK246&")",AK246) -> (((((1. Gr. A : 4. Gr. B) : (2. Gr. D : 3. Gr. C)) : ((1. Gr. C : 4. Gr. D) : (2. Gr. B : 3. Gr. A))) : (((1. Gr. B : 4. Gr. C) : (2. Gr. A : 3. Gr. D)) : ((1. Gr. D : 4. Gr. A) : (2. Gr. C : 3. Gr. B)))) : ((((4. Gr. B : 5. Gr. A) : (4. Gr. B : 5. Gr. A)) : ((4. Gr. B : 5. Gr. A) : (4. Gr. B : 5. Gr. A))) : (((4. Gr. B : 5. Gr. A) : (4. Gr. B : 5. Gr. A)) : ((4. Gr. B : 5. Gr. A) : (4. Gr. B : 5. Gr. A))))) | AU244: =CHOOSE(SIGN(AS246-AS244)+2,AP244,"("&AP244&" : "&AP246&")",AP246) -> ((((((1. Gr. A : 4. Gr. B) : (2. Gr. D : 3. Gr. C)) : ((1. Gr. C : 4. Gr. D) : (2. Gr. B : 3. Gr. A))) : (((1. Gr. B : 4. Gr. C) : (2. Gr. A : 3. Gr. D)) : ((1. Gr. D : 4. Gr. A) : (2. Gr. C : 3. Gr. B)))) : ((((4. Gr. B : 5. Gr. A) : (4. Gr. B : 5. Gr. A)) : ((4. Gr. B : 5. Gr. A) : (4. Gr. B : 5. Gr. A))) : (((4. Gr. B : 5. Gr. A) : (4. Gr. B : 5. Gr. A)) : ((4. Gr. B : 5. Gr. A) : (4. Gr. B : 5. Gr. A))))) : (((((4. Gr. B : 5. Gr. A) : (4. Gr. B : 5. Gr. A)) : ((4. Gr. B : 5. Gr. A) : (4. Gr. B : 5. Gr. A))) : (((4. Gr. B : 5. Gr. A) : (4. Gr. B : 5. Gr. A)) : ((4. Gr. B : 5. Gr. A) : (4. Gr. B : 5. Gr. A)))) : ((((4. Gr. B : 5. Gr. A) : (4. Gr. B : 5. Gr. A)) : ((4. Gr. B : 5. Gr. A) : (4. Gr. B : 5. Gr. A))) : (((4. Gr. B : 5. Gr. A) : (4. Gr. B : 5. Gr. A)) : ((4. Gr. B : 5. Gr. A) : (4. Gr. B : 5. Gr. A))))))
Q246: =O247 -> 5. Gr. A | V246: =IF($V$16,O247,CHOOSE(SIGN(T478-T476)+2,Q476,"("&Q476&" : "&Q478&")",Q478)) -> (4. Gr. B : 5. Gr. A) | AA246: =CHOOSE(SIGN(Y220-Y222)+2,V220,"("&V220&" : "&V222&")",V222) -> ((4. Gr. B : 5. Gr. A) : (4. Gr. B : 5. Gr. A)) | AF246: =CHOOSE(SIGN(AD220-AD222)+2,AA220,"("&AA220&" : "&AA222&")",AA222) -> (((4. Gr. B : 5. Gr. A) : (4. Gr. B : 5. Gr. A)) : ((4. Gr. B : 5. Gr. A) : (4. Gr. B : 5. Gr. A))) | AK246: =CHOOSE(SIGN(AI220-AI222)+2,AF220,"("&AF220&" : "&AF222&")",AF222) -> ((((4. Gr. B : 5. Gr. A) : (4. Gr. B : 5. Gr. A)) : ((4. Gr. B : 5. Gr. A) : (4. Gr. B : 5. Gr. A))) : (((4. Gr. B : 5. Gr. A) : (4. Gr. B : 5. Gr. A)) : ((4. Gr. B : 5. Gr. A) : (4. Gr. B : 5. Gr. A)))) | AP246: =CHOOSE(SIGN(AN254-AN252)+2,AK252,"("&AK252&" : "&AK254&")",AK254) -> (((((4. Gr. B : 5. Gr. A) : (4. Gr. B : 5. Gr. A)) : ((4. Gr. B : 5. Gr. A) : (4. Gr. B : 5. Gr. A))) : (((4. Gr. B : 5. Gr. A) : (4. Gr. B : 5. Gr. A)) : ((4. Gr. B : 5. Gr. A) : (4. Gr. B : 5. Gr. A)))) : ((((4. Gr. B : 5. Gr. A) : (4. Gr. B : 5. Gr. A)) : ((4. Gr. B : 5. Gr. A) : (4. Gr. B : 5. Gr. A))) : (((4. Gr. B : 5. Gr. A) : (4. Gr. B : 5. Gr. A)) : ((4. Gr. B : 5. Gr. A) : (4. Gr. B : 5. Gr. A))))) | AU246: =CHOOSE(SIGN(AS254-AS252)+2,AP252,"("&AP252&" : "&AP254&")",AP254) -> ((((((4. Gr. B : 5. Gr. A) : (4. Gr. B : 5. Gr. A)) : ((4. Gr. B : 5. Gr. A) : (4. Gr. B : 5. Gr. A))) : (((4. Gr. B : 5. Gr. A) : (4. Gr. B : 5. Gr. A)) : ((4. Gr. B : 5. Gr. A) : (4. Gr. B : 5. Gr. A)))) : ((((4. Gr. B : 5. Gr. A) : (4. Gr. B : 5. Gr. A)) : ((4. Gr. B : 5. Gr. A) : (4. Gr. B : 5. Gr. A))) : (((4. Gr. B : 5. Gr. A) : (4. Gr. B : 5. Gr. A)) : ((4. Gr. B : 5. Gr. A) : (4. Gr. B : 5. Gr. A))))) : (((((4. Gr. B : 5. Gr. A) : (4. Gr. B : 5. Gr. A)) : ((4. Gr. B : 5. Gr. A) : (4. Gr. B : 5. Gr. A))) : (((4. Gr. B : 5. Gr. A) : (4. Gr. B : 5. Gr. A)) : ((4. Gr. B : 5. Gr. A) : (4. Gr. B : 5. Gr. A)))) : ((((4. Gr. B : 5. Gr. A) : (4. Gr. B : 5. Gr. A)) : ((4. Gr. B : 5. Gr. A) : (4. Gr. B : 5. Gr. A))) : (((4. Gr. B : 5. Gr. A) : (4. Gr. B : 5. Gr. A)) : ((4. Gr. B : 5. Gr. A) : (4. Gr. B : 5. Gr. A))))))
O247: =INDEX(tbl_KO_Data[T2 Src Rank],K242) & ". Gr. " & INDEX(tbl_KO_Data[T2 Src Group],K242) -> 5. Gr. A | AZ247: 58 | BA247: =IF(AX244>AX246,AU246,IF(AX244<AX246,AU244,"")) -> 
H250: 27 | I250: 53 | K250: =KO_Data_1row+INDEX(D250:I250,KO_Rounds_Ind) -> 295 | Q250: K_64_A53 | R250: field x | S250: best of n | T250: 0 | V250: K_32_A27 | W250: field x | X250: best of n | Y250: 0 | AA250: K_16_B14 | AB250: field x | AC250: best of n | AD250: 0 | AF250: K_08_D7 | AG250: field x | AH250: best of n | AI250: 0 | AK250: K_04_H4 | AL250: field x | AM250: best of n | AN250: 0 | AP250: K_02_O2 | AQ250: field x | AR250: best of n | AS250: 0 | AU250: K_01_059 | AV250: field x | AW250: best of n | AX250: 0
O251: =INDEX(tbl_KO_Data[T1 Src Rank],K250) & ". Gr. " & INDEX(tbl_KO_Data[T1 Src Group],K250) -> 4. Gr. B | AZ251: 59 | BA251: =IF(AX252>AX254,AU252,IF(AX252<AX254,AU254,"")) -> 
Q252: =O251 -> 4. Gr. B | V252: =IF($V$16,O251,CHOOSE(SIGN(T486-T484)+2,Q484,"("&Q484&" : "&Q486&")",Q486)) -> (4. Gr. B : 5. Gr. A) | AA252: =CHOOSE(SIGN(Y228-Y230)+2,V228,"("&V228&" : "&V230&")",V230) -> ((4. Gr. B : 5. Gr. A) : (4. Gr. B : 5. Gr. A)) | AF252: =CHOOSE(SIGN(AD228-AD230)+2,AA228,"("&AA228&" : "&AA230&")",AA230) -> (((4. Gr. B : 5. Gr. A) : (4. Gr. B : 5. Gr. A)) : ((4. Gr. B : 5. Gr. A) : (4. Gr. B : 5. Gr. A))) | AK252: =CHOOSE(SIGN(AI228-AI230)+2,AF228,"("&AF228&" : "&AF230&")",AF230) -> ((((4. Gr. B : 5. Gr. A) : (4. Gr. B : 5. Gr. A)) : ((4. Gr. B : 5. Gr. A) : (4. Gr. B : 5. Gr. A))) : (((4. Gr. B : 5. Gr. A) : (4. Gr. B : 5. Gr. A)) : ((4. Gr. B : 5. Gr. A) : (4. Gr. B : 5. Gr. A)))) | AP252: =CHOOSE(SIGN(AN262-AN260)+2,AK260,"("&AK260&" : "&AK262&")",AK262) -> (((((4. Gr. B : 5. Gr. A) : (4. Gr. B : 5. Gr. A)) : ((4. Gr. B : 5. Gr. A) : (4. Gr. B : 5. Gr. A))) : (((4. Gr. B : 5. Gr. A) : (4. Gr. B : 5. Gr. A)) : ((4. Gr. B : 5. Gr. A) : (4. Gr. B : 5. Gr. A)))) : ((((4. Gr. B : 5. Gr. A) : (4. Gr. B : 5. Gr. A)) : ((4. Gr. B : 5. Gr. A) : (4. Gr. B : 5. Gr. A))) : (((4. Gr. B : 5. Gr. A) : (4. Gr. B : 5. Gr. A)) : ((4. Gr. B : 5. Gr. A) : (4. Gr. B : 5. Gr. A))))) | AU252: =CHOOSE(SIGN(AS244-AS246)+2,AP244,"("&AP244&" : "&AP246&")",AP246) -> ((((((1. Gr. A : 4. Gr. B) : (2. Gr. D : 3. Gr. C)) : ((1. Gr. C : 4. Gr. D) : (2. Gr. B : 3. Gr. A))) : (((1. Gr. B : 4. Gr. C) : (2. Gr. A : 3. Gr. D)) : ((1. Gr. D : 4. Gr. A) : (2. Gr. C : 3. Gr. B)))) : ((((4. Gr. B : 5. Gr. A) : (4. Gr. B : 5. Gr. A)) : ((4. Gr. B : 5. Gr. A) : (4. Gr. B : 5. Gr. A))) : (((4. Gr. B : 5. Gr. A) : (4. Gr. B : 5. Gr. A)) : ((4. Gr. B : 5. Gr. A) : (4. Gr. B : 5. Gr. A))))) : (((((4. Gr. B : 5. Gr. A) : (4. Gr. B : 5. Gr. A)) : ((4. Gr. B : 5. Gr. A) : (4. Gr. B : 5. Gr. A))) : (((4. Gr. B : 5. Gr. A) : (4. Gr. B : 5. Gr. A)) : ((4. Gr. B : 5. Gr. A) : (4. Gr. B : 5. Gr. A)))) : ((((4. Gr. B : 5. Gr. A) : (4. Gr. B : 5. Gr. A)) : ((4. Gr. B : 5. Gr. A) : (4. Gr. B : 5. Gr. A))) : (((4. Gr. B : 5. Gr. A) : (4. Gr. B : 5. Gr. A)) : ((4. Gr. B : 5. Gr. A) : (4. Gr. B : 5. Gr. A))))))
Q254: =O255 -> 5. Gr. A | V254: =IF($V$16,O255,CHOOSE(SIGN(T494-T492)+2,Q492,"("&Q492&" : "&Q494&")",Q494)) -> (4. Gr. B : 5. Gr. A) | AA254: =CHOOSE(SIGN(Y236-Y238)+2,V236,"("&V236&" : "&V238&")",V238) -> ((4. Gr. B : 5. Gr. A) : (4. Gr. B : 5. Gr. A)) | AF254: =CHOOSE(SIGN(AD236-AD238)+2,AA236,"("&AA236&" : "&AA238&")",AA238) -> (((4. Gr. B : 5. Gr. A) : (4. Gr. B : 5. Gr. A)) : ((4. Gr. B : 5. Gr. A) : (4. Gr. B : 5. Gr. A))) | AK254: =CHOOSE(SIGN(AI236-AI238)+2,AF236,"("&AF236&" : "&AF238&")",AF238) -> ((((4. Gr. B : 5. Gr. A) : (4. Gr. B : 5. Gr. A)) : ((4. Gr. B : 5. Gr. A) : (4. Gr. B : 5. Gr. A))) : (((4. Gr. B : 5. Gr. A) : (4. Gr. B : 5. Gr. A)) : ((4. Gr. B : 5. Gr. A) : (4. Gr. B : 5. Gr. A)))) | AP254: =CHOOSE(SIGN(AN270-AN268)+2,AK268,"("&AK268&" : "&AK270&")",AK270) -> (((((4. Gr. B : 5. Gr. A) : (4. Gr. B : 5. Gr. A)) : ((4. Gr. B : 5. Gr. A) : (4. Gr. B : 5. Gr. A))) : (((4. Gr. B : 5. Gr. A) : (4. Gr. B : 5. Gr. A)) : ((4. Gr. B : 5. Gr. A) : (4. Gr. B : 5. Gr. A)))) : ((((4. Gr. B : 5. Gr. A) : (4. Gr. B : 5. Gr. A)) : ((4. Gr. B : 5. Gr. A) : (4. Gr. B : 5. Gr. A))) : (((4. Gr. B : 5. Gr. A) : (4. Gr. B : 5. Gr. A)) : ((4. Gr. B : 5. Gr. A) : (4. Gr. B : 5. Gr. A))))) | AU254: =CHOOSE(SIGN(AS252-AS254)+2,AP252,"("&AP252&" : "&AP254&")",AP254) -> ((((((4. Gr. B : 5. Gr. A) : (4. Gr. B : 5. Gr. A)) : ((4. Gr. B : 5. Gr. A) : (4. Gr. B : 5. Gr. A))) : (((4. Gr. B : 5. Gr. A) : (4. Gr. B : 5. Gr. A)) : ((4. Gr. B : 5. Gr. A) : (4. Gr. B : 5. Gr. A)))) : ((((4. Gr. B : 5. Gr. A) : (4. Gr. B : 5. Gr. A)) : ((4. Gr. B : 5. Gr. A) : (4. Gr. B : 5. Gr. A))) : (((4. Gr. B : 5. Gr. A) : (4. Gr. B : 5. Gr. A)) : ((4. Gr. B : 5. Gr. A) : (4. Gr. B : 5. Gr. A))))) : (((((4. Gr. B : 5. Gr. A) : (4. Gr. B : 5. Gr. A)) : ((4. Gr. B : 5. Gr. A) : (4. Gr. B : 5. Gr. A))) : (((4. Gr. B : 5. Gr. A) : (4. Gr. B : 5. Gr. A)) : ((4. Gr. B : 5. Gr. A) : (4. Gr. B : 5. Gr. A)))) : ((((4. Gr. B : 5. Gr. A) : (4. Gr. B : 5. Gr. A)) : ((4. Gr. B : 5. Gr. A) : (4. Gr. B : 5. Gr. A))) : (((4. Gr. B : 5. Gr. A) : (4. Gr. B : 5. Gr. A)) : ((4. Gr. B : 5. Gr. A) : (4. Gr. B : 5. Gr. A))))))
O255: =INDEX(tbl_KO_Data[T2 Src Rank],K250) & ". Gr. " & INDEX(tbl_KO_Data[T2 Src Group],K250) -> 5. Gr. A | AZ255: 60 | BA255: =IF(AX252>AX254,AU254,IF(AX252<AX254,AU252,"")) -> 
H258: 11 | I258: 21 | K258: =KO_Data_1row+INDEX(D258:I258,KO_Rounds_Ind) -> 295 | Q258: K_64_A21 | R258: field x | S258: best of n | T258: 0 | V258: K_32_A11 | W258: field x | X258: best of n | Y258: 0 | AA258: K_16_B06 | AB258: field x | AC258: best of n | AD258: 0 | AF258: K_08_D3 | AG258: field x | AH258: best of n | AI258: 0 | AK258: K_04_H2 | AL258: field x | AM258: best of n | AN258: 0 | AP258: K_02_P1 | AQ258: field x | AR258: best of n | AS258: 0 | AU258: K_01_061 | AV258: field x | AW258: best of n | AX258: 0
O259: =INDEX(tbl_KO_Data[T1 Src Rank],K258) & ". Gr. " & INDEX(tbl_KO_Data[T1 Src Group],K258) -> 4. Gr. B | AZ259: 61 | BA259: =IF(AX260>AX262,AU260,IF(AX260<AX262,AU262,"")) -> 
Q260: =O259 -> 4. Gr. B | V260: =IF($V$16,O259,CHOOSE(SIGN(T502-T500)+2,Q500,"("&Q500&" : "&Q502&")",Q502)) -> (4. Gr. B : 5. Gr. A) | AA260: =CHOOSE(SIGN(Y244-Y246)+2,V244,"("&V244&" : "&V246&")",V246) -> ((4. Gr. B : 5. Gr. A) : (4. Gr. B : 5. Gr. A)) | AF260: =CHOOSE(SIGN(AD244-AD246)+2,AA244,"("&AA244&" : "&AA246&")",AA246) -> (((4. Gr. B : 5. Gr. A) : (4. Gr. B : 5. Gr. A)) : ((4. Gr. B : 5. Gr. A) : (4. Gr. B : 5. Gr. A))) | AK260: =CHOOSE(SIGN(AI244-AI246)+2,AF244,"("&AF244&" : "&AF246&")",AF246) -> ((((4. Gr. B : 5. Gr. A) : (4. Gr. B : 5. Gr. A)) : ((4. Gr. B : 5. Gr. A) : (4. Gr. B : 5. Gr. A))) : (((4. Gr. B : 5. Gr. A) : (4. Gr. B : 5. Gr. A)) : ((4. Gr. B : 5. Gr. A) : (4. Gr. B : 5. Gr. A)))) | AP260: =CHOOSE(SIGN(AN244-AN246)+2,AK244,"("&AK244&" : "&AK246&")",AK246) -> (((((1. Gr. A : 4. Gr. B) : (2. Gr. D : 3. Gr. C)) : ((1. Gr. C : 4. Gr. D) : (2. Gr. B : 3. Gr. A))) : (((1. Gr. B : 4. Gr. C) : (2. Gr. A : 3. Gr. D)) : ((1. Gr. D : 4. Gr. A) : (2. Gr. C : 3. Gr. B)))) : ((((4. Gr. B : 5. Gr. A) : (4. Gr. B : 5. Gr. A)) : ((4. Gr. B : 5. Gr. A) : (4. Gr. B : 5. Gr. A))) : (((4. Gr. B : 5. Gr. A) : (4. Gr. B : 5. Gr. A)) : ((4. Gr. B : 5. Gr. A) : (4. Gr. B : 5. Gr. A))))) | AU260: =CHOOSE(SIGN(AS262-AS260)+2,AP260,"("&AP260&" : "&AP262&")",AP262) -> ((((((1. Gr. A : 4. Gr. B) : (2. Gr. D : 3. Gr. C)) : ((1. Gr. C : 4. Gr. D) : (2. Gr. B : 3. Gr. A))) : (((1. Gr. B : 4. Gr. C) : (2. Gr. A : 3. Gr. D)) : ((1. Gr. D : 4. Gr. A) : (2. Gr. C : 3. Gr. B)))) : ((((4. Gr. B : 5. Gr. A) : (4. Gr. B : 5. Gr. A)) : ((4. Gr. B : 5. Gr. A) : (4. Gr. B : 5. Gr. A))) : (((4. Gr. B : 5. Gr. A) : (4. Gr. B : 5. Gr. A)) : ((4. Gr. B : 5. Gr. A) : (4. Gr. B : 5. Gr. A))))) : (((((4. Gr. B : 5. Gr. A) : (4. Gr. B : 5. Gr. A)) : ((4. Gr. B : 5. Gr. A) : (4. Gr. B : 5. Gr. A))) : (((4. Gr. B : 5. Gr. A) : (4. Gr. B : 5. Gr. A)) : ((4. Gr. B : 5. Gr. A) : (4. Gr. B : 5. Gr. A)))) : ((((4. Gr. B : 5. Gr. A) : (4. Gr. B : 5. Gr. A)) : ((4. Gr. B : 5. Gr. A) : (4. Gr. B : 5. Gr. A))) : (((4. Gr. B : 5. Gr. A) : (4. Gr. B : 5. Gr. A)) : ((4. Gr. B : 5. Gr. A) : (4. Gr. B : 5. Gr. A))))))
Q262: =O263 -> 5. Gr. A | V262: =IF($V$16,O263,CHOOSE(SIGN(T510-T508)+2,Q508,"("&Q508&" : "&Q510&")",Q510)) -> (4. Gr. B : 5. Gr. A) | AA262: =CHOOSE(SIGN(Y252-Y254)+2,V252,"("&V252&" : "&V254&")",V254) -> ((4. Gr. B : 5. Gr. A) : (4. Gr. B : 5. Gr. A)) | AF262: =CHOOSE(SIGN(AD252-AD254)+2,AA252,"("&AA252&" : "&AA254&")",AA254) -> (((4. Gr. B : 5. Gr. A) : (4. Gr. B : 5. Gr. A)) : ((4. Gr. B : 5. Gr. A) : (4. Gr. B : 5. Gr. A))) | AK262: =CHOOSE(SIGN(AI252-AI254)+2,AF252,"("&AF252&" : "&AF254&")",AF254) -> ((((4. Gr. B : 5. Gr. A) : (4. Gr. B : 5. Gr. A)) : ((4. Gr. B : 5. Gr. A) : (4. Gr. B : 5. Gr. A))) : (((4. Gr. B : 5. Gr. A) : (4. Gr. B : 5. Gr. A)) : ((4. Gr. B : 5. Gr. A) : (4. Gr. B : 5. Gr. A)))) | AP262: =CHOOSE(SIGN(AN252-AN254)+2,AK252,"("&AK252&" : "&AK254&")",AK254) -> (((((4. Gr. B : 5. Gr. A) : (4. Gr. B : 5. Gr. A)) : ((4. Gr. B : 5. Gr. A) : (4. Gr. B : 5. Gr. A))) : (((4. Gr. B : 5. Gr. A) : (4. Gr. B : 5. Gr. A)) : ((4. Gr. B : 5. Gr. A) : (4. Gr. B : 5. Gr. A)))) : ((((4. Gr. B : 5. Gr. A) : (4. Gr. B : 5. Gr. A)) : ((4. Gr. B : 5. Gr. A) : (4. Gr. B : 5. Gr. A))) : (((4. Gr. B : 5. Gr. A) : (4. Gr. B : 5. Gr. A)) : ((4. Gr. B : 5. Gr. A) : (4. Gr. B : 5. Gr. A))))) | AU262: =CHOOSE(SIGN(AS270-AS268)+2,AP268,"("&AP268&" : "&AP270&")",AP270) -> ((((((4. Gr. B : 5. Gr. A) : (4. Gr. B : 5. Gr. A)) : ((4. Gr. B : 5. Gr. A) : (4. Gr. B : 5. Gr. A))) : (((4. Gr. B : 5. Gr. A) : (4. Gr. B : 5. Gr. A)) : ((4. Gr. B : 5. Gr. A) : (4. Gr. B : 5. Gr. A)))) : ((((4. Gr. B : 5. Gr. A) : (4. Gr. B : 5. Gr. A)) : ((4. Gr. B : 5. Gr. A) : (4. Gr. B : 5. Gr. A))) : (((4. Gr. B : 5. Gr. A) : (4. Gr. B : 5. Gr. A)) : ((4. Gr. B : 5. Gr. A) : (4. Gr. B : 5. Gr. A))))) : (((((4. Gr. B : 5. Gr. A) : (4. Gr. B : 5. Gr. A)) : ((4. Gr. B : 5. Gr. A) : (4. Gr. B : 5. Gr. A))) : (((4. Gr. B : 5. Gr. A) : (4. Gr. B : 5. Gr. A)) : ((4. Gr. B : 5. Gr. A) : (4. Gr. B : 5. Gr. A)))) : ((((4. Gr. B : 5. Gr. A) : (4. Gr. B : 5. Gr. A)) : ((4. Gr. B : 5. Gr. A) : (4. Gr. B : 5. Gr. A))) : (((4. Gr. B : 5. Gr. A) : (4. Gr. B : 5. Gr. A)) : ((4. Gr. B : 5. Gr. A) : (4. Gr. B : 5. Gr. A))))))
O263: =INDEX(tbl_KO_Data[T2 Src Rank],K258) & ". Gr. " & INDEX(tbl_KO_Data[T2 Src Group],K258) -> 5. Gr. A | AZ263: 62 | BA263: =IF(AX260>AX262,AU262,IF(AX260<AX262,AU260,"")) -> 
H266: 22 | I266: 44 | K266: =KO_Data_1row+INDEX(D266:I266,KO_Rounds_Ind) -> 295 | Q266: K_64_A44 | R266: field x | S266: best of n | T266: 0 | V266: K_32_A22 | W266: field x | X266: best of n | Y266: 0 | AA266: K_16_B11 | AB266: field x | AC266: best of n | AD266: 0 | AF266: K_08_D6 | AG266: field x | AH266: best of n | AI266: 0 | AK266: K_04_H3 | AL266: field x | AM266: best of n | AN266: 0 | AP266: K_02_P2 | AQ266: field x | AR266: best of n | AS266: 0 | AU266: K_01_063 | AV266: field x | AW266: best of n | AX266: 0
O267: =INDEX(tbl_KO_Data[T1 Src Rank],K266) & ". Gr. " & INDEX(tbl_KO_Data[T1 Src Group],K266) -> 4. Gr. B | AZ267: 63 | BA267: =IF(AX268>AX270,AU268,IF(AX268<AX270,AU270,"")) -> 
Q268: =O267 -> 4. Gr. B | V268: =IF($V$16,O267,CHOOSE(SIGN(T518-T516)+2,Q516,"("&Q516&" : "&Q518&")",Q518)) -> (4. Gr. B : 5. Gr. A) | AA268: =CHOOSE(SIGN(Y260-Y262)+2,V260,"("&V260&" : "&V262&")",V262) -> ((4. Gr. B : 5. Gr. A) : (4. Gr. B : 5. Gr. A)) | AF268: =CHOOSE(SIGN(AD260-AD262)+2,AA260,"("&AA260&" : "&AA262&")",AA262) -> (((4. Gr. B : 5. Gr. A) : (4. Gr. B : 5. Gr. A)) : ((4. Gr. B : 5. Gr. A) : (4. Gr. B : 5. Gr. A))) | AK268: =CHOOSE(SIGN(AI260-AI262)+2,AF260,"("&AF260&" : "&AF262&")",AF262) -> ((((4. Gr. B : 5. Gr. A) : (4. Gr. B : 5. Gr. A)) : ((4. Gr. B : 5. Gr. A) : (4. Gr. B : 5. Gr. A))) : (((4. Gr. B : 5. Gr. A) : (4. Gr. B : 5. Gr. A)) : ((4. Gr. B : 5. Gr. A) : (4. Gr. B : 5. Gr. A)))) | AP268: =CHOOSE(SIGN(AN260-AN262)+2,AK260,"("&AK260&" : "&AK262&")",AK262) -> (((((4. Gr. B : 5. Gr. A) : (4. Gr. B : 5. Gr. A)) : ((4. Gr. B : 5. Gr. A) : (4. Gr. B : 5. Gr. A))) : (((4. Gr. B : 5. Gr. A) : (4. Gr. B : 5. Gr. A)) : ((4. Gr. B : 5. Gr. A) : (4. Gr. B : 5. Gr. A)))) : ((((4. Gr. B : 5. Gr. A) : (4. Gr. B : 5. Gr. A)) : ((4. Gr. B : 5. Gr. A) : (4. Gr. B : 5. Gr. A))) : (((4. Gr. B : 5. Gr. A) : (4. Gr. B : 5. Gr. A)) : ((4. Gr. B : 5. Gr. A) : (4. Gr. B : 5. Gr. A))))) | AU268: =CHOOSE(SIGN(AS260-AS262)+2,AP260,"("&AP260&" : "&AP262&")",AP262) -> ((((((1. Gr. A : 4. Gr. B) : (2. Gr. D : 3. Gr. C)) : ((1. Gr. C : 4. Gr. D) : (2. Gr. B : 3. Gr. A))) : (((1. Gr. B : 4. Gr. C) : (2. Gr. A : 3. Gr. D)) : ((1. Gr. D : 4. Gr. A) : (2. Gr. C : 3. Gr. B)))) : ((((4. Gr. B : 5. Gr. A) : (4. Gr. B : 5. Gr. A)) : ((4. Gr. B : 5. Gr. A) : (4. Gr. B : 5. Gr. A))) : (((4. Gr. B : 5. Gr. A) : (4. Gr. B : 5. Gr. A)) : ((4. Gr. B : 5. Gr. A) : (4. Gr. B : 5. Gr. A))))) : (((((4. Gr. B : 5. Gr. A) : (4. Gr. B : 5. Gr. A)) : ((4. Gr. B : 5. Gr. A) : (4. Gr. B : 5. Gr. A))) : (((4. Gr. B : 5. Gr. A) : (4. Gr. B : 5. Gr. A)) : ((4. Gr. B : 5. Gr. A) : (4. Gr. B : 5. Gr. A)))) : ((((4. Gr. B : 5. Gr. A) : (4. Gr. B : 5. Gr. A)) : ((4. Gr. B : 5. Gr. A) : (4. Gr. B : 5. Gr. A))) : (((4. Gr. B : 5. Gr. A) : (4. Gr. B : 5. Gr. A)) : ((4. Gr. B : 5. Gr. A) : (4. Gr. B : 5. Gr. A))))))
Q270: =O271 -> 5. Gr. A | V270: =IF($V$16,O271,CHOOSE(SIGN(T526-T524)+2,Q524,"("&Q524&" : "&Q526&")",Q526)) -> (4. Gr. B : 5. Gr. A) | AA270: =CHOOSE(SIGN(Y268-Y270)+2,V268,"("&V268&" : "&V270&")",V270) -> ((4. Gr. B : 5. Gr. A) : (4. Gr. B : 5. Gr. A)) | AF270: =CHOOSE(SIGN(AD268-AD270)+2,AA268,"("&AA268&" : "&AA270&")",AA270) -> (((4. Gr. B : 5. Gr. A) : (4. Gr. B : 5. Gr. A)) : ((4. Gr. B : 5. Gr. A) : (4. Gr. B : 5. Gr. A))) | AK270: =CHOOSE(SIGN(AI268-AI270)+2,AF268,"("&AF268&" : "&AF270&")",AF270) -> ((((4. Gr. B : 5. Gr. A) : (4. Gr. B : 5. Gr. A)) : ((4. Gr. B : 5. Gr. A) : (4. Gr. B : 5. Gr. A))) : (((4. Gr. B : 5. Gr. A) : (4. Gr. B : 5. Gr. A)) : ((4. Gr. B : 5. Gr. A) : (4. Gr. B : 5. Gr. A)))) | AP270: =CHOOSE(SIGN(AN268-AN270)+2,AK268,"("&AK268&" : "&AK270&")",AK270) -> (((((4. Gr. B : 5. Gr. A) : (4. Gr. B : 5. Gr. A)) : ((4. Gr. B : 5. Gr. A) : (4. Gr. B : 5. Gr. A))) : (((4. Gr. B : 5. Gr. A) : (4. Gr. B : 5. Gr. A)) : ((4. Gr. B : 5. Gr. A) : (4. Gr. B : 5. Gr. A)))) : ((((4. Gr. B : 5. Gr. A) : (4. Gr. B : 5. Gr. A)) : ((4. Gr. B : 5. Gr. A) : (4. Gr. B : 5. Gr. A))) : (((4. Gr. B : 5. Gr. A) : (4. Gr. B : 5. Gr. A)) : ((4. Gr. B : 5. Gr. A) : (4. Gr. B : 5. Gr. A))))) | AU270: =CHOOSE(SIGN(AS268-AS270)+2,AP268,"("&AP268&" : "&AP270&")",AP270) -> ((((((4. Gr. B : 5. Gr. A) : (4. Gr. B : 5. Gr. A)) : ((4. Gr. B : 5. Gr. A) : (4. Gr. B : 5. Gr. A))) : (((4. Gr. B : 5. Gr. A) : (4. Gr. B : 5. Gr. A)) : ((4. Gr. B : 5. Gr. A) : (4. Gr. B : 5. Gr. A)))) : ((((4. Gr. B : 5. Gr. A) : (4. Gr. B : 5. Gr. A)) : ((4. Gr. B : 5. Gr. A) : (4. Gr. B : 5. Gr. A))) : (((4. Gr. B : 5. Gr. A) : (4. Gr. B : 5. Gr. A)) : ((4. Gr. B : 5. Gr. A) : (4. Gr. B : 5. Gr. A))))) : (((((4. Gr. B : 5. Gr. A) : (4. Gr. B : 5. Gr. A)) : ((4. Gr. B : 5. Gr. A) : (4. Gr. B : 5. Gr. A))) : (((4. Gr. B : 5. Gr. A) : (4. Gr. B : 5. Gr. A)) : ((4. Gr. B : 5. Gr. A) : (4. Gr. B : 5. Gr. A)))) : ((((4. Gr. B : 5. Gr. A) : (4. Gr. B : 5. Gr. A)) : ((4. Gr. B : 5. Gr. A) : (4. Gr. B : 5. Gr. A))) : (((4. Gr. B : 5. Gr. A) : (4. Gr. B : 5. Gr. A)) : ((4. Gr. B : 5. Gr. A) : (4. Gr. B : 5. Gr. A))))))
O271: =INDEX(tbl_KO_Data[T2 Src Rank],K266) & ". Gr. " & INDEX(tbl_KO_Data[T2 Src Group],K266) -> 5. Gr. A | AZ271: 64 | BA271: =IF(AX268>AX270,AU270,IF(AX268<AX270,AU268,"")) -> 
I274: 2 | K274: =KO_Data_1row+INDEX(D274:I274,KO_Rounds_Ind) -> 295 | Q274: K_64_A02 | R274: field x | S274: best of n | T274: 0 | V274: K_32_B01 | W274: field x | X274: best of n | Y274: 0 | AA274: K_16_C01 | AB274: field x | AC274: best of n | AD274: 0 | AF274: K_08_E1 | AG274: field x | AH274: best of n | AI274: 0 | AK274: K_04_I1 | AL274: field x | AM274: best of n | AN274: 0 | AP274: K_02_Q1 | AQ274: field x | AR274: best of n | AS274: 0 | AU274: K_01_065 | AV274: field x | AW274: best of n | AX274: 0
O275: =INDEX(tbl_KO_Data[T1 Src Rank],K274) & ". Gr. " & INDEX(tbl_KO_Data[T1 Src Group],K274) -> 4. Gr. B | AZ275: 65 | BA275: =IF(AX276>AX278,AU276,IF(AX276<AX278,AU278,"")) -> 
Q276: =O275 -> 4. Gr. B | V276: =CHOOSE(SIGN(T20-T22)+2,Q20,"("&Q20&" : "&Q22&")",Q22) -> (1. Gr. A : 4. Gr. B) | AA276: =CHOOSE(SIGN(Y278-Y276)+2,V276,"("&V276&" : "&V278&")",V278) -> ((1. Gr. A : 4. Gr. B) : (2. Gr. D : 3. Gr. C)) | AF276: =CHOOSE(SIGN(AD278-AD276)+2,AA276,"("&AA276&" : "&AA278&")",AA278) -> (((1. Gr. A : 4. Gr. B) : (2. Gr. D : 3. Gr. C)) : ((1. Gr. C : 4. Gr. D) : (2. Gr. B : 3. Gr. A))) | AK276: =CHOOSE(SIGN(AI278-AI276)+2,AF276,"("&AF276&" : "&AF278&")",AF278) -> ((((1. Gr. A : 4. Gr. B) : (2. Gr. D : 3. Gr. C)) : ((1. Gr. C : 4. Gr. D) : (2. Gr. B : 3. Gr. A))) : (((1. Gr. B : 4. Gr. C) : (2. Gr. A : 3. Gr. D)) : ((1. Gr. D : 4. Gr. A) : (2. Gr. C : 3. Gr. B)))) | AP276: =CHOOSE(SIGN(AN278-AN276)+2,AK276,"("&AK276&" : "&AK278&")",AK278) -> (((((1. Gr. A : 4. Gr. B) : (2. Gr. D : 3. Gr. C)) : ((1. Gr. C : 4. Gr. D) : (2. Gr. B : 3. Gr. A))) : (((1. Gr. B : 4. Gr. C) : (2. Gr. A : 3. Gr. D)) : ((1. Gr. D : 4. Gr. A) : (2. Gr. C : 3. Gr. B)))) : ((((4. Gr. B : 5. Gr. A) : (4. Gr. B : 5. Gr. A)) : ((4. Gr. B : 5. Gr. A) : (4. Gr. B : 5. Gr. A))) : (((4. Gr. B : 5. Gr. A) : (4. Gr. B : 5. Gr. A)) : ((4. Gr. B : 5. Gr. A) : (4. Gr. B : 5. Gr. A))))) | AU276: =CHOOSE(SIGN(AS278-AS276)+2,AP276,"("&AP276&" : "&AP278&")",AP278) -> ((((((1. Gr. A : 4. Gr. B) : (2. Gr. D : 3. Gr. C)) : ((1. Gr. C : 4. Gr. D) : (2. Gr. B : 3. Gr. A))) : (((1. Gr. B : 4. Gr. C) : (2. Gr. A : 3. Gr. D)) : ((1. Gr. D : 4. Gr. A) : (2. Gr. C : 3. Gr. B)))) : ((((4. Gr. B : 5. Gr. A) : (4. Gr. B : 5. Gr. A)) : ((4. Gr. B : 5. Gr. A) : (4. Gr. B : 5. Gr. A))) : (((4. Gr. B : 5. Gr. A) : (4. Gr. B : 5. Gr. A)) : ((4. Gr. B : 5. Gr. A) : (4. Gr. B : 5. Gr. A))))) : (((((4. Gr. B : 5. Gr. A) : (4. Gr. B : 5. Gr. A)) : ((4. Gr. B : 5. Gr. A) : (4. Gr. B : 5. Gr. A))) : (((4. Gr. B : 5. Gr. A) : (4. Gr. B : 5. Gr. A)) : ((4. Gr. B : 5. Gr. A) : (4. Gr. B : 5. Gr. A)))) : ((((4. Gr. B : 5. Gr. A) : (4. Gr. B : 5. Gr. A)) : ((4. Gr. B : 5. Gr. A) : (4. Gr. B : 5. Gr. A))) : (((4. Gr. B : 5. Gr. A) : (4. Gr. B : 5. Gr. A)) : ((4. Gr. B : 5. Gr. A) : (4. Gr. B : 5. Gr. A))))))
Q278: =O279 -> 5. Gr. A | V278: =CHOOSE(SIGN(T28-T30)+2,Q28,"("&Q28&" : "&Q30&")",Q30) -> (2. Gr. D : 3. Gr. C) | AA278: =CHOOSE(SIGN(Y286-Y284)+2,V284,"("&V284&" : "&V286&")",V286) -> ((1. Gr. C : 4. Gr. D) : (2. Gr. B : 3. Gr. A)) | AF278: =CHOOSE(SIGN(AD286-AD284)+2,AA284,"("&AA284&" : "&AA286&")",AA286) -> (((1. Gr. B : 4. Gr. C) : (2. Gr. A : 3. Gr. D)) : ((1. Gr. D : 4. Gr. A) : (2. Gr. C : 3. Gr. B))) | AK278: =CHOOSE(SIGN(AI286-AI284)+2,AF284,"("&AF284&" : "&AF286&")",AF286) -> ((((4. Gr. B : 5. Gr. A) : (4. Gr. B : 5. Gr. A)) : ((4. Gr. B : 5. Gr. A) : (4. Gr. B : 5. Gr. A))) : (((4. Gr. B : 5. Gr. A) : (4. Gr. B : 5. Gr. A)) : ((4. Gr. B : 5. Gr. A) : (4. Gr. B : 5. Gr. A)))) | AP278: =CHOOSE(SIGN(AN286-AN284)+2,AK284,"("&AK284&" : "&AK286&")",AK286) -> (((((4. Gr. B : 5. Gr. A) : (4. Gr. B : 5. Gr. A)) : ((4. Gr. B : 5. Gr. A) : (4. Gr. B : 5. Gr. A))) : (((4. Gr. B : 5. Gr. A) : (4. Gr. B : 5. Gr. A)) : ((4. Gr. B : 5. Gr. A) : (4. Gr. B : 5. Gr. A)))) : ((((4. Gr. B : 5. Gr. A) : (4. Gr. B : 5. Gr. A)) : ((4. Gr. B : 5. Gr. A) : (4. Gr. B : 5. Gr. A))) : (((4. Gr. B : 5. Gr. A) : (4. Gr. B : 5. Gr. A)) : ((4. Gr. B : 5. Gr. A) : (4. Gr. B : 5. Gr. A))))) | AU278: =CHOOSE(SIGN(AS286-AS284)+2,AP284,"("&AP284&" : "&AP286&")",AP286) -> ((((((4. Gr. B : 5. Gr. A) : (4. Gr. B : 5. Gr. A)) : ((4. Gr. B : 5. Gr. A) : (4. Gr. B : 5. Gr. A))) : (((4. Gr. B : 5. Gr. A) : (4. Gr. B : 5. Gr. A)) : ((4. Gr. B : 5. Gr. A) : (4. Gr. B : 5. Gr. A)))) : ((((4. Gr. B : 5. Gr. A) : (4. Gr. B : 5. Gr. A)) : ((4. Gr. B : 5. Gr. A) : (4. Gr. B : 5. Gr. A))) : (((4. Gr. B : 5. Gr. A) : (4. Gr. B : 5. Gr. A)) : ((4. Gr. B : 5. Gr. A) : (4. Gr. B : 5. Gr. A))))) : (((((4. Gr. B : 5. Gr. A) : (4. Gr. B : 5. Gr. A)) : ((4. Gr. B : 5. Gr. A) : (4. Gr. B : 5. Gr. A))) : (((4. Gr. B : 5. Gr. A) : (4. Gr. B : 5. Gr. A)) : ((4. Gr. B : 5. Gr. A) : (4. Gr. B : 5. Gr. A)))) : ((((4. Gr. B : 5. Gr. A) : (4. Gr. B : 5. Gr. A)) : ((4. Gr. B : 5. Gr. A) : (4. Gr. B : 5. Gr. A))) : (((4. Gr. B : 5. Gr. A) : (4. Gr. B : 5. Gr. A)) : ((4. Gr. B : 5. Gr. A) : (4. Gr. B : 5. Gr. A))))))
O279: =INDEX(tbl_KO_Data[T2 Src Rank],K274) & ". Gr. " & INDEX(tbl_KO_Data[T2 Src Group],K274) -> 5. Gr. A | AZ279: 66 | BA279: =IF(AX276>AX278,AU278,IF(AX276<AX278,AU276,"")) -> 
I282: 63 | K282: =KO_Data_1row+INDEX(D282:I282,KO_Rounds_Ind) -> 295 | Q282: K_64_A63 | R282: field x | S282: best of n | T282: 0 | V282: K_32_B32 | W282: field x | X282: best of n | Y282: 0 | AA282: K_16_C16 | AB282: field x | AC282: best of n | AD282: 0 | AF282: K_08_E8 | AG282: field x | AH282: best of n | AI282: 0 | AK282: K_04_I4 | AL282: field x | AM282: best of n | AN282: 0 | AP282: K_02_Q2 | AQ282: field x | AR282: best of n | AS282: 0 | AU282: K_01_067 | AV282: field x | AW282: best of n | AX282: 0
O283: =INDEX(tbl_KO_Data[T1 Src Rank],K282) & ". Gr. " & INDEX(tbl_KO_Data[T1 Src Group],K282) -> 4. Gr. B | AZ283: 67 | BA283: =IF(AX284>AX286,AU284,IF(AX284<AX286,AU286,"")) -> 
Q284: =O283 -> 4. Gr. B | V284: =CHOOSE(SIGN(T36-T38)+2,Q36,"("&Q36&" : "&Q38&")",Q38) -> (1. Gr. C : 4. Gr. D) | AA284: =CHOOSE(SIGN(Y294-Y292)+2,V292,"("&V292&" : "&V294&")",V294) -> ((1. Gr. B : 4. Gr. C) : (2. Gr. A : 3. Gr. D)) | AF284: =CHOOSE(SIGN(AD294-AD292)+2,AA292,"("&AA292&" : "&AA294&")",AA294) -> (((4. Gr. B : 5. Gr. A) : (4. Gr. B : 5. Gr. A)) : ((4. Gr. B : 5. Gr. A) : (4. Gr. B : 5. Gr. A))) | AK284: =CHOOSE(SIGN(AI294-AI292)+2,AF292,"("&AF292&" : "&AF294&")",AF294) -> ((((4. Gr. B : 5. Gr. A) : (4. Gr. B : 5. Gr. A)) : ((4. Gr. B : 5. Gr. A) : (4. Gr. B : 5. Gr. A))) : (((4. Gr. B : 5. Gr. A) : (4. Gr. B : 5. Gr. A)) : ((4. Gr. B : 5. Gr. A) : (4. Gr. B : 5. Gr. A)))) | AP284: =CHOOSE(SIGN(AN294-AN292)+2,AK292,"("&AK292&" : "&AK294&")",AK294) -> (((((4. Gr. B : 5. Gr. A) : (4. Gr. B : 5. Gr. A)) : ((4. Gr. B : 5. Gr. A) : (4. Gr. B : 5. Gr. A))) : (((4. Gr. B : 5. Gr. A) : (4. Gr. B : 5. Gr. A)) : ((4. Gr. B : 5. Gr. A) : (4. Gr. B : 5. Gr. A)))) : ((((4. Gr. B : 5. Gr. A) : (4. Gr. B : 5. Gr. A)) : ((4. Gr. B : 5. Gr. A) : (4. Gr. B : 5. Gr. A))) : (((4. Gr. B : 5. Gr. A) : (4. Gr. B : 5. Gr. A)) : ((4. Gr. B : 5. Gr. A) : (4. Gr. B : 5. Gr. A))))) | AU284: =CHOOSE(SIGN(AS276-AS278)+2,AP276,"("&AP276&" : "&AP278&")",AP278) -> ((((((1. Gr. A : 4. Gr. B) : (2. Gr. D : 3. Gr. C)) : ((1. Gr. C : 4. Gr. D) : (2. Gr. B : 3. Gr. A))) : (((1. Gr. B : 4. Gr. C) : (2. Gr. A : 3. Gr. D)) : ((1. Gr. D : 4. Gr. A) : (2. Gr. C : 3. Gr. B)))) : ((((4. Gr. B : 5. Gr. A) : (4. Gr. B : 5. Gr. A)) : ((4. Gr. B : 5. Gr. A) : (4. Gr. B : 5. Gr. A))) : (((4. Gr. B : 5. Gr. A) : (4. Gr. B : 5. Gr. A)) : ((4. Gr. B : 5. Gr. A) : (4. Gr. B : 5. Gr. A))))) : (((((4. Gr. B : 5. Gr. A) : (4. Gr. B : 5. Gr. A)) : ((4. Gr. B : 5. Gr. A) : (4. Gr. B : 5. Gr. A))) : (((4. Gr. B : 5. Gr. A) : (4. Gr. B : 5. Gr. A)) : ((4. Gr. B : 5. Gr. A) : (4. Gr. B : 5. Gr. A)))) : ((((4. Gr. B : 5. Gr. A) : (4. Gr. B : 5. Gr. A)) : ((4. Gr. B : 5. Gr. A) : (4. Gr. B : 5. Gr. A))) : (((4. Gr. B : 5. Gr. A) : (4. Gr. B : 5. Gr. A)) : ((4. Gr. B : 5. Gr. A) : (4. Gr. B : 5. Gr. A))))))
Q286: =O287 -> 5. Gr. A | V286: =CHOOSE(SIGN(T44-T46)+2,Q44,"("&Q44&" : "&Q46&")",Q46) -> (2. Gr. B : 3. Gr. A) | AA286: =CHOOSE(SIGN(Y302-Y300)+2,V300,"("&V300&" : "&V302&")",V302) -> ((1. Gr. D : 4. Gr. A) : (2. Gr. C : 3. Gr. B)) | AF286: =CHOOSE(SIGN(AD302-AD300)+2,AA300,"("&AA300&" : "&AA302&")",AA302) -> (((4. Gr. B : 5. Gr. A) : (4. Gr. B : 5. Gr. A)) : ((4. Gr. B : 5. Gr. A) : (4. Gr. B : 5. Gr. A))) | AK286: =CHOOSE(SIGN(AI302-AI300)+2,AF300,"("&AF300&" : "&AF302&")",AF302) -> ((((4. Gr. B : 5. Gr. A) : (4. Gr. B : 5. Gr. A)) : ((4. Gr. B : 5. Gr. A) : (4. Gr. B : 5. Gr. A))) : (((4. Gr. B : 5. Gr. A) : (4. Gr. B : 5. Gr. A)) : ((4. Gr. B : 5. Gr. A) : (4. Gr. B : 5. Gr. A)))) | AP286: =CHOOSE(SIGN(AN302-AN300)+2,AK300,"("&AK300&" : "&AK302&")",AK302) -> (((((4. Gr. B : 5. Gr. A) : (4. Gr. B : 5. Gr. A)) : ((4. Gr. B : 5. Gr. A) : (4. Gr. B : 5. Gr. A))) : (((4. Gr. B : 5. Gr. A) : (4. Gr. B : 5. Gr. A)) : ((4. Gr. B : 5. Gr. A) : (4. Gr. B : 5. Gr. A)))) : ((((4. Gr. B : 5. Gr. A) : (4. Gr. B : 5. Gr. A)) : ((4. Gr. B : 5. Gr. A) : (4. Gr. B : 5. Gr. A))) : (((4. Gr. B : 5. Gr. A) : (4. Gr. B : 5. Gr. A)) : ((4. Gr. B : 5. Gr. A) : (4. Gr. B : 5. Gr. A))))) | AU286: =CHOOSE(SIGN(AS284-AS286)+2,AP284,"("&AP284&" : "&AP286&")",AP286) -> ((((((4. Gr. B : 5. Gr. A) : (4. Gr. B : 5. Gr. A)) : ((4. Gr. B : 5. Gr. A) : (4. Gr. B : 5. Gr. A))) : (((4. Gr. B : 5. Gr. A) : (4. Gr. B : 5. Gr. A)) : ((4. Gr. B : 5. Gr. A) : (4. Gr. B : 5. Gr. A)))) : ((((4. Gr. B : 5. Gr. A) : (4. Gr. B : 5. Gr. A)) : ((4. Gr. B : 5. Gr. A) : (4. Gr. B : 5. Gr. A))) : (((4. Gr. B : 5. Gr. A) : (4. Gr. B : 5. Gr. A)) : ((4. Gr. B : 5. Gr. A) : (4. Gr. B : 5. Gr. A))))) : (((((4. Gr. B : 5. Gr. A) : (4. Gr. B : 5. Gr. A)) : ((4. Gr. B : 5. Gr. A) : (4. Gr. B : 5. Gr. A))) : (((4. Gr. B : 5. Gr. A) : (4. Gr. B : 5. Gr. A)) : ((4. Gr. B : 5. Gr. A) : (4. Gr. B : 5. Gr. A)))) : ((((4. Gr. B : 5. Gr. A) : (4. Gr. B : 5. Gr. A)) : ((4. Gr. B : 5. Gr. A) : (4. Gr. B : 5. Gr. A))) : (((4. Gr. B : 5. Gr. A) : (4. Gr. B : 5. Gr. A)) : ((4. Gr. B : 5. Gr. A) : (4. Gr. B : 5. Gr. A))))))
O287: =INDEX(tbl_KO_Data[T2 Src Rank],K282) & ". Gr. " & INDEX(tbl_KO_Data[T2 Src Group],K282) -> 5. Gr. A | AZ287: 68 | BA287: =IF(AX284>AX286,AU286,IF(AX284<AX286,AU284,"")) -> 
I290: 31 | K290: =KO_Data_1row+INDEX(D290:I290,KO_Rounds_Ind) -> 295 | Q290: K_64_A31 | R290: field x | S290: best of n | T290: 0 | V290: K_32_B16 | W290: field x | X290: best of n | Y290: 0 | AA290: K_16_C08 | AB290: field x | AC290: best of n | AD290: 0 | AF290: K_08_E4 | AG290: field x | AH290: best of n | AI290: 0 | AK290: K_04_I2 | AL290: field x | AM290: best of n | AN290: 0 | AP290: K_02_R1 | AQ290: field x | AR290: best of n | AS290: 0 | AU290: K_01_069 | AV290: field x | AW290: best of n | AX290: 0
O291: =INDEX(tbl_KO_Data[T1 Src Rank],K290) & ". Gr. " & INDEX(tbl_KO_Data[T1 Src Group],K290) -> 4. Gr. B | AZ291: 69 | BA291: =IF(AX292>AX294,AU292,IF(AX292<AX294,AU294,"")) -> 
Q292: =O291 -> 4. Gr. B | V292: =CHOOSE(SIGN(T52-T54)+2,Q52,"("&Q52&" : "&Q54&")",Q54) -> (1. Gr. B : 4. Gr. C) | AA292: =CHOOSE(SIGN(Y310-Y308)+2,V308,"("&V308&" : "&V310&")",V310) -> ((4. Gr. B : 5. Gr. A) : (4. Gr. B : 5. Gr. A)) | AF292: =CHOOSE(SIGN(AD310-AD308)+2,AA308,"("&AA308&" : "&AA310&")",AA310) -> (((4. Gr. B : 5. Gr. A) : (4. Gr. B : 5. Gr. A)) : ((4. Gr. B : 5. Gr. A) : (4. Gr. B : 5. Gr. A))) | AK292: =CHOOSE(SIGN(AI310-AI308)+2,AF308,"("&AF308&" : "&AF310&")",AF310) -> ((((4. Gr. B : 5. Gr. A) : (4. Gr. B : 5. Gr. A)) : ((4. Gr. B : 5. Gr. A) : (4. Gr. B : 5. Gr. A))) : (((4. Gr. B : 5. Gr. A) : (4. Gr. B : 5. Gr. A)) : ((4. Gr. B : 5. Gr. A) : (4. Gr. B : 5. Gr. A)))) | AP292: =CHOOSE(SIGN(AN276-AN278)+2,AK276,"("&AK276&" : "&AK278&")",AK278) -> (((((1. Gr. A : 4. Gr. B) : (2. Gr. D : 3. Gr. C)) : ((1. Gr. C : 4. Gr. D) : (2. Gr. B : 3. Gr. A))) : (((1. Gr. B : 4. Gr. C) : (2. Gr. A : 3. Gr. D)) : ((1. Gr. D : 4. Gr. A) : (2. Gr. C : 3. Gr. B)))) : ((((4. Gr. B : 5. Gr. A) : (4. Gr. B : 5. Gr. A)) : ((4. Gr. B : 5. Gr. A) : (4. Gr. B : 5. Gr. A))) : (((4. Gr. B : 5. Gr. A) : (4. Gr. B : 5. Gr. A)) : ((4. Gr. B : 5. Gr. A) : (4. Gr. B : 5. Gr. A))))) | AU292: =CHOOSE(SIGN(AS294-AS292)+2,AP292,"("&AP292&" : "&AP294&")",AP294) -> ((((((1. Gr. A : 4. Gr. B) : (2. Gr. D : 3. Gr. C)) : ((1. Gr. C : 4. Gr. D) : (2. Gr. B : 3. Gr. A))) : (((1. Gr. B : 4. Gr. C) : (2. Gr. A : 3. Gr. D)) : ((1. Gr. D : 4. Gr. A) : (2. Gr. C : 3. Gr. B)))) : ((((4. Gr. B : 5. Gr. A) : (4. Gr. B : 5. Gr. A)) : ((4. Gr. B : 5. Gr. A) : (4. Gr. B : 5. Gr. A))) : (((4. Gr. B : 5. Gr. A) : (4. Gr. B : 5. Gr. A)) : ((4. Gr. B : 5. Gr. A) : (4. Gr. B : 5. Gr. A))))) : (((((4. Gr. B : 5. Gr. A) : (4. Gr. B : 5. Gr. A)) : ((4. Gr. B : 5. Gr. A) : (4. Gr. B : 5. Gr. A))) : (((4. Gr. B : 5. Gr. A) : (4. Gr. B : 5. Gr. A)) : ((4. Gr. B : 5. Gr. A) : (4. Gr. B : 5. Gr. A)))) : ((((4. Gr. B : 5. Gr. A) : (4. Gr. B : 5. Gr. A)) : ((4. Gr. B : 5. Gr. A) : (4. Gr. B : 5. Gr. A))) : (((4. Gr. B : 5. Gr. A) : (4. Gr. B : 5. Gr. A)) : ((4. Gr. B : 5. Gr. A) : (4. Gr. B : 5. Gr. A))))))
Q294: =O295 -> 5. Gr. A | V294: =CHOOSE(SIGN(T60-T62)+2,Q60,"("&Q60&" : "&Q62&")",Q62) -> (2. Gr. A : 3. Gr. D) | AA294: =CHOOSE(SIGN(Y318-Y316)+2,V316,"("&V316&" : "&V318&")",V318) -> ((4. Gr. B : 5. Gr. A) : (4. Gr. B : 5. Gr. A)) | AF294: =CHOOSE(SIGN(AD318-AD316)+2,AA316,"("&AA316&" : "&AA318&")",AA318) -> (((4. Gr. B : 5. Gr. A) : (4. Gr. B : 5. Gr. A)) : ((4. Gr. B : 5. Gr. A) : (4. Gr. B : 5. Gr. A))) | AK294: =CHOOSE(SIGN(AI318-AI316)+2,AF316,"("&AF316&" : "&AF318&")",AF318) -> ((((4. Gr. B : 5. Gr. A) : (4. Gr. B : 5. Gr. A)) : ((4. Gr. B : 5. Gr. A) : (4. Gr. B : 5. Gr. A))) : (((4. Gr. B : 5. Gr. A) : (4. Gr. B : 5. Gr. A)) : ((4. Gr. B : 5. Gr. A) : (4. Gr. B : 5. Gr. A)))) | AP294: =CHOOSE(SIGN(AN284-AN286)+2,AK284,"("&AK284&" : "&AK286&")",AK286) -> (((((4. Gr. B : 5. Gr. A) : (4. Gr. B : 5. Gr. A)) : ((4. Gr. B : 5. Gr. A) : (4. Gr. B : 5. Gr. A))) : (((4. Gr. B : 5. Gr. A) : (4. Gr. B : 5. Gr. A)) : ((4. Gr. B : 5. Gr. A) : (4. Gr. B : 5. Gr. A)))) : ((((4. Gr. B : 5. Gr. A) : (4. Gr. B : 5. Gr. A)) : ((4. Gr. B : 5. Gr. A) : (4. Gr. B : 5. Gr. A))) : (((4. Gr. B : 5. Gr. A) : (4. Gr. B : 5. Gr. A)) : ((4. Gr. B : 5. Gr. A) : (4. Gr. B : 5. Gr. A))))) | AU294: =CHOOSE(SIGN(AS302-AS300)+2,AP300,"("&AP300&" : "&AP302&")",AP302) -> ((((((4. Gr. B : 5. Gr. A) : (4. Gr. B : 5. Gr. A)) : ((4. Gr. B : 5. Gr. A) : (4. Gr. B : 5. Gr. A))) : (((4. Gr. B : 5. Gr. A) : (4. Gr. B : 5. Gr. A)) : ((4. Gr. B : 5. Gr. A) : (4. Gr. B : 5. Gr. A)))) : ((((4. Gr. B : 5. Gr. A) : (4. Gr. B : 5. Gr. A)) : ((4. Gr. B : 5. Gr. A) : (4. Gr. B : 5. Gr. A))) : (((4. Gr. B : 5. Gr. A) : (4. Gr. B : 5. Gr. A)) : ((4. Gr. B : 5. Gr. A) : (4. Gr. B : 5. Gr. A))))) : (((((4. Gr. B : 5. Gr. A) : (4. Gr. B : 5. Gr. A)) : ((4. Gr. B : 5. Gr. A) : (4. Gr. B : 5. Gr. A))) : (((4. Gr. B : 5. Gr. A) : (4. Gr. B : 5. Gr. A)) : ((4. Gr. B : 5. Gr. A) : (4. Gr. B : 5. Gr. A)))) : ((((4. Gr. B : 5. Gr. A) : (4. Gr. B : 5. Gr. A)) : ((4. Gr. B : 5. Gr. A) : (4. Gr. B : 5. Gr. A))) : (((4. Gr. B : 5. Gr. A) : (4. Gr. B : 5. Gr. A)) : ((4. Gr. B : 5. Gr. A) : (4. Gr. B : 5. Gr. A))))))
O295: =INDEX(tbl_KO_Data[T2 Src Rank],K290) & ". Gr. " & INDEX(tbl_KO_Data[T2 Src Group],K290) -> 5. Gr. A | AZ295: 70 | BA295: =IF(AX292>AX294,AU294,IF(AX292<AX294,AU292,"")) -> 
I298: 34 | K298: =KO_Data_1row+INDEX(D298:I298,KO_Rounds_Ind) -> 295 | Q298: K_64_A34 | R298: field x | S298: best of n | T298: 0 | V298: K_32_B17 | W298: field x | X298: best of n | Y298: 0 | AA298: K_16_C09 | AB298: field x | AC298: best of n | AD298: 0 | AF298: K_08_E5 | AG298: field x | AH298: best of n | AI298: 0 | AK298: K_04_I3 | AL298: field x | AM298: best of n | AN298: 0 | AP298: K_02_R2 | AQ298: field x | AR298: best of n | AS298: 0 | AU298: K_01_071 | AV298: field x | AW298: best of n | AX298: 0
O299: =INDEX(tbl_KO_Data[T1 Src Rank],K298) & ". Gr. " & INDEX(tbl_KO_Data[T1 Src Group],K298) -> 4. Gr. B | AZ299: 71 | BA299: =IF(AX300>AX302,AU300,IF(AX300<AX302,AU302,"")) -> 
Q300: =O299 -> 4. Gr. B | V300: =CHOOSE(SIGN(T68-T70)+2,Q68,"("&Q68&" : "&Q70&")",Q70) -> (1. Gr. D : 4. Gr. A) | AA300: =CHOOSE(SIGN(Y326-Y324)+2,V324,"("&V324&" : "&V326&")",V326) -> ((4. Gr. B : 5. Gr. A) : (4. Gr. B : 5. Gr. A)) | AF300: =CHOOSE(SIGN(AD326-AD324)+2,AA324,"("&AA324&" : "&AA326&")",AA326) -> (((4. Gr. B : 5. Gr. A) : (4. Gr. B : 5. Gr. A)) : ((4. Gr. B : 5. Gr. A) : (4. Gr. B : 5. Gr. A))) | AK300: =CHOOSE(SIGN(AI326-AI324)+2,AF324,"("&AF324&" : "&AF326&")",AF326) -> ((((4. Gr. B : 5. Gr. A) : (4. Gr. B : 5. Gr. A)) : ((4. Gr. B : 5. Gr. A) : (4. Gr. B : 5. Gr. A))) : (((4. Gr. B : 5. Gr. A) : (4. Gr. B : 5. Gr. A)) : ((4. Gr. B : 5. Gr. A) : (4. Gr. B : 5. Gr. A)))) | AP300: =CHOOSE(SIGN(AN292-AN294)+2,AK292,"("&AK292&" : "&AK294&")",AK294) -> (((((4. Gr. B : 5. Gr. A) : (4. Gr. B : 5. Gr. A)) : ((4. Gr. B : 5. Gr. A) : (4. Gr. B : 5. Gr. A))) : (((4. Gr. B : 5. Gr. A) : (4. Gr. B : 5. Gr. A)) : ((4. Gr. B : 5. Gr. A) : (4. Gr. B : 5. Gr. A)))) : ((((4. Gr. B : 5. Gr. A) : (4. Gr. B : 5. Gr. A)) : ((4. Gr. B : 5. Gr. A) : (4. Gr. B : 5. Gr. A))) : (((4. Gr. B : 5. Gr. A) : (4. Gr. B : 5. Gr. A)) : ((4. Gr. B : 5. Gr. A) : (4. Gr. B : 5. Gr. A))))) | AU300: =CHOOSE(SIGN(AS292-AS294)+2,AP292,"("&AP292&" : "&AP294&")",AP294) -> ((((((1. Gr. A : 4. Gr. B) : (2. Gr. D : 3. Gr. C)) : ((1. Gr. C : 4. Gr. D) : (2. Gr. B : 3. Gr. A))) : (((1. Gr. B : 4. Gr. C) : (2. Gr. A : 3. Gr. D)) : ((1. Gr. D : 4. Gr. A) : (2. Gr. C : 3. Gr. B)))) : ((((4. Gr. B : 5. Gr. A) : (4. Gr. B : 5. Gr. A)) : ((4. Gr. B : 5. Gr. A) : (4. Gr. B : 5. Gr. A))) : (((4. Gr. B : 5. Gr. A) : (4. Gr. B : 5. Gr. A)) : ((4. Gr. B : 5. Gr. A) : (4. Gr. B : 5. Gr. A))))) : (((((4. Gr. B : 5. Gr. A) : (4. Gr. B : 5. Gr. A)) : ((4. Gr. B : 5. Gr. A) : (4. Gr. B : 5. Gr. A))) : (((4. Gr. B : 5. Gr. A) : (4. Gr. B : 5. Gr. A)) : ((4. Gr. B : 5. Gr. A) : (4. Gr. B : 5. Gr. A)))) : ((((4. Gr. B : 5. Gr. A) : (4. Gr. B : 5. Gr. A)) : ((4. Gr. B : 5. Gr. A) : (4. Gr. B : 5. Gr. A))) : (((4. Gr. B : 5. Gr. A) : (4. Gr. B : 5. Gr. A)) : ((4. Gr. B : 5. Gr. A) : (4. Gr. B : 5. Gr. A))))))
Q302: =O303 -> 5. Gr. A | V302: =CHOOSE(SIGN(T76-T78)+2,Q76,"("&Q76&" : "&Q78&")",Q78) -> (2. Gr. C : 3. Gr. B) | AA302: =CHOOSE(SIGN(Y334-Y332)+2,V332,"("&V332&" : "&V334&")",V334) -> ((4. Gr. B : 5. Gr. A) : (4. Gr. B : 5. Gr. A)) | AF302: =CHOOSE(SIGN(AD334-AD332)+2,AA332,"("&AA332&" : "&AA334&")",AA334) -> (((4. Gr. B : 5. Gr. A) : (4. Gr. B : 5. Gr. A)) : ((4. Gr. B : 5. Gr. A) : (4. Gr. B : 5. Gr. A))) | AK302: =CHOOSE(SIGN(AI334-AI332)+2,AF332,"("&AF332&" : "&AF334&")",AF334) -> ((((4. Gr. B : 5. Gr. A) : (4. Gr. B : 5. Gr. A)) : ((4. Gr. B : 5. Gr. A) : (4. Gr. B : 5. Gr. A))) : (((4. Gr. B : 5. Gr. A) : (4. Gr. B : 5. Gr. A)) : ((4. Gr. B : 5. Gr. A) : (4. Gr. B : 5. Gr. A)))) | AP302: =CHOOSE(SIGN(AN300-AN302)+2,AK300,"("&AK300&" : "&AK302&")",AK302) -> (((((4. Gr. B : 5. Gr. A) : (4. Gr. B : 5. Gr. A)) : ((4. Gr. B : 5. Gr. A) : (4. Gr. B : 5. Gr. A))) : (((4. Gr. B : 5. Gr. A) : (4. Gr. B : 5. Gr. A)) : ((4. Gr. B : 5. Gr. A) : (4. Gr. B : 5. Gr. A)))) : ((((4. Gr. B : 5. Gr. A) : (4. Gr. B : 5. Gr. A)) : ((4. Gr. B : 5. Gr. A) : (4. Gr. B : 5. Gr. A))) : (((4. Gr. B : 5. Gr. A) : (4. Gr. B : 5. Gr. A)) : ((4. Gr. B : 5. Gr. A) : (4. Gr. B : 5. Gr. A))))) | AU302: =CHOOSE(SIGN(AS300-AS302)+2,AP300,"("&AP300&" : "&AP302&")",AP302) -> ((((((4. Gr. B : 5. Gr. A) : (4. Gr. B : 5. Gr. A)) : ((4. Gr. B : 5. Gr. A) : (4. Gr. B : 5. Gr. A))) : (((4. Gr. B : 5. Gr. A) : (4. Gr. B : 5. Gr. A)) : ((4. Gr. B : 5. Gr. A) : (4. Gr. B : 5. Gr. A)))) : ((((4. Gr. B : 5. Gr. A) : (4. Gr. B : 5. Gr. A)) : ((4. Gr. B : 5. Gr. A) : (4. Gr. B : 5. Gr. A))) : (((4. Gr. B : 5. Gr. A) : (4. Gr. B : 5. Gr. A)) : ((4. Gr. B : 5. Gr. A) : (4. Gr. B : 5. Gr. A))))) : (((((4. Gr. B : 5. Gr. A) : (4. Gr. B : 5. Gr. A)) : ((4. Gr. B : 5. Gr. A) : (4. Gr. B : 5. Gr. A))) : (((4. Gr. B : 5. Gr. A) : (4. Gr. B : 5. Gr. A)) : ((4. Gr. B : 5. Gr. A) : (4. Gr. B : 5. Gr. A)))) : ((((4. Gr. B : 5. Gr. A) : (4. Gr. B : 5. Gr. A)) : ((4. Gr. B : 5. Gr. A) : (4. Gr. B : 5. Gr. A))) : (((4. Gr. B : 5. Gr. A) : (4. Gr. B : 5. Gr. A)) : ((4. Gr. B : 5. Gr. A) : (4. Gr. B : 5. Gr. A))))))
O303: =INDEX(tbl_KO_Data[T2 Src Rank],K298) & ". Gr. " & INDEX(tbl_KO_Data[T2 Src Group],K298) -> 5. Gr. A | AZ303: 72 | BA303: =IF(AX300>AX302,AU302,IF(AX300<AX302,AU300,"")) -> 
I306: 15 | K306: =KO_Data_1row+INDEX(D306:I306,KO_Rounds_Ind) -> 295 | Q306: K_64_A15 | R306: field x | S306: best of n | T306: 0 | V306: K_32_B08 | W306: field x | X306: best of n | Y306: 0 | AA306: K_16_C04 | AB306: field x | AC306: best of n | AD306: 0 | AF306: K_08_E2 | AG306: field x | AH306: best of n | AI306: 0 | AK306: K_04_J1 | AL306: field x | AM306: best of n | AN306: 0 | AP306: K_02_S1 | AQ306: field x | AR306: best of n | AS306: 0 | AU306: K_01_073 | AV306: field x | AW306: best of n | AX306: 0
... 139 more rows

Sheet KO-Consolation
O2: =VLOOKUP("txt_0000",tbl_i18n[],Lang_Ind,FALSE) -> Spielsysteme für Turniere | BU2: created by: Walter Aust
M4: ç
O5: =VLOOKUP("txt_2601",tbl_i18n[],Lang_Ind,FALSE) -> Finalrunden: Darstellung eines einfachen K.O-Systems (Ausscheidungsrunden) mit einer Trostrunde
A6: KO_txt_lbl1 | B6: =VLOOKUP("txt_2a52",tbl_i18n[],Lang_Ind,FALSE) -> erforderliche Teams:
A7: KO_txt_btn1 | B7: =VLOOKUP("txt_2a58",tbl_i18n[],Lang_Ind,FALSE) -> Spielergebnisse löschen | O7: =VLOOKUP("txt_2a51",tbl_i18n[],Lang_Ind,FALSE) -> Einstiegsrunde:
A8: KO_txt_lbl2 | B8: =VLOOKUP("txt_2a54",tbl_i18n[],Lang_Ind,FALSE) -> Teams pro Gruppe:
A9: KO_txt_btn2 | B9: =VLOOKUP("txt_2a59",tbl_i18n[],Lang_Ind,FALSE) -> Spielergebnisse vorbesetzen | O9: =VLOOKUP("txt_2a53",tbl_i18n[],Lang_Ind,FALSE) -> Anzahl der Vorrundengruppen:
O11: =IF(KO_Groups_Ind>1,VLOOKUP("txt_2a70",tbl_i18n[],Lang_Ind,FALSE) & INDEX(tbl_i18n[],KO_Groups_Ind+MATCH("txt_2a70",tbl_i18n[ID],0),Lang_Ind) & VLOOKUP("txt_2a72",tbl_i18n[],Lang_Ind,FALSE),"") -> Hinweis: Ab den Halbfinalrunden (inklusive) können Teams mit der gleichen Gruppenplatzierung aufeinandertreffen.
D14: Game numbers | K14: rows | O14: Rank + Group | Q14: =B17 -> 1/4-Finale | V14: =B18 -> 1/8-Finale | AA14: =B19 -> 1/16-Finale | AF14: =B20 -> 1/32-Finale | AK14: =B21 -> 1/64-Finale | AP14: =B20 -> 1/32-Finale | AU14: =B19 -> 1/16-Finale | AZ14: =B18 -> 1/8-Finale | BE14: =B17 -> 1/4-Finale | BJ14: =B16 -> 0 | BO14: =VLOOKUP("K_01_#",tbl_i18n[],Lang_Ind,FALSE) -> Spiel um Rang # | BT14: =VLOOKUP("txt_2a57",tbl_i18n[],Lang_Ind,FALSE) -> Rang
D16: 2 | E16: 4 | F16: 8 | G16: 16 | H16: 32 | I16: 64 | AK16: FALSE | AP16: FALSE | AU16: =KO_Rounds_Ind=5 -> FALSE | AV16: =CHOOSE(KO_Rounds_Ind,,,,,"B","C") -> 0 | AZ16: =KO_Rounds_Ind=4 -> FALSE | BA16: =CHOOSE(KO_Rounds_Ind,,,,"B","C","E") -> 0 | BE16: =KO_Rounds_Ind=3 -> TRUE | BF16: =CHOOSE(KO_Rounds_Ind,,,"B","C","E","I") -> B | BJ16: =KO_Rounds_Ind=2 -> FALSE | BK16: =CHOOSE(KO_Rounds_Ind,"?","B","C","E","I","Q") -> C | BP16: =CHOOSE(KO_Rounds_Ind,,5,9,17,33,65) -> 9
A17: KO_Rounds_List | B17: =VLOOKUP("K_04_A",tbl_i18n[],Lang_Ind,FALSE) -> 1/4-Finale
B18: =VLOOKUP("K_08_A",tbl_i18n[],Lang_Ind,FALSE) -> 1/8-Finale | I18: 1 | K18: =KO_Data_1row+INDEX(D18:I18,KO_Rounds_Ind) -> 295 | AK18: K_64_A01 | AL18: field x | AM18: best of n | AN18: 0 | AP18: K_32_A01 | AQ18: field x | AR18: best of n | AS18: 0
B19: =VLOOKUP("K_16_A",tbl_i18n[],Lang_Ind,FALSE) -> 1/16-Finale | O19: =INDEX(tbl_KO_Data[T1 Src Rank],K18) & ". Gr. " & INDEX(tbl_KO_Data[T1 Src Group],K18) -> 4. Gr. B
B20: =VLOOKUP("K_32_A",tbl_i18n[],Lang_Ind,FALSE) -> 1/32-Finale | AK20: =O19 -> 4. Gr. B | AP20: =IF($AP$16,O19,CHOOSE(SIGN(AN22-AN20)+2,AK20,"("&AK20&" : "&AK22&")",AK22)) -> (4. Gr. B : 5. Gr. A)
B21: =VLOOKUP("K_64_A",tbl_i18n[],Lang_Ind,FALSE) -> 1/64-Finale
AK22: =O23 -> 5. Gr. A | AP22: =IF($AP$16,O23,CHOOSE(SIGN(AN30-AN28)+2,AK28,"("&AK28&" : "&AK30&")",AK30)) -> (4. Gr. B : 5. Gr. A)
A23: KO_Rounds_Ind2 | B23: 2 | O23: =INDEX(tbl_KO_Data[T2 Src Rank],K18) & ". Gr. " & INDEX(tbl_KO_Data[T2 Src Group],K18) -> 5. Gr. A
A24: KO_Rounds_Ind | B24: =KO_Rounds_Ind2+1 -> 3
A26: KO_TeamsReq | B26: =2^(1+KO_Rounds_Ind) -> 16 | I26: 64 | K26: =KO_Data_1row+INDEX(D26:I26,KO_Rounds_Ind) -> 295 | AK26: K_64_A64 | AL26: field x | AM26: best of n | AN26: 0 | AP26: K_32_A32 | AQ26: field x | AR26: best of n | AS26: 0
O27: =INDEX(tbl_KO_Data[T1 Src Rank],K26) & ". Gr. " & INDEX(tbl_KO_Data[T1 Src Group],K26) -> 4. Gr. B
A28: KO_Groups_List | B28: 1 | AK28: =O27 -> 4. Gr. B | AP28: =IF($AP$16,O27,CHOOSE(SIGN(AN38-AN36)+2,AK36,"("&AK36&" : "&AK38&")",AK38)) -> (4. Gr. B : 5. Gr. A)
B29: 2
B30: 4 | AK30: =O31 -> 5. Gr. A | AP30: =IF($AP$16,O31,CHOOSE(SIGN(AN46-AN44)+2,AK44,"("&AK44&" : "&AK46&")",AK46)) -> (4. Gr. B : 5. Gr. A)
B31: 8 | O31: =INDEX(tbl_KO_Data[T2 Src Rank],K26) & ". Gr. " & INDEX(tbl_KO_Data[T2 Src Group],K26) -> 5. Gr. A
B32: 16
B33: 32
B34: 64 | I34: 32 | K34: =KO_Data_1row+INDEX(D34:I34,KO_Rounds_Ind) -> 295 | AK34: K_64_A32 | AL34: field x | AM34: best of n | AN34: 0 | AP34: K_32_A16 | AQ34: field x | AR34: best of n | AS34: 0
B35: 128 | O35: =INDEX(tbl_KO_Data[T1 Src Rank],K34) & ". Gr. " & INDEX(tbl_KO_Data[T1 Src Group],K34) -> 4. Gr. B
AK36: =O35 -> 4. Gr. B | AP36: =IF($AP$16,O35,CHOOSE(SIGN(AN54-AN52)+2,AK52,"("&AK52&" : "&AK54&")",AK54)) -> (4. Gr. B : 5. Gr. A)
A37: KO_Groups_Ind | B37: 3
AK38: =O39 -> 5. Gr. A | AP38: =IF($AP$16,O39,CHOOSE(SIGN(AN62-AN60)+2,AK60,"("&AK60&" : "&AK62&")",AK62)) -> (4. Gr. B : 5. Gr. A)
A39: KO_Groups_Sel | B39: =MIN(INDEX(KO_Groups_List,KO_Groups_Ind),KO_TeamsReq) -> 4 | O39: =INDEX(tbl_KO_Data[T2 Src Rank],K34) & ". Gr. " & INDEX(tbl_KO_Data[T2 Src Group],K34) -> 5. Gr. A
A41: KO_GroupSize | B41: =KO_TeamsReq/KO_Groups_Sel -> 4
I42: 33 | K42: =KO_Data_1row+INDEX(D42:I42,KO_Rounds_Ind) -> 295 | AK42: K_64_A33 | AL42: field x | AM42: best of n | AN42: 0 | AP42: K_32_A17 | AQ42: field x | AR42: best of n | AS42: 0
A43: tbl_KO_Data.ID | B43: =1000000000*2^(KO_Rounds_Ind) + 1000000 * KO_Groups_Sel + 1000 * KO_GroupSize -> 8004004000 | O43: =INDEX(tbl_KO_Data[T1 Src Rank],K42) & ". Gr. " & INDEX(tbl_KO_Data[T1 Src Group],K42) -> 4. Gr. B
AK44: =O43 -> 4. Gr. B | AP44: =IF($AP$16,O43,CHOOSE(SIGN(AN70-AN68)+2,AK68,"("&AK68&" : "&AK70&")",AK70)) -> (4. Gr. B : 5. Gr. A)
A45: KO_Data_1row | B45: =MATCH(B43,tbl_KO_Data[ID],1) -> 295
AK46: =O47 -> 5. Gr. A | AP46: =IF($AP$16,O47,CHOOSE(SIGN(AN78-AN76)+2,AK76,"("&AK76&" : "&AK78&")",AK78)) -> (4. Gr. B : 5. Gr. A)
O47: =INDEX(tbl_KO_Data[T2 Src Rank],K42) & ". Gr. " & INDEX(tbl_KO_Data[T2 Src Group],K42) -> 5. Gr. A
I50: 16 | K50: =KO_Data_1row+INDEX(D50:I50,KO_Rounds_Ind) -> 295 | AK50: K_64_A16 | AL50: field x | AM50: best of n | AN50: 0 | AP50: K_32_A08 | AQ50: field x | AR50: best of n | AS50: 0
O51: =INDEX(tbl_KO_Data[T1 Src Rank],K50) & ". Gr. " & INDEX(tbl_KO_Data[T1 Src Group],K50) -> 4. Gr. B
AK52: =O51 -> 4. Gr. B | AP52: =IF($AP$16,O51,CHOOSE(SIGN(AN86-AN84)+2,AK84,"("&AK84&" : "&AK86&")",AK86)) -> (4. Gr. B : 5. Gr. A)
AK54: =O55 -> 5. Gr. A | AP54: =IF($AP$16,O55,CHOOSE(SIGN(AN94-AN92)+2,AK92,"("&AK92&" : "&AK94&")",AK94)) -> (4. Gr. B : 5. Gr. A)
O55: =INDEX(tbl_KO_Data[T2 Src Rank],K50) & ". Gr. " & INDEX(tbl_KO_Data[T2 Src Group],K50) -> 5. Gr. A
I58: 49 | K58: =KO_Data_1row+INDEX(D58:I58,KO_Rounds_Ind) -> 295 | AK58: K_64_A49 | AL58: field x | AM58: best of n | AN58: 0 | AP58: K_32_A25 | AQ58: field x | AR58: best of n | AS58: 0
O59: =INDEX(tbl_KO_Data[T1 Src Rank],K58) & ". Gr. " & INDEX(tbl_KO_Data[T1 Src Group],K58) -> 4. Gr. B
AK60: =O59 -> 4. Gr. B | AP60: =IF($AP$16,O59,CHOOSE(SIGN(AN102-AN100)+2,AK100,"("&AK100&" : "&AK102&")",AK102)) -> (4. Gr. B : 5. Gr. A)
AK62: =O63 -> 5. Gr. A | AP62: =IF($AP$16,O63,CHOOSE(SIGN(AN110-AN108)+2,AK108,"("&AK108&" : "&AK110&")",AK110)) -> (4. Gr. B : 5. Gr. A)
O63: =INDEX(tbl_KO_Data[T2 Src Rank],K58) & ". Gr. " & INDEX(tbl_KO_Data[T2 Src Group],K58) -> 5. Gr. A
I66: 17 | K66: =KO_Data_1row+INDEX(D66:I66,KO_Rounds_Ind) -> 295 | AK66: K_64_A17 | AL66: field x | AM66: best of n | AN66: 0 | AP66: K_32_A09 | AQ66: field x | AR66: best of n | AS66: 0
O67: =INDEX(tbl_KO_Data[T1 Src Rank],K66) & ". Gr. " & INDEX(tbl_KO_Data[T1 Src Group],K66) -> 4. Gr. B
AK68: =O67 -> 4. Gr. B | AP68: =IF($AP$16,O67,CHOOSE(SIGN(AN118-AN116)+2,AK116,"("&AK116&" : "&AK118&")",AK118)) -> (4. Gr. B : 5. Gr. A)
AK70: =O71 -> 5. Gr. A | AP70: =IF($AP$16,O71,CHOOSE(SIGN(AN126-AN124)+2,AK124,"("&AK124&" : "&AK126&")",AK126)) -> (4. Gr. B : 5. Gr. A)
O71: =INDEX(tbl_KO_Data[T2 Src Rank],K66) & ". Gr. " & INDEX(tbl_KO_Data[T2 Src Group],K66) -> 5. Gr. A
I74: 48 | K74: =KO_Data_1row+INDEX(D74:I74,KO_Rounds_Ind) -> 295 | AK74: K_64_A48 | AL74: field x | AM74: best of n | AN74: 0 | AP74: K_32_A24 | AQ74: field x | AR74: best of n | AS74: 0
O75: =INDEX(tbl_KO_Data[T1 Src Rank],K74) & ". Gr. " & INDEX(tbl_KO_Data[T1 Src Group],K74) -> 4. Gr. B
AK76: =O75 -> 4. Gr. B | AP76: =IF($AP$16,O75,CHOOSE(SIGN(AN134-AN132)+2,AK132,"("&AK132&" : "&AK134&")",AK134)) -> (4. Gr. B : 5. Gr. A)
AK78: =O79 -> 5. Gr. A | AP78: =IF($AP$16,O79,CHOOSE(SIGN(AN142-AN140)+2,AK140,"("&AK140&" : "&AK142&")",AK142)) -> (4. Gr. B : 5. Gr. A)
O79: =INDEX(tbl_KO_Data[T2 Src Rank],K74) & ". Gr. " & INDEX(tbl_KO_Data[T2 Src Group],K74) -> 5. Gr. A
I82: 8 | K82: =KO_Data_1row+INDEX(D82:I82,KO_Rounds_Ind) -> 295 | AK82: K_64_A08 | AL82: field x | AM82: best of n | AN82: 0 | AP82: K_32_A04 | AQ82: field x | AR82: best of n | AS82: 0
O83: =INDEX(tbl_KO_Data[T1 Src Rank],K82) & ". Gr. " & INDEX(tbl_KO_Data[T1 Src Group],K82) -> 4. Gr. B
AK84: =O83 -> 4. Gr. B | AP84: =IF($AP$16,O83,CHOOSE(SIGN(AN150-AN148)+2,AK148,"("&AK148&" : "&AK150&")",AK150)) -> (4. Gr. B : 5. Gr. A)
AK86: =O87 -> 5. Gr. A | AP86: =IF($AP$16,O87,CHOOSE(SIGN(AN158-AN156)+2,AK156,"("&AK156&" : "&AK158&")",AK158)) -> (4. Gr. B : 5. Gr. A)
O87: =INDEX(tbl_KO_Data[T2 Src Rank],K82) & ". Gr. " & INDEX(tbl_KO_Data[T2 Src Group],K82) -> 5. Gr. A
I90: 57 | K90: =KO_Data_1row+INDEX(D90:I90,KO_Rounds_Ind) -> 295 | AK90: K_64_A57 | AL90: field x | AM90: best of n | AN90: 0 | AP90: K_32_A29 | AQ90: field x | AR90: best of n | AS90: 0
O91: =INDEX(tbl_KO_Data[T1 Src Rank],K90) & ". Gr. " & INDEX(tbl_KO_Data[T1 Src Group],K90) -> 4. Gr. B
AK92: =O91 -> 4. Gr. B | AP92: =IF($AP$16,O91,CHOOSE(SIGN(AN166-AN164)+2,AK164,"("&AK164&" : "&AK166&")",AK166)) -> (4. Gr. B : 5. Gr. A)
AK94: =O95 -> 5. Gr. A | AP94: =IF($AP$16,O95,CHOOSE(SIGN(AN174-AN172)+2,AK172,"("&AK172&" : "&AK174&")",AK174)) -> (4. Gr. B : 5. Gr. A)
O95: =INDEX(tbl_KO_Data[T2 Src Rank],K90) & ". Gr. " & INDEX(tbl_KO_Data[T2 Src Group],K90) -> 5. Gr. A
I98: 25 | K98: =KO_Data_1row+INDEX(D98:I98,KO_Rounds_Ind) -> 295 | AK98: K_64_A25 | AL98: field x | AM98: best of n | AN98: 0 | AP98: K_32_A13 | AQ98: field x | AR98: best of n | AS98: 0
O99: =INDEX(tbl_KO_Data[T1 Src Rank],K98) & ". Gr. " & INDEX(tbl_KO_Data[T1 Src Group],K98) -> 4. Gr. B
AK100: =O99 -> 4. Gr. B | AP100: =IF($AP$16,O99,CHOOSE(SIGN(AN182-AN180)+2,AK180,"("&AK180&" : "&AK182&")",AK182)) -> (4. Gr. B : 5. Gr. A)
AK102: =O103 -> 5. Gr. A | AP102: =IF($AP$16,O103,CHOOSE(SIGN(AN190-AN188)+2,AK188,"("&AK188&" : "&AK190&")",AK190)) -> (4. Gr. B : 5. Gr. A)
O103: =INDEX(tbl_KO_Data[T2 Src Rank],K98) & ". Gr. " & INDEX(tbl_KO_Data[T2 Src Group],K98) -> 5. Gr. A
I106: 40 | K106: =KO_Data_1row+INDEX(D106:I106,KO_Rounds_Ind) -> 295 | AK106: K_64_A40 | AL106: field x | AM106: best of n | AN106: 0 | AP106: K_32_A20 | AQ106: field x | AR106: best of n | AS106: 0
O107: =INDEX(tbl_KO_Data[T1 Src Rank],K106) & ". Gr. " & INDEX(tbl_KO_Data[T1 Src Group],K106) -> 4. Gr. B
AK108: =O107 -> 4. Gr. B | AP108: =IF($AP$16,O107,CHOOSE(SIGN(AN198-AN196)+2,AK196,"("&AK196&" : "&AK198&")",AK198)) -> (4. Gr. B : 5. Gr. A)
AK110: =O111 -> 5. Gr. A | AP110: =IF($AP$16,O111,CHOOSE(SIGN(AN206-AN204)+2,AK204,"("&AK204&" : "&AK206&")",AK206)) -> (4. Gr. B : 5. Gr. A)
O111: =INDEX(tbl_KO_Data[T2 Src Rank],K106) & ". Gr. " & INDEX(tbl_KO_Data[T2 Src Group],K106) -> 5. Gr. A
I114: 9 | K114: =KO_Data_1row+INDEX(D114:I114,KO_Rounds_Ind) -> 295 | AK114: K_64_A09 | AL114: field x | AM114: best of n | AN114: 0 | AP114: K_32_A05 | AQ114: field x | AR114: best of n | AS114: 0
O115: =INDEX(tbl_KO_Data[T1 Src Rank],K114) & ". Gr. " & INDEX(tbl_KO_Data[T1 Src Group],K114) -> 4. Gr. B
AK116: =O115 -> 4. Gr. B | AP116: =IF($AP$16,O115,CHOOSE(SIGN(AN214-AN212)+2,AK212,"("&AK212&" : "&AK214&")",AK214)) -> (4. Gr. B : 5. Gr. A)
AK118: =O119 -> 5. Gr. A | AP118: =IF($AP$16,O119,CHOOSE(SIGN(AN222-AN220)+2,AK220,"("&AK220&" : "&AK222&")",AK222)) -> (4. Gr. B : 5. Gr. A)
O119: =INDEX(tbl_KO_Data[T2 Src Rank],K114) & ". Gr. " & INDEX(tbl_KO_Data[T2 Src Group],K114) -> 5. Gr. A
I122: 56 | K122: =KO_Data_1row+INDEX(D122:I122,KO_Rounds_Ind) -> 295 | AK122: K_64_A56 | AL122: field x | AM122: best of n | AN122: 0 | AP122: K_32_A28 | AQ122: field x | AR122: best of n | AS122: 0
O123: =INDEX(tbl_KO_Data[T1 Src Rank],K122) & ". Gr. " & INDEX(tbl_KO_Data[T1 Src Group],K122) -> 4. Gr. B
AK124: =O123 -> 4. Gr. B | AP124: =IF($AP$16,O123,CHOOSE(SIGN(AN230-AN228)+2,AK228,"("&AK228&" : "&AK230&")",AK230)) -> (4. Gr. B : 5. Gr. A)
AK126: =O127 -> 5. Gr. A | AP126: =IF($AP$16,O127,CHOOSE(SIGN(AN238-AN236)+2,AK236,"("&AK236&" : "&AK238&")",AK238)) -> (4. Gr. B : 5. Gr. A)
O127: =INDEX(tbl_KO_Data[T2 Src Rank],K122) & ". Gr. " & INDEX(tbl_KO_Data[T2 Src Group],K122) -> 5. Gr. A
I130: 24 | K130: =KO_Data_1row+INDEX(D130:I130,KO_Rounds_Ind) -> 295 | AK130: K_64_A24 | AL130: field x | AM130: best of n | AN130: 0 | AP130: K_32_A12 | AQ130: field x | AR130: best of n | AS130: 0
O131: =INDEX(tbl_KO_Data[T1 Src Rank],K130) & ". Gr. " & INDEX(tbl_KO_Data[T1 Src Group],K130) -> 4. Gr. B
AK132: =O131 -> 4. Gr. B | AP132: =IF($AP$16,O131,CHOOSE(SIGN(AN246-AN244)+2,AK244,"("&AK244&" : "&AK246&")",AK246)) -> (1. Gr. A : 4. Gr. B)
AK134: =O135 -> 5. Gr. A | AP134: =IF($AP$16,O135,CHOOSE(SIGN(AN254-AN252)+2,AK252,"("&AK252&" : "&AK254&")",AK254)) -> (2. Gr. D : 3. Gr. C)
O135: =INDEX(tbl_KO_Data[T2 Src Rank],K130) & ". Gr. " & INDEX(tbl_KO_Data[T2 Src Group],K130) -> 5. Gr. A
I138: 41 | K138: =KO_Data_1row+INDEX(D138:I138,KO_Rounds_Ind) -> 295 | AK138: K_64_A41 | AL138: field x | AM138: best of n | AN138: 0 | AP138: K_32_A21 | AQ138: field x | AR138: best of n | AS138: 0
O139: =INDEX(tbl_KO_Data[T1 Src Rank],K138) & ". Gr. " & INDEX(tbl_KO_Data[T1 Src Group],K138) -> 4. Gr. B
AK140: =O139 -> 4. Gr. B | AP140: =IF($AP$16,O139,CHOOSE(SIGN(AN262-AN260)+2,AK260,"("&AK260&" : "&AK262&")",AK262)) -> (1. Gr. C : 4. Gr. D)
AK142: =O143 -> 5. Gr. A | AP142: =IF($AP$16,O143,CHOOSE(SIGN(AN270-AN268)+2,AK268,"("&AK268&" : "&AK270&")",AK270)) -> (2. Gr. B : 3. Gr. A)
O143: =INDEX(tbl_KO_Data[T2 Src Rank],K138) & ". Gr. " & INDEX(tbl_KO_Data[T2 Src Group],K138) -> 5. Gr. A
H146: 1 | I146: 4 | K146: =KO_Data_1row+INDEX(D146:I146,KO_Rounds_Ind) -> 295 | AF146: K_32_A01 | AG146: field x | AH146: best of n | AI146: 0 | AK146: K_64_A04 | AL146: field x | AM146: best of n | AN146: 0 | AP146: K_32_A02 | AQ146: field x | AR146: best of n | AS146: 0 | AU146: K_16_A01 | AV146: field x | AW146: best of n | AX146: 0
O147: =INDEX(tbl_KO_Data[T1 Src Rank],K146) & ". Gr. " & INDEX(tbl_KO_Data[T1 Src Group],K146) -> 4. Gr. B
AF148: =O147 -> 4. Gr. B | AK148: =O147 -> 4. Gr. B | AP148: =IF($AP$16,O147,CHOOSE(SIGN(AN278-AN276)+2,AK276,"("&AK276&" : "&AK278&")",AK278)) -> (1. Gr. B : 4. Gr. C) | AU148: =IF($AU$16,CHOOSE(SIGN(AI150-AI148)+2,AF148,"("&AF148&" : "&AF150&")",AF150),CHOOSE(SIGN(AS22-AS20)+2,AP20,"("&AP20&" : "&AP22&")",AP22)) -> ((4. Gr. B : 5. Gr. A) : (4. Gr. B : 5. Gr. A))
AF150: =O151 -> 5. Gr. A | AK150: =O151 -> 5. Gr. A | AP150: =IF($AP$16,O151,CHOOSE(SIGN(AN286-AN284)+2,AK284,"("&AK284&" : "&AK286&")",AK286)) -> (2. Gr. A : 3. Gr. D) | AU150: =IF($AU$16,CHOOSE(SIGN(AI158-AI156)+2,AF156,"("&AF156&" : "&AF158&")",AF158),CHOOSE(SIGN(AS30-AS28)+2,AP28,"("&AP28&" : "&AP30&")",AP30)) -> ((4. Gr. B : 5. Gr. A) : (4. Gr. B : 5. Gr. A))
O151: =INDEX(tbl_KO_Data[T2 Src Rank],K146) & ". Gr. " & INDEX(tbl_KO_Data[T2 Src Group],K146) -> 5. Gr. A
H154: 32 | I154: 61 | K154: =KO_Data_1row+INDEX(D154:I154,KO_Rounds_Ind) -> 295 | AF154: K_32_A32 | AG154: field x | AH154: best of n | AI154: 0 | AK154: K_64_A61 | AL154: field x | AM154: best of n | AN154: 0 | AP154: K_32_A31 | AQ154: field x | AR154: best of n | AS154: 0 | AU154: K_16_A16 | AV154: field x | AW154: best of n | AX154: 0
O155: =INDEX(tbl_KO_Data[T1 Src Rank],K154) & ". Gr. " & INDEX(tbl_KO_Data[T1 Src Group],K154) -> 4. Gr. B
AF156: =O155 -> 4. Gr. B | AK156: =O155 -> 4. Gr. B | AP156: =IF($AP$16,O155,CHOOSE(SIGN(AN294-AN292)+2,AK292,"("&AK292&" : "&AK294&")",AK294)) -> (1. Gr. D : 4. Gr. A) | AU156: =IF($AU$16,CHOOSE(SIGN(AI166-AI164)+2,AF164,"("&AF164&" : "&AF166&")",AF166),CHOOSE(SIGN(AS38-AS36)+2,AP36,"("&AP36&" : "&AP38&")",AP38)) -> ((4. Gr. B : 5. Gr. A) : (4. Gr. B : 5. Gr. A))
AF158: =O159 -> 5. Gr. A | AK158: =O159 -> 5. Gr. A | AP158: =IF($AP$16,O159,CHOOSE(SIGN(AN302-AN300)+2,AK300,"("&AK300&" : "&AK302&")",AK302)) -> (2. Gr. C : 3. Gr. B) | AU158: =IF($AU$16,CHOOSE(SIGN(AI174-AI172)+2,AF172,"("&AF172&" : "&AF174&")",AF174),CHOOSE(SIGN(AS46-AS44)+2,AP44,"("&AP44&" : "&AP46&")",AP46)) -> ((4. Gr. B : 5. Gr. A) : (4. Gr. B : 5. Gr. A))
O159: =INDEX(tbl_KO_Data[T2 Src Rank],K154) & ". Gr. " & INDEX(tbl_KO_Data[T2 Src Group],K154) -> 5. Gr. A
H162: 16 | I162: 29 | K162: =KO_Data_1row+INDEX(D162:I162,KO_Rounds_Ind) -> 295 | AF162: K_32_A16 | AG162: field x | AH162: best of n | AI162: 0 | AK162: K_64_A29 | AL162: field x | AM162: best of n | AN162: 0 | AP162: K_32_A15 | AQ162: field x | AR162: best of n | AS162: 0 | AU162: K_16_A08 | AV162: field x | AW162: best of n | AX162: 0
O163: =INDEX(tbl_KO_Data[T1 Src Rank],K162) & ". Gr. " & INDEX(tbl_KO_Data[T1 Src Group],K162) -> 4. Gr. B
AF164: =O163 -> 4. Gr. B | AK164: =O163 -> 4. Gr. B | AP164: =IF($AP$16,O163,CHOOSE(SIGN(AN310-AN308)+2,AK308,"("&AK308&" : "&AK310&")",AK310)) -> (4. Gr. B : 5. Gr. A) | AU164: =IF($AU$16,CHOOSE(SIGN(AI182-AI180)+2,AF180,"("&AF180&" : "&AF182&")",AF182),CHOOSE(SIGN(AS54-AS52)+2,AP52,"("&AP52&" : "&AP54&")",AP54)) -> ((4. Gr. B : 5. Gr. A) : (4. Gr. B : 5. Gr. A))
AF166: =O167 -> 5. Gr. A | AK166: =O167 -> 5. Gr. A | AP166: =IF($AP$16,O167,CHOOSE(SIGN(AN318-AN316)+2,AK316,"("&AK316&" : "&AK318&")",AK318)) -> (4. Gr. B : 5. Gr. A) | AU166: =IF($AU$16,CHOOSE(SIGN(AI190-AI188)+2,AF188,"("&AF188&" : "&AF190&")",AF190),CHOOSE(SIGN(AS62-AS60)+2,AP60,"("&AP60&" : "&AP62&")",AP62)) -> ((4. Gr. B : 5. Gr. A) : (4. Gr. B : 5. Gr. A))
O167: =INDEX(tbl_KO_Data[T2 Src Rank],K162) & ". Gr. " & INDEX(tbl_KO_Data[T2 Src Group],K162) -> 5. Gr. A
H170: 17 | I170: 36 | K170: =KO_Data_1row+INDEX(D170:I170,KO_Rounds_Ind) -> 295 | AF170: K_32_A17 | AG170: field x | AH170: best of n | AI170: 0 | AK170: K_64_A36 | AL170: field x | AM170: best of n | AN170: 0 | AP170: K_32_A18 | AQ170: field x | AR170: best of n | AS170: 0 | AU170: K_16_A09 | AV170: field x | AW170: best of n | AX170: 0
O171: =INDEX(tbl_KO_Data[T1 Src Rank],K170) & ". Gr. " & INDEX(tbl_KO_Data[T1 Src Group],K170) -> 4. Gr. B
AF172: =O171 -> 4. Gr. B | AK172: =O171 -> 4. Gr. B | AP172: =IF($AP$16,O171,CHOOSE(SIGN(AN326-AN324)+2,AK324,"("&AK324&" : "&AK326&")",AK326)) -> (4. Gr. B : 5. Gr. A) | AU172: =IF($AU$16,CHOOSE(SIGN(AI198-AI196)+2,AF196,"("&AF196&" : "&AF198&")",AF198),CHOOSE(SIGN(AS70-AS68)+2,AP68,"("&AP68&" : "&AP70&")",AP70)) -> ((4. Gr. B : 5. Gr. A) : (4. Gr. B : 5. Gr. A))
AF174: =O175 -> 5. Gr. A | AK174: =O175 -> 5. Gr. A | AP174: =IF($AP$16,O175,CHOOSE(SIGN(AN334-AN332)+2,AK332,"("&AK332&" : "&AK334&")",AK334)) -> (4. Gr. B : 5. Gr. A) | AU174: =IF($AU$16,CHOOSE(SIGN(AI206-AI204)+2,AF204,"("&AF204&" : "&AF206&")",AF206),CHOOSE(SIGN(AS78-AS76)+2,AP76,"("&AP76&" : "&AP78&")",AP78)) -> ((4. Gr. B : 5. Gr. A) : (4. Gr. B : 5. Gr. A))
O175: =INDEX(tbl_KO_Data[T2 Src Rank],K170) & ". Gr. " & INDEX(tbl_KO_Data[T2 Src Group],K170) -> 5. Gr. A
H178: 8 | I178: 13 | K178: =KO_Data_1row+INDEX(D178:I178,KO_Rounds_Ind) -> 295 | AF178: K_32_A08 | AG178: field x | AH178: best of n | AI178: 0 | AK178: K_64_A13 | AL178: field x | AM178: best of n | AN178: 0 | AP178: K_32_A07 | AQ178: field x | AR178: best of n | AS178: 0 | AU178: K_16_A04 | AV178: field x | AW178: best of n | AX178: 0
O179: =INDEX(tbl_KO_Data[T1 Src Rank],K178) & ". Gr. " & INDEX(tbl_KO_Data[T1 Src Group],K178) -> 4. Gr. B
AF180: =O179 -> 4. Gr. B | AK180: =O179 -> 4. Gr. B | AP180: =IF($AP$16,O179,CHOOSE(SIGN(AN342-AN340)+2,AK340,"("&AK340&" : "&AK342&")",AK342)) -> (4. Gr. B : 5. Gr. A) | AU180: =IF($AU$16,CHOOSE(SIGN(AI214-AI212)+2,AF212,"("&AF212&" : "&AF214&")",AF214),CHOOSE(SIGN(AS86-AS84)+2,AP84,"("&AP84&" : "&AP86&")",AP86)) -> ((4. Gr. B : 5. Gr. A) : (4. Gr. B : 5. Gr. A))
AF182: =O183 -> 5. Gr. A | AK182: =O183 -> 5. Gr. A | AP182: =IF($AP$16,O183,CHOOSE(SIGN(AN350-AN348)+2,AK348,"("&AK348&" : "&AK350&")",AK350)) -> (4. Gr. B : 5. Gr. A) | AU182: =IF($AU$16,CHOOSE(SIGN(AI222-AI220)+2,AF220,"("&AF220&" : "&AF222&")",AF222),CHOOSE(SIGN(AS94-AS92)+2,AP92,"("&AP92&" : "&AP94&")",AP94)) -> ((4. Gr. B : 5. Gr. A) : (4. Gr. B : 5. Gr. A))
O183: =INDEX(tbl_KO_Data[T2 Src Rank],K178) & ". Gr. " & INDEX(tbl_KO_Data[T2 Src Group],K178) -> 5. Gr. A
H186: 25 | I186: 52 | K186: =KO_Data_1row+INDEX(D186:I186,KO_Rounds_Ind) -> 295 | AF186: K_32_A25 | AG186: field x | AH186: best of n | AI186: 0 | AK186: K_64_A52 | AL186: field x | AM186: best of n | AN186: 0 | AP186: K_32_A26 | AQ186: field x | AR186: best of n | AS186: 0 | AU186: K_16_A13 | AV186: field x | AW186: best of n | AX186: 0
O187: =INDEX(tbl_KO_Data[T1 Src Rank],K186) & ". Gr. " & INDEX(tbl_KO_Data[T1 Src Group],K186) -> 4. Gr. B
